Workbook

Sheet Legenda
A3: Tabele
B4: Struktura podmiotowa nierezydentów
C5: Obligacje skarbowe
C6: Bony skarbowe
C7: SPW
B9: Struktura geograficzna nierezydentów
C10: Obligacje skarbowe
C11: Bony skarbowe
C12: SPW
B14: Portfele banków centralnych po regionach
C15: Obligacje skarbowe
C16: Bony skarbowe
C17: SPW

Sheet Obligacje skarbowe_podmiot
A1: Struktura podmiotowa nierezydentów w obligacjach skarbowych (mln zł)
A3: Data | B3: Banki | C3: Banki centralne | D3: Instytucje publiczne | E3: Zakłady ubezpieczeniowe | F3: Fundusze emerytalne | G3: Fundusze inwestycyjne | H3: Fundusze hedgingowe | I3: Gospodarstwa domowe | J3: Przedsiębiorstwa niefinansowe | K3: Inne podmioty | L3: Rachunki zbiorcze | M3: Razem
A5: 2014-04-30 | B5: 11859.35796 | C5: 14430.96378 | D5: 680.11 | E5: 9105.370225 | F5: 11936.78663 | G5: 79070.62796 | H5: 93.29 | I5: 22.2905 | J5: 12072.48324 | K5: 17970.75585 | L5: 30397.89447 | M5: =SUM(B5:L5) -> 187639.9306
A6: 2014-05-31 | B6: 10461.62202 | C6: 17316.5464 | D6: 693.11 | E6: 9369.4 | F6: 12164.93213 | G6: 80214.31208 | H6: 91.19 | I6: 20.4282 | J6: 12552.15395 | K6: 15910.56379 | L6: 30859.05303 | M6: 189653.3116
A7: 2014-06-30 | B7: 12619.88656 | C7: 18045.01976 | D7: 719.535 | E7: 9529.916 | F7: 12296.85144 | G7: 83402.57666 | H7: 91.63 | I7: 20.4083 | J7: 14200.30862 | K7: 16528.53361 | L7: 32366.67246 | M7: 199821.3384
A8: 2014-07-31 | B8: 10840.59403 | C8: 18136.76359 | D8: 719.535 | E8: 9809.037 | F8: 12339.1654 | G8: 79595.78066 | H8: 92.88 | I8: 20.8915 | J8: 11903.4876 | K8: 19605.84464 | L8: 33037.72537 | M8: 196101.7048
A9: 2014-08-31 | B9: 9968.795871 | C9: 18398.84005 | D9: 717.105 | E9: 10684.524 | F9: 12226.45534 | G9: 79988.7352 | H9: 84.67 | I9: 20.8184 | J9: 12300.27247 | K9: 18630.29527 | L9: 30106.78708 | M9: 193127.2987
A10: 2014-09-30 | B10: 12063.88964 | C10: 19312.38063 | D10: 549.025 | E10: 10939.149 | F10: 12719.46201 | G10: 80785.26475 | H10: 83.225 | I10: 20.8044 | J10: 12221.72122 | K10: 17675.76042 | L10: 31143.43757 | M10: 197514.1196
A11: 2014-10-31 | B11: 14319.63883 | C11: 21142.34473 | D11: 501.575 | E11: 10399.404 | F11: 12391.01591 | G11: 77491.8969 | H11: 389.425 | I11: 20.8032 | J11: 11436.92628 | K11: 14802.47197 | L11: 32157.97772 | M11: 195053.4795
A12: 2014-11-30 | B12: 9895.550139 | C12: 15576.90442 | D12: 8794.055 | E12: 10524.984 | F12: 12754.52598 | G12: 78754.87706 | H12: 600.985 | I12: 19.3701 | J12: 12083.89807 | K12: 14820.44709 | L12: 32783.31825 | M12: 196608.9151
A13: 2014-12-31 | B13: 9936.517463 | C13: 16412.56812 | D13: 8067.325 | E13: 10721.279 | F13: 12995.52537 | G13: 78128.5551 | H13: 755.705 | I13: 19.1003 | J13: 11641.07235 | K13: 14290.08442 | L13: 33018.2307 | M13: 195985.9628
A14: 2015-01-31 | B14: 13290.68867 | C14: 17401.36058 | D14: 8129.83 | E14: 10580.214 | F14: 12692.84726 | G14: 81094.79998 | H14: 743.635 | I14: 16.5062 | J14: 11633.00714 | K14: 15761.43891 | L14: 31179.27554 | M14: =SUM(B14:L14) -> 202523.6033
A15: 2015-02-28 | B15: 11135.92305 | C15: 18525.07819 | D15: 8523.843 | E15: 10167.744 | F15: 13310.73362 | G15: 81582.28631 | H15: 1131.585 | I15: 16.5649 | J15: 8087.201819 | K15: 17344.13004 | L15: 32314.10981 | M15: 202139.1998
A16: 2015-03-31 | B16: 9898.138771 | C16: 20336.78486 | D16: 8815.753 | E16: 11019.791 | F16: 13175.78636 | G16: 80150.4558 | H16: 1088.485 | I16: 15.9474 | J16: 8218.006426 | K16: 17008.59994 | L16: 34064.24987 | M16: 203791.9984
A17: 2015-04-30 | B17: 12363.51148 | C17: 22212.04012 | D17: 8966.683 | E17: 9848.522 | F17: 13063.47009 | G17: 72320.88447 | H17: 1086.77 | I17: 16.0554 | J17: 7804.521668 | K17: 16880.63303 | L17: 34027.01677 | M17: 198590.108
A18: 2015-05-31 | B18: 12680.48087 | C18: 23071.43834 | D18: 9347.223 | E18: 10605.7807 | F18: 12244.67326 | G18: 70752.79127 | H18: 592.47 | I18: 16.2989 | J18: 8528.572331 | K18: 16484.74965 | L18: 35570.30658 | M18: 199894.7849
A19: 2015-06-30 | B19: 13960.73446 | C19: 22621.1891 | D19: 9429.623 | E19: 11005.33845 | F19: 12380.16287 | G19: 71538.94191 | H19: 40.52 | I19: 15.9941 | J19: 8409.58152 | K19: 18588.3729 | L19: 35717.27093 | M19: =SUM(B19:L19) -> 203707.7293
A20: 2015-07-31 | B20: 13318.34003 | C20: 22874.1179 | D20: 9530.618 | E20: 11724.10406 | F20: 12889.61275 | G20: 70916.36171 | H20: 40.52 | I20: 16.0033 | J20: 8103.27313 | K20: 18733.42552 | L20: 36806.47983 | M20: 204952.8562
A21: 2015-08-31 | B21: 16045.90586 | C21: 21081.7959 | D21: 9520.509 | E21: 11564.05811 | F21: 13085.22122 | G21: 69281.89727 | H21: 40.68 | I21: 15.7598 | J21: 7965.30313 | K21: 18736.07283 | L21: 38268.30118 | M21: 205605.5043
A22: 2015-09-30 | B22: 13500.42538 | C22: 28318.2552 | D22: 9742.501 | E22: 11597.36163 | F22: 13017.93243 | G22: 64687.12064 | H22: 40.18 | I22: 15.9093 | J22: 8729.956208 | K22: 19492.82659 | L22: 39020.10177 | M22: 208162.5701
A23: 2015-10-31 | B23: 15550.16477 | C23: 28597.65717 | D23: 9657.862 | E23: 10929.60944 | F23: 12990.62238 | G23: 58571.90962 | H23: 40.18 | I23: 15.5653 | J23: 9283.032508 | K23: 17983.39911 | L23: 42331.307 | M23: 205951.3093
A24: 2015-11-30 | B24: 11544.15277 | C24: 29122.1237 | D24: 10001.871 | E24: 11643.35548 | F24: 13609.39436 | G24: 59072.63391 | H24: 38.52 | I24: 15.8246 | J24: 9275.409189 | K24: 19059.96408 | L24: 43182.24527 | M24: 206565.4944
A25: 2015-12-31 | B25: 12704.1778 | C25: 30122.74306 | D25: 9378.478 | E25: 12441.59686 | F25: 14059.54756 | G25: 54947.63454 | H25: 40.84 | I25: 16.9978 | J25: 9095.883839 | K25: 19013.5924 | L25: 44938.05586 | M25: 206759.5477
A26: 2016-01-31 | B26: 16684.28576 | C26: 29314.37249 | D26: 9442.234 | E26: 12249.12278 | F26: 13390.55899 | G26: 47737.17086 | H26: 40.84 | I26: 17.2064 | J26: 6434.915766 | K26: 17816.05271 | L26: 40571.80338 | M26: 193698.5631
A27: 2016-02-29 | B27: 14775.67549 | C27: 29182.49181 | D27: 9440.085 | E27: 11408.5979 | F27: 13386.82124 | G27: 41096.20699 | H27: 40.84 | I27: 17.2367 | J27: 6580.956356 | K27: 17734.48624 | L27: 42884.72362 | M27: 186548.1214
A28: 2016-03-31 | B28: 19295.62988 | C28: 27744.17252 | D28: 9479.658 | E28: 11871.08736 | F28: 13768.42779 | G28: 41749.74361 | H28: 43.49 | I28: 18.101 | J28: 6711.138203 | K28: 17238.99774 | L28: 42243.49417 | M28: 190163.9403
A29: =EOMONTH(A28,1) -> 2016-04-30 | B29: 12361.54733 | C29: 28245.14567 | D29: 8863.014 | E29: 10808.81295 | F29: 13733.18565 | G29: 40687.98413 | H29: 64.44 | I29: 18.1561 | J29: 6227.112452 | K29: 16924.28758 | L29: 50326.73009 | M29: 188260.416
A30: 2016-05-31 | B30: 11556.56882 | C30: 29479.63403 | D30: 8903.968 | E30: 11300.79919 | F30: 14441.44349 | G30: 42327.14058 | H30: 77.97 | I30: 18.6364 | J30: 6508.7663 | K30: 18083.97991 | L30: 49838.61645 | M30: 192537.5232
A31: 2016-06-30 | B31: 12551.4108 | C31: 29494.4126 | D31: 8852.30779 | E31: 11755.16963 | F31: 14483.56389 | G31: 42990.72416 | H31: 79.97 | I31: 19.3507 | J31: 7053.333975 | K31: 17260.97088 | L31: 51952.49795 | M31: =SUM(B31:L31) -> 196493.7124
A32: 2016-07-31 | B32: 11348.06745 | C32: 28589.63373 | D32: 9032.107705 | E32: 9769.567612 | F32: 14574.5897 | G32: 41718.75538 | H32: 79.67 | I32: 20.97 | J32: 6818.104193 | K32: 17374.87893 | L32: 53495.17116 | M32: 192821.5159
A33: 2016-08-31 | B33: 10941.55218 | C33: 28460.88083 | D33: 9391.695 | E33: 9650.301871 | F33: 14518.89182 | G33: 43300.60649 | H33: 77.33 | I33: 21.9686 | J33: 7054.430868 | K33: 18132.20604 | L33: 54894.44776 | M33: 196444.3114
A34: 2016-09-30 | B34: 11856.32019 | C34: 28373.56929 | D34: 9298.202215 | E34: 10120.85198 | F34: 14551.28341 | G34: 44482.57973 | H34: 77.17 | I34: 22.4602 | J34: 7473.674421 | K34: 19669.37345 | L34: 54640.91553 | M34: 200566.4004
A35: 2016-10-31 | B35: 10082.34325 | C35: 28483.23536 | D35: 9355.492 | E35: 9396.111783 | F35: 14390.29402 | G35: 36781.93734 | H35: 76.7 | I35: 21.7032 | J35: 7808.291565 | K35: 22420.66148 | L35: 59302.61942 | M35: 198119.3894
A36: 2016-11-30 | B36: 9330.651718 | C36: 29125.45101 | D36: 9494.856 | E36: 9340.410899 | F36: 14298.35901 | G36: 32374.25692 | H36: 318.357 | I36: 20.4703 | J36: 7831.131596 | K36: 21350.31224 | L36: 54654.09912 | M36: 188138.3558
A37: 2016-12-31 | B37: 9965.788905 | C37: 28697.22446 | D37: 9887.604105 | E37: 9447.067428 | F37: 14173.44764 | G37: 31932.18622 | H37: 296.117 | I37: 21.3855 | J37: 8642.506138 | K37: 21251.71576 | L37: 58240.70938 | M37: 192555.7525
A38: 2017-01-31 | B38: 8781.149353 | C38: 28212.53652 | D38: 10119.26114 | E38: 9684.962234 | F38: 14786.471 | G38: 34384.22646 | H38: 305.272 | I38: 21.708 | J38: 8788.437281 | K38: 22245.9069 | L38: 56453.55925 | M38: 193783.4901
A39: 2017-02-28 | B39: 9426.441588 | C39: 27315.13892 | D39: 10559.2831 | E39: 9854.642315 | F39: 15232.90203 | G39: 36617.56937 | H39: 327.054 | I39: 22.6454 | J39: 8779.055891 | K39: 22555.63862 | L39: 54379.24263 | M39: 195069.6139
A40: 2017-03-31 | B40: 8413.184512 | C40: 31761.05127 | D40: 10649.0515 | E40: 10038.84522 | F40: 15600.44747 | G40: 38546.55502 | H40: 490.199 | I40: 23.6628 | J40: 8821.942298 | K40: 23926.1754 | L40: 56689.00554 | M40: 204960.12
A41: 2017-04-30 | B41: 7345.64696 | C41: 31153.74554 | D41: 10911.052 | E41: 9971.236278 | F41: 16124.91226 | G41: 39950.87738 | H41: 532.286 | I41: 39.9335 | J41: 8696.416023 | K41: 26709.31289 | L41: 58716.32577 | M41: 210151.7446
A42: 2017-05-31 | B42: 6087.387102 | C42: 30434.98982 | D42: 12267.411 | E42: 10075.26865 | F42: 16054.33639 | G42: 39485.72236 | H42: 541.612 | I42: 47.3331 | J42: 8561.641218 | K42: 26017.95847 | L42: 59948.23916 | M42: 209521.8993
A43: 2017-06-30 | B43: 8598.047633 | C43: 27986.98384 | D43: 11869.043 | E43: 10094.05787 | F43: 17241.35066 | G43: 40076.82272 | H43: 1273.252 | I43: 48.4495 | J43: 8648.049475 | K43: 25991.20072 | L43: 59910.90786 | M43: =SUM(B43:L43) -> 211738.1653
A44: 2017-07-31 | B44: 8072.272764 | C44: 27806.75464 | D44: 11878.253 | E44: 9878.687276 | F44: 16580.8454 | G44: 40290.74515 | H44: 1224.238 | I44: 50.1906 | J44: 8015.064784 | K44: 26734.5796 | L44: 58595.35142 | M44: 209126.9826
A45: 2017-08-31 | B45: 10583.50892 | C45: 27630.56569 | D45: 11733.972 | E45: 9634.054659 | F45: 17248.10098 | G45: 39694.21969 | H45: 1247.418 | I45: 50.3346 | J45: 7652.832643 | K45: 26197.97457 | L45: 56879.35311 | M45: 208552.3349
A46: 2017-09-30 | B46: 12832.62991 | C46: 26841.31205 | D46: 11012.031 | E46: 9901.629111 | F46: 16402.82235 | G46: 39970.82393 | H46: 1255.913 | I46: 50.7025 | J46: 7344.37132 | K46: 25945.91002 | L46: 53543.80433 | M46: 205101.9495
A47: 2017-10-31 | B47: 6008.341632 | C47: 34347.61882 | D47: 10303.211 | E47: 8510.295797 | F47: 16252.9187 | G47: 39473.6529 | H47: 1198.024 | I47: 54.06035 | J47: 6908.493764 | K47: 26370.67525 | L47: 52484.06359 | M47: 201911.3558
A48: 2017-11-30 | B48: 5861.925045 | C48: 34910.61579 | D48: 6741.766 | E48: 9295.530794 | F48: 15810.37097 | G48: 38432.2826 | H48: 1090.357 | I48: 54.041525 | J48: 7032.407425 | K48: 27212.48996 | L48: 53582.29039 | M48: =SUM(B48:L48) -> 200024.0775
A49: 2017-12-31 | B49: 5556.975892 | C49: 35660.4126 | D49: 5947.596 | E49: 9890.338992 | F49: 15641.73651 | G49: 39897.3367 | H49: 1241.565 | I49: 52.537425 | J49: 7056.798241 | K49: 27197.28714 | L49: 54571.88824 | M49: 202714.4727
A50: 2018-01-31 | B50: 6448.701326 | C50: 34001.42202 | D50: 4949.62 | E50: 9732.659953 | F50: 15372.44238 | G50: 40543.30632 | H50: 1169.731464 | I50: 50.352155 | J50: 6719.442316 | K50: 27217.03243 | L50: 53367.09983 | M50: 199571.8102
A51: 2018-02-28 | B51: 8217.889099 | C51: 33270.72367 | D51: 3025.674 | E51: 9826.940209 | F51: 15311.81931 | G51: 41336.12893 | H51: 1235.50716 | I51: 50.34083 | J51: 6363.319098 | K51: 28508.1872 | L51: 53318.94376 | M51: 200465.4733
A52: 2018-03-31 | B52: 7109.520436 | C52: 35872.82121 | D52: 1557.278 | E52: 10843.57363 | F52: 15311.13141 | G52: 40503.26305 | H52: 1086.611123 | I52: 55.12605903 | J52: 5936.22116 | K52: 29671.38754 | L52: 54869.48635 | M52: 202816.42
A53: 2018-04-30 | B53: 5568.257656 | C53: 35570.50099 | D53: 399.685 | E53: 10428.82869 | F53: 15017.89998 | G53: 38996.74769 | H53: 1203.394538 | I53: 54.86733885 | J53: 7140.4932 | K53: 29044.22703 | L53: 54261.77032 | M53: 197686.6724
A54: 2018-05-31 | B54: 6944.983703 | C54: 35355.0674 | D54: 445.865 | E54: 10160.73858 | F54: 14751.08738 | G54: 37967.3167 | H54: 1242.374191 | I54: 56.70091719 | J54: 7335.44168 | K54: 28486.6441 | L54: 53951.10988 | M54: 196697.3295
A55: 2018-06-30 | B55: 3900.991907 | C55: 35402.18086 | D55: 387.685 | E55: 11104.99798 | F55: 15017.75083 | G55: 36923.2261 | H55: 1238.142742 | I55: 56.890585 | J55: 7986.882748 | K55: 26887.61507 | L55: 53233.77688 | M55: 192140.1407 | N55: =N54-N53 -> 0 | O55: 0 | P55: 0 | Q55: 0 | R55: 0 | S55: 0 | T55: 0 | U55: 0 | V55: 0 | W55: 0 | X55: 0 | Y55: 0 | Z55: 0 | AA55: 0 | AB55: 0 | AC55: 0 | AD55: 0 | AE55: 0 | AF55: 0 | AG55: 0 | AH55: 0 | AI55: 0 | AJ55: 0 | AK55: 0 | AL55: 0 | AM55: 0 | AN55: 0 | AO55: 0 | AP55: 0 | AQ55: 0 | AR55: 0 | AS55: 0 | AT55: 0 | AU55: 0 | AV55: 0 | AW55: 0 | AX55: 0 | AY55: 0 | AZ55: 0 | BA55: 0 | BB55: 0 | BC55: 0 | BD55: 0 | BE55: 0 | BF55: 0 | BG55: 0 | BH55: 0 | BI55: 0 | BJ55: 0 | BK55: 0 | BL55: 0 | BM55: 0 | BN55: 0 | BO55: =BO54-BO53 -> 0 | BP55: 0 | BQ55: 0 | BR55: 0 | BS55: 0 | BT55: 0 | BU55: 0 | BV55: 0 | BW55: 0 | BX55: 0 | BY55: 0 | BZ55: 0 | CA55: 0 | CB55: 0 | CC55: 0 | CD55: 0 | CE55: 0 | CF55: 0 | CG55: 0 | CH55: 0 | CI55: 0 | CJ55: 0 | CK55: 0 | CL55: 0 | CM55: 0 | CN55: 0 | CO55: 0 | CP55: 0 | CQ55: 0 | CR55: 0 | CS55: 0 | CT55: 0 | CU55: 0 | CV55: 0 | CW55: 0 | CX55: 0 | CY55: 0 | CZ55: 0 | DA55: 0 | DB55: 0 | DC55: 0 | DD55: 0 | DE55: 0 | DF55: 0 | DG55: 0 | DH55: 0 | DI55: 0 | DJ55: 0 | DK55: 0 | DL55: 0 | DM55: 0 | DN55: 0 | DO55: 0 | DP55: 0 | DQ55: 0 | DR55: 0 | DS55: 0 | DT55: 0 | DU55: 0 | DV55: 0 | DW55: 0 | DX55: 0 | DY55: 0 | DZ55: 0 | EA55: =EA54-EA53 -> 0 | EB55: 0 | EC55: 0 | ED55: 0 | EE55: 0 | EF55: 0 | EG55: 0 | EH55: 0 | EI55: 0 | EJ55: 0 | EK55: 0 | EL55: 0 | EM55: 0 | EN55: 0 | EO55: 0 | EP55: 0 | EQ55: 0 | ER55: 0 | ES55: 0 | ET55: 0 | EU55: 0 | EV55: 0 | EW55: 0 | EX55: 0 | EY55: 0 | EZ55: 0 | FA55: 0 | FB55: 0 | FC55: 0 | FD55: 0 | FE55: 0 | FF55: 0 | FG55: 0 | FH55: 0 | FI55: 0 | FJ55: 0 | FK55: 0 | FL55: 0 | FM55: 0 | FN55: 0 | FO55: 0 | FP55: 0 | FQ55: 0 | FR55: 0 | FS55: 0 | FT55: 0 | FU55: 0 | FV55: 0 | FW55: 0 | FX55: 0 | FY55: 0 | FZ55: 0 | GA55: 0 | GB55: 0 | GC55: 0 | GD55: 0 | GE55: 0 | GF55: 0 | GG55: 0 | GH55: 0 | GI55: 0 | GJ55: 0 | GK55: 0 | GL55: 0 | GM55: =GM54-GM53 -> 0 | GN55: 0 | GO55: 0 | GP55: 0 | GQ55: 0 | GR55: 0 | GS55: 0 | GT55: 0 | GU55: 0 | GV55: 0 | GW55: 0 | GX55: 0 | GY55: 0 | GZ55: 0 | HA55: 0 | HB55: 0 | HC55: 0 | HD55: 0 | HE55: 0 | HF55: 0 | HG55: 0 | HH55: 0 | HI55: 0 | HJ55: 0 | HK55: 0 | HL55: 0 | HM55: 0 | HN55: 0 | HO55: 0 | HP55: 0 | HQ55: 0 | HR55: 0 | HS55: 0 | HT55: 0 | HU55: 0 | HV55: 0 | HW55: 0 | HX55: 0 | HY55: 0 | HZ55: 0 | IA55: 0 | IB55: 0 | IC55: 0 | ID55: 0 | IE55: 0 | IF55: 0 | IG55: 0 | IH55: 0 | II55: 0 | IJ55: 0 | IK55: 0 | IL55: 0 | IM55: 0 | IN55: 0 | IO55: 0 | IP55: 0 | IQ55: 0 | IR55: 0 | IS55: 0 | IT55: 0 | IU55: 0 | IV55: 0 | IW55: 0 | IX55: 0 | IY55: =IY54-IY53 -> 0 | IZ55: 0 | JA55: 0 | JB55: 0 | JC55: 0 | JD55: 0 | JE55: 0 | JF55: 0 | JG55: 0 | JH55: 0 | JI55: 0 | JJ55: 0 | JK55: 0 | JL55: 0 | JM55: 0 | JN55: 0 | JO55: 0 | JP55: 0 | JQ55: 0 | JR55: 0 | JS55: 0 | JT55: 0 | JU55: 0 | JV55: 0 | JW55: 0 | JX55: 0 | JY55: 0 | JZ55: 0 | KA55: 0 | KB55: 0 | KC55: 0 | KD55: 0 | KE55: 0 | KF55: 0 | KG55: 0 | KH55: 0 | KI55: 0 | KJ55: 0 | KK55: 0 | KL55: 0 | KM55: 0 | KN55: 0 | KO55: 0 | KP55: 0 | KQ55: 0 | KR55: 0 | KS55: 0 | KT55: 0 | KU55: 0 | KV55: 0 | KW55: 0 | KX55: 0 | KY55: 0 | KZ55: 0 | LA55: 0 | LB55: 0 | LC55: 0 | LD55: 0 | LE55: 0 | LF55: 0 | LG55: 0 | LH55: 0 | LI55: 0 | LJ55: 0 | LK55: =LK54-LK53 -> 0 | LL55: 0 | LM55: 0 | LN55: 0 | LO55: 0 | LP55: 0 | LQ55: 0 | LR55: 0 | LS55: 0 | LT55: 0 | LU55: 0 | LV55: 0 | LW55: 0 | LX55: 0 | LY55: 0 | LZ55: 0 | MA55: 0 | MB55: 0 | MC55: 0 | MD55: 0 | ME55: 0 | MF55: 0 | MG55: 0 | MH55: 0 | MI55: 0 | MJ55: 0 | MK55: 0 | ML55: 0 | MM55: 0 | MN55: 0 | MO55: 0 | MP55: 0 | MQ55: 0 | MR55: 0 | MS55: 0 | MT55: 0 | MU55: 0 | MV55: 0 | MW55: 0 | MX55: 0 | MY55: 0 | MZ55: 0 | NA55: 0 | NB55: 0 | NC55: 0 | ND55: 0 | NE55: 0 | NF55: 0 | NG55: 0 | NH55: 0 | NI55: 0 | NJ55: 0 | NK55: 0 | NL55: 0 | NM55: 0 | NN55: 0 | NO55: 0 | NP55: 0 | NQ55: 0 | NR55: 0 | NS55: 0 | NT55: 0 | NU55: 0 | NV55: 0 | NW55: =NW54-NW53 -> 0 | NX55: 0 | NY55: 0 | NZ55: 0 | OA55: 0 | OB55: 0 | OC55: 0 | OD55: 0 | OE55: 0 | OF55: 0 | OG55: 0 | OH55: 0 | OI55: 0 | OJ55: 0 | OK55: 0 | OL55: 0 | OM55: 0 | ON55: 0 | OO55: 0 | OP55: 0 | OQ55: 0 | OR55: 0 | OS55: 0 | OT55: 0 | OU55: 0 | OV55: 0 | OW55: 0 | OX55: 0 | OY55: 0 | OZ55: 0 | PA55: 0 | PB55: 0 | PC55: 0 | PD55: 0 | PE55: 0 | PF55: 0 | PG55: 0 | PH55: 0 | PI55: 0 | PJ55: 0 | PK55: 0 | PL55: 0 | PM55: 0 | PN55: 0 | PO55: 0 | PP55: 0 | PQ55: 0 | PR55: 0 | PS55: 0 | PT55: 0 | PU55: 0 | PV55: 0 | PW55: 0 | PX55: 0 | PY55: 0 | PZ55: 0 | QA55: 0 | QB55: 0 | QC55: 0 | QD55: 0 | QE55: 0 | QF55: 0 | QG55: 0 | QH55: 0 | QI55: =QI54-QI53 -> 0 | QJ55: 0 | QK55: 0 | QL55: 0 | QM55: 0 | QN55: 0 | QO55: 0 | QP55: 0 | QQ55: 0 | QR55: 0 | QS55: 0 | QT55: 0 | QU55: 0 | QV55: 0 | QW55: 0 | QX55: 0 | QY55: 0 | QZ55: 0 | RA55: 0 | RB55: 0 | RC55: 0 | RD55: 0 | RE55: 0 | RF55: 0 | RG55: 0 | RH55: 0 | RI55: 0 | RJ55: 0 | RK55: 0 | RL55: 0 | RM55: 0 | RN55: 0 | RO55: 0 | RP55: 0 | RQ55: 0 | RR55: 0 | RS55: 0 | RT55: 0 | RU55: 0 | RV55: 0 | RW55: 0 | RX55: 0 | RY55: 0 | RZ55: 0 | SA55: 0 | SB55: 0 | SC55: 0 | SD55: 0 | SE55: 0 | SF55: 0 | SG55: 0 | SH55: 0 | SI55: 0 | SJ55: 0 | SK55: 0 | SL55: 0 | SM55: 0 | SN55: 0 | SO55: 0 | SP55: 0 | SQ55: 0 | SR55: 0 | SS55: 0 | ST55: 0 | SU55: =SU54-SU53 -> 0 | SV55: 0 | SW55: 0 | SX55: 0 | SY55: 0 | SZ55: 0 | TA55: 0 | TB55: 0 | TC55: 0 | TD55: 0 | TE55: 0 | TF55: 0 | TG55: 0 | TH55: 0 | TI55: 0 | TJ55: 0 | TK55: 0 | TL55: 0 | TM55: 0 | TN55: 0 | TO55: 0 | TP55: 0 | TQ55: 0 | TR55: 0 | TS55: 0 | TT55: 0 | TU55: 0 | TV55: 0 | TW55: 0 | TX55: 0 | TY55: 0 | TZ55: 0 | UA55: 0 | UB55: 0 | UC55: 0 | UD55: 0 | UE55: 0 | UF55: 0 | UG55: 0 | UH55: 0 | UI55: 0 | UJ55: 0 | UK55: 0 | UL55: 0 | UM55: 0 | UN55: 0 | UO55: 0 | UP55: 0 | UQ55: 0 | UR55: 0 | US55: 0 | UT55: 0 | UU55: 0 | UV55: 0 | UW55: 0 | UX55: 0 | UY55: 0 | UZ55: 0 | VA55: 0 | VB55: 0 | VC55: 0 | VD55: 0 | VE55: 0 | VF55: 0 | VG55: =VG54-VG53 -> 0 | VH55: 0 | VI55: 0 | VJ55: 0 | VK55: 0 | VL55: 0 | VM55: 0 | VN55: 0 | VO55: 0 | VP55: 0 | VQ55: 0 | VR55: 0 | VS55: 0 | VT55: 0 | VU55: 0 | VV55: 0 | VW55: 0 | VX55: 0 | VY55: 0 | VZ55: 0 | WA55: 0 | WB55: 0 | WC55: 0 | WD55: 0 | WE55: 0 | WF55: 0 | WG55: 0 | WH55: 0 | WI55: 0 | WJ55: 0 | WK55: 0 | WL55: 0 | WM55: 0 | WN55: 0 | WO55: 0 | WP55: 0 | WQ55: 0 | WR55: 0 | WS55: 0 | WT55: 0 | WU55: 0 | WV55: 0 | WW55: 0 | WX55: 0 | WY55: 0 | WZ55: 0 | XA55: 0 | XB55: 0 | XC55: 0 | XD55: 0 | XE55: 0 | XF55: 0 | XG55: 0 | XH55: 0 | XI55: 0 | XJ55: 0 | XK55: 0 | XL55: 0 | XM55: 0 | XN55: 0 | XO55: 0 | XP55: 0 | XQ55: 0 | XR55: 0 | XS55: =XS54-XS53 -> 0 | XT55: 0 | XU55: 0 | XV55: 0 | XW55: 0 | XX55: 0 | XY55: 0 | XZ55: 0 | YA55: 0 | YB55: 0 | YC55: 0 | YD55: 0 | YE55: 0 | YF55: 0 | YG55: 0 | YH55: 0 | YI55: 0 | YJ55: 0 | YK55: 0 | YL55: 0 | YM55: 0 | YN55: 0 | YO55: 0 | YP55: 0 | YQ55: 0 | YR55: 0 | YS55: 0 | YT55: 0 | YU55: 0 | YV55: 0 | YW55: 0 | YX55: 0 | YY55: 0 | YZ55: 0 | ZA55: 0 | ZB55: 0 | ZC55: 0 | ZD55: 0 | ZE55: 0 | ZF55: 0 | ZG55: 0 | ZH55: 0 | ZI55: 0 | ZJ55: 0 | ZK55: 0 | ZL55: 0 | ZM55: 0 | ZN55: 0 | ZO55: 0 | ZP55: 0 | ZQ55: 0 | ZR55: 0 | ZS55: 0 | ZT55: 0 | ZU55: 0 | ZV55: 0 | ZW55: 0 | ZX55: 0 | ZY55: 0 | ZZ55: 0 | AAA55: 0 | AAB55: 0 | AAC55: 0 | AAD55: 0 | AAE55: =AAE54-AAE53 -> 0 | AAF55: 0 | AAG55: 0 | AAH55: 0 | AAI55: 0 | AAJ55: 0 | AAK55: 0 | AAL55: 0 | AAM55: 0 | AAN55: 0 | AAO55: 0 | AAP55: 0 | AAQ55: 0 | AAR55: 0 | AAS55: 0 | AAT55: 0 | AAU55: 0 | AAV55: 0 | AAW55: 0 | AAX55: 0 | AAY55: 0 | AAZ55: 0 | ABA55: 0 | ABB55: 0 | ABC55: 0 | ABD55: 0 | ABE55: 0 | ABF55: 0 | ABG55: 0 | ABH55: 0 | ABI55: 0 | ABJ55: 0 | ABK55: 0 | ABL55: 0 | ABM55: 0 | ABN55: 0 | ABO55: 0 | ABP55: 0 | ABQ55: 0 | ABR55: 0 | ABS55: 0 | ABT55: 0 | ABU55: 0 | ABV55: 0 | ABW55: 0 | ABX55: 0 | ABY55: 0 | ABZ55: 0 | ACA55: 0 | ACB55: 0 | ACC55: 0 | ACD55: 0 | ACE55: 0 | ACF55: 0 | ACG55: 0 | ACH55: 0 | ACI55: 0 | ACJ55: 0 | ACK55: 0 | ACL55: 0 | ACM55: 0 | ACN55: 0 | ACO55: 0 | ACP55: 0 | ACQ55: =ACQ54-ACQ53 -> 0 | ACR55: 0 | ACS55: 0 | ACT55: 0 | ACU55: 0 | ACV55: 0 | ACW55: 0 | ACX55: 0 | ACY55: 0 | ACZ55: 0 | ADA55: 0 | ADB55: 0 | ADC55: 0 | ADD55: 0 | ADE55: 0 | ADF55: 0 | ADG55: 0 | ADH55: 0 | ADI55: 0 | ADJ55: 0 | ADK55: 0 | ADL55: 0 | ADM55: 0 | ADN55: 0 | ADO55: 0 | ADP55: 0 | ADQ55: 0 | ADR55: 0 | ADS55: 0 | ADT55: 0 | ADU55: 0 | ADV55: 0 | ADW55: 0 | ADX55: 0 | ADY55: 0 | ADZ55: 0 | AEA55: 0 | AEB55: 0 | AEC55: 0 | AED55: 0 | AEE55: 0 | AEF55: 0 | AEG55: 0 | AEH55: 0 | AEI55: 0 | AEJ55: 0 | AEK55: 0 | AEL55: 0 | AEM55: 0 | AEN55: 0 | AEO55: 0 | AEP55: 0 | AEQ55: 0 | AER55: 0 | AES55: 0 | AET55: 0 | AEU55: 0 | AEV55: 0 | AEW55: 0 | AEX55: 0 | AEY55: 0 | AEZ55: 0 | AFA55: 0 | AFB55: 0 | AFC55: =AFC54-AFC53 -> 0 | AFD55: 0 | AFE55: 0 | AFF55: 0 | AFG55: 0 | AFH55: 0 | AFI55: 0 | AFJ55: 0 | AFK55: 0 | AFL55: 0 | AFM55: 0 | AFN55: 0 | AFO55: 0 | AFP55: 0 | AFQ55: 0 | AFR55: 0 | AFS55: 0 | AFT55: 0 | AFU55: 0 | AFV55: 0 | AFW55: 0 | AFX55: 0 | AFY55: 0 | AFZ55: 0 | AGA55: 0 | AGB55: 0 | AGC55: 0 | AGD55: 0 | AGE55: 0 | AGF55: 0 | AGG55: 0 | AGH55: 0 | AGI55: 0 | AGJ55: 0 | AGK55: 0 | AGL55: 0 | AGM55: 0 | AGN55: 0 | AGO55: 0 | AGP55: 0 | AGQ55: 0 | AGR55: 0 | AGS55: 0 | AGT55: 0 | AGU55: 0 | AGV55: 0 | AGW55: 0 | AGX55: 0 | AGY55: 0 | AGZ55: 0 | AHA55: 0 | AHB55: 0 | AHC55: 0 | AHD55: 0 | AHE55: 0 | AHF55: 0 | AHG55: 0 | AHH55: 0 | AHI55: 0 | AHJ55: 0 | AHK55: 0 | AHL55: 0 | AHM55: 0 | AHN55: 0 | AHO55: =AHO54-AHO53 -> 0 | AHP55: 0 | AHQ55: 0 | AHR55: 0 | AHS55: 0 | AHT55: 0 | AHU55: 0 | AHV55: 0 | AHW55: 0 | AHX55: 0 | AHY55: 0 | AHZ55: 0 | AIA55: 0 | AIB55: 0 | AIC55: 0 | AID55: 0 | AIE55: 0 | AIF55: 0 | AIG55: 0 | AIH55: 0 | AII55: 0 | AIJ55: 0 | AIK55: 0 | AIL55: 0 | AIM55: 0 | AIN55: 0 | AIO55: 0 | AIP55: 0 | AIQ55: 0 | AIR55: 0 | AIS55: 0 | AIT55: 0 | AIU55: 0 | AIV55: 0 | AIW55: 0 | AIX55: 0 | AIY55: 0 | AIZ55: 0 | AJA55: 0 | AJB55: 0 | AJC55: 0 | AJD55: 0 | AJE55: 0 | AJF55: 0 | AJG55: 0 | AJH55: 0 | AJI55: 0 | AJJ55: 0 | AJK55: 0 | AJL55: 0 | AJM55: 0 | AJN55: 0 | AJO55: 0 | AJP55: 0 | AJQ55: 0 | AJR55: 0 | AJS55: 0 | AJT55: 0 | AJU55: 0 | AJV55: 0 | AJW55: 0 | AJX55: 0 | AJY55: 0 | AJZ55: 0 | AKA55: =AKA54-AKA53 -> 0 | AKB55: 0 | AKC55: 0 | AKD55: 0 | AKE55: 0 | AKF55: 0 | AKG55: 0 | AKH55: 0 | AKI55: 0 | AKJ55: 0 | AKK55: 0 | AKL55: 0 | AKM55: 0 | AKN55: 0 | AKO55: 0 | AKP55: 0 | AKQ55: 0 | AKR55: 0 | AKS55: 0 | AKT55: 0 | AKU55: 0 | AKV55: 0 | AKW55: 0 | AKX55: 0 | AKY55: 0 | AKZ55: 0 | ALA55: 0 | ALB55: 0 | ALC55: 0 | ALD55: 0 | ALE55: 0 | ALF55: 0 | ALG55: 0 | ALH55: 0 | ALI55: 0 | ALJ55: 0 | ALK55: 0 | ALL55: 0 | ALM55: 0 | ALN55: 0 | ALO55: 0 | ALP55: 0 | ALQ55: 0 | ALR55: 0 | ALS55: 0 | ALT55: 0 | ALU55: 0 | ALV55: 0 | ALW55: 0 | ALX55: 0 | ALY55: 0 | ALZ55: 0 | AMA55: 0 | AMB55: 0 | AMC55: 0 | AMD55: 0 | AME55: 0 | AMF55: 0 | AMG55: 0 | AMH55: 0 | AMI55: 0 | AMJ55: 0 | AMK55: 0 | AML55: 0 | AMM55: =AMM54-AMM53 -> 0 | AMN55: 0 | AMO55: 0 | AMP55: 0 | AMQ55: 0 | AMR55: 0 | AMS55: 0 | AMT55: 0 | AMU55: 0 | AMV55: 0 | AMW55: 0 | AMX55: 0 | AMY55: 0 | AMZ55: 0 | ANA55: 0 | ANB55: 0 | ANC55: 0 | AND55: 0 | ANE55: 0 | ANF55: 0 | ANG55: 0 | ANH55: 0 | ANI55: 0 | ANJ55: 0 | ANK55: 0 | ANL55: 0 | ANM55: 0 | ANN55: 0 | ANO55: 0 | ANP55: 0 | ANQ55: 0 | ANR55: 0 | ANS55: 0 | ANT55: 0 | ANU55: 0 | ANV55: 0 | ANW55: 0 | ANX55: 0 | ANY55: 0 | ANZ55: 0 | AOA55: 0 | AOB55: 0 | AOC55: 0 | AOD55: 0 | AOE55: 0 | AOF55: 0 | AOG55: 0 | AOH55: 0 | AOI55: 0 | AOJ55: 0 | AOK55: 0 | AOL55: 0 | AOM55: 0 | AON55: 0 | AOO55: 0 | AOP55: 0 | AOQ55: 0 | AOR55: 0 | AOS55: 0 | AOT55: 0 | AOU55: 0 | AOV55: 0 | AOW55: 0 | AOX55: 0 | AOY55: =AOY54-AOY53 -> 0 | AOZ55: 0 | APA55: 0 | APB55: 0 | APC55: 0 | APD55: 0 | APE55: 0 | APF55: 0 | APG55: 0 | APH55: 0 | API55: 0 | APJ55: 0 | APK55: 0 | APL55: 0 | APM55: 0 | APN55: 0 | APO55: 0 | APP55: 0 | APQ55: 0 | APR55: 0 | APS55: 0 | APT55: 0 | APU55: 0 | APV55: 0 | APW55: 0 | APX55: 0 | APY55: 0 | APZ55: 0 | AQA55: 0 | AQB55: 0 | AQC55: 0 | AQD55: 0 | AQE55: 0 | AQF55: 0 | AQG55: 0 | AQH55: 0 | AQI55: 0 | AQJ55: 0 | AQK55: 0 | AQL55: 0 | AQM55: 0 | AQN55: 0 | AQO55: 0 | AQP55: 0 | AQQ55: 0 | AQR55: 0 | AQS55: 0 | AQT55: 0 | AQU55: 0 | AQV55: 0 | AQW55: 0 | AQX55: 0 | AQY55: 0 | AQZ55: 0 | ARA55: 0 | ARB55: 0 | ARC55: 0 | ARD55: 0 | ARE55: 0 | ARF55: 0 | ARG55: 0 | ARH55: 0 | ARI55: 0 | ARJ55: 0 | ARK55: =ARK54-ARK53 -> 0 | ARL55: 0 | ARM55: 0 | ARN55: 0 | ARO55: 0 | ARP55: 0 | ARQ55: 0 | ARR55: 0 | ARS55: 0 | ART55: 0 | ARU55: 0 | ARV55: 0 | ARW55: 0 | ARX55: 0 | ARY55: 0 | ARZ55: 0 | ASA55: 0 | ASB55: 0 | ASC55: 0 | ASD55: 0 | ASE55: 0 | ASF55: 0 | ASG55: 0 | ASH55: 0 | ASI55: 0 | ASJ55: 0 | ASK55: 0 | ASL55: 0 | ASM55: 0 | ASN55: 0 | ASO55: 0 | ASP55: 0 | ASQ55: 0 | ASR55: 0 | ASS55: 0 | AST55: 0 | ASU55: 0 | ASV55: 0 | ASW55: 0 | ASX55: 0 | ASY55: 0 | ASZ55: 0 | ATA55: 0 | ATB55: 0 | ATC55: 0 | ATD55: 0 | ATE55: 0 | ATF55: 0 | ATG55: 0 | ATH55: 0 | ATI55: 0 | ATJ55: 0 | ATK55: 0 | ATL55: 0 | ATM55: 0 | ATN55: 0 | ATO55: 0 | ATP55: 0 | ATQ55: 0 | ATR55: 0 | ATS55: 0 | ATT55: 0 | ATU55: 0 | ATV55: 0 | ATW55: =ATW54-ATW53 -> 0 | ATX55: 0 | ATY55: 0 | ATZ55: 0 | AUA55: 0 | AUB55: 0 | AUC55: 0 | AUD55: 0 | AUE55: 0 | AUF55: 0 | AUG55: 0 | AUH55: 0 | AUI55: 0 | AUJ55: 0 | AUK55: 0 | AUL55: 0 | AUM55: 0 | AUN55: 0 | AUO55: 0 | AUP55: 0 | AUQ55: 0 | AUR55: 0 | AUS55: 0 | AUT55: 0 | AUU55: 0 | AUV55: 0 | AUW55: 0 | AUX55: 0 | AUY55: 0 | AUZ55: 0 | AVA55: 0 | AVB55: 0 | AVC55: 0 | AVD55: 0 | AVE55: 0 | AVF55: 0 | AVG55: 0 | AVH55: 0 | AVI55: 0 | AVJ55: 0 | AVK55: 0 | AVL55: 0 | AVM55: 0 | AVN55: 0 | AVO55: 0 | AVP55: 0 | AVQ55: 0 | AVR55: 0 | AVS55: 0 | AVT55: 0 | AVU55: 0 | AVV55: 0 | AVW55: 0 | AVX55: 0 | AVY55: 0 | AVZ55: 0 | AWA55: 0 | AWB55: 0 | AWC55: 0 | AWD55: 0 | AWE55: 0 | AWF55: 0 | AWG55: 0 | AWH55: 0 | AWI55: =AWI54-AWI53 -> 0 | AWJ55: 0 | AWK55: 0 | AWL55: 0 | AWM55: 0 | AWN55: 0 | AWO55: 0 | AWP55: 0 | AWQ55: 0 | AWR55: 0 | AWS55: 0 | AWT55: 0 | AWU55: 0 | AWV55: 0 | AWW55: 0 | AWX55: 0 | AWY55: 0 | AWZ55: 0 | AXA55: 0 | AXB55: 0 | AXC55: 0 | AXD55: 0 | AXE55: 0 | AXF55: 0 | AXG55: 0 | AXH55: 0 | AXI55: 0 | AXJ55: 0 | AXK55: 0 | AXL55: 0 | AXM55: 0 | AXN55: 0 | AXO55: 0 | AXP55: 0 | AXQ55: 0 | AXR55: 0 | AXS55: 0 | AXT55: 0 | AXU55: 0 | AXV55: 0 | AXW55: 0 | AXX55: 0 | AXY55: 0 | AXZ55: 0 | AYA55: 0 | AYB55: 0 | AYC55: 0 | AYD55: 0 | AYE55: 0 | AYF55: 0 | AYG55: 0 | AYH55: 0 | AYI55: 0 | AYJ55: 0 | AYK55: 0 | AYL55: 0 | AYM55: 0 | AYN55: 0 | AYO55: 0 | AYP55: 0 | AYQ55: 0 | AYR55: 0 | AYS55: 0 | AYT55: 0 | AYU55: =AYU54-AYU53 -> 0 | AYV55: 0 | AYW55: 0 | AYX55: 0 | AYY55: 0 | AYZ55: 0 | AZA55: 0 | AZB55: 0 | AZC55: 0 | AZD55: 0 | AZE55: 0 | AZF55: 0 | AZG55: 0 | AZH55: 0 | AZI55: 0 | AZJ55: 0 | AZK55: 0 | AZL55: 0 | AZM55: 0 | AZN55: 0 | AZO55: 0 | AZP55: 0 | AZQ55: 0 | AZR55: 0 | AZS55: 0 | AZT55: 0 | AZU55: 0 | AZV55: 0 | AZW55: 0 | AZX55: 0 | AZY55: 0 | AZZ55: 0 | BAA55: 0 | BAB55: 0 | BAC55: 0 | BAD55: 0 | BAE55: 0 | BAF55: 0 | BAG55: 0 | BAH55: 0 | BAI55: 0 | BAJ55: 0 | BAK55: 0 | BAL55: 0 | BAM55: 0 | BAN55: 0 | BAO55: 0 | BAP55: 0 | BAQ55: 0 | BAR55: 0 | BAS55: 0 | BAT55: 0 | BAU55: 0 | BAV55: 0 | BAW55: 0 | BAX55: 0 | BAY55: 0 | BAZ55: 0 | BBA55: 0 | BBB55: 0 | BBC55: 0 | BBD55: 0 | BBE55: 0 | BBF55: 0 | BBG55: =BBG54-BBG53 -> 0 | BBH55: 0 | BBI55: 0 | BBJ55: 0 | BBK55: 0 | BBL55: 0 | BBM55: 0 | BBN55: 0 | BBO55: 0 | BBP55: 0 | BBQ55: 0 | BBR55: 0 | BBS55: 0 | BBT55: 0 | BBU55: 0 | BBV55: 0 | BBW55: 0 | BBX55: 0 | BBY55: 0 | BBZ55: 0 | BCA55: 0 | BCB55: 0 | BCC55: 0 | BCD55: 0 | BCE55: 0 | BCF55: 0 | BCG55: 0 | BCH55: 0 | BCI55: 0 | BCJ55: 0 | BCK55: 0 | BCL55: 0 | BCM55: 0 | BCN55: 0 | BCO55: 0 | BCP55: 0 | BCQ55: 0 | BCR55: 0 | BCS55: 0 | BCT55: 0 | BCU55: 0 | BCV55: 0 | BCW55: 0 | BCX55: 0 | BCY55: 0 | BCZ55: 0 | BDA55: 0 | BDB55: 0 | BDC55: 0 | BDD55: 0 | BDE55: 0 | BDF55: 0 | BDG55: 0 | BDH55: 0 | BDI55: 0 | BDJ55: 0 | BDK55: 0 | BDL55: 0 | BDM55: 0 | BDN55: 0 | BDO55: 0 | BDP55: 0 | BDQ55: 0 | BDR55: 0 | BDS55: =BDS54-BDS53 -> 0 | BDT55: 0 | BDU55: 0 | BDV55: 0 | BDW55: 0 | BDX55: 0 | BDY55: 0 | BDZ55: 0 | BEA55: 0 | BEB55: 0 | BEC55: 0 | BED55: 0 | BEE55: 0 | BEF55: 0 | BEG55: 0 | BEH55: 0 | BEI55: 0 | BEJ55: 0 | BEK55: 0 | BEL55: 0 | BEM55: 0 | BEN55: 0 | BEO55: 0 | BEP55: 0 | BEQ55: 0 | BER55: 0 | BES55: 0 | BET55: 0 | BEU55: 0 | BEV55: 0 | BEW55: 0 | BEX55: 0 | BEY55: 0 | BEZ55: 0 | BFA55: 0 | BFB55: 0 | BFC55: 0 | BFD55: 0 | BFE55: 0 | BFF55: 0 | BFG55: 0 | BFH55: 0 | BFI55: 0 | BFJ55: 0 | BFK55: 0 | BFL55: 0 | BFM55: 0 | BFN55: 0 | BFO55: 0 | BFP55: 0 | BFQ55: 0 | BFR55: 0 | BFS55: 0 | BFT55: 0 | BFU55: 0 | BFV55: 0 | BFW55: 0 | BFX55: 0 | BFY55: 0 | BFZ55: 0 | BGA55: 0 | BGB55: 0 | BGC55: 0 | BGD55: 0 | BGE55: =BGE54-BGE53 -> 0 | BGF55: 0 | BGG55: 0 | BGH55: 0 | BGI55: 0 | BGJ55: 0 | BGK55: 0 | BGL55: 0 | BGM55: 0 | BGN55: 0 | BGO55: 0 | BGP55: 0 | BGQ55: 0 | BGR55: 0 | BGS55: 0 | BGT55: 0 | BGU55: 0 | BGV55: 0 | BGW55: 0 | BGX55: 0 | BGY55: 0 | BGZ55: 0 | BHA55: 0 | BHB55: 0 | BHC55: 0 | BHD55: 0 | BHE55: 0 | BHF55: 0 | BHG55: 0 | BHH55: 0 | BHI55: 0 | BHJ55: 0 | BHK55: 0 | BHL55: 0 | BHM55: 0 | BHN55: 0 | BHO55: 0 | BHP55: 0 | BHQ55: 0 | BHR55: 0 | BHS55: 0 | BHT55: 0 | BHU55: 0 | BHV55: 0 | BHW55: 0 | BHX55: 0 | BHY55: 0 | BHZ55: 0 | BIA55: 0 | BIB55: 0 | BIC55: 0 | BID55: 0 | BIE55: 0 | BIF55: 0 | BIG55: 0 | BIH55: 0 | BII55: 0 | BIJ55: 0 | BIK55: 0 | BIL55: 0 | BIM55: 0 | BIN55: 0 | BIO55: 0 | BIP55: 0 | BIQ55: =BIQ54-BIQ53 -> 0 | BIR55: 0 | BIS55: 0 | BIT55: 0 | BIU55: 0 | BIV55: 0 | BIW55: 0 | BIX55: 0 | BIY55: 0 | BIZ55: 0 | BJA55: 0 | BJB55: 0 | BJC55: 0 | BJD55: 0 | BJE55: 0 | BJF55: 0 | BJG55: 0 | BJH55: 0 | BJI55: 0 | BJJ55: 0 | BJK55: 0 | BJL55: 0 | BJM55: 0 | BJN55: 0 | BJO55: 0 | BJP55: 0 | BJQ55: 0 | BJR55: 0 | BJS55: 0 | BJT55: 0 | BJU55: 0 | BJV55: 0 | BJW55: 0 | BJX55: 0 | BJY55: 0 | BJZ55: 0 | BKA55: 0 | BKB55: 0 | BKC55: 0 | BKD55: 0 | BKE55: 0 | BKF55: 0 | BKG55: 0 | BKH55: 0 | BKI55: 0 | BKJ55: 0 | BKK55: 0 | BKL55: 0 | BKM55: 0 | BKN55: 0 | BKO55: 0 | BKP55: 0 | BKQ55: 0 | BKR55: 0 | BKS55: 0 | BKT55: 0 | BKU55: 0 | BKV55: 0 | BKW55: 0 | BKX55: 0 | BKY55: 0 | BKZ55: 0 | BLA55: 0 | BLB55: 0 | BLC55: =BLC54-BLC53 -> 0 | BLD55: 0 | BLE55: 0 | BLF55: 0 | BLG55: 0 | BLH55: 0 | BLI55: 0 | BLJ55: 0 | BLK55: 0 | BLL55: 0 | BLM55: 0 | BLN55: 0 | BLO55: 0 | BLP55: 0 | BLQ55: 0 | BLR55: 0 | BLS55: 0 | BLT55: 0 | BLU55: 0 | BLV55: 0 | BLW55: 0 | BLX55: 0 | BLY55: 0 | BLZ55: 0 | BMA55: 0 | BMB55: 0 | BMC55: 0 | BMD55: 0 | BME55: 0 | BMF55: 0 | BMG55: 0 | BMH55: 0 | BMI55: 0 | BMJ55: 0 | BMK55: 0 | BML55: 0 | BMM55: 0 | BMN55: 0 | BMO55: 0 | BMP55: 0 | BMQ55: 0 | BMR55: 0 | BMS55: 0 | BMT55: 0 | BMU55: 0 | BMV55: 0 | BMW55: 0 | BMX55: 0 | BMY55: 0 | BMZ55: 0 | BNA55: 0 | BNB55: 0 | BNC55: 0 | BND55: 0 | BNE55: 0 | BNF55: 0 | BNG55: 0 | BNH55: 0 | BNI55: 0 | BNJ55: 0 | BNK55: 0 | BNL55: 0 | BNM55: 0 | BNN55: 0 | BNO55: =BNO54-BNO53 -> 0 | BNP55: 0 | BNQ55: 0 | BNR55: 0 | BNS55: 0 | BNT55: 0 | BNU55: 0 | BNV55: 0 | BNW55: 0 | BNX55: 0 | BNY55: 0 | BNZ55: 0 | BOA55: 0 | BOB55: 0 | BOC55: 0 | BOD55: 0 | BOE55: 0 | BOF55: 0 | BOG55: 0 | BOH55: 0 | BOI55: 0 | BOJ55: 0 | BOK55: 0 | BOL55: 0 | BOM55: 0 | BON55: 0 | BOO55: 0 | BOP55: 0 | BOQ55: 0 | BOR55: 0 | BOS55: 0 | BOT55: 0 | BOU55: 0 | BOV55: 0 | BOW55: 0 | BOX55: 0 | BOY55: 0 | BOZ55: 0 | BPA55: 0 | BPB55: 0 | BPC55: 0 | BPD55: 0 | BPE55: 0 | BPF55: 0 | BPG55: 0 | BPH55: 0 | BPI55: 0 | BPJ55: 0 | BPK55: 0 | BPL55: 0 | BPM55: 0 | BPN55: 0 | BPO55: 0 | BPP55: 0 | BPQ55: 0 | BPR55: 0 | BPS55: 0 | BPT55: 0 | BPU55: 0 | BPV55: 0 | BPW55: 0 | BPX55: 0 | BPY55: 0 | BPZ55: 0 | BQA55: =BQA54-BQA53 -> 0 | BQB55: 0 | BQC55: 0 | BQD55: 0 | BQE55: 0 | BQF55: 0 | BQG55: 0 | BQH55: 0 | BQI55: 0 | BQJ55: 0 | BQK55: 0 | BQL55: 0 | BQM55: 0 | BQN55: 0 | BQO55: 0 | BQP55: 0 | BQQ55: 0 | BQR55: 0 | BQS55: 0 | BQT55: 0 | BQU55: 0 | BQV55: 0 | BQW55: 0 | BQX55: 0 | BQY55: 0 | BQZ55: 0 | BRA55: 0 | BRB55: 0 | BRC55: 0 | BRD55: 0 | BRE55: 0 | BRF55: 0 | BRG55: 0 | BRH55: 0 | BRI55: 0 | BRJ55: 0 | BRK55: 0 | BRL55: 0 | BRM55: 0 | BRN55: 0 | BRO55: 0 | BRP55: 0 | BRQ55: 0 | BRR55: 0 | BRS55: 0 | BRT55: 0 | BRU55: 0 | BRV55: 0 | BRW55: 0 | BRX55: 0 | BRY55: 0 | BRZ55: 0 | BSA55: 0 | BSB55: 0 | BSC55: 0 | BSD55: 0 | BSE55: 0 | BSF55: 0 | BSG55: 0 | BSH55: 0 | BSI55: 0 | BSJ55: 0 | BSK55: 0 | BSL55: 0 | BSM55: =BSM54-BSM53 -> 0 | BSN55: 0 | BSO55: 0 | BSP55: 0 | BSQ55: 0 | BSR55: 0 | BSS55: 0 | BST55: 0 | BSU55: 0 | BSV55: 0 | BSW55: 0 | BSX55: 0 | BSY55: 0 | BSZ55: 0 | BTA55: 0 | BTB55: 0 | BTC55: 0 | BTD55: 0 | BTE55: 0 | BTF55: 0 | BTG55: 0 | BTH55: 0 | BTI55: 0 | BTJ55: 0 | BTK55: 0 | BTL55: 0 | BTM55: 0 | BTN55: 0 | BTO55: 0 | BTP55: 0 | BTQ55: 0 | BTR55: 0 | BTS55: 0 | BTT55: 0 | BTU55: 0 | BTV55: 0 | BTW55: 0 | BTX55: 0 | BTY55: 0 | BTZ55: 0 | BUA55: 0 | BUB55: 0 | BUC55: 0 | BUD55: 0 | BUE55: 0 | BUF55: 0 | BUG55: 0 | BUH55: 0 | BUI55: 0 | BUJ55: 0 | BUK55: 0 | BUL55: 0 | BUM55: 0 | BUN55: 0 | BUO55: 0 | BUP55: 0 | BUQ55: 0 | BUR55: 0 | BUS55: 0 | BUT55: 0 | BUU55: 0 | BUV55: 0 | BUW55: 0 | BUX55: 0 | BUY55: =BUY54-BUY53 -> 0 | BUZ55: 0 | BVA55: 0 | BVB55: 0 | BVC55: 0 | BVD55: 0 | BVE55: 0 | BVF55: 0 | BVG55: 0 | BVH55: 0 | BVI55: 0 | BVJ55: 0 | BVK55: 0 | BVL55: 0 | BVM55: 0 | BVN55: 0 | BVO55: 0 | BVP55: 0 | BVQ55: 0 | BVR55: 0 | BVS55: 0 | BVT55: 0 | BVU55: 0 | BVV55: 0 | BVW55: 0 | BVX55: 0 | BVY55: 0 | BVZ55: 0 | BWA55: 0 | BWB55: 0 | BWC55: 0 | BWD55: 0 | BWE55: 0 | BWF55: 0 | BWG55: 0 | BWH55: 0 | BWI55: 0 | BWJ55: 0 | BWK55: 0 | BWL55: 0 | BWM55: 0 | BWN55: 0 | BWO55: 0 | BWP55: 0 | BWQ55: 0 | BWR55: 0 | BWS55: 0 | BWT55: 0 | BWU55: 0 | BWV55: 0 | BWW55: 0 | BWX55: 0 | BWY55: 0 | BWZ55: 0 | BXA55: 0 | BXB55: 0 | BXC55: 0 | BXD55: 0 | BXE55: 0 | BXF55: 0 | BXG55: 0 | BXH55: 0 | BXI55: 0 | BXJ55: 0 | BXK55: =BXK54-BXK53 -> 0 | BXL55: 0 | BXM55: 0 | BXN55: 0 | BXO55: 0 | BXP55: 0 | BXQ55: 0 | BXR55: 0 | BXS55: 0 | BXT55: 0 | BXU55: 0 | BXV55: 0 | BXW55: 0 | BXX55: 0 | BXY55: 0 | BXZ55: 0 | BYA55: 0 | BYB55: 0 | BYC55: 0 | BYD55: 0 | BYE55: 0 | BYF55: 0 | BYG55: 0 | BYH55: 0 | BYI55: 0 | BYJ55: 0 | BYK55: 0 | BYL55: 0 | BYM55: 0 | BYN55: 0 | BYO55: 0 | BYP55: 0 | BYQ55: 0 | BYR55: 0 | BYS55: 0 | BYT55: 0 | BYU55: 0 | BYV55: 0 | BYW55: 0 | BYX55: 0 | BYY55: 0 | BYZ55: 0 | BZA55: 0 | BZB55: 0 | BZC55: 0 | BZD55: 0 | BZE55: 0 | BZF55: 0 | BZG55: 0 | BZH55: 0 | BZI55: 0 | BZJ55: 0 | BZK55: 0 | BZL55: 0 | BZM55: 0 | BZN55: 0 | BZO55: 0 | BZP55: 0 | BZQ55: 0 | BZR55: 0 | BZS55: 0 | BZT55: 0 | BZU55: 0 | BZV55: 0 | BZW55: =BZW54-BZW53 -> 0 | BZX55: 0 | BZY55: 0 | BZZ55: 0 | CAA55: 0 | CAB55: 0 | CAC55: 0 | CAD55: 0 | CAE55: 0 | CAF55: 0 | CAG55: 0 | CAH55: 0 | CAI55: 0 | CAJ55: 0 | CAK55: 0 | CAL55: 0 | CAM55: 0 | CAN55: 0 | CAO55: 0 | CAP55: 0 | CAQ55: 0 | CAR55: 0 | CAS55: 0 | CAT55: 0 | CAU55: 0 | CAV55: 0 | CAW55: 0 | CAX55: 0 | CAY55: 0 | CAZ55: 0 | CBA55: 0 | CBB55: 0 | CBC55: 0 | CBD55: 0 | CBE55: 0 | CBF55: 0 | CBG55: 0 | CBH55: 0 | CBI55: 0 | CBJ55: 0 | CBK55: 0 | CBL55: 0 | CBM55: 0 | CBN55: 0 | CBO55: 0 | CBP55: 0 | CBQ55: 0 | CBR55: 0 | CBS55: 0 | CBT55: 0 | CBU55: 0 | CBV55: 0 | CBW55: 0 | CBX55: 0 | CBY55: 0 | CBZ55: 0 | CCA55: 0 | CCB55: 0 | CCC55: 0 | CCD55: 0 | CCE55: 0 | CCF55: 0 | CCG55: 0 | CCH55: 0 | CCI55: =CCI54-CCI53 -> 0 | CCJ55: 0 | CCK55: 0 | CCL55: 0 | CCM55: 0 | CCN55: 0 | CCO55: 0 | CCP55: 0 | CCQ55: 0 | CCR55: 0 | CCS55: 0 | CCT55: 0 | CCU55: 0 | CCV55: 0 | CCW55: 0 | CCX55: 0 | CCY55: 0 | CCZ55: 0 | CDA55: 0 | CDB55: 0 | CDC55: 0 | CDD55: 0 | CDE55: 0 | CDF55: 0 | CDG55: 0 | CDH55: 0 | CDI55: 0 | CDJ55: 0 | CDK55: 0 | CDL55: 0 | CDM55: 0 | CDN55: 0 | CDO55: 0 | CDP55: 0 | CDQ55: 0 | CDR55: 0 | CDS55: 0 | CDT55: 0 | CDU55: 0 | CDV55: 0 | CDW55: 0 | CDX55: 0 | CDY55: 0 | CDZ55: 0 | CEA55: 0 | CEB55: 0 | CEC55: 0 | CED55: 0 | CEE55: 0 | CEF55: 0 | CEG55: 0 | CEH55: 0 | CEI55: 0 | CEJ55: 0 | CEK55: 0 | CEL55: 0 | CEM55: 0 | CEN55: 0 | CEO55: 0 | CEP55: 0 | CEQ55: 0 | CER55: 0 | CES55: 0 | CET55: 0 | CEU55: =CEU54-CEU53 -> 0 | CEV55: 0 | CEW55: 0 | CEX55: 0 | CEY55: 0 | CEZ55: 0 | CFA55: 0 | CFB55: 0 | CFC55: 0 | CFD55: 0 | CFE55: 0 | CFF55: 0 | CFG55: 0 | CFH55: 0 | CFI55: 0 | CFJ55: 0 | CFK55: 0 | CFL55: 0 | CFM55: 0 | CFN55: 0 | CFO55: 0 | CFP55: 0 | CFQ55: 0 | CFR55: 0 | CFS55: 0 | CFT55: 0 | CFU55: 0 | CFV55: 0 | CFW55: 0 | CFX55: 0 | CFY55: 0 | CFZ55: 0 | CGA55: 0 | CGB55: 0 | CGC55: 0 | CGD55: 0 | CGE55: 0 | CGF55: 0 | CGG55: 0 | CGH55: 0 | CGI55: 0 | CGJ55: 0 | CGK55: 0 | CGL55: 0 | CGM55: 0 | CGN55: 0 | CGO55: 0 | CGP55: 0 | CGQ55: 0 | CGR55: 0 | CGS55: 0 | CGT55: 0 | CGU55: 0 | CGV55: 0 | CGW55: 0 | CGX55: 0 | CGY55: 0 | CGZ55: 0 | CHA55: 0 | CHB55: 0 | CHC55: 0 | CHD55: 0 | CHE55: 0 | CHF55: 0 | CHG55: =CHG54-CHG53 -> 0 | CHH55: 0 | CHI55: 0 | CHJ55: 0 | CHK55: 0 | CHL55: 0 | CHM55: 0 | CHN55: 0 | CHO55: 0 | CHP55: 0 | CHQ55: 0 | CHR55: 0 | CHS55: 0 | CHT55: 0 | CHU55: 0 | CHV55: 0 | CHW55: 0 | CHX55: 0 | CHY55: 0 | CHZ55: 0 | CIA55: 0 | CIB55: 0 | CIC55: 0 | CID55: 0 | CIE55: 0 | CIF55: 0 | CIG55: 0 | CIH55: 0 | CII55: 0 | CIJ55: 0 | CIK55: 0 | CIL55: 0 | CIM55: 0 | CIN55: 0 | CIO55: 0 | CIP55: 0 | CIQ55: 0 | CIR55: 0 | CIS55: 0 | CIT55: 0 | CIU55: 0 | CIV55: 0 | CIW55: 0 | CIX55: 0 | CIY55: 0 | CIZ55: 0 | CJA55: 0 | CJB55: 0 | CJC55: 0 | CJD55: 0 | CJE55: 0 | CJF55: 0 | CJG55: 0 | CJH55: 0 | CJI55: 0 | CJJ55: 0 | CJK55: 0 | CJL55: 0 | CJM55: 0 | CJN55: 0 | CJO55: 0 | CJP55: 0 | CJQ55: 0 | CJR55: 0 | CJS55: =CJS54-CJS53 -> 0 | CJT55: 0 | CJU55: 0 | CJV55: 0 | CJW55: 0 | CJX55: 0 | CJY55: 0 | CJZ55: 0 | CKA55: 0 | CKB55: 0 | CKC55: 0 | CKD55: 0 | CKE55: 0 | CKF55: 0 | CKG55: 0 | CKH55: 0 | CKI55: 0 | CKJ55: 0 | CKK55: 0 | CKL55: 0 | CKM55: 0 | CKN55: 0 | CKO55: 0 | CKP55: 0 | CKQ55: 0 | CKR55: 0 | CKS55: 0 | CKT55: 0 | CKU55: 0 | CKV55: 0 | CKW55: 0 | CKX55: 0 | CKY55: 0 | CKZ55: 0 | CLA55: 0 | CLB55: 0 | CLC55: 0 | CLD55: 0 | CLE55: 0 | CLF55: 0 | CLG55: 0 | CLH55: 0 | CLI55: 0 | CLJ55: 0 | CLK55: 0 | CLL55: 0 | CLM55: 0 | CLN55: 0 | CLO55: 0 | CLP55: 0 | CLQ55: 0 | CLR55: 0 | CLS55: 0 | CLT55: 0 | CLU55: 0 | CLV55: 0 | CLW55: 0 | CLX55: 0 | CLY55: 0 | CLZ55: 0 | CMA55: 0 | CMB55: 0 | CMC55: 0 | CMD55: 0 | CME55: =CME54-CME53 -> 0 | CMF55: 0 | CMG55: 0 | CMH55: 0 | CMI55: 0 | CMJ55: 0 | CMK55: 0 | CML55: 0 | CMM55: 0 | CMN55: 0 | CMO55: 0 | CMP55: 0 | CMQ55: 0 | CMR55: 0 | CMS55: 0 | CMT55: 0 | CMU55: 0 | CMV55: 0 | CMW55: 0 | CMX55: 0 | CMY55: 0 | CMZ55: 0 | CNA55: 0 | CNB55: 0 | CNC55: 0 | CND55: 0 | CNE55: 0 | CNF55: 0 | CNG55: 0 | CNH55: 0 | CNI55: 0 | CNJ55: 0 | CNK55: 0 | CNL55: 0 | CNM55: 0 | CNN55: 0 | CNO55: 0 | CNP55: 0 | CNQ55: 0 | CNR55: 0 | CNS55: 0 | CNT55: 0 | CNU55: 0 | CNV55: 0 | CNW55: 0 | CNX55: 0 | CNY55: 0 | CNZ55: 0 | COA55: 0 | COB55: 0 | COC55: 0 | COD55: 0 | COE55: 0 | COF55: 0 | COG55: 0 | COH55: 0 | COI55: 0 | COJ55: 0 | COK55: 0 | COL55: 0 | COM55: 0 | CON55: 0 | COO55: 0 | COP55: 0 | COQ55: =COQ54-COQ53 -> 0 | COR55: 0 | COS55: 0 | COT55: 0 | COU55: 0 | COV55: 0 | COW55: 0 | COX55: 0 | COY55: 0 | COZ55: 0 | CPA55: 0 | CPB55: 0 | CPC55: 0 | CPD55: 0 | CPE55: 0 | CPF55: 0 | CPG55: 0 | CPH55: 0 | CPI55: 0 | CPJ55: 0 | CPK55: 0 | CPL55: 0 | CPM55: 0 | CPN55: 0 | CPO55: 0 | CPP55: 0 | CPQ55: 0 | CPR55: 0 | CPS55: 0 | CPT55: 0 | CPU55: 0 | CPV55: 0 | CPW55: 0 | CPX55: 0 | CPY55: 0 | CPZ55: 0 | CQA55: 0 | CQB55: 0 | CQC55: 0 | CQD55: 0 | CQE55: 0 | CQF55: 0 | CQG55: 0 | CQH55: 0 | CQI55: 0 | CQJ55: 0 | CQK55: 0 | CQL55: 0 | CQM55: 0 | CQN55: 0 | CQO55: 0 | CQP55: 0 | CQQ55: 0 | CQR55: 0 | CQS55: 0 | CQT55: 0 | CQU55: 0 | CQV55: 0 | CQW55: 0 | CQX55: 0 | CQY55: 0 | CQZ55: 0 | CRA55: 0 | CRB55: 0 | CRC55: =CRC54-CRC53 -> 0 | CRD55: 0 | CRE55: 0 | CRF55: 0 | CRG55: 0 | CRH55: 0 | CRI55: 0 | CRJ55: 0 | CRK55: 0 | CRL55: 0 | CRM55: 0 | CRN55: 0 | CRO55: 0 | CRP55: 0 | CRQ55: 0 | CRR55: 0 | CRS55: 0 | CRT55: 0 | CRU55: 0 | CRV55: 0 | CRW55: 0 | CRX55: 0 | CRY55: 0 | CRZ55: 0 | CSA55: 0 | CSB55: 0 | CSC55: 0 | CSD55: 0 | CSE55: 0 | CSF55: 0 | CSG55: 0 | CSH55: 0 | CSI55: 0 | CSJ55: 0 | CSK55: 0 | CSL55: 0 | CSM55: 0 | CSN55: 0 | CSO55: 0 | CSP55: 0 | CSQ55: 0 | CSR55: 0 | CSS55: 0 | CST55: 0 | CSU55: 0 | CSV55: 0 | CSW55: 0 | CSX55: 0 | CSY55: 0 | CSZ55: 0 | CTA55: 0 | CTB55: 0 | CTC55: 0 | CTD55: 0 | CTE55: 0 | CTF55: 0 | CTG55: 0 | CTH55: 0 | CTI55: 0 | CTJ55: 0 | CTK55: 0 | CTL55: 0 | CTM55: 0 | CTN55: 0 | CTO55: =CTO54-CTO53 -> 0 | CTP55: 0 | CTQ55: 0 | CTR55: 0 | CTS55: 0 | CTT55: 0 | CTU55: 0 | CTV55: 0 | CTW55: 0 | CTX55: 0 | CTY55: 0 | CTZ55: 0 | CUA55: 0 | CUB55: 0 | CUC55: 0 | CUD55: 0 | CUE55: 0 | CUF55: 0 | CUG55: 0 | CUH55: 0 | CUI55: 0 | CUJ55: 0 | CUK55: 0 | CUL55: 0 | CUM55: 0 | CUN55: 0 | CUO55: 0 | CUP55: 0 | CUQ55: 0 | CUR55: 0 | CUS55: 0 | CUT55: 0 | CUU55: 0 | CUV55: 0 | CUW55: 0 | CUX55: 0 | CUY55: 0 | CUZ55: 0 | CVA55: 0 | CVB55: 0 | CVC55: 0 | CVD55: 0 | CVE55: 0 | CVF55: 0 | CVG55: 0 | CVH55: 0 | CVI55: 0 | CVJ55: 0 | CVK55: 0 | CVL55: 0 | CVM55: 0 | CVN55: 0 | CVO55: 0 | CVP55: 0 | CVQ55: 0 | CVR55: 0 | CVS55: 0 | CVT55: 0 | CVU55: 0 | CVV55: 0 | CVW55: 0 | CVX55: 0 | CVY55: 0 | CVZ55: 0 | CWA55: =CWA54-CWA53 -> 0 | CWB55: 0 | CWC55: 0 | CWD55: 0 | CWE55: 0 | CWF55: 0 | CWG55: 0 | CWH55: 0 | CWI55: 0 | CWJ55: 0 | CWK55: 0 | CWL55: 0 | CWM55: 0 | CWN55: 0 | CWO55: 0 | CWP55: 0 | CWQ55: 0 | CWR55: 0 | CWS55: 0 | CWT55: 0 | CWU55: 0 | CWV55: 0 | CWW55: 0 | CWX55: 0 | CWY55: 0 | CWZ55: 0 | CXA55: 0 | CXB55: 0 | CXC55: 0 | CXD55: 0 | CXE55: 0 | CXF55: 0 | CXG55: 0 | CXH55: 0 | CXI55: 0 | CXJ55: 0 | CXK55: 0 | CXL55: 0 | CXM55: 0 | CXN55: 0 | CXO55: 0 | CXP55: 0 | CXQ55: 0 | CXR55: 0 | CXS55: 0 | CXT55: 0 | CXU55: 0 | CXV55: 0 | CXW55: 0 | CXX55: 0 | CXY55: 0 | CXZ55: 0 | CYA55: 0 | CYB55: 0 | CYC55: 0 | CYD55: 0 | CYE55: 0 | CYF55: 0 | CYG55: 0 | CYH55: 0 | CYI55: 0 | CYJ55: 0 | CYK55: 0 | CYL55: 0 | CYM55: =CYM54-CYM53 -> 0 | CYN55: 0 | CYO55: 0 | CYP55: 0 | CYQ55: 0 | CYR55: 0 | CYS55: 0 | CYT55: 0 | CYU55: 0 | CYV55: 0 | CYW55: 0 | CYX55: 0 | CYY55: 0 | CYZ55: 0 | CZA55: 0 | CZB55: 0 | CZC55: 0 | CZD55: 0 | CZE55: 0 | CZF55: 0 | CZG55: 0 | CZH55: 0 | CZI55: 0 | CZJ55: 0 | CZK55: 0 | CZL55: 0 | CZM55: 0 | CZN55: 0 | CZO55: 0 | CZP55: 0 | CZQ55: 0 | CZR55: 0 | CZS55: 0 | CZT55: 0 | CZU55: 0 | CZV55: 0 | CZW55: 0 | CZX55: 0 | CZY55: 0 | CZZ55: 0 | DAA55: 0 | DAB55: 0 | DAC55: 0 | DAD55: 0 | DAE55: 0 | DAF55: 0 | DAG55: 0 | DAH55: 0 | DAI55: 0 | DAJ55: 0 | DAK55: 0 | DAL55: 0 | DAM55: 0 | DAN55: 0 | DAO55: 0 | DAP55: 0 | DAQ55: 0 | DAR55: 0 | DAS55: 0 | DAT55: 0 | DAU55: 0 | DAV55: 0 | DAW55: 0 | DAX55: 0 | DAY55: =DAY54-DAY53 -> 0 | DAZ55: 0 | DBA55: 0 | DBB55: 0 | DBC55: 0 | DBD55: 0 | DBE55: 0 | DBF55: 0 | DBG55: 0 | DBH55: 0 | DBI55: 0 | DBJ55: 0 | DBK55: 0 | DBL55: 0 | DBM55: 0 | DBN55: 0 | DBO55: 0 | DBP55: 0 | DBQ55: 0 | DBR55: 0 | DBS55: 0 | DBT55: 0 | DBU55: 0 | DBV55: 0 | DBW55: 0 | DBX55: 0 | DBY55: 0 | DBZ55: 0 | DCA55: 0 | DCB55: 0 | DCC55: 0 | DCD55: 0 | DCE55: 0 | DCF55: 0 | DCG55: 0 | DCH55: 0 | DCI55: 0 | DCJ55: 0 | DCK55: 0 | DCL55: 0 | DCM55: 0 | DCN55: 0 | DCO55: 0 | DCP55: 0 | DCQ55: 0 | DCR55: 0 | DCS55: 0 | DCT55: 0 | DCU55: 0 | DCV55: 0 | DCW55: 0 | DCX55: 0 | DCY55: 0 | DCZ55: 0 | DDA55: 0 | DDB55: 0 | DDC55: 0 | DDD55: 0 | DDE55: 0 | DDF55: 0 | DDG55: 0 | DDH55: 0 | DDI55: 0 | DDJ55: 0 | DDK55: =DDK54-DDK53 -> 0 | DDL55: 0 | DDM55: 0 | DDN55: 0 | DDO55: 0 | DDP55: 0 | DDQ55: 0 | DDR55: 0 | DDS55: 0 | DDT55: 0 | DDU55: 0 | DDV55: 0 | DDW55: 0 | DDX55: 0 | DDY55: 0 | DDZ55: 0 | DEA55: 0 | DEB55: 0 | DEC55: 0 | DED55: 0 | DEE55: 0 | DEF55: 0 | DEG55: 0 | DEH55: 0 | DEI55: 0 | DEJ55: 0 | DEK55: 0 | DEL55: 0 | DEM55: 0 | DEN55: 0 | DEO55: 0 | DEP55: 0 | DEQ55: 0 | DER55: 0 | DES55: 0 | DET55: 0 | DEU55: 0 | DEV55: 0 | DEW55: 0 | DEX55: 0 | DEY55: 0 | DEZ55: 0 | DFA55: 0 | DFB55: 0 | DFC55: 0 | DFD55: 0 | DFE55: 0 | DFF55: 0 | DFG55: 0 | DFH55: 0 | DFI55: 0 | DFJ55: 0 | DFK55: 0 | DFL55: 0 | DFM55: 0 | DFN55: 0 | DFO55: 0 | DFP55: 0 | DFQ55: 0 | DFR55: 0 | DFS55: 0 | DFT55: 0 | DFU55: 0 | DFV55: 0 | DFW55: =DFW54-DFW53 -> 0 | DFX55: 0 | DFY55: 0 | DFZ55: 0 | DGA55: 0 | DGB55: 0 | DGC55: 0 | DGD55: 0 | DGE55: 0 | DGF55: 0 | DGG55: 0 | DGH55: 0 | DGI55: 0 | DGJ55: 0 | DGK55: 0 | DGL55: 0 | DGM55: 0 | DGN55: 0 | DGO55: 0 | DGP55: 0 | DGQ55: 0 | DGR55: 0 | DGS55: 0 | DGT55: 0 | DGU55: 0 | DGV55: 0 | DGW55: 0 | DGX55: 0 | DGY55: 0 | DGZ55: 0 | DHA55: 0 | DHB55: 0 | DHC55: 0 | DHD55: 0 | DHE55: 0 | DHF55: 0 | DHG55: 0 | DHH55: 0 | DHI55: 0 | DHJ55: 0 | DHK55: 0 | DHL55: 0 | DHM55: 0 | DHN55: 0 | DHO55: 0 | DHP55: 0 | DHQ55: 0 | DHR55: 0 | DHS55: 0 | DHT55: 0 | DHU55: 0 | DHV55: 0 | DHW55: 0 | DHX55: 0 | DHY55: 0 | DHZ55: 0 | DIA55: 0 | DIB55: 0 | DIC55: 0 | DID55: 0 | DIE55: 0 | DIF55: 0 | DIG55: 0 | DIH55: 0 | DII55: =DII54-DII53 -> 0 | DIJ55: 0 | DIK55: 0 | DIL55: 0 | DIM55: 0 | DIN55: 0 | DIO55: 0 | DIP55: 0 | DIQ55: 0 | DIR55: 0 | DIS55: 0 | DIT55: 0 | DIU55: 0 | DIV55: 0 | DIW55: 0 | DIX55: 0 | DIY55: 0 | DIZ55: 0 | DJA55: 0 | DJB55: 0 | DJC55: 0 | DJD55: 0 | DJE55: 0 | DJF55: 0 | DJG55: 0 | DJH55: 0 | DJI55: 0 | DJJ55: 0 | DJK55: 0 | DJL55: 0 | DJM55: 0 | DJN55: 0 | DJO55: 0 | DJP55: 0 | DJQ55: 0 | DJR55: 0 | DJS55: 0 | DJT55: 0 | DJU55: 0 | DJV55: 0 | DJW55: 0 | DJX55: 0 | DJY55: 0 | DJZ55: 0 | DKA55: 0 | DKB55: 0 | DKC55: 0 | DKD55: 0 | DKE55: 0 | DKF55: 0 | DKG55: 0 | DKH55: 0 | DKI55: 0 | DKJ55: 0 | DKK55: 0 | DKL55: 0 | DKM55: 0 | DKN55: 0 | DKO55: 0 | DKP55: 0 | DKQ55: 0 | DKR55: 0 | DKS55: 0 | DKT55: 0 | DKU55: =DKU54-DKU53 -> 0 | DKV55: 0 | DKW55: 0 | DKX55: 0 | DKY55: 0 | DKZ55: 0 | DLA55: 0 | DLB55: 0 | DLC55: 0 | DLD55: 0 | DLE55: 0 | DLF55: 0 | DLG55: 0 | DLH55: 0 | DLI55: 0 | DLJ55: 0 | DLK55: 0 | DLL55: 0 | DLM55: 0 | DLN55: 0 | DLO55: 0 | DLP55: 0 | DLQ55: 0 | DLR55: 0 | DLS55: 0 | DLT55: 0 | DLU55: 0 | DLV55: 0 | DLW55: 0 | DLX55: 0 | DLY55: 0 | DLZ55: 0 | DMA55: 0 | DMB55: 0 | DMC55: 0 | DMD55: 0 | DME55: 0 | DMF55: 0 | DMG55: 0 | DMH55: 0 | DMI55: 0 | DMJ55: 0 | DMK55: 0 | DML55: 0 | DMM55: 0 | DMN55: 0 | DMO55: 0 | DMP55: 0 | DMQ55: 0 | DMR55: 0 | DMS55: 0 | DMT55: 0 | DMU55: 0 | DMV55: 0 | DMW55: 0 | DMX55: 0 | DMY55: 0 | DMZ55: 0 | DNA55: 0 | DNB55: 0 | DNC55: 0 | DND55: 0 | DNE55: 0 | DNF55: 0 | DNG55: =DNG54-DNG53 -> 0 | DNH55: 0 | DNI55: 0 | DNJ55: 0 | DNK55: 0 | DNL55: 0 | DNM55: 0 | DNN55: 0 | DNO55: 0 | DNP55: 0 | DNQ55: 0 | DNR55: 0 | DNS55: 0 | DNT55: 0 | DNU55: 0 | DNV55: 0 | DNW55: 0 | DNX55: 0 | DNY55: 0 | DNZ55: 0 | DOA55: 0 | DOB55: 0 | DOC55: 0 | DOD55: 0 | DOE55: 0 | DOF55: 0 | DOG55: 0 | DOH55: 0 | DOI55: 0 | DOJ55: 0 | DOK55: 0 | DOL55: 0 | DOM55: 0 | DON55: 0 | DOO55: 0 | DOP55: 0 | DOQ55: 0 | DOR55: 0 | DOS55: 0 | DOT55: 0 | DOU55: 0 | DOV55: 0 | DOW55: 0 | DOX55: 0 | DOY55: 0 | DOZ55: 0 | DPA55: 0 | DPB55: 0 | DPC55: 0 | DPD55: 0 | DPE55: 0 | DPF55: 0 | DPG55: 0 | DPH55: 0 | DPI55: 0 | DPJ55: 0 | DPK55: 0 | DPL55: 0 | DPM55: 0 | DPN55: 0 | DPO55: 0 | DPP55: 0 | DPQ55: 0 | DPR55: 0 | DPS55: =DPS54-DPS53 -> 0 | DPT55: 0 | DPU55: 0 | DPV55: 0 | DPW55: 0 | DPX55: 0 | DPY55: 0 | DPZ55: 0 | DQA55: 0 | DQB55: 0 | DQC55: 0 | DQD55: 0 | DQE55: 0 | DQF55: 0 | DQG55: 0 | DQH55: 0 | DQI55: 0 | DQJ55: 0 | DQK55: 0 | DQL55: 0 | DQM55: 0 | DQN55: 0 | DQO55: 0 | DQP55: 0 | DQQ55: 0 | DQR55: 0 | DQS55: 0 | DQT55: 0 | DQU55: 0 | DQV55: 0 | DQW55: 0 | DQX55: 0 | DQY55: 0 | DQZ55: 0 | DRA55: 0 | DRB55: 0 | DRC55: 0 | DRD55: 0 | DRE55: 0 | DRF55: 0 | DRG55: 0 | DRH55: 0 | DRI55: 0 | DRJ55: 0 | DRK55: 0 | DRL55: 0 | DRM55: 0 | DRN55: 0 | DRO55: 0 | DRP55: 0 | DRQ55: 0 | DRR55: 0 | DRS55: 0 | DRT55: 0 | DRU55: 0 | DRV55: 0 | DRW55: 0 | DRX55: 0 | DRY55: 0 | DRZ55: 0 | DSA55: 0 | DSB55: 0 | DSC55: 0 | DSD55: 0 | DSE55: =DSE54-DSE53 -> 0 | DSF55: 0 | DSG55: 0 | DSH55: 0 | DSI55: 0 | DSJ55: 0 | DSK55: 0 | DSL55: 0 | DSM55: 0 | DSN55: 0 | DSO55: 0 | DSP55: 0 | DSQ55: 0 | DSR55: 0 | DSS55: 0 | DST55: 0 | DSU55: 0 | DSV55: 0 | DSW55: 0 | DSX55: 0 | DSY55: 0 | DSZ55: 0 | DTA55: 0 | DTB55: 0 | DTC55: 0 | DTD55: 0 | DTE55: 0 | DTF55: 0 | DTG55: 0 | DTH55: 0 | DTI55: 0 | DTJ55: 0 | DTK55: 0 | DTL55: 0 | DTM55: 0 | DTN55: 0 | DTO55: 0 | DTP55: 0 | DTQ55: 0 | DTR55: 0 | DTS55: 0 | DTT55: 0 | DTU55: 0 | DTV55: 0 | DTW55: 0 | DTX55: 0 | DTY55: 0 | DTZ55: 0 | DUA55: 0 | DUB55: 0 | DUC55: 0 | DUD55: 0 | DUE55: 0 | DUF55: 0 | DUG55: 0 | DUH55: 0 | DUI55: 0 | DUJ55: 0 | DUK55: 0 | DUL55: 0 | DUM55: 0 | DUN55: 0 | DUO55: 0 | DUP55: 0 | DUQ55: =DUQ54-DUQ53 -> 0 | DUR55: 0 | DUS55: 0 | DUT55: 0 | DUU55: 0 | DUV55: 0 | DUW55: 0 | DUX55: 0 | DUY55: 0 | DUZ55: 0 | DVA55: 0 | DVB55: 0 | DVC55: 0 | DVD55: 0 | DVE55: 0 | DVF55: 0 | DVG55: 0 | DVH55: 0 | DVI55: 0 | DVJ55: 0 | DVK55: 0 | DVL55: 0 | DVM55: 0 | DVN55: 0 | DVO55: 0 | DVP55: 0 | DVQ55: 0 | DVR55: 0 | DVS55: 0 | DVT55: 0 | DVU55: 0 | DVV55: 0 | DVW55: 0 | DVX55: 0 | DVY55: 0 | DVZ55: 0 | DWA55: 0 | DWB55: 0 | DWC55: 0 | DWD55: 0 | DWE55: 0 | DWF55: 0 | DWG55: 0 | DWH55: 0 | DWI55: 0 | DWJ55: 0 | DWK55: 0 | DWL55: 0 | DWM55: 0 | DWN55: 0 | DWO55: 0 | DWP55: 0 | DWQ55: 0 | DWR55: 0 | DWS55: 0 | DWT55: 0 | DWU55: 0 | DWV55: 0 | DWW55: 0 | DWX55: 0 | DWY55: 0 | DWZ55: 0 | DXA55: 0 | DXB55: 0 | DXC55: =DXC54-DXC53 -> 0 | DXD55: 0 | DXE55: 0 | DXF55: 0 | DXG55: 0 | DXH55: 0 | DXI55: 0 | DXJ55: 0 | DXK55: 0 | DXL55: 0 | DXM55: 0 | DXN55: 0 | DXO55: 0 | DXP55: 0 | DXQ55: 0 | DXR55: 0 | DXS55: 0 | DXT55: 0 | DXU55: 0 | DXV55: 0 | DXW55: 0 | DXX55: 0 | DXY55: 0 | DXZ55: 0 | DYA55: 0 | DYB55: 0 | DYC55: 0 | DYD55: 0 | DYE55: 0 | DYF55: 0 | DYG55: 0 | DYH55: 0 | DYI55: 0 | DYJ55: 0 | DYK55: 0 | DYL55: 0 | DYM55: 0 | DYN55: 0 | DYO55: 0 | DYP55: 0 | DYQ55: 0 | DYR55: 0 | DYS55: 0 | DYT55: 0 | DYU55: 0 | DYV55: 0 | DYW55: 0 | DYX55: 0 | DYY55: 0 | DYZ55: 0 | DZA55: 0 | DZB55: 0 | DZC55: 0 | DZD55: 0 | DZE55: 0 | DZF55: 0 | DZG55: 0 | DZH55: 0 | DZI55: 0 | DZJ55: 0 | DZK55: 0 | DZL55: 0 | DZM55: 0 | DZN55: 0 | DZO55: =DZO54-DZO53 -> 0 | DZP55: 0 | DZQ55: 0 | DZR55: 0 | DZS55: 0 | DZT55: 0 | DZU55: 0 | DZV55: 0 | DZW55: 0 | DZX55: 0 | DZY55: 0 | DZZ55: 0 | EAA55: 0 | EAB55: 0 | EAC55: 0 | EAD55: 0 | EAE55: 0 | EAF55: 0 | EAG55: 0 | EAH55: 0 | EAI55: 0 | EAJ55: 0 | EAK55: 0 | EAL55: 0 | EAM55: 0 | EAN55: 0 | EAO55: 0 | EAP55: 0 | EAQ55: 0 | EAR55: 0 | EAS55: 0 | EAT55: 0 | EAU55: 0 | EAV55: 0 | EAW55: 0 | EAX55: 0 | EAY55: 0 | EAZ55: 0 | EBA55: 0 | EBB55: 0 | EBC55: 0 | EBD55: 0 | EBE55: 0 | EBF55: 0 | EBG55: 0 | EBH55: 0 | EBI55: 0 | EBJ55: 0 | EBK55: 0 | EBL55: 0 | EBM55: 0 | EBN55: 0 | EBO55: 0 | EBP55: 0 | EBQ55: 0 | EBR55: 0 | EBS55: 0 | EBT55: 0 | EBU55: 0 | EBV55: 0 | EBW55: 0 | EBX55: 0 | EBY55: 0 | EBZ55: 0 | ECA55: =ECA54-ECA53 -> 0 | ECB55: 0 | ECC55: 0 | ECD55: 0 | ECE55: 0 | ECF55: 0 | ECG55: 0 | ECH55: 0 | ECI55: 0 | ECJ55: 0 | ECK55: 0 | ECL55: 0 | ECM55: 0 | ECN55: 0 | ECO55: 0 | ECP55: 0 | ECQ55: 0 | ECR55: 0 | ECS55: 0 | ECT55: 0 | ECU55: 0 | ECV55: 0 | ECW55: 0 | ECX55: 0 | ECY55: 0 | ECZ55: 0 | EDA55: 0 | EDB55: 0 | EDC55: 0 | EDD55: 0 | EDE55: 0 | EDF55: 0 | EDG55: 0 | EDH55: 0 | EDI55: 0 | EDJ55: 0 | EDK55: 0 | EDL55: 0 | EDM55: 0 | EDN55: 0 | EDO55: 0 | EDP55: 0 | EDQ55: 0 | EDR55: 0 | EDS55: 0 | EDT55: 0 | EDU55: 0 | EDV55: 0 | EDW55: 0 | EDX55: 0 | EDY55: 0 | EDZ55: 0 | EEA55: 0 | EEB55: 0 | EEC55: 0 | EED55: 0 | EEE55: 0 | EEF55: 0 | EEG55: 0 | EEH55: 0 | EEI55: 0 | EEJ55: 0 | EEK55: 0 | EEL55: 0 | EEM55: =EEM54-EEM53 -> 0 | EEN55: 0 | EEO55: 0 | EEP55: 0 | EEQ55: 0 | EER55: 0 | EES55: 0 | EET55: 0 | EEU55: 0 | EEV55: 0 | EEW55: 0 | EEX55: 0 | EEY55: 0 | EEZ55: 0 | EFA55: 0 | EFB55: 0 | EFC55: 0 | EFD55: 0 | EFE55: 0 | EFF55: 0 | EFG55: 0 | EFH55: 0 | EFI55: 0 | EFJ55: 0 | EFK55: 0 | EFL55: 0 | EFM55: 0 | EFN55: 0 | EFO55: 0 | EFP55: 0 | EFQ55: 0 | EFR55: 0 | EFS55: 0 | EFT55: 0 | EFU55: 0 | EFV55: 0 | EFW55: 0 | EFX55: 0 | EFY55: 0 | EFZ55: 0 | EGA55: 0 | EGB55: 0 | EGC55: 0 | EGD55: 0 | EGE55: 0 | EGF55: 0 | EGG55: 0 | EGH55: 0 | EGI55: 0 | EGJ55: 0 | EGK55: 0 | EGL55: 0 | EGM55: 0 | EGN55: 0 | EGO55: 0 | EGP55: 0 | EGQ55: 0 | EGR55: 0 | EGS55: 0 | EGT55: 0 | EGU55: 0 | EGV55: 0 | EGW55: 0 | EGX55: 0 | EGY55: =EGY54-EGY53 -> 0 | EGZ55: 0 | EHA55: 0 | EHB55: 0 | EHC55: 0 | EHD55: 0 | EHE55: 0 | EHF55: 0 | EHG55: 0 | EHH55: 0 | EHI55: 0 | EHJ55: 0 | EHK55: 0 | EHL55: 0 | EHM55: 0 | EHN55: 0 | EHO55: 0 | EHP55: 0 | EHQ55: 0 | EHR55: 0 | EHS55: 0 | EHT55: 0 | EHU55: 0 | EHV55: 0 | EHW55: 0 | EHX55: 0 | EHY55: 0 | EHZ55: 0 | EIA55: 0 | EIB55: 0 | EIC55: 0 | EID55: 0 | EIE55: 0 | EIF55: 0 | EIG55: 0 | EIH55: 0 | EII55: 0 | EIJ55: 0 | EIK55: 0 | EIL55: 0 | EIM55: 0 | EIN55: 0 | EIO55: 0 | EIP55: 0 | EIQ55: 0 | EIR55: 0 | EIS55: 0 | EIT55: 0 | EIU55: 0 | EIV55: 0 | EIW55: 0 | EIX55: 0 | EIY55: 0 | EIZ55: 0 | EJA55: 0 | EJB55: 0 | EJC55: 0 | EJD55: 0 | EJE55: 0 | EJF55: 0 | EJG55: 0 | EJH55: 0 | EJI55: 0 | EJJ55: 0 | EJK55: =EJK54-EJK53 -> 0 | EJL55: 0 | EJM55: 0 | EJN55: 0 | EJO55: 0 | EJP55: 0 | EJQ55: 0 | EJR55: 0 | EJS55: 0 | EJT55: 0 | EJU55: 0 | EJV55: 0 | EJW55: 0 | EJX55: 0 | EJY55: 0 | EJZ55: 0 | EKA55: 0 | EKB55: 0 | EKC55: 0 | EKD55: 0 | EKE55: 0 | EKF55: 0 | EKG55: 0 | EKH55: 0 | EKI55: 0 | EKJ55: 0 | EKK55: 0 | EKL55: 0 | EKM55: 0 | EKN55: 0 | EKO55: 0 | EKP55: 0 | EKQ55: 0 | EKR55: 0 | EKS55: 0 | EKT55: 0 | EKU55: 0 | EKV55: 0 | EKW55: 0 | EKX55: 0 | EKY55: 0 | EKZ55: 0 | ELA55: 0 | ELB55: 0 | ELC55: 0 | ELD55: 0 | ELE55: 0 | ELF55: 0 | ELG55: 0 | ELH55: 0 | ELI55: 0 | ELJ55: 0 | ELK55: 0 | ELL55: 0 | ELM55: 0 | ELN55: 0 | ELO55: 0 | ELP55: 0 | ELQ55: 0 | ELR55: 0 | ELS55: 0 | ELT55: 0 | ELU55: 0 | ELV55: 0 | ELW55: =ELW54-ELW53 -> 0 | ELX55: 0 | ELY55: 0 | ELZ55: 0 | EMA55: 0 | EMB55: 0 | EMC55: 0 | EMD55: 0 | EME55: 0 | EMF55: 0 | EMG55: 0 | EMH55: 0 | EMI55: 0 | EMJ55: 0 | EMK55: 0 | EML55: 0 | EMM55: 0 | EMN55: 0 | EMO55: 0 | EMP55: 0 | EMQ55: 0 | EMR55: 0 | EMS55: 0 | EMT55: 0 | EMU55: 0 | EMV55: 0 | EMW55: 0 | EMX55: 0 | EMY55: 0 | EMZ55: 0 | ENA55: 0 | ENB55: 0 | ENC55: 0 | END55: 0 | ENE55: 0 | ENF55: 0 | ENG55: 0 | ENH55: 0 | ENI55: 0 | ENJ55: 0 | ENK55: 0 | ENL55: 0 | ENM55: 0 | ENN55: 0 | ENO55: 0 | ENP55: 0 | ENQ55: 0 | ENR55: 0 | ENS55: 0 | ENT55: 0 | ENU55: 0 | ENV55: 0 | ENW55: 0 | ENX55: 0 | ENY55: 0 | ENZ55: 0 | EOA55: 0 | EOB55: 0 | EOC55: 0 | EOD55: 0 | EOE55: 0 | EOF55: 0 | EOG55: 0 | EOH55: 0 | EOI55: =EOI54-EOI53 -> 0 | EOJ55: 0 | EOK55: 0 | EOL55: 0 | EOM55: 0 | EON55: 0 | EOO55: 0 | EOP55: 0 | EOQ55: 0 | EOR55: 0 | EOS55: 0 | EOT55: 0 | EOU55: 0 | EOV55: 0 | EOW55: 0 | EOX55: 0 | EOY55: 0 | EOZ55: 0 | EPA55: 0 | EPB55: 0 | EPC55: 0 | EPD55: 0 | EPE55: 0 | EPF55: 0 | EPG55: 0 | EPH55: 0 | EPI55: 0 | EPJ55: 0 | EPK55: 0 | EPL55: 0 | EPM55: 0 | EPN55: 0 | EPO55: 0 | EPP55: 0 | EPQ55: 0 | EPR55: 0 | EPS55: 0 | EPT55: 0 | EPU55: 0 | EPV55: 0 | EPW55: 0 | EPX55: 0 | EPY55: 0 | EPZ55: 0 | EQA55: 0 | EQB55: 0 | EQC55: 0 | EQD55: 0 | EQE55: 0 | EQF55: 0 | EQG55: 0 | EQH55: 0 | EQI55: 0 | EQJ55: 0 | EQK55: 0 | EQL55: 0 | EQM55: 0 | EQN55: 0 | EQO55: 0 | EQP55: 0 | EQQ55: 0 | EQR55: 0 | EQS55: 0 | EQT55: 0 | EQU55: =EQU54-EQU53 -> 0 | EQV55: 0 | EQW55: 0 | EQX55: 0 | EQY55: 0 | EQZ55: 0 | ERA55: 0 | ERB55: 0 | ERC55: 0 | ERD55: 0 | ERE55: 0 | ERF55: 0 | ERG55: 0 | ERH55: 0 | ERI55: 0 | ERJ55: 0 | ERK55: 0 | ERL55: 0 | ERM55: 0 | ERN55: 0 | ERO55: 0 | ERP55: 0 | ERQ55: 0 | ERR55: 0 | ERS55: 0 | ERT55: 0 | ERU55: 0 | ERV55: 0 | ERW55: 0 | ERX55: 0 | ERY55: 0 | ERZ55: 0 | ESA55: 0 | ESB55: 0 | ESC55: 0 | ESD55: 0 | ESE55: 0 | ESF55: 0 | ESG55: 0 | ESH55: 0 | ESI55: 0 | ESJ55: 0 | ESK55: 0 | ESL55: 0 | ESM55: 0 | ESN55: 0 | ESO55: 0 | ESP55: 0 | ESQ55: 0 | ESR55: 0 | ESS55: 0 | EST55: 0 | ESU55: 0 | ESV55: 0 | ESW55: 0 | ESX55: 0 | ESY55: 0 | ESZ55: 0 | ETA55: 0 | ETB55: 0 | ETC55: 0 | ETD55: 0 | ETE55: 0 | ETF55: 0 | ETG55: =ETG54-ETG53 -> 0 | ETH55: 0 | ETI55: 0 | ETJ55: 0 | ETK55: 0 | ETL55: 0 | ETM55: 0 | ETN55: 0 | ETO55: 0 | ETP55: 0 | ETQ55: 0 | ETR55: 0 | ETS55: 0 | ETT55: 0 | ETU55: 0 | ETV55: 0 | ETW55: 0 | ETX55: 0 | ETY55: 0 | ETZ55: 0 | EUA55: 0 | EUB55: 0 | EUC55: 0 | EUD55: 0 | EUE55: 0 | EUF55: 0 | EUG55: 0 | EUH55: 0 | EUI55: 0 | EUJ55: 0 | EUK55: 0 | EUL55: 0 | EUM55: 0 | EUN55: 0 | EUO55: 0 | EUP55: 0 | EUQ55: 0 | EUR55: 0 | EUS55: 0 | EUT55: 0 | EUU55: 0 | EUV55: 0 | EUW55: 0 | EUX55: 0 | EUY55: 0 | EUZ55: 0 | EVA55: 0 | EVB55: 0 | EVC55: 0 | EVD55: 0 | EVE55: 0 | EVF55: 0 | EVG55: 0 | EVH55: 0 | EVI55: 0 | EVJ55: 0 | EVK55: 0 | EVL55: 0 | EVM55: 0 | EVN55: 0 | EVO55: 0 | EVP55: 0 | EVQ55: 0 | EVR55: 0 | EVS55: =EVS54-EVS53 -> 0 | EVT55: 0 | EVU55: 0 | EVV55: 0 | EVW55: 0 | EVX55: 0 | EVY55: 0 | EVZ55: 0 | EWA55: 0 | EWB55: 0 | EWC55: 0 | EWD55: 0 | EWE55: 0 | EWF55: 0 | EWG55: 0 | EWH55: 0 | EWI55: 0 | EWJ55: 0 | EWK55: 0 | EWL55: 0 | EWM55: 0 | EWN55: 0 | EWO55: 0 | EWP55: 0 | EWQ55: 0 | EWR55: 0 | EWS55: 0 | EWT55: 0 | EWU55: 0 | EWV55: 0 | EWW55: 0 | EWX55: 0 | EWY55: 0 | EWZ55: 0 | EXA55: 0 | EXB55: 0 | EXC55: 0 | EXD55: 0 | EXE55: 0 | EXF55: 0 | EXG55: 0 | EXH55: 0 | EXI55: 0 | EXJ55: 0 | EXK55: 0 | EXL55: 0 | EXM55: 0 | EXN55: 0 | EXO55: 0 | EXP55: 0 | EXQ55: 0 | EXR55: 0 | EXS55: 0 | EXT55: 0 | EXU55: 0 | EXV55: 0 | EXW55: 0 | EXX55: 0 | EXY55: 0 | EXZ55: 0 | EYA55: 0 | EYB55: 0 | EYC55: 0 | EYD55: 0 | EYE55: =EYE54-EYE53 -> 0 | EYF55: 0 | EYG55: 0 | EYH55: 0 | EYI55: 0 | EYJ55: 0 | EYK55: 0 | EYL55: 0 | EYM55: 0 | EYN55: 0 | EYO55: 0 | EYP55: 0 | EYQ55: 0 | EYR55: 0 | EYS55: 0 | EYT55: 0 | EYU55: 0 | EYV55: 0 | EYW55: 0 | EYX55: 0 | EYY55: 0 | EYZ55: 0 | EZA55: 0 | EZB55: 0 | EZC55: 0 | EZD55: 0 | EZE55: 0 | EZF55: 0 | EZG55: 0 | EZH55: 0 | EZI55: 0 | EZJ55: 0 | EZK55: 0 | EZL55: 0 | EZM55: 0 | EZN55: 0 | EZO55: 0 | EZP55: 0 | EZQ55: 0 | EZR55: 0 | EZS55: 0 | EZT55: 0 | EZU55: 0 | EZV55: 0 | EZW55: 0 | EZX55: 0 | EZY55: 0 | EZZ55: 0 | FAA55: 0 | FAB55: 0 | FAC55: 0 | FAD55: 0 | FAE55: 0 | FAF55: 0 | FAG55: 0 | FAH55: 0 | FAI55: 0 | FAJ55: 0 | FAK55: 0 | FAL55: 0 | FAM55: 0 | FAN55: 0 | FAO55: 0 | FAP55: 0 | FAQ55: =FAQ54-FAQ53 -> 0 | FAR55: 0 | FAS55: 0 | FAT55: 0 | FAU55: 0 | FAV55: 0 | FAW55: 0 | FAX55: 0 | FAY55: 0 | FAZ55: 0 | FBA55: 0 | FBB55: 0 | FBC55: 0 | FBD55: 0 | FBE55: 0 | FBF55: 0 | FBG55: 0 | FBH55: 0 | FBI55: 0 | FBJ55: 0 | FBK55: 0 | FBL55: 0 | FBM55: 0 | FBN55: 0 | FBO55: 0 | FBP55: 0 | FBQ55: 0 | FBR55: 0 | FBS55: 0 | FBT55: 0 | FBU55: 0 | FBV55: 0 | FBW55: 0 | FBX55: 0 | FBY55: 0 | FBZ55: 0 | FCA55: 0 | FCB55: 0 | FCC55: 0 | FCD55: 0 | FCE55: 0 | FCF55: 0 | FCG55: 0 | FCH55: 0 | FCI55: 0 | FCJ55: 0 | FCK55: 0 | FCL55: 0 | FCM55: 0 | FCN55: 0 | FCO55: 0 | FCP55: 0 | FCQ55: 0 | FCR55: 0 | FCS55: 0 | FCT55: 0 | FCU55: 0 | FCV55: 0 | FCW55: 0 | FCX55: 0 | FCY55: 0 | FCZ55: 0 | FDA55: 0 | FDB55: 0 | FDC55: =FDC54-FDC53 -> 0 | FDD55: 0 | FDE55: 0 | FDF55: 0 | FDG55: 0 | FDH55: 0 | FDI55: 0 | FDJ55: 0 | FDK55: 0 | FDL55: 0 | FDM55: 0 | FDN55: 0 | FDO55: 0 | FDP55: 0 | FDQ55: 0 | FDR55: 0 | FDS55: 0 | FDT55: 0 | FDU55: 0 | FDV55: 0 | FDW55: 0 | FDX55: 0 | FDY55: 0 | FDZ55: 0 | FEA55: 0 | FEB55: 0 | FEC55: 0 | FED55: 0 | FEE55: 0 | FEF55: 0 | FEG55: 0 | FEH55: 0 | FEI55: 0 | FEJ55: 0 | FEK55: 0 | FEL55: 0 | FEM55: 0 | FEN55: 0 | FEO55: 0 | FEP55: 0 | FEQ55: 0 | FER55: 0 | FES55: 0 | FET55: 0 | FEU55: 0 | FEV55: 0 | FEW55: 0 | FEX55: 0 | FEY55: 0 | FEZ55: 0 | FFA55: 0 | FFB55: 0 | FFC55: 0 | FFD55: 0 | FFE55: 0 | FFF55: 0 | FFG55: 0 | FFH55: 0 | FFI55: 0 | FFJ55: 0 | FFK55: 0 | FFL55: 0 | FFM55: 0 | FFN55: 0 | FFO55: =FFO54-FFO53 -> 0 | FFP55: 0 | FFQ55: 0 | FFR55: 0 | FFS55: 0 | FFT55: 0 | FFU55: 0 | FFV55: 0 | FFW55: 0 | FFX55: 0 | FFY55: 0 | FFZ55: 0 | FGA55: 0 | FGB55: 0 | FGC55: 0 | FGD55: 0 | FGE55: 0 | FGF55: 0 | FGG55: 0 | FGH55: 0 | FGI55: 0 | FGJ55: 0 | FGK55: 0 | FGL55: 0 | FGM55: 0 | FGN55: 0 | FGO55: 0 | FGP55: 0 | FGQ55: 0 | FGR55: 0 | FGS55: 0 | FGT55: 0 | FGU55: 0 | FGV55: 0 | FGW55: 0 | FGX55: 0 | FGY55: 0 | FGZ55: 0 | FHA55: 0 | FHB55: 0 | FHC55: 0 | FHD55: 0 | FHE55: 0 | FHF55: 0 | FHG55: 0 | FHH55: 0 | FHI55: 0 | FHJ55: 0 | FHK55: 0 | FHL55: 0 | FHM55: 0 | FHN55: 0 | FHO55: 0 | FHP55: 0 | FHQ55: 0 | FHR55: 0 | FHS55: 0 | FHT55: 0 | FHU55: 0 | FHV55: 0 | FHW55: 0 | FHX55: 0 | FHY55: 0 | FHZ55: 0 | FIA55: =FIA54-FIA53 -> 0 | FIB55: 0 | FIC55: 0 | FID55: 0 | FIE55: 0 | FIF55: 0 | FIG55: 0 | FIH55: 0 | FII55: 0 | FIJ55: 0 | FIK55: 0 | FIL55: 0 | FIM55: 0 | FIN55: 0 | FIO55: 0 | FIP55: 0 | FIQ55: 0 | FIR55: 0 | FIS55: 0 | FIT55: 0 | FIU55: 0 | FIV55: 0 | FIW55: 0 | FIX55: 0 | FIY55: 0 | FIZ55: 0 | FJA55: 0 | FJB55: 0 | FJC55: 0 | FJD55: 0 | FJE55: 0 | FJF55: 0 | FJG55: 0 | FJH55: 0 | FJI55: 0 | FJJ55: 0 | FJK55: 0 | FJL55: 0 | FJM55: 0 | FJN55: 0 | FJO55: 0 | FJP55: 0 | FJQ55: 0 | FJR55: 0 | FJS55: 0 | FJT55: 0 | FJU55: 0 | FJV55: 0 | FJW55: 0 | FJX55: 0 | FJY55: 0 | FJZ55: 0 | FKA55: 0 | FKB55: 0 | FKC55: 0 | FKD55: 0 | FKE55: 0 | FKF55: 0 | FKG55: 0 | FKH55: 0 | FKI55: 0 | FKJ55: 0 | FKK55: 0 | FKL55: 0 | FKM55: =FKM54-FKM53 -> 0 | FKN55: 0 | FKO55: 0 | FKP55: 0 | FKQ55: 0 | FKR55: 0 | FKS55: 0 | FKT55: 0 | FKU55: 0 | FKV55: 0 | FKW55: 0 | FKX55: 0 | FKY55: 0 | FKZ55: 0 | FLA55: 0 | FLB55: 0 | FLC55: 0 | FLD55: 0 | FLE55: 0 | FLF55: 0 | FLG55: 0 | FLH55: 0 | FLI55: 0 | FLJ55: 0 | FLK55: 0 | FLL55: 0 | FLM55: 0 | FLN55: 0 | FLO55: 0 | FLP55: 0 | FLQ55: 0 | FLR55: 0 | FLS55: 0 | FLT55: 0 | FLU55: 0 | FLV55: 0 | FLW55: 0 | FLX55: 0 | FLY55: 0 | FLZ55: 0 | FMA55: 0 | FMB55: 0 | FMC55: 0 | FMD55: 0 | FME55: 0 | FMF55: 0 | FMG55: 0 | FMH55: 0 | FMI55: 0 | FMJ55: 0 | FMK55: 0 | FML55: 0 | FMM55: 0 | FMN55: 0 | FMO55: 0 | FMP55: 0 | FMQ55: 0 | FMR55: 0 | FMS55: 0 | FMT55: 0 | FMU55: 0 | FMV55: 0 | FMW55: 0 | FMX55: 0 | FMY55: =FMY54-FMY53 -> 0 | FMZ55: 0 | FNA55: 0 | FNB55: 0 | FNC55: 0 | FND55: 0 | FNE55: 0 | FNF55: 0 | FNG55: 0 | FNH55: 0 | FNI55: 0 | FNJ55: 0 | FNK55: 0 | FNL55: 0 | FNM55: 0 | FNN55: 0 | FNO55: 0 | FNP55: 0 | FNQ55: 0 | FNR55: 0 | FNS55: 0 | FNT55: 0 | FNU55: 0 | FNV55: 0 | FNW55: 0 | FNX55: 0 | FNY55: 0 | FNZ55: 0 | FOA55: 0 | FOB55: 0 | FOC55: 0 | FOD55: 0 | FOE55: 0 | FOF55: 0 | FOG55: 0 | FOH55: 0 | FOI55: 0 | FOJ55: 0 | FOK55: 0 | FOL55: 0 | FOM55: 0 | FON55: 0 | FOO55: 0 | FOP55: 0 | FOQ55: 0 | FOR55: 0 | FOS55: 0 | FOT55: 0 | FOU55: 0 | FOV55: 0 | FOW55: 0 | FOX55: 0 | FOY55: 0 | FOZ55: 0 | FPA55: 0 | FPB55: 0 | FPC55: 0 | FPD55: 0 | FPE55: 0 | FPF55: 0 | FPG55: 0 | FPH55: 0 | FPI55: 0 | FPJ55: 0 | FPK55: =FPK54-FPK53 -> 0 | FPL55: 0 | FPM55: 0 | FPN55: 0 | FPO55: 0 | FPP55: 0 | FPQ55: 0 | FPR55: 0 | FPS55: 0 | FPT55: 0 | FPU55: 0 | FPV55: 0 | FPW55: 0 | FPX55: 0 | FPY55: 0 | FPZ55: 0 | FQA55: 0 | FQB55: 0 | FQC55: 0 | FQD55: 0 | FQE55: 0 | FQF55: 0 | FQG55: 0 | FQH55: 0 | FQI55: 0 | FQJ55: 0 | FQK55: 0 | FQL55: 0 | FQM55: 0 | FQN55: 0 | FQO55: 0 | FQP55: 0 | FQQ55: 0 | FQR55: 0 | FQS55: 0 | FQT55: 0 | FQU55: 0 | FQV55: 0 | FQW55: 0 | FQX55: 0 | FQY55: 0 | FQZ55: 0 | FRA55: 0 | FRB55: 0 | FRC55: 0 | FRD55: 0 | FRE55: 0 | FRF55: 0 | FRG55: 0 | FRH55: 0 | FRI55: 0 | FRJ55: 0 | FRK55: 0 | FRL55: 0 | FRM55: 0 | FRN55: 0 | FRO55: 0 | FRP55: 0 | FRQ55: 0 | FRR55: 0 | FRS55: 0 | FRT55: 0 | FRU55: 0 | FRV55: 0 | FRW55: =FRW54-FRW53 -> 0 | FRX55: 0 | FRY55: 0 | FRZ55: 0 | FSA55: 0 | FSB55: 0 | FSC55: 0 | FSD55: 0 | FSE55: 0 | FSF55: 0 | FSG55: 0 | FSH55: 0 | FSI55: 0 | FSJ55: 0 | FSK55: 0 | FSL55: 0 | FSM55: 0 | FSN55: 0 | FSO55: 0 | FSP55: 0 | FSQ55: 0 | FSR55: 0 | FSS55: 0 | FST55: 0 | FSU55: 0 | FSV55: 0 | FSW55: 0 | FSX55: 0 | FSY55: 0 | FSZ55: 0 | FTA55: 0 | FTB55: 0 | FTC55: 0 | FTD55: 0 | FTE55: 0 | FTF55: 0 | FTG55: 0 | FTH55: 0 | FTI55: 0 | FTJ55: 0 | FTK55: 0 | FTL55: 0 | FTM55: 0 | FTN55: 0 | FTO55: 0 | FTP55: 0 | FTQ55: 0 | FTR55: 0 | FTS55: 0 | FTT55: 0 | FTU55: 0 | FTV55: 0 | FTW55: 0 | FTX55: 0 | FTY55: 0 | FTZ55: 0 | FUA55: 0 | FUB55: 0 | FUC55: 0 | FUD55: 0 | FUE55: 0 | FUF55: 0 | FUG55: 0 | FUH55: 0 | FUI55: =FUI54-FUI53 -> 0 | FUJ55: 0 | FUK55: 0 | FUL55: 0 | FUM55: 0 | FUN55: 0 | FUO55: 0 | FUP55: 0 | FUQ55: 0 | FUR55: 0 | FUS55: 0 | FUT55: 0 | FUU55: 0 | FUV55: 0 | FUW55: 0 | FUX55: 0 | FUY55: 0 | FUZ55: 0 | FVA55: 0 | FVB55: 0 | FVC55: 0 | FVD55: 0 | FVE55: 0 | FVF55: 0 | FVG55: 0 | FVH55: 0 | FVI55: 0 | FVJ55: 0 | FVK55: 0 | FVL55: 0 | FVM55: 0 | FVN55: 0 | FVO55: 0 | FVP55: 0 | FVQ55: 0 | FVR55: 0 | FVS55: 0 | FVT55: 0 | FVU55: 0 | FVV55: 0 | FVW55: 0 | FVX55: 0 | FVY55: 0 | FVZ55: 0 | FWA55: 0 | FWB55: 0 | FWC55: 0 | FWD55: 0 | FWE55: 0 | FWF55: 0 | FWG55: 0 | FWH55: 0 | FWI55: 0 | FWJ55: 0 | FWK55: 0 | FWL55: 0 | FWM55: 0 | FWN55: 0 | FWO55: 0 | FWP55: 0 | FWQ55: 0 | FWR55: 0 | FWS55: 0 | FWT55: 0 | FWU55: =FWU54-FWU53 -> 0 | FWV55: 0 | FWW55: 0 | FWX55: 0 | FWY55: 0 | FWZ55: 0 | FXA55: 0 | FXB55: 0 | FXC55: 0 | FXD55: 0 | FXE55: 0 | FXF55: 0 | FXG55: 0 | FXH55: 0 | FXI55: 0 | FXJ55: 0 | FXK55: 0 | FXL55: 0 | FXM55: 0 | FXN55: 0 | FXO55: 0 | FXP55: 0 | FXQ55: 0 | FXR55: 0 | FXS55: 0 | FXT55: 0 | FXU55: 0 | FXV55: 0 | FXW55: 0 | FXX55: 0 | FXY55: 0 | FXZ55: 0 | FYA55: 0 | FYB55: 0 | FYC55: 0 | FYD55: 0 | FYE55: 0 | FYF55: 0 | FYG55: 0 | FYH55: 0 | FYI55: 0 | FYJ55: 0 | FYK55: 0 | FYL55: 0 | FYM55: 0 | FYN55: 0 | FYO55: 0 | FYP55: 0 | FYQ55: 0 | FYR55: 0 | FYS55: 0 | FYT55: 0 | FYU55: 0 | FYV55: 0 | FYW55: 0 | FYX55: 0 | FYY55: 0 | FYZ55: 0 | FZA55: 0 | FZB55: 0 | FZC55: 0 | FZD55: 0 | FZE55: 0 | FZF55: 0 | FZG55: =FZG54-FZG53 -> 0 | FZH55: 0 | FZI55: 0 | FZJ55: 0 | FZK55: 0 | FZL55: 0 | FZM55: 0 | FZN55: 0 | FZO55: 0 | FZP55: 0 | FZQ55: 0 | FZR55: 0 | FZS55: 0 | FZT55: 0 | FZU55: 0 | FZV55: 0 | FZW55: 0 | FZX55: 0 | FZY55: 0 | FZZ55: 0 | GAA55: 0 | GAB55: 0 | GAC55: 0 | GAD55: 0 | GAE55: 0 | GAF55: 0 | GAG55: 0 | GAH55: 0 | GAI55: 0 | GAJ55: 0 | GAK55: 0 | GAL55: 0 | GAM55: 0 | GAN55: 0 | GAO55: 0 | GAP55: 0 | GAQ55: 0 | GAR55: 0 | GAS55: 0 | GAT55: 0 | GAU55: 0 | GAV55: 0 | GAW55: 0 | GAX55: 0 | GAY55: 0 | GAZ55: 0 | GBA55: 0 | GBB55: 0 | GBC55: 0 | GBD55: 0 | GBE55: 0 | GBF55: 0 | GBG55: 0 | GBH55: 0 | GBI55: 0 | GBJ55: 0 | GBK55: 0 | GBL55: 0 | GBM55: 0 | GBN55: 0 | GBO55: 0 | GBP55: 0 | GBQ55: 0 | GBR55: 0 | GBS55: =GBS54-GBS53 -> 0 | GBT55: 0 | GBU55: 0 | GBV55: 0 | GBW55: 0 | GBX55: 0 | GBY55: 0 | GBZ55: 0 | GCA55: 0 | GCB55: 0 | GCC55: 0 | GCD55: 0 | GCE55: 0 | GCF55: 0 | GCG55: 0 | GCH55: 0 | GCI55: 0 | GCJ55: 0 | GCK55: 0 | GCL55: 0 | GCM55: 0 | GCN55: 0 | GCO55: 0 | GCP55: 0 | GCQ55: 0 | GCR55: 0 | GCS55: 0 | GCT55: 0 | GCU55: 0 | GCV55: 0 | GCW55: 0 | GCX55: 0 | GCY55: 0 | GCZ55: 0 | GDA55: 0 | GDB55: 0 | GDC55: 0 | GDD55: 0 | GDE55: 0 | GDF55: 0 | GDG55: 0 | GDH55: 0 | GDI55: 0 | GDJ55: 0 | GDK55: 0 | GDL55: 0 | GDM55: 0 | GDN55: 0 | GDO55: 0 | GDP55: 0 | GDQ55: 0 | GDR55: 0 | GDS55: 0 | GDT55: 0 | GDU55: 0 | GDV55: 0 | GDW55: 0 | GDX55: 0 | GDY55: 0 | GDZ55: 0 | GEA55: 0 | GEB55: 0 | GEC55: 0 | GED55: 0 | GEE55: =GEE54-GEE53 -> 0 | GEF55: 0 | GEG55: 0 | GEH55: 0 | GEI55: 0 | GEJ55: 0 | GEK55: 0 | GEL55: 0 | GEM55: 0 | GEN55: 0 | GEO55: 0 | GEP55: 0 | GEQ55: 0 | GER55: 0 | GES55: 0 | GET55: 0 | GEU55: 0 | GEV55: 0 | GEW55: 0 | GEX55: 0 | GEY55: 0 | GEZ55: 0 | GFA55: 0 | GFB55: 0 | GFC55: 0 | GFD55: 0 | GFE55: 0 | GFF55: 0 | GFG55: 0 | GFH55: 0 | GFI55: 0 | GFJ55: 0 | GFK55: 0 | GFL55: 0 | GFM55: 0 | GFN55: 0 | GFO55: 0 | GFP55: 0 | GFQ55: 0 | GFR55: 0 | GFS55: 0 | GFT55: 0 | GFU55: 0 | GFV55: 0 | GFW55: 0 | GFX55: 0 | GFY55: 0 | GFZ55: 0 | GGA55: 0 | GGB55: 0 | GGC55: 0 | GGD55: 0 | GGE55: 0 | GGF55: 0 | GGG55: 0 | GGH55: 0 | GGI55: 0 | GGJ55: 0 | GGK55: 0 | GGL55: 0 | GGM55: 0 | GGN55: 0 | GGO55: 0 | GGP55: 0 | GGQ55: =GGQ54-GGQ53 -> 0 | GGR55: 0 | GGS55: 0 | GGT55: 0 | GGU55: 0 | GGV55: 0 | GGW55: 0 | GGX55: 0 | GGY55: 0 | GGZ55: 0 | GHA55: 0 | GHB55: 0 | GHC55: 0 | GHD55: 0 | GHE55: 0 | GHF55: 0 | GHG55: 0 | GHH55: 0 | GHI55: 0 | GHJ55: 0 | GHK55: 0 | GHL55: 0 | GHM55: 0 | GHN55: 0 | GHO55: 0 | GHP55: 0 | GHQ55: 0 | GHR55: 0 | GHS55: 0 | GHT55: 0 | GHU55: 0 | GHV55: 0 | GHW55: 0 | GHX55: 0 | GHY55: 0 | GHZ55: 0 | GIA55: 0 | GIB55: 0 | GIC55: 0 | GID55: 0 | GIE55: 0 | GIF55: 0 | GIG55: 0 | GIH55: 0 | GII55: 0 | GIJ55: 0 | GIK55: 0 | GIL55: 0 | GIM55: 0 | GIN55: 0 | GIO55: 0 | GIP55: 0 | GIQ55: 0 | GIR55: 0 | GIS55: 0 | GIT55: 0 | GIU55: 0 | GIV55: 0 | GIW55: 0 | GIX55: 0 | GIY55: 0 | GIZ55: 0 | GJA55: 0 | GJB55: 0 | GJC55: =GJC54-GJC53 -> 0 | GJD55: 0 | GJE55: 0 | GJF55: 0 | GJG55: 0 | GJH55: 0 | GJI55: 0 | GJJ55: 0 | GJK55: 0 | GJL55: 0 | GJM55: 0 | GJN55: 0 | GJO55: 0 | GJP55: 0 | GJQ55: 0 | GJR55: 0 | GJS55: 0 | GJT55: 0 | GJU55: 0 | GJV55: 0 | GJW55: 0 | GJX55: 0 | GJY55: 0 | GJZ55: 0 | GKA55: 0 | GKB55: 0 | GKC55: 0 | GKD55: 0 | GKE55: 0 | GKF55: 0 | GKG55: 0 | GKH55: 0 | GKI55: 0 | GKJ55: 0 | GKK55: 0 | GKL55: 0 | GKM55: 0 | GKN55: 0 | GKO55: 0 | GKP55: 0 | GKQ55: 0 | GKR55: 0 | GKS55: 0 | GKT55: 0 | GKU55: 0 | GKV55: 0 | GKW55: 0 | GKX55: 0 | GKY55: 0 | GKZ55: 0 | GLA55: 0 | GLB55: 0 | GLC55: 0 | GLD55: 0 | GLE55: 0 | GLF55: 0 | GLG55: 0 | GLH55: 0 | GLI55: 0 | GLJ55: 0 | GLK55: 0 | GLL55: 0 | GLM55: 0 | GLN55: 0 | GLO55: =GLO54-GLO53 -> 0 | GLP55: 0 | GLQ55: 0 | GLR55: 0 | GLS55: 0 | GLT55: 0 | GLU55: 0 | GLV55: 0 | GLW55: 0 | GLX55: 0 | GLY55: 0 | GLZ55: 0 | GMA55: 0 | GMB55: 0 | GMC55: 0 | GMD55: 0 | GME55: 0 | GMF55: 0 | GMG55: 0 | GMH55: 0 | GMI55: 0 | GMJ55: 0 | GMK55: 0 | GML55: 0 | GMM55: 0 | GMN55: 0 | GMO55: 0 | GMP55: 0 | GMQ55: 0 | GMR55: 0 | GMS55: 0 | GMT55: 0 | GMU55: 0 | GMV55: 0 | GMW55: 0 | GMX55: 0 | GMY55: 0 | GMZ55: 0 | GNA55: 0 | GNB55: 0 | GNC55: 0 | GND55: 0 | GNE55: 0 | GNF55: 0 | GNG55: 0 | GNH55: 0 | GNI55: 0 | GNJ55: 0 | GNK55: 0 | GNL55: 0 | GNM55: 0 | GNN55: 0 | GNO55: 0 | GNP55: 0 | GNQ55: 0 | GNR55: 0 | GNS55: 0 | GNT55: 0 | GNU55: 0 | GNV55: 0 | GNW55: 0 | GNX55: 0 | GNY55: 0 | GNZ55: 0 | GOA55: =GOA54-GOA53 -> 0 | GOB55: 0 | GOC55: 0 | GOD55: 0 | GOE55: 0 | GOF55: 0 | GOG55: 0 | GOH55: 0 | GOI55: 0 | GOJ55: 0 | GOK55: 0 | GOL55: 0 | GOM55: 0 | GON55: 0 | GOO55: 0 | GOP55: 0 | GOQ55: 0 | GOR55: 0 | GOS55: 0 | GOT55: 0 | GOU55: 0 | GOV55: 0 | GOW55: 0 | GOX55: 0 | GOY55: 0 | GOZ55: 0 | GPA55: 0 | GPB55: 0 | GPC55: 0 | GPD55: 0 | GPE55: 0 | GPF55: 0 | GPG55: 0 | GPH55: 0 | GPI55: 0 | GPJ55: 0 | GPK55: 0 | GPL55: 0 | GPM55: 0 | GPN55: 0 | GPO55: 0 | GPP55: 0 | GPQ55: 0 | GPR55: 0 | GPS55: 0 | GPT55: 0 | GPU55: 0 | GPV55: 0 | GPW55: 0 | GPX55: 0 | GPY55: 0 | GPZ55: 0 | GQA55: 0 | GQB55: 0 | GQC55: 0 | GQD55: 0 | GQE55: 0 | GQF55: 0 | GQG55: 0 | GQH55: 0 | GQI55: 0 | GQJ55: 0 | GQK55: 0 | GQL55: 0 | GQM55: =GQM54-GQM53 -> 0 | GQN55: 0 | GQO55: 0 | GQP55: 0 | GQQ55: 0 | GQR55: 0 | GQS55: 0 | GQT55: 0 | GQU55: 0 | GQV55: 0 | GQW55: 0 | GQX55: 0 | GQY55: 0 | GQZ55: 0 | GRA55: 0 | GRB55: 0 | GRC55: 0 | GRD55: 0 | GRE55: 0 | GRF55: 0 | GRG55: 0 | GRH55: 0 | GRI55: 0 | GRJ55: 0 | GRK55: 0 | GRL55: 0 | GRM55: 0 | GRN55: 0 | GRO55: 0 | GRP55: 0 | GRQ55: 0 | GRR55: 0 | GRS55: 0 | GRT55: 0 | GRU55: 0 | GRV55: 0 | GRW55: 0 | GRX55: 0 | GRY55: 0 | GRZ55: 0 | GSA55: 0 | GSB55: 0 | GSC55: 0 | GSD55: 0 | GSE55: 0 | GSF55: 0 | GSG55: 0 | GSH55: 0 | GSI55: 0 | GSJ55: 0 | GSK55: 0 | GSL55: 0 | GSM55: 0 | GSN55: 0 | GSO55: 0 | GSP55: 0 | GSQ55: 0 | GSR55: 0 | GSS55: 0 | GST55: 0 | GSU55: 0 | GSV55: 0 | GSW55: 0 | GSX55: 0 | GSY55: =GSY54-GSY53 -> 0 | GSZ55: 0 | GTA55: 0 | GTB55: 0 | GTC55: 0 | GTD55: 0 | GTE55: 0 | GTF55: 0 | GTG55: 0 | GTH55: 0 | GTI55: 0 | GTJ55: 0 | GTK55: 0 | GTL55: 0 | GTM55: 0 | GTN55: 0 | GTO55: 0 | GTP55: 0 | GTQ55: 0 | GTR55: 0 | GTS55: 0 | GTT55: 0 | GTU55: 0 | GTV55: 0 | GTW55: 0 | GTX55: 0 | GTY55: 0 | GTZ55: 0 | GUA55: 0 | GUB55: 0 | GUC55: 0 | GUD55: 0 | GUE55: 0 | GUF55: 0 | GUG55: 0 | GUH55: 0 | GUI55: 0 | GUJ55: 0 | GUK55: 0 | GUL55: 0 | GUM55: 0 | GUN55: 0 | GUO55: 0 | GUP55: 0 | GUQ55: 0 | GUR55: 0 | GUS55: 0 | GUT55: 0 | GUU55: 0 | GUV55: 0 | GUW55: 0 | GUX55: 0 | GUY55: 0 | GUZ55: 0 | GVA55: 0 | GVB55: 0 | GVC55: 0 | GVD55: 0 | GVE55: 0 | GVF55: 0 | GVG55: 0 | GVH55: 0 | GVI55: 0 | GVJ55: 0 | GVK55: =GVK54-GVK53 -> 0 | GVL55: 0 | GVM55: 0 | GVN55: 0 | GVO55: 0 | GVP55: 0 | GVQ55: 0 | GVR55: 0 | GVS55: 0 | GVT55: 0 | GVU55: 0 | GVV55: 0 | GVW55: 0 | GVX55: 0 | GVY55: 0 | GVZ55: 0 | GWA55: 0 | GWB55: 0 | GWC55: 0 | GWD55: 0 | GWE55: 0 | GWF55: 0 | GWG55: 0 | GWH55: 0 | GWI55: 0 | GWJ55: 0 | GWK55: 0 | GWL55: 0 | GWM55: 0 | GWN55: 0 | GWO55: 0 | GWP55: 0 | GWQ55: 0 | GWR55: 0 | GWS55: 0 | GWT55: 0 | GWU55: 0 | GWV55: 0 | GWW55: 0 | GWX55: 0 | GWY55: 0 | GWZ55: 0 | GXA55: 0 | GXB55: 0 | GXC55: 0 | GXD55: 0 | GXE55: 0 | GXF55: 0 | GXG55: 0 | GXH55: 0 | GXI55: 0 | GXJ55: 0 | GXK55: 0 | GXL55: 0 | GXM55: 0 | GXN55: 0 | GXO55: 0 | GXP55: 0 | GXQ55: 0 | GXR55: 0 | GXS55: 0 | GXT55: 0 | GXU55: 0 | GXV55: 0 | GXW55: =GXW54-GXW53 -> 0 | GXX55: 0 | GXY55: 0 | GXZ55: 0 | GYA55: 0 | GYB55: 0 | GYC55: 0 | GYD55: 0 | GYE55: 0 | GYF55: 0 | GYG55: 0 | GYH55: 0 | GYI55: 0 | GYJ55: 0 | GYK55: 0 | GYL55: 0 | GYM55: 0 | GYN55: 0 | GYO55: 0 | GYP55: 0 | GYQ55: 0 | GYR55: 0 | GYS55: 0 | GYT55: 0 | GYU55: 0 | GYV55: 0 | GYW55: 0 | GYX55: 0 | GYY55: 0 | GYZ55: 0 | GZA55: 0 | GZB55: 0 | GZC55: 0 | GZD55: 0 | GZE55: 0 | GZF55: 0 | GZG55: 0 | GZH55: 0 | GZI55: 0 | GZJ55: 0 | GZK55: 0 | GZL55: 0 | GZM55: 0 | GZN55: 0 | GZO55: 0 | GZP55: 0 | GZQ55: 0 | GZR55: 0 | GZS55: 0 | GZT55: 0 | GZU55: 0 | GZV55: 0 | GZW55: 0 | GZX55: 0 | GZY55: 0 | GZZ55: 0 | HAA55: 0 | HAB55: 0 | HAC55: 0 | HAD55: 0 | HAE55: 0 | HAF55: 0 | HAG55: 0 | HAH55: 0 | HAI55: =HAI54-HAI53 -> 0 | HAJ55: 0 | HAK55: 0 | HAL55: 0 | HAM55: 0 | HAN55: 0 | HAO55: 0 | HAP55: 0 | HAQ55: 0 | HAR55: 0 | HAS55: 0 | HAT55: 0 | HAU55: 0 | HAV55: 0 | HAW55: 0 | HAX55: 0 | HAY55: 0 | HAZ55: 0 | HBA55: 0 | HBB55: 0 | HBC55: 0 | HBD55: 0 | HBE55: 0 | HBF55: 0 | HBG55: 0 | HBH55: 0 | HBI55: 0 | HBJ55: 0 | HBK55: 0 | HBL55: 0 | HBM55: 0 | HBN55: 0 | HBO55: 0 | HBP55: 0 | HBQ55: 0 | HBR55: 0 | HBS55: 0 | HBT55: 0 | HBU55: 0 | HBV55: 0 | HBW55: 0 | HBX55: 0 | HBY55: 0 | HBZ55: 0 | HCA55: 0 | HCB55: 0 | HCC55: 0 | HCD55: 0 | HCE55: 0 | HCF55: 0 | HCG55: 0 | HCH55: 0 | HCI55: 0 | HCJ55: 0 | HCK55: 0 | HCL55: 0 | HCM55: 0 | HCN55: 0 | HCO55: 0 | HCP55: 0 | HCQ55: 0 | HCR55: 0 | HCS55: 0 | HCT55: 0 | HCU55: =HCU54-HCU53 -> 0 | HCV55: 0 | HCW55: 0 | HCX55: 0 | HCY55: 0 | HCZ55: 0 | HDA55: 0 | HDB55: 0 | HDC55: 0 | HDD55: 0 | HDE55: 0 | HDF55: 0 | HDG55: 0 | HDH55: 0 | HDI55: 0 | HDJ55: 0 | HDK55: 0 | HDL55: 0 | HDM55: 0 | HDN55: 0 | HDO55: 0 | HDP55: 0 | HDQ55: 0 | HDR55: 0 | HDS55: 0 | HDT55: 0 | HDU55: 0 | HDV55: 0 | HDW55: 0 | HDX55: 0 | HDY55: 0 | HDZ55: 0 | HEA55: 0 | HEB55: 0 | HEC55: 0 | HED55: 0 | HEE55: 0 | HEF55: 0 | HEG55: 0 | HEH55: 0 | HEI55: 0 | HEJ55: 0 | HEK55: 0 | HEL55: 0 | HEM55: 0 | HEN55: 0 | HEO55: 0 | HEP55: 0 | HEQ55: 0 | HER55: 0 | HES55: 0 | HET55: 0 | HEU55: 0 | HEV55: 0 | HEW55: 0 | HEX55: 0 | HEY55: 0 | HEZ55: 0 | HFA55: 0 | HFB55: 0 | HFC55: 0 | HFD55: 0 | HFE55: 0 | HFF55: 0 | HFG55: =HFG54-HFG53 -> 0 | HFH55: 0 | HFI55: 0 | HFJ55: 0 | HFK55: 0 | HFL55: 0 | HFM55: 0 | HFN55: 0 | HFO55: 0 | HFP55: 0 | HFQ55: 0 | HFR55: 0 | HFS55: 0 | HFT55: 0 | HFU55: 0 | HFV55: 0 | HFW55: 0 | HFX55: 0 | HFY55: 0 | HFZ55: 0 | HGA55: 0 | HGB55: 0 | HGC55: 0 | HGD55: 0 | HGE55: 0 | HGF55: 0 | HGG55: 0 | HGH55: 0 | HGI55: 0 | HGJ55: 0 | HGK55: 0 | HGL55: 0 | HGM55: 0 | HGN55: 0 | HGO55: 0 | HGP55: 0 | HGQ55: 0 | HGR55: 0 | HGS55: 0 | HGT55: 0 | HGU55: 0 | HGV55: 0 | HGW55: 0 | HGX55: 0 | HGY55: 0 | HGZ55: 0 | HHA55: 0 | HHB55: 0 | HHC55: 0 | HHD55: 0 | HHE55: 0 | HHF55: 0 | HHG55: 0 | HHH55: 0 | HHI55: 0 | HHJ55: 0 | HHK55: 0 | HHL55: 0 | HHM55: 0 | HHN55: 0 | HHO55: 0 | HHP55: 0 | HHQ55: 0 | HHR55: 0 | HHS55: =HHS54-HHS53 -> 0 | HHT55: 0 | HHU55: 0 | HHV55: 0 | HHW55: 0 | HHX55: 0 | HHY55: 0 | HHZ55: 0 | HIA55: 0 | HIB55: 0 | HIC55: 0 | HID55: 0 | HIE55: 0 | HIF55: 0 | HIG55: 0 | HIH55: 0 | HII55: 0 | HIJ55: 0 | HIK55: 0 | HIL55: 0 | HIM55: 0 | HIN55: 0 | HIO55: 0 | HIP55: 0 | HIQ55: 0 | HIR55: 0 | HIS55: 0 | HIT55: 0 | HIU55: 0 | HIV55: 0 | HIW55: 0 | HIX55: 0 | HIY55: 0 | HIZ55: 0 | HJA55: 0 | HJB55: 0 | HJC55: 0 | HJD55: 0 | HJE55: 0 | HJF55: 0 | HJG55: 0 | HJH55: 0 | HJI55: 0 | HJJ55: 0 | HJK55: 0 | HJL55: 0 | HJM55: 0 | HJN55: 0 | HJO55: 0 | HJP55: 0 | HJQ55: 0 | HJR55: 0 | HJS55: 0 | HJT55: 0 | HJU55: 0 | HJV55: 0 | HJW55: 0 | HJX55: 0 | HJY55: 0 | HJZ55: 0 | HKA55: 0 | HKB55: 0 | HKC55: 0 | HKD55: 0 | HKE55: =HKE54-HKE53 -> 0 | HKF55: 0 | HKG55: 0 | HKH55: 0 | HKI55: 0 | HKJ55: 0 | HKK55: 0 | HKL55: 0 | HKM55: 0 | HKN55: 0 | HKO55: 0 | HKP55: 0 | HKQ55: 0 | HKR55: 0 | HKS55: 0 | HKT55: 0 | HKU55: 0 | HKV55: 0 | HKW55: 0 | HKX55: 0 | HKY55: 0 | HKZ55: 0 | HLA55: 0 | HLB55: 0 | HLC55: 0 | HLD55: 0 | HLE55: 0 | HLF55: 0 | HLG55: 0 | HLH55: 0 | HLI55: 0 | HLJ55: 0 | HLK55: 0 | HLL55: 0 | HLM55: 0 | HLN55: 0 | HLO55: 0 | HLP55: 0 | HLQ55: 0 | HLR55: 0 | HLS55: 0 | HLT55: 0 | HLU55: 0 | HLV55: 0 | HLW55: 0 | HLX55: 0 | HLY55: 0 | HLZ55: 0 | HMA55: 0 | HMB55: 0 | HMC55: 0 | HMD55: 0 | HME55: 0 | HMF55: 0 | HMG55: 0 | HMH55: 0 | HMI55: 0 | HMJ55: 0 | HMK55: 0 | HML55: 0 | HMM55: 0 | HMN55: 0 | HMO55: 0 | HMP55: 0 | HMQ55: =HMQ54-HMQ53 -> 0 | HMR55: 0 | HMS55: 0 | HMT55: 0 | HMU55: 0 | HMV55: 0 | HMW55: 0 | HMX55: 0 | HMY55: 0 | HMZ55: 0 | HNA55: 0 | HNB55: 0 | HNC55: 0 | HND55: 0 | HNE55: 0 | HNF55: 0 | HNG55: 0 | HNH55: 0 | HNI55: 0 | HNJ55: 0 | HNK55: 0 | HNL55: 0 | HNM55: 0 | HNN55: 0 | HNO55: 0 | HNP55: 0 | HNQ55: 0 | HNR55: 0 | HNS55: 0 | HNT55: 0 | HNU55: 0 | HNV55: 0 | HNW55: 0 | HNX55: 0 | HNY55: 0 | HNZ55: 0 | HOA55: 0 | HOB55: 0 | HOC55: 0 | HOD55: 0 | HOE55: 0 | HOF55: 0 | HOG55: 0 | HOH55: 0 | HOI55: 0 | HOJ55: 0 | HOK55: 0 | HOL55: 0 | HOM55: 0 | HON55: 0 | HOO55: 0 | HOP55: 0 | HOQ55: 0 | HOR55: 0 | HOS55: 0 | HOT55: 0 | HOU55: 0 | HOV55: 0 | HOW55: 0 | HOX55: 0 | HOY55: 0 | HOZ55: 0 | HPA55: 0 | HPB55: 0 | HPC55: =HPC54-HPC53 -> 0 | HPD55: 0 | HPE55: 0 | HPF55: 0 | HPG55: 0 | HPH55: 0 | HPI55: 0 | HPJ55: 0 | HPK55: 0 | HPL55: 0 | HPM55: 0 | HPN55: 0 | HPO55: 0 | HPP55: 0 | HPQ55: 0 | HPR55: 0 | HPS55: 0 | HPT55: 0 | HPU55: 0 | HPV55: 0 | HPW55: 0 | HPX55: 0 | HPY55: 0 | HPZ55: 0 | HQA55: 0 | HQB55: 0 | HQC55: 0 | HQD55: 0 | HQE55: 0 | HQF55: 0 | HQG55: 0 | HQH55: 0 | HQI55: 0 | HQJ55: 0 | HQK55: 0 | HQL55: 0 | HQM55: 0 | HQN55: 0 | HQO55: 0 | HQP55: 0 | HQQ55: 0 | HQR55: 0 | HQS55: 0 | HQT55: 0 | HQU55: 0 | HQV55: 0 | HQW55: 0 | HQX55: 0 | HQY55: 0 | HQZ55: 0 | HRA55: 0 | HRB55: 0 | HRC55: 0 | HRD55: 0 | HRE55: 0 | HRF55: 0 | HRG55: 0 | HRH55: 0 | HRI55: 0 | HRJ55: 0 | HRK55: 0 | HRL55: 0 | HRM55: 0 | HRN55: 0 | HRO55: =HRO54-HRO53 -> 0 | HRP55: 0 | HRQ55: 0 | HRR55: 0 | HRS55: 0 | HRT55: 0 | HRU55: 0 | HRV55: 0 | HRW55: 0 | HRX55: 0 | HRY55: 0 | HRZ55: 0 | HSA55: 0 | HSB55: 0 | HSC55: 0 | HSD55: 0 | HSE55: 0 | HSF55: 0 | HSG55: 0 | HSH55: 0 | HSI55: 0 | HSJ55: 0 | HSK55: 0 | HSL55: 0 | HSM55: 0 | HSN55: 0 | HSO55: 0 | HSP55: 0 | HSQ55: 0 | HSR55: 0 | HSS55: 0 | HST55: 0 | HSU55: 0 | HSV55: 0 | HSW55: 0 | HSX55: 0 | HSY55: 0 | HSZ55: 0 | HTA55: 0 | HTB55: 0 | HTC55: 0 | HTD55: 0 | HTE55: 0 | HTF55: 0 | HTG55: 0 | HTH55: 0 | HTI55: 0 | HTJ55: 0 | HTK55: 0 | HTL55: 0 | HTM55: 0 | HTN55: 0 | HTO55: 0 | HTP55: 0 | HTQ55: 0 | HTR55: 0 | HTS55: 0 | HTT55: 0 | HTU55: 0 | HTV55: 0 | HTW55: 0 | HTX55: 0 | HTY55: 0 | HTZ55: 0 | HUA55: =HUA54-HUA53 -> 0 | HUB55: 0 | HUC55: 0 | HUD55: 0 | HUE55: 0 | HUF55: 0 | HUG55: 0 | HUH55: 0 | HUI55: 0 | HUJ55: 0 | HUK55: 0 | HUL55: 0 | HUM55: 0 | HUN55: 0 | HUO55: 0 | HUP55: 0 | HUQ55: 0 | HUR55: 0 | HUS55: 0 | HUT55: 0 | HUU55: 0 | HUV55: 0 | HUW55: 0 | HUX55: 0 | HUY55: 0 | HUZ55: 0 | HVA55: 0 | HVB55: 0 | HVC55: 0 | HVD55: 0 | HVE55: 0 | HVF55: 0 | HVG55: 0 | HVH55: 0 | HVI55: 0 | HVJ55: 0 | HVK55: 0 | HVL55: 0 | HVM55: 0 | HVN55: 0 | HVO55: 0 | HVP55: 0 | HVQ55: 0 | HVR55: 0 | HVS55: 0 | HVT55: 0 | HVU55: 0 | HVV55: 0 | HVW55: 0 | HVX55: 0 | HVY55: 0 | HVZ55: 0 | HWA55: 0 | HWB55: 0 | HWC55: 0 | HWD55: 0 | HWE55: 0 | HWF55: 0 | HWG55: 0 | HWH55: 0 | HWI55: 0 | HWJ55: 0 | HWK55: 0 | HWL55: 0 | HWM55: =HWM54-HWM53 -> 0 | HWN55: 0 | HWO55: 0 | HWP55: 0 | HWQ55: 0 | HWR55: 0 | HWS55: 0 | HWT55: 0 | HWU55: 0 | HWV55: 0 | HWW55: 0 | HWX55: 0 | HWY55: 0 | HWZ55: 0 | HXA55: 0 | HXB55: 0 | HXC55: 0 | HXD55: 0 | HXE55: 0 | HXF55: 0 | HXG55: 0 | HXH55: 0 | HXI55: 0 | HXJ55: 0 | HXK55: 0 | HXL55: 0 | HXM55: 0 | HXN55: 0 | HXO55: 0 | HXP55: 0 | HXQ55: 0 | HXR55: 0 | HXS55: 0 | HXT55: 0 | HXU55: 0 | HXV55: 0 | HXW55: 0 | HXX55: 0 | HXY55: 0 | HXZ55: 0 | HYA55: 0 | HYB55: 0 | HYC55: 0 | HYD55: 0 | HYE55: 0 | HYF55: 0 | HYG55: 0 | HYH55: 0 | HYI55: 0 | HYJ55: 0 | HYK55: 0 | HYL55: 0 | HYM55: 0 | HYN55: 0 | HYO55: 0 | HYP55: 0 | HYQ55: 0 | HYR55: 0 | HYS55: 0 | HYT55: 0 | HYU55: 0 | HYV55: 0 | HYW55: 0 | HYX55: 0 | HYY55: =HYY54-HYY53 -> 0 | HYZ55: 0 | HZA55: 0 | HZB55: 0 | HZC55: 0 | HZD55: 0 | HZE55: 0 | HZF55: 0 | HZG55: 0 | HZH55: 0 | HZI55: 0 | HZJ55: 0 | HZK55: 0 | HZL55: 0 | HZM55: 0 | HZN55: 0 | HZO55: 0 | HZP55: 0 | HZQ55: 0 | HZR55: 0 | HZS55: 0 | HZT55: 0 | HZU55: 0 | HZV55: 0 | HZW55: 0 | HZX55: 0 | HZY55: 0 | HZZ55: 0 | IAA55: 0 | IAB55: 0 | IAC55: 0 | IAD55: 0 | IAE55: 0 | IAF55: 0 | IAG55: 0 | IAH55: 0 | IAI55: 0 | IAJ55: 0 | IAK55: 0 | IAL55: 0 | IAM55: 0 | IAN55: 0 | IAO55: 0 | IAP55: 0 | IAQ55: 0 | IAR55: 0 | IAS55: 0 | IAT55: 0 | IAU55: 0 | IAV55: 0 | IAW55: 0 | IAX55: 0 | IAY55: 0 | IAZ55: 0 | IBA55: 0 | IBB55: 0 | IBC55: 0 | IBD55: 0 | IBE55: 0 | IBF55: 0 | IBG55: 0 | IBH55: 0 | IBI55: 0 | IBJ55: 0 | IBK55: =IBK54-IBK53 -> 0 | IBL55: 0 | IBM55: 0 | IBN55: 0 | IBO55: 0 | IBP55: 0 | IBQ55: 0 | IBR55: 0 | IBS55: 0 | IBT55: 0 | IBU55: 0 | IBV55: 0 | IBW55: 0 | IBX55: 0 | IBY55: 0 | IBZ55: 0 | ICA55: 0 | ICB55: 0 | ICC55: 0 | ICD55: 0 | ICE55: 0 | ICF55: 0 | ICG55: 0 | ICH55: 0 | ICI55: 0 | ICJ55: 0 | ICK55: 0 | ICL55: 0 | ICM55: 0 | ICN55: 0 | ICO55: 0 | ICP55: 0 | ICQ55: 0 | ICR55: 0 | ICS55: 0 | ICT55: 0 | ICU55: 0 | ICV55: 0 | ICW55: 0 | ICX55: 0 | ICY55: 0 | ICZ55: 0 | IDA55: 0 | IDB55: 0 | IDC55: 0 | IDD55: 0 | IDE55: 0 | IDF55: 0 | IDG55: 0 | IDH55: 0 | IDI55: 0 | IDJ55: 0 | IDK55: 0 | IDL55: 0 | IDM55: 0 | IDN55: 0 | IDO55: 0 | IDP55: 0 | IDQ55: 0 | IDR55: 0 | IDS55: 0 | IDT55: 0 | IDU55: 0 | IDV55: 0 | IDW55: =IDW54-IDW53 -> 0 | IDX55: 0 | IDY55: 0 | IDZ55: 0 | IEA55: 0 | IEB55: 0 | IEC55: 0 | IED55: 0 | IEE55: 0 | IEF55: 0 | IEG55: 0 | IEH55: 0 | IEI55: 0 | IEJ55: 0 | IEK55: 0 | IEL55: 0 | IEM55: 0 | IEN55: 0 | IEO55: 0 | IEP55: 0 | IEQ55: 0 | IER55: 0 | IES55: 0 | IET55: 0 | IEU55: 0 | IEV55: 0 | IEW55: 0 | IEX55: 0 | IEY55: 0 | IEZ55: 0 | IFA55: 0 | IFB55: 0 | IFC55: 0 | IFD55: 0 | IFE55: 0 | IFF55: 0 | IFG55: 0 | IFH55: 0 | IFI55: 0 | IFJ55: 0 | IFK55: 0 | IFL55: 0 | IFM55: 0 | IFN55: 0 | IFO55: 0 | IFP55: 0 | IFQ55: 0 | IFR55: 0 | IFS55: 0 | IFT55: 0 | IFU55: 0 | IFV55: 0 | IFW55: 0 | IFX55: 0 | IFY55: 0 | IFZ55: 0 | IGA55: 0 | IGB55: 0 | IGC55: 0 | IGD55: 0 | IGE55: 0 | IGF55: 0 | IGG55: 0 | IGH55: 0 | IGI55: =IGI54-IGI53 -> 0 | IGJ55: 0 | IGK55: 0 | IGL55: 0 | IGM55: 0 | IGN55: 0 | IGO55: 0 | IGP55: 0 | IGQ55: 0 | IGR55: 0 | IGS55: 0 | IGT55: 0 | IGU55: 0 | IGV55: 0 | IGW55: 0 | IGX55: 0 | IGY55: 0 | IGZ55: 0 | IHA55: 0 | IHB55: 0 | IHC55: 0 | IHD55: 0 | IHE55: 0 | IHF55: 0 | IHG55: 0 | IHH55: 0 | IHI55: 0 | IHJ55: 0 | IHK55: 0 | IHL55: 0 | IHM55: 0 | IHN55: 0 | IHO55: 0 | IHP55: 0 | IHQ55: 0 | IHR55: 0 | IHS55: 0 | IHT55: 0 | IHU55: 0 | IHV55: 0 | IHW55: 0 | IHX55: 0 | IHY55: 0 | IHZ55: 0 | IIA55: 0 | IIB55: 0 | IIC55: 0 | IID55: 0 | IIE55: 0 | IIF55: 0 | IIG55: 0 | IIH55: 0 | III55: 0 | IIJ55: 0 | IIK55: 0 | IIL55: 0 | IIM55: 0 | IIN55: 0 | IIO55: 0 | IIP55: 0 | IIQ55: 0 | IIR55: 0 | IIS55: 0 | IIT55: 0 | IIU55: =IIU54-IIU53 -> 0 | IIV55: 0 | IIW55: 0 | IIX55: 0 | IIY55: 0 | IIZ55: 0 | IJA55: 0 | IJB55: 0 | IJC55: 0 | IJD55: 0 | IJE55: 0 | IJF55: 0 | IJG55: 0 | IJH55: 0 | IJI55: 0 | IJJ55: 0 | IJK55: 0 | IJL55: 0 | IJM55: 0 | IJN55: 0 | IJO55: 0 | IJP55: 0 | IJQ55: 0 | IJR55: 0 | IJS55: 0 | IJT55: 0 | IJU55: 0 | IJV55: 0 | IJW55: 0 | IJX55: 0 | IJY55: 0 | IJZ55: 0 | IKA55: 0 | IKB55: 0 | IKC55: 0 | IKD55: 0 | IKE55: 0 | IKF55: 0 | IKG55: 0 | IKH55: 0 | IKI55: 0 | IKJ55: 0 | IKK55: 0 | IKL55: 0 | IKM55: 0 | IKN55: 0 | IKO55: 0 | IKP55: 0 | IKQ55: 0 | IKR55: 0 | IKS55: 0 | IKT55: 0 | IKU55: 0 | IKV55: 0 | IKW55: 0 | IKX55: 0 | IKY55: 0 | IKZ55: 0 | ILA55: 0 | ILB55: 0 | ILC55: 0 | ILD55: 0 | ILE55: 0 | ILF55: 0 | ILG55: =ILG54-ILG53 -> 0 | ILH55: 0 | ILI55: 0 | ILJ55: 0 | ILK55: 0 | ILL55: 0 | ILM55: 0 | ILN55: 0 | ILO55: 0 | ILP55: 0 | ILQ55: 0 | ILR55: 0 | ILS55: 0 | ILT55: 0 | ILU55: 0 | ILV55: 0 | ILW55: 0 | ILX55: 0 | ILY55: 0 | ILZ55: 0 | IMA55: 0 | IMB55: 0 | IMC55: 0 | IMD55: 0 | IME55: 0 | IMF55: 0 | IMG55: 0 | IMH55: 0 | IMI55: 0 | IMJ55: 0 | IMK55: 0 | IML55: 0 | IMM55: 0 | IMN55: 0 | IMO55: 0 | IMP55: 0 | IMQ55: 0 | IMR55: 0 | IMS55: 0 | IMT55: 0 | IMU55: 0 | IMV55: 0 | IMW55: 0 | IMX55: 0 | IMY55: 0 | IMZ55: 0 | INA55: 0 | INB55: 0 | INC55: 0 | IND55: 0 | INE55: 0 | INF55: 0 | ING55: 0 | INH55: 0 | INI55: 0 | INJ55: 0 | INK55: 0 | INL55: 0 | INM55: 0 | INN55: 0 | INO55: 0 | INP55: 0 | INQ55: 0 | INR55: 0 | INS55: =INS54-INS53 -> 0 | INT55: 0 | INU55: 0 | INV55: 0 | INW55: 0 | INX55: 0 | INY55: 0 | INZ55: 0 | IOA55: 0 | IOB55: 0 | IOC55: 0 | IOD55: 0 | IOE55: 0 | IOF55: 0 | IOG55: 0 | IOH55: 0 | IOI55: 0 | IOJ55: 0 | IOK55: 0 | IOL55: 0 | IOM55: 0 | ION55: 0 | IOO55: 0 | IOP55: 0 | IOQ55: 0 | IOR55: 0 | IOS55: 0 | IOT55: 0 | IOU55: 0 | IOV55: 0 | IOW55: 0 | IOX55: 0 | IOY55: 0 | IOZ55: 0 | IPA55: 0 | IPB55: 0 | IPC55: 0 | IPD55: 0 | IPE55: 0 | IPF55: 0 | IPG55: 0 | IPH55: 0 | IPI55: 0 | IPJ55: 0 | IPK55: 0 | IPL55: 0 | IPM55: 0 | IPN55: 0 | IPO55: 0 | IPP55: 0 | IPQ55: 0 | IPR55: 0 | IPS55: 0 | IPT55: 0 | IPU55: 0 | IPV55: 0 | IPW55: 0 | IPX55: 0 | IPY55: 0 | IPZ55: 0 | IQA55: 0 | IQB55: 0 | IQC55: 0 | IQD55: 0 | IQE55: =IQE54-IQE53 -> 0 | IQF55: 0 | IQG55: 0 | IQH55: 0 | IQI55: 0 | IQJ55: 0 | IQK55: 0 | IQL55: 0 | IQM55: 0 | IQN55: 0 | IQO55: 0 | IQP55: 0 | IQQ55: 0 | IQR55: 0 | IQS55: 0 | IQT55: 0 | IQU55: 0 | IQV55: 0 | IQW55: 0 | IQX55: 0 | IQY55: 0 | IQZ55: 0 | IRA55: 0 | IRB55: 0 | IRC55: 0 | IRD55: 0 | IRE55: 0 | IRF55: 0 | IRG55: 0 | IRH55: 0 | IRI55: 0 | IRJ55: 0 | IRK55: 0 | IRL55: 0 | IRM55: 0 | IRN55: 0 | IRO55: 0 | IRP55: 0 | IRQ55: 0 | IRR55: 0 | IRS55: 0 | IRT55: 0 | IRU55: 0 | IRV55: 0 | IRW55: 0 | IRX55: 0 | IRY55: 0 | IRZ55: 0 | ISA55: 0 | ISB55: 0 | ISC55: 0 | ISD55: 0 | ISE55: 0 | ISF55: 0 | ISG55: 0 | ISH55: 0 | ISI55: 0 | ISJ55: 0 | ISK55: 0 | ISL55: 0 | ISM55: 0 | ISN55: 0 | ISO55: 0 | ISP55: 0 | ISQ55: =ISQ54-ISQ53 -> 0 | ISR55: 0 | ISS55: 0 | IST55: 0 | ISU55: 0 | ISV55: 0 | ISW55: 0 | ISX55: 0 | ISY55: 0 | ISZ55: 0 | ITA55: 0 | ITB55: 0 | ITC55: 0 | ITD55: 0 | ITE55: 0 | ITF55: 0 | ITG55: 0 | ITH55: 0 | ITI55: 0 | ITJ55: 0 | ITK55: 0 | ITL55: 0 | ITM55: 0 | ITN55: 0 | ITO55: 0 | ITP55: 0 | ITQ55: 0 | ITR55: 0 | ITS55: 0 | ITT55: 0 | ITU55: 0 | ITV55: 0 | ITW55: 0 | ITX55: 0 | ITY55: 0 | ITZ55: 0 | IUA55: 0 | IUB55: 0 | IUC55: 0 | IUD55: 0 | IUE55: 0 | IUF55: 0 | IUG55: 0 | IUH55: 0 | IUI55: 0 | IUJ55: 0 | IUK55: 0 | IUL55: 0 | IUM55: 0 | IUN55: 0 | IUO55: 0 | IUP55: 0 | IUQ55: 0 | IUR55: 0 | IUS55: 0 | IUT55: 0 | IUU55: 0 | IUV55: 0 | IUW55: 0 | IUX55: 0 | IUY55: 0 | IUZ55: 0 | IVA55: 0 | IVB55: 0 | IVC55: =IVC54-IVC53 -> 0 | IVD55: 0 | IVE55: 0 | IVF55: 0 | IVG55: 0 | IVH55: 0 | IVI55: 0 | IVJ55: 0 | IVK55: 0 | IVL55: 0 | IVM55: 0 | IVN55: 0 | IVO55: 0 | IVP55: 0 | IVQ55: 0 | IVR55: 0 | IVS55: 0 | IVT55: 0 | IVU55: 0 | IVV55: 0 | IVW55: 0 | IVX55: 0 | IVY55: 0 | IVZ55: 0 | IWA55: 0 | IWB55: 0 | IWC55: 0 | IWD55: 0 | IWE55: 0 | IWF55: 0 | IWG55: 0 | IWH55: 0 | IWI55: 0 | IWJ55: 0 | IWK55: 0 | IWL55: 0 | IWM55: 0 | IWN55: 0 | IWO55: 0 | IWP55: 0 | IWQ55: 0 | IWR55: 0 | IWS55: 0 | IWT55: 0 | IWU55: 0 | IWV55: 0 | IWW55: 0 | IWX55: 0 | IWY55: 0 | IWZ55: 0 | IXA55: 0 | IXB55: 0 | IXC55: 0 | IXD55: 0 | IXE55: 0 | IXF55: 0 | IXG55: 0 | IXH55: 0 | IXI55: 0 | IXJ55: 0 | IXK55: 0 | IXL55: 0 | IXM55: 0 | IXN55: 0 | IXO55: =IXO54-IXO53 -> 0 | IXP55: 0 | IXQ55: 0 | IXR55: 0 | IXS55: 0 | IXT55: 0 | IXU55: 0 | IXV55: 0 | IXW55: 0 | IXX55: 0 | IXY55: 0 | IXZ55: 0 | IYA55: 0 | IYB55: 0 | IYC55: 0 | IYD55: 0 | IYE55: 0 | IYF55: 0 | IYG55: 0 | IYH55: 0 | IYI55: 0 | IYJ55: 0 | IYK55: 0 | IYL55: 0 | IYM55: 0 | IYN55: 0 | IYO55: 0 | IYP55: 0 | IYQ55: 0 | IYR55: 0 | IYS55: 0 | IYT55: 0 | IYU55: 0 | IYV55: 0 | IYW55: 0 | IYX55: 0 | IYY55: 0 | IYZ55: 0 | IZA55: 0 | IZB55: 0 | IZC55: 0 | IZD55: 0 | IZE55: 0 | IZF55: 0 | IZG55: 0 | IZH55: 0 | IZI55: 0 | IZJ55: 0 | IZK55: 0 | IZL55: 0 | IZM55: 0 | IZN55: 0 | IZO55: 0 | IZP55: 0 | IZQ55: 0 | IZR55: 0 | IZS55: 0 | IZT55: 0 | IZU55: 0 | IZV55: 0 | IZW55: 0 | IZX55: 0 | IZY55: 0 | IZZ55: 0 | JAA55: =JAA54-JAA53 -> 0 | JAB55: 0 | JAC55: 0 | JAD55: 0 | JAE55: 0 | JAF55: 0 | JAG55: 0 | JAH55: 0 | JAI55: 0 | JAJ55: 0 | JAK55: 0 | JAL55: 0 | JAM55: 0 | JAN55: 0 | JAO55: 0 | JAP55: 0 | JAQ55: 0 | JAR55: 0 | JAS55: 0 | JAT55: 0 | JAU55: 0 | JAV55: 0 | JAW55: 0 | JAX55: 0 | JAY55: 0 | JAZ55: 0 | JBA55: 0 | JBB55: 0 | JBC55: 0 | JBD55: 0 | JBE55: 0 | JBF55: 0 | JBG55: 0 | JBH55: 0 | JBI55: 0 | JBJ55: 0 | JBK55: 0 | JBL55: 0 | JBM55: 0 | JBN55: 0 | JBO55: 0 | JBP55: 0 | JBQ55: 0 | JBR55: 0 | JBS55: 0 | JBT55: 0 | JBU55: 0 | JBV55: 0 | JBW55: 0 | JBX55: 0 | JBY55: 0 | JBZ55: 0 | JCA55: 0 | JCB55: 0 | JCC55: 0 | JCD55: 0 | JCE55: 0 | JCF55: 0 | JCG55: 0 | JCH55: 0 | JCI55: 0 | JCJ55: 0 | JCK55: 0 | JCL55: 0 | JCM55: =JCM54-JCM53 -> 0 | JCN55: 0 | JCO55: 0 | JCP55: 0 | JCQ55: 0 | JCR55: 0 | JCS55: 0 | JCT55: 0 | JCU55: 0 | JCV55: 0 | JCW55: 0 | JCX55: 0 | JCY55: 0 | JCZ55: 0 | JDA55: 0 | JDB55: 0 | JDC55: 0 | JDD55: 0 | JDE55: 0 | JDF55: 0 | JDG55: 0 | JDH55: 0 | JDI55: 0 | JDJ55: 0 | JDK55: 0 | JDL55: 0 | JDM55: 0 | JDN55: 0 | JDO55: 0 | JDP55: 0 | JDQ55: 0 | JDR55: 0 | JDS55: 0 | JDT55: 0 | JDU55: 0 | JDV55: 0 | JDW55: 0 | JDX55: 0 | JDY55: 0 | JDZ55: 0 | JEA55: 0 | JEB55: 0 | JEC55: 0 | JED55: 0 | JEE55: 0 | JEF55: 0 | JEG55: 0 | JEH55: 0 | JEI55: 0 | JEJ55: 0 | JEK55: 0 | JEL55: 0 | JEM55: 0 | JEN55: 0 | JEO55: 0 | JEP55: 0 | JEQ55: 0 | JER55: 0 | JES55: 0 | JET55: 0 | JEU55: 0 | JEV55: 0 | JEW55: 0 | JEX55: 0 | JEY55: =JEY54-JEY53 -> 0 | JEZ55: 0 | JFA55: 0 | JFB55: 0 | JFC55: 0 | JFD55: 0 | JFE55: 0 | JFF55: 0 | JFG55: 0 | JFH55: 0 | JFI55: 0 | JFJ55: 0 | JFK55: 0 | JFL55: 0 | JFM55: 0 | JFN55: 0 | JFO55: 0 | JFP55: 0 | JFQ55: 0 | JFR55: 0 | JFS55: 0 | JFT55: 0 | JFU55: 0 | JFV55: 0 | JFW55: 0 | JFX55: 0 | JFY55: 0 | JFZ55: 0 | JGA55: 0 | JGB55: 0 | JGC55: 0 | JGD55: 0 | JGE55: 0 | JGF55: 0 | JGG55: 0 | JGH55: 0 | JGI55: 0 | JGJ55: 0 | JGK55: 0 | JGL55: 0 | JGM55: 0 | JGN55: 0 | JGO55: 0 | JGP55: 0 | JGQ55: 0 | JGR55: 0 | JGS55: 0 | JGT55: 0 | JGU55: 0 | JGV55: 0 | JGW55: 0 | JGX55: 0 | JGY55: 0 | JGZ55: 0 | JHA55: 0 | JHB55: 0 | JHC55: 0 | JHD55: 0 | JHE55: 0 | JHF55: 0 | JHG55: 0 | JHH55: 0 | JHI55: 0 | JHJ55: 0 | JHK55: =JHK54-JHK53 -> 0 | JHL55: 0 | JHM55: 0 | JHN55: 0 | JHO55: 0 | JHP55: 0 | JHQ55: 0 | JHR55: 0 | JHS55: 0 | JHT55: 0 | JHU55: 0 | JHV55: 0 | JHW55: 0 | JHX55: 0 | JHY55: 0 | JHZ55: 0 | JIA55: 0 | JIB55: 0 | JIC55: 0 | JID55: 0 | JIE55: 0 | JIF55: 0 | JIG55: 0 | JIH55: 0 | JII55: 0 | JIJ55: 0 | JIK55: 0 | JIL55: 0 | JIM55: 0 | JIN55: 0 | JIO55: 0 | JIP55: 0 | JIQ55: 0 | JIR55: 0 | JIS55: 0 | JIT55: 0 | JIU55: 0 | JIV55: 0 | JIW55: 0 | JIX55: 0 | JIY55: 0 | JIZ55: 0 | JJA55: 0 | JJB55: 0 | JJC55: 0 | JJD55: 0 | JJE55: 0 | JJF55: 0 | JJG55: 0 | JJH55: 0 | JJI55: 0 | JJJ55: 0 | JJK55: 0 | JJL55: 0 | JJM55: 0 | JJN55: 0 | JJO55: 0 | JJP55: 0 | JJQ55: 0 | JJR55: 0 | JJS55: 0 | JJT55: 0 | JJU55: 0 | JJV55: 0 | JJW55: =JJW54-JJW53 -> 0 | JJX55: 0 | JJY55: 0 | JJZ55: 0 | JKA55: 0 | JKB55: 0 | JKC55: 0 | JKD55: 0 | JKE55: 0 | JKF55: 0 | JKG55: 0 | JKH55: 0 | JKI55: 0 | JKJ55: 0 | JKK55: 0 | JKL55: 0 | JKM55: 0 | JKN55: 0 | JKO55: 0 | JKP55: 0 | JKQ55: 0 | JKR55: 0 | JKS55: 0 | JKT55: 0 | JKU55: 0 | JKV55: 0 | JKW55: 0 | JKX55: 0 | JKY55: 0 | JKZ55: 0 | JLA55: 0 | JLB55: 0 | JLC55: 0 | JLD55: 0 | JLE55: 0 | JLF55: 0 | JLG55: 0 | JLH55: 0 | JLI55: 0 | JLJ55: 0 | JLK55: 0 | JLL55: 0 | JLM55: 0 | JLN55: 0 | JLO55: 0 | JLP55: 0 | JLQ55: 0 | JLR55: 0 | JLS55: 0 | JLT55: 0 | JLU55: 0 | JLV55: 0 | JLW55: 0 | JLX55: 0 | JLY55: 0 | JLZ55: 0 | JMA55: 0 | JMB55: 0 | JMC55: 0 | JMD55: 0 | JME55: 0 | JMF55: 0 | JMG55: 0 | JMH55: 0 | JMI55: =JMI54-JMI53 -> 0 | JMJ55: 0 | JMK55: 0 | JML55: 0 | JMM55: 0 | JMN55: 0 | JMO55: 0 | JMP55: 0 | JMQ55: 0 | JMR55: 0 | JMS55: 0 | JMT55: 0 | JMU55: 0 | JMV55: 0 | JMW55: 0 | JMX55: 0 | JMY55: 0 | JMZ55: 0 | JNA55: 0 | JNB55: 0 | JNC55: 0 | JND55: 0 | JNE55: 0 | JNF55: 0 | JNG55: 0 | JNH55: 0 | JNI55: 0 | JNJ55: 0 | JNK55: 0 | JNL55: 0 | JNM55: 0 | JNN55: 0 | JNO55: 0 | JNP55: 0 | JNQ55: 0 | JNR55: 0 | JNS55: 0 | JNT55: 0 | JNU55: 0 | JNV55: 0 | JNW55: 0 | JNX55: 0 | JNY55: 0 | JNZ55: 0 | JOA55: 0 | JOB55: 0 | JOC55: 0 | JOD55: 0 | JOE55: 0 | JOF55: 0 | JOG55: 0 | JOH55: 0 | JOI55: 0 | JOJ55: 0 | JOK55: 0 | JOL55: 0 | JOM55: 0 | JON55: 0 | JOO55: 0 | JOP55: 0 | JOQ55: 0 | JOR55: 0 | JOS55: 0 | JOT55: 0 | JOU55: =JOU54-JOU53 -> 0 | JOV55: 0 | JOW55: 0 | JOX55: 0 | JOY55: 0 | JOZ55: 0 | JPA55: 0 | JPB55: 0 | JPC55: 0 | JPD55: 0 | JPE55: 0 | JPF55: 0 | JPG55: 0 | JPH55: 0 | JPI55: 0 | JPJ55: 0 | JPK55: 0 | JPL55: 0 | JPM55: 0 | JPN55: 0 | JPO55: 0 | JPP55: 0 | JPQ55: 0 | JPR55: 0 | JPS55: 0 | JPT55: 0 | JPU55: 0 | JPV55: 0 | JPW55: 0 | JPX55: 0 | JPY55: 0 | JPZ55: 0 | JQA55: 0 | JQB55: 0 | JQC55: 0 | JQD55: 0 | JQE55: 0 | JQF55: 0 | JQG55: 0 | JQH55: 0 | JQI55: 0 | JQJ55: 0 | JQK55: 0 | JQL55: 0 | JQM55: 0 | JQN55: 0 | JQO55: 0 | JQP55: 0 | JQQ55: 0 | JQR55: 0 | JQS55: 0 | JQT55: 0 | JQU55: 0 | JQV55: 0 | JQW55: 0 | JQX55: 0 | JQY55: 0 | JQZ55: 0 | JRA55: 0 | JRB55: 0 | JRC55: 0 | JRD55: 0 | JRE55: 0 | JRF55: 0 | JRG55: =JRG54-JRG53 -> 0 | JRH55: 0 | JRI55: 0 | JRJ55: 0 | JRK55: 0 | JRL55: 0 | JRM55: 0 | JRN55: 0 | JRO55: 0 | JRP55: 0 | JRQ55: 0 | JRR55: 0 | JRS55: 0 | JRT55: 0 | JRU55: 0 | JRV55: 0 | JRW55: 0 | JRX55: 0 | JRY55: 0 | JRZ55: 0 | JSA55: 0 | JSB55: 0 | JSC55: 0 | JSD55: 0 | JSE55: 0 | JSF55: 0 | JSG55: 0 | JSH55: 0 | JSI55: 0 | JSJ55: 0 | JSK55: 0 | JSL55: 0 | JSM55: 0 | JSN55: 0 | JSO55: 0 | JSP55: 0 | JSQ55: 0 | JSR55: 0 | JSS55: 0 | JST55: 0 | JSU55: 0 | JSV55: 0 | JSW55: 0 | JSX55: 0 | JSY55: 0 | JSZ55: 0 | JTA55: 0 | JTB55: 0 | JTC55: 0 | JTD55: 0 | JTE55: 0 | JTF55: 0 | JTG55: 0 | JTH55: 0 | JTI55: 0 | JTJ55: 0 | JTK55: 0 | JTL55: 0 | JTM55: 0 | JTN55: 0 | JTO55: 0 | JTP55: 0 | JTQ55: 0 | JTR55: 0 | JTS55: =JTS54-JTS53 -> 0 | JTT55: 0 | JTU55: 0 | JTV55: 0 | JTW55: 0 | JTX55: 0 | JTY55: 0 | JTZ55: 0 | JUA55: 0 | JUB55: 0 | JUC55: 0 | JUD55: 0 | JUE55: 0 | JUF55: 0 | JUG55: 0 | JUH55: 0 | JUI55: 0 | JUJ55: 0 | JUK55: 0 | JUL55: 0 | JUM55: 0 | JUN55: 0 | JUO55: 0 | JUP55: 0 | JUQ55: 0 | JUR55: 0 | JUS55: 0 | JUT55: 0 | JUU55: 0 | JUV55: 0 | JUW55: 0 | JUX55: 0 | JUY55: 0 | JUZ55: 0 | JVA55: 0 | JVB55: 0 | JVC55: 0 | JVD55: 0 | JVE55: 0 | JVF55: 0 | JVG55: 0 | JVH55: 0 | JVI55: 0 | JVJ55: 0 | JVK55: 0 | JVL55: 0 | JVM55: 0 | JVN55: 0 | JVO55: 0 | JVP55: 0 | JVQ55: 0 | JVR55: 0 | JVS55: 0 | JVT55: 0 | JVU55: 0 | JVV55: 0 | JVW55: 0 | JVX55: 0 | JVY55: 0 | JVZ55: 0 | JWA55: 0 | JWB55: 0 | JWC55: 0 | JWD55: 0 | JWE55: =JWE54-JWE53 -> 0 | JWF55: 0 | JWG55: 0 | JWH55: 0 | JWI55: 0 | JWJ55: 0 | JWK55: 0 | JWL55: 0 | JWM55: 0 | JWN55: 0 | JWO55: 0 | JWP55: 0 | JWQ55: 0 | JWR55: 0 | JWS55: 0 | JWT55: 0 | JWU55: 0 | JWV55: 0 | JWW55: 0 | JWX55: 0 | JWY55: 0 | JWZ55: 0 | JXA55: 0 | JXB55: 0 | JXC55: 0 | JXD55: 0 | JXE55: 0 | JXF55: 0 | JXG55: 0 | JXH55: 0 | JXI55: 0 | JXJ55: 0 | JXK55: 0 | JXL55: 0 | JXM55: 0 | JXN55: 0 | JXO55: 0 | JXP55: 0 | JXQ55: 0 | JXR55: 0 | JXS55: 0 | JXT55: 0 | JXU55: 0 | JXV55: 0 | JXW55: 0 | JXX55: 0 | JXY55: 0 | JXZ55: 0 | JYA55: 0 | JYB55: 0 | JYC55: 0 | JYD55: 0 | JYE55: 0 | JYF55: 0 | JYG55: 0 | JYH55: 0 | JYI55: 0 | JYJ55: 0 | JYK55: 0 | JYL55: 0 | JYM55: 0 | JYN55: 0 | JYO55: 0 | JYP55: 0 | JYQ55: =JYQ54-JYQ53 -> 0 | JYR55: 0 | JYS55: 0 | JYT55: 0 | JYU55: 0 | JYV55: 0 | JYW55: 0 | JYX55: 0 | JYY55: 0 | JYZ55: 0 | JZA55: 0 | JZB55: 0 | JZC55: 0 | JZD55: 0 | JZE55: 0 | JZF55: 0 | JZG55: 0 | JZH55: 0 | JZI55: 0 | JZJ55: 0 | JZK55: 0 | JZL55: 0 | JZM55: 0 | JZN55: 0 | JZO55: 0 | JZP55: 0 | JZQ55: 0 | JZR55: 0 | JZS55: 0 | JZT55: 0 | JZU55: 0 | JZV55: 0 | JZW55: 0 | JZX55: 0 | JZY55: 0 | JZZ55: 0 | KAA55: 0 | KAB55: 0 | KAC55: 0 | KAD55: 0 | KAE55: 0 | KAF55: 0 | KAG55: 0 | KAH55: 0 | KAI55: 0 | KAJ55: 0 | KAK55: 0 | KAL55: 0 | KAM55: 0 | KAN55: 0 | KAO55: 0 | KAP55: 0 | KAQ55: 0 | KAR55: 0 | KAS55: 0 | KAT55: 0 | KAU55: 0 | KAV55: 0 | KAW55: 0 | KAX55: 0 | KAY55: 0 | KAZ55: 0 | KBA55: 0 | KBB55: 0 | KBC55: =KBC54-KBC53 -> 0 | KBD55: 0 | KBE55: 0 | KBF55: 0 | KBG55: 0 | KBH55: 0 | KBI55: 0 | KBJ55: 0 | KBK55: 0 | KBL55: 0 | KBM55: 0 | KBN55: 0 | KBO55: 0 | KBP55: 0 | KBQ55: 0 | KBR55: 0 | KBS55: 0 | KBT55: 0 | KBU55: 0 | KBV55: 0 | KBW55: 0 | KBX55: 0 | KBY55: 0 | KBZ55: 0 | KCA55: 0 | KCB55: 0 | KCC55: 0 | KCD55: 0 | KCE55: 0 | KCF55: 0 | KCG55: 0 | KCH55: 0 | KCI55: 0 | KCJ55: 0 | KCK55: 0 | KCL55: 0 | KCM55: 0 | KCN55: 0 | KCO55: 0 | KCP55: 0 | KCQ55: 0 | KCR55: 0 | KCS55: 0 | KCT55: 0 | KCU55: 0 | KCV55: 0 | KCW55: 0 | KCX55: 0 | KCY55: 0 | KCZ55: 0 | KDA55: 0 | KDB55: 0 | KDC55: 0 | KDD55: 0 | KDE55: 0 | KDF55: 0 | KDG55: 0 | KDH55: 0 | KDI55: 0 | KDJ55: 0 | KDK55: 0 | KDL55: 0 | KDM55: 0 | KDN55: 0 | KDO55: =KDO54-KDO53 -> 0 | KDP55: 0 | KDQ55: 0 | KDR55: 0 | KDS55: 0 | KDT55: 0 | KDU55: 0 | KDV55: 0 | KDW55: 0 | KDX55: 0 | KDY55: 0 | KDZ55: 0 | KEA55: 0 | KEB55: 0 | KEC55: 0 | KED55: 0 | KEE55: 0 | KEF55: 0 | KEG55: 0 | KEH55: 0 | KEI55: 0 | KEJ55: 0 | KEK55: 0 | KEL55: 0 | KEM55: 0 | KEN55: 0 | KEO55: 0 | KEP55: 0 | KEQ55: 0 | KER55: 0 | KES55: 0 | KET55: 0 | KEU55: 0 | KEV55: 0 | KEW55: 0 | KEX55: 0 | KEY55: 0 | KEZ55: 0 | KFA55: 0 | KFB55: 0 | KFC55: 0 | KFD55: 0 | KFE55: 0 | KFF55: 0 | KFG55: 0 | KFH55: 0 | KFI55: 0 | KFJ55: 0 | KFK55: 0 | KFL55: 0 | KFM55: 0 | KFN55: 0 | KFO55: 0 | KFP55: 0 | KFQ55: 0 | KFR55: 0 | KFS55: 0 | KFT55: 0 | KFU55: 0 | KFV55: 0 | KFW55: 0 | KFX55: 0 | KFY55: 0 | KFZ55: 0 | KGA55: =KGA54-KGA53 -> 0 | KGB55: 0 | KGC55: 0 | KGD55: 0 | KGE55: 0 | KGF55: 0 | KGG55: 0 | KGH55: 0 | KGI55: 0 | KGJ55: 0 | KGK55: 0 | KGL55: 0 | KGM55: 0 | KGN55: 0 | KGO55: 0 | KGP55: 0 | KGQ55: 0 | KGR55: 0 | KGS55: 0 | KGT55: 0 | KGU55: 0 | KGV55: 0 | KGW55: 0 | KGX55: 0 | KGY55: 0 | KGZ55: 0 | KHA55: 0 | KHB55: 0 | KHC55: 0 | KHD55: 0 | KHE55: 0 | KHF55: 0 | KHG55: 0 | KHH55: 0 | KHI55: 0 | KHJ55: 0 | KHK55: 0 | KHL55: 0 | KHM55: 0 | KHN55: 0 | KHO55: 0 | KHP55: 0 | KHQ55: 0 | KHR55: 0 | KHS55: 0 | KHT55: 0 | KHU55: 0 | KHV55: 0 | KHW55: 0 | KHX55: 0 | KHY55: 0 | KHZ55: 0 | KIA55: 0 | KIB55: 0 | KIC55: 0 | KID55: 0 | KIE55: 0 | KIF55: 0 | KIG55: 0 | KIH55: 0 | KII55: 0 | KIJ55: 0 | KIK55: 0 | KIL55: 0 | KIM55: =KIM54-KIM53 -> 0 | KIN55: 0 | KIO55: 0 | KIP55: 0 | KIQ55: 0 | KIR55: 0 | KIS55: 0 | KIT55: 0 | KIU55: 0 | KIV55: 0 | KIW55: 0 | KIX55: 0 | KIY55: 0 | KIZ55: 0 | KJA55: 0 | KJB55: 0 | KJC55: 0 | KJD55: 0 | KJE55: 0 | KJF55: 0 | KJG55: 0 | KJH55: 0 | KJI55: 0 | KJJ55: 0 | KJK55: 0 | KJL55: 0 | KJM55: 0 | KJN55: 0 | KJO55: 0 | KJP55: 0 | KJQ55: 0 | KJR55: 0 | KJS55: 0 | KJT55: 0 | KJU55: 0 | KJV55: 0 | KJW55: 0 | KJX55: 0 | KJY55: 0 | KJZ55: 0 | KKA55: 0 | KKB55: 0 | KKC55: 0 | KKD55: 0 | KKE55: 0 | KKF55: 0 | KKG55: 0 | KKH55: 0 | KKI55: 0 | KKJ55: 0 | KKK55: 0 | KKL55: 0 | KKM55: 0 | KKN55: 0 | KKO55: 0 | KKP55: 0 | KKQ55: 0 | KKR55: 0 | KKS55: 0 | KKT55: 0 | KKU55: 0 | KKV55: 0 | KKW55: 0 | KKX55: 0 | KKY55: =KKY54-KKY53 -> 0 | KKZ55: 0 | KLA55: 0 | KLB55: 0 | KLC55: 0 | KLD55: 0 | KLE55: 0 | KLF55: 0 | KLG55: 0 | KLH55: 0 | KLI55: 0 | KLJ55: 0 | KLK55: 0 | KLL55: 0 | KLM55: 0 | KLN55: 0 | KLO55: 0 | KLP55: 0 | KLQ55: 0 | KLR55: 0 | KLS55: 0 | KLT55: 0 | KLU55: 0 | KLV55: 0 | KLW55: 0 | KLX55: 0 | KLY55: 0 | KLZ55: 0 | KMA55: 0 | KMB55: 0 | KMC55: 0 | KMD55: 0 | KME55: 0 | KMF55: 0 | KMG55: 0 | KMH55: 0 | KMI55: 0 | KMJ55: 0 | KMK55: 0 | KML55: 0 | KMM55: 0 | KMN55: 0 | KMO55: 0 | KMP55: 0 | KMQ55: 0 | KMR55: 0 | KMS55: 0 | KMT55: 0 | KMU55: 0 | KMV55: 0 | KMW55: 0 | KMX55: 0 | KMY55: 0 | KMZ55: 0 | KNA55: 0 | KNB55: 0 | KNC55: 0 | KND55: 0 | KNE55: 0 | KNF55: 0 | KNG55: 0 | KNH55: 0 | KNI55: 0 | KNJ55: 0 | KNK55: =KNK54-KNK53 -> 0 | KNL55: 0 | KNM55: 0 | KNN55: 0 | KNO55: 0 | KNP55: 0 | KNQ55: 0 | KNR55: 0 | KNS55: 0 | KNT55: 0 | KNU55: 0 | KNV55: 0 | KNW55: 0 | KNX55: 0 | KNY55: 0 | KNZ55: 0 | KOA55: 0 | KOB55: 0 | KOC55: 0 | KOD55: 0 | KOE55: 0 | KOF55: 0 | KOG55: 0 | KOH55: 0 | KOI55: 0 | KOJ55: 0 | KOK55: 0 | KOL55: 0 | KOM55: 0 | KON55: 0 | KOO55: 0 | KOP55: 0 | KOQ55: 0 | KOR55: 0 | KOS55: 0 | KOT55: 0 | KOU55: 0 | KOV55: 0 | KOW55: 0 | KOX55: 0 | KOY55: 0 | KOZ55: 0 | KPA55: 0 | KPB55: 0 | KPC55: 0 | KPD55: 0 | KPE55: 0 | KPF55: 0 | KPG55: 0 | KPH55: 0 | KPI55: 0 | KPJ55: 0 | KPK55: 0 | KPL55: 0 | KPM55: 0 | KPN55: 0 | KPO55: 0 | KPP55: 0 | KPQ55: 0 | KPR55: 0 | KPS55: 0 | KPT55: 0 | KPU55: 0 | KPV55: 0 | KPW55: =KPW54-KPW53 -> 0 | KPX55: 0 | KPY55: 0 | KPZ55: 0 | KQA55: 0 | KQB55: 0 | KQC55: 0 | KQD55: 0 | KQE55: 0 | KQF55: 0 | KQG55: 0 | KQH55: 0 | KQI55: 0 | KQJ55: 0 | KQK55: 0 | KQL55: 0 | KQM55: 0 | KQN55: 0 | KQO55: 0 | KQP55: 0 | KQQ55: 0 | KQR55: 0 | KQS55: 0 | KQT55: 0 | KQU55: 0 | KQV55: 0 | KQW55: 0 | KQX55: 0 | KQY55: 0 | KQZ55: 0 | KRA55: 0 | KRB55: 0 | KRC55: 0 | KRD55: 0 | KRE55: 0 | KRF55: 0 | KRG55: 0 | KRH55: 0 | KRI55: 0 | KRJ55: 0 | KRK55: 0 | KRL55: 0 | KRM55: 0 | KRN55: 0 | KRO55: 0 | KRP55: 0 | KRQ55: 0 | KRR55: 0 | KRS55: 0 | KRT55: 0 | KRU55: 0 | KRV55: 0 | KRW55: 0 | KRX55: 0 | KRY55: 0 | KRZ55: 0 | KSA55: 0 | KSB55: 0 | KSC55: 0 | KSD55: 0 | KSE55: 0 | KSF55: 0 | KSG55: 0 | KSH55: 0 | KSI55: =KSI54-KSI53 -> 0 | KSJ55: 0 | KSK55: 0 | KSL55: 0 | KSM55: 0 | KSN55: 0 | KSO55: 0 | KSP55: 0 | KSQ55: 0 | KSR55: 0 | KSS55: 0 | KST55: 0 | KSU55: 0 | KSV55: 0 | KSW55: 0 | KSX55: 0 | KSY55: 0 | KSZ55: 0 | KTA55: 0 | KTB55: 0 | KTC55: 0 | KTD55: 0 | KTE55: 0 | KTF55: 0 | KTG55: 0 | KTH55: 0 | KTI55: 0 | KTJ55: 0 | KTK55: 0 | KTL55: 0 | KTM55: 0 | KTN55: 0 | KTO55: 0 | KTP55: 0 | KTQ55: 0 | KTR55: 0 | KTS55: 0 | KTT55: 0 | KTU55: 0 | KTV55: 0 | KTW55: 0 | KTX55: 0 | KTY55: 0 | KTZ55: 0 | KUA55: 0 | KUB55: 0 | KUC55: 0 | KUD55: 0 | KUE55: 0 | KUF55: 0 | KUG55: 0 | KUH55: 0 | KUI55: 0 | KUJ55: 0 | KUK55: 0 | KUL55: 0 | KUM55: 0 | KUN55: 0 | KUO55: 0 | KUP55: 0 | KUQ55: 0 | KUR55: 0 | KUS55: 0 | KUT55: 0 | KUU55: =KUU54-KUU53 -> 0 | KUV55: 0 | KUW55: 0 | KUX55: 0 | KUY55: 0 | KUZ55: 0 | KVA55: 0 | KVB55: 0 | KVC55: 0 | KVD55: 0 | KVE55: 0 | KVF55: 0 | KVG55: 0 | KVH55: 0 | KVI55: 0 | KVJ55: 0 | KVK55: 0 | KVL55: 0 | KVM55: 0 | KVN55: 0 | KVO55: 0 | KVP55: 0 | KVQ55: 0 | KVR55: 0 | KVS55: 0 | KVT55: 0 | KVU55: 0 | KVV55: 0 | KVW55: 0 | KVX55: 0 | KVY55: 0 | KVZ55: 0 | KWA55: 0 | KWB55: 0 | KWC55: 0 | KWD55: 0 | KWE55: 0 | KWF55: 0 | KWG55: 0 | KWH55: 0 | KWI55: 0 | KWJ55: 0 | KWK55: 0 | KWL55: 0 | KWM55: 0 | KWN55: 0 | KWO55: 0 | KWP55: 0 | KWQ55: 0 | KWR55: 0 | KWS55: 0 | KWT55: 0 | KWU55: 0 | KWV55: 0 | KWW55: 0 | KWX55: 0 | KWY55: 0 | KWZ55: 0 | KXA55: 0 | KXB55: 0 | KXC55: 0 | KXD55: 0 | KXE55: 0 | KXF55: 0 | KXG55: =KXG54-KXG53 -> 0 | KXH55: 0 | KXI55: 0 | KXJ55: 0 | KXK55: 0 | KXL55: 0 | KXM55: 0 | KXN55: 0 | KXO55: 0 | KXP55: 0 | KXQ55: 0 | KXR55: 0 | KXS55: 0 | KXT55: 0 | KXU55: 0 | KXV55: 0 | KXW55: 0 | KXX55: 0 | KXY55: 0 | KXZ55: 0 | KYA55: 0 | KYB55: 0 | KYC55: 0 | KYD55: 0 | KYE55: 0 | KYF55: 0 | KYG55: 0 | KYH55: 0 | KYI55: 0 | KYJ55: 0 | KYK55: 0 | KYL55: 0 | KYM55: 0 | KYN55: 0 | KYO55: 0 | KYP55: 0 | KYQ55: 0 | KYR55: 0 | KYS55: 0 | KYT55: 0 | KYU55: 0 | KYV55: 0 | KYW55: 0 | KYX55: 0 | KYY55: 0 | KYZ55: 0 | KZA55: 0 | KZB55: 0 | KZC55: 0 | KZD55: 0 | KZE55: 0 | KZF55: 0 | KZG55: 0 | KZH55: 0 | KZI55: 0 | KZJ55: 0 | KZK55: 0 | KZL55: 0 | KZM55: 0 | KZN55: 0 | KZO55: 0 | KZP55: 0 | KZQ55: 0 | KZR55: 0 | KZS55: =KZS54-KZS53 -> 0 | KZT55: 0 | KZU55: 0 | KZV55: 0 | KZW55: 0 | KZX55: 0 | KZY55: 0 | KZZ55: 0 | LAA55: 0 | LAB55: 0 | LAC55: 0 | LAD55: 0 | LAE55: 0 | LAF55: 0 | LAG55: 0 | LAH55: 0 | LAI55: 0 | LAJ55: 0 | LAK55: 0 | LAL55: 0 | LAM55: 0 | LAN55: 0 | LAO55: 0 | LAP55: 0 | LAQ55: 0 | LAR55: 0 | LAS55: 0 | LAT55: 0 | LAU55: 0 | LAV55: 0 | LAW55: 0 | LAX55: 0 | LAY55: 0 | LAZ55: 0 | LBA55: 0 | LBB55: 0 | LBC55: 0 | LBD55: 0 | LBE55: 0 | LBF55: 0 | LBG55: 0 | LBH55: 0 | LBI55: 0 | LBJ55: 0 | LBK55: 0 | LBL55: 0 | LBM55: 0 | LBN55: 0 | LBO55: 0 | LBP55: 0 | LBQ55: 0 | LBR55: 0 | LBS55: 0 | LBT55: 0 | LBU55: 0 | LBV55: 0 | LBW55: 0 | LBX55: 0 | LBY55: 0 | LBZ55: 0 | LCA55: 0 | LCB55: 0 | LCC55: 0 | LCD55: 0 | LCE55: =LCE54-LCE53 -> 0 | LCF55: 0 | LCG55: 0 | LCH55: 0 | LCI55: 0 | LCJ55: 0 | LCK55: 0 | LCL55: 0 | LCM55: 0 | LCN55: 0 | LCO55: 0 | LCP55: 0 | LCQ55: 0 | LCR55: 0 | LCS55: 0 | LCT55: 0 | LCU55: 0 | LCV55: 0 | LCW55: 0 | LCX55: 0 | LCY55: 0 | LCZ55: 0 | LDA55: 0 | LDB55: 0 | LDC55: 0 | LDD55: 0 | LDE55: 0 | LDF55: 0 | LDG55: 0 | LDH55: 0 | LDI55: 0 | LDJ55: 0 | LDK55: 0 | LDL55: 0 | LDM55: 0 | LDN55: 0 | LDO55: 0 | LDP55: 0 | LDQ55: 0 | LDR55: 0 | LDS55: 0 | LDT55: 0 | LDU55: 0 | LDV55: 0 | LDW55: 0 | LDX55: 0 | LDY55: 0 | LDZ55: 0 | LEA55: 0 | LEB55: 0 | LEC55: 0 | LED55: 0 | LEE55: 0 | LEF55: 0 | LEG55: 0 | LEH55: 0 | LEI55: 0 | LEJ55: 0 | LEK55: 0 | LEL55: 0 | LEM55: 0 | LEN55: 0 | LEO55: 0 | LEP55: 0 | LEQ55: =LEQ54-LEQ53 -> 0 | LER55: 0 | LES55: 0 | LET55: 0 | LEU55: 0 | LEV55: 0 | LEW55: 0 | LEX55: 0 | LEY55: 0 | LEZ55: 0 | LFA55: 0 | LFB55: 0 | LFC55: 0 | LFD55: 0 | LFE55: 0 | LFF55: 0 | LFG55: 0 | LFH55: 0 | LFI55: 0 | LFJ55: 0 | LFK55: 0 | LFL55: 0 | LFM55: 0 | LFN55: 0 | LFO55: 0 | LFP55: 0 | LFQ55: 0 | LFR55: 0 | LFS55: 0 | LFT55: 0 | LFU55: 0 | LFV55: 0 | LFW55: 0 | LFX55: 0 | LFY55: 0 | LFZ55: 0 | LGA55: 0 | LGB55: 0 | LGC55: 0 | LGD55: 0 | LGE55: 0 | LGF55: 0 | LGG55: 0 | LGH55: 0 | LGI55: 0 | LGJ55: 0 | LGK55: 0 | LGL55: 0 | LGM55: 0 | LGN55: 0 | LGO55: 0 | LGP55: 0 | LGQ55: 0 | LGR55: 0 | LGS55: 0 | LGT55: 0 | LGU55: 0 | LGV55: 0 | LGW55: 0 | LGX55: 0 | LGY55: 0 | LGZ55: 0 | LHA55: 0 | LHB55: 0 | LHC55: =LHC54-LHC53 -> 0 | LHD55: 0 | LHE55: 0 | LHF55: 0 | LHG55: 0 | LHH55: 0 | LHI55: 0 | LHJ55: 0 | LHK55: 0 | LHL55: 0 | LHM55: 0 | LHN55: 0 | LHO55: 0 | LHP55: 0 | LHQ55: 0 | LHR55: 0 | LHS55: 0 | LHT55: 0 | LHU55: 0 | LHV55: 0 | LHW55: 0 | LHX55: 0 | LHY55: 0 | LHZ55: 0 | LIA55: 0 | LIB55: 0 | LIC55: 0 | LID55: 0 | LIE55: 0 | LIF55: 0 | LIG55: 0 | LIH55: 0 | LII55: 0 | LIJ55: 0 | LIK55: 0 | LIL55: 0 | LIM55: 0 | LIN55: 0 | LIO55: 0 | LIP55: 0 | LIQ55: 0 | LIR55: 0 | LIS55: 0 | LIT55: 0 | LIU55: 0 | LIV55: 0 | LIW55: 0 | LIX55: 0 | LIY55: 0 | LIZ55: 0 | LJA55: 0 | LJB55: 0 | LJC55: 0 | LJD55: 0 | LJE55: 0 | LJF55: 0 | LJG55: 0 | LJH55: 0 | LJI55: 0 | LJJ55: 0 | LJK55: 0 | LJL55: 0 | LJM55: 0 | LJN55: 0 | LJO55: =LJO54-LJO53 -> 0 | LJP55: 0 | LJQ55: 0 | LJR55: 0 | LJS55: 0 | LJT55: 0 | LJU55: 0 | LJV55: 0 | LJW55: 0 | LJX55: 0 | LJY55: 0 | LJZ55: 0 | LKA55: 0 | LKB55: 0 | LKC55: 0 | LKD55: 0 | LKE55: 0 | LKF55: 0 | LKG55: 0 | LKH55: 0 | LKI55: 0 | LKJ55: 0 | LKK55: 0 | LKL55: 0 | LKM55: 0 | LKN55: 0 | LKO55: 0 | LKP55: 0 | LKQ55: 0 | LKR55: 0 | LKS55: 0 | LKT55: 0 | LKU55: 0 | LKV55: 0 | LKW55: 0 | LKX55: 0 | LKY55: 0 | LKZ55: 0 | LLA55: 0 | LLB55: 0 | LLC55: 0 | LLD55: 0 | LLE55: 0 | LLF55: 0 | LLG55: 0 | LLH55: 0 | LLI55: 0 | LLJ55: 0 | LLK55: 0 | LLL55: 0 | LLM55: 0 | LLN55: 0 | LLO55: 0 | LLP55: 0 | LLQ55: 0 | LLR55: 0 | LLS55: 0 | LLT55: 0 | LLU55: 0 | LLV55: 0 | LLW55: 0 | LLX55: 0 | LLY55: 0 | LLZ55: 0 | LMA55: =LMA54-LMA53 -> 0 | LMB55: 0 | LMC55: 0 | LMD55: 0 | LME55: 0 | LMF55: 0 | LMG55: 0 | LMH55: 0 | LMI55: 0 | LMJ55: 0 | LMK55: 0 | LML55: 0 | LMM55: 0 | LMN55: 0 | LMO55: 0 | LMP55: 0 | LMQ55: 0 | LMR55: 0 | LMS55: 0 | LMT55: 0 | LMU55: 0 | LMV55: 0 | LMW55: 0 | LMX55: 0 | LMY55: 0 | LMZ55: 0 | LNA55: 0 | LNB55: 0 | LNC55: 0 | LND55: 0 | LNE55: 0 | LNF55: 0 | LNG55: 0 | LNH55: 0 | LNI55: 0 | LNJ55: 0 | LNK55: 0 | LNL55: 0 | LNM55: 0 | LNN55: 0 | LNO55: 0 | LNP55: 0 | LNQ55: 0 | LNR55: 0 | LNS55: 0 | LNT55: 0 | LNU55: 0 | LNV55: 0 | LNW55: 0 | LNX55: 0 | LNY55: 0 | LNZ55: 0 | LOA55: 0 | LOB55: 0 | LOC55: 0 | LOD55: 0 | LOE55: 0 | LOF55: 0 | LOG55: 0 | LOH55: 0 | LOI55: 0 | LOJ55: 0 | LOK55: 0 | LOL55: 0 | LOM55: =LOM54-LOM53 -> 0 | LON55: 0 | LOO55: 0 | LOP55: 0 | LOQ55: 0 | LOR55: 0 | LOS55: 0 | LOT55: 0 | LOU55: 0 | LOV55: 0 | LOW55: 0 | LOX55: 0 | LOY55: 0 | LOZ55: 0 | LPA55: 0 | LPB55: 0 | LPC55: 0 | LPD55: 0 | LPE55: 0 | LPF55: 0 | LPG55: 0 | LPH55: 0 | LPI55: 0 | LPJ55: 0 | LPK55: 0 | LPL55: 0 | LPM55: 0 | LPN55: 0 | LPO55: 0 | LPP55: 0 | LPQ55: 0 | LPR55: 0 | LPS55: 0 | LPT55: 0 | LPU55: 0 | LPV55: 0 | LPW55: 0 | LPX55: 0 | LPY55: 0 | LPZ55: 0 | LQA55: 0 | LQB55: 0 | LQC55: 0 | LQD55: 0 | LQE55: 0 | LQF55: 0 | LQG55: 0 | LQH55: 0 | LQI55: 0 | LQJ55: 0 | LQK55: 0 | LQL55: 0 | LQM55: 0 | LQN55: 0 | LQO55: 0 | LQP55: 0 | LQQ55: 0 | LQR55: 0 | LQS55: 0 | LQT55: 0 | LQU55: 0 | LQV55: 0 | LQW55: 0 | LQX55: 0 | LQY55: =LQY54-LQY53 -> 0 | LQZ55: 0 | LRA55: 0 | LRB55: 0 | LRC55: 0 | LRD55: 0 | LRE55: 0 | LRF55: 0 | LRG55: 0 | LRH55: 0 | LRI55: 0 | LRJ55: 0 | LRK55: 0 | LRL55: 0 | LRM55: 0 | LRN55: 0 | LRO55: 0 | LRP55: 0 | LRQ55: 0 | LRR55: 0 | LRS55: 0 | LRT55: 0 | LRU55: 0 | LRV55: 0 | LRW55: 0 | LRX55: 0 | LRY55: 0 | LRZ55: 0 | LSA55: 0 | LSB55: 0 | LSC55: 0 | LSD55: 0 | LSE55: 0 | LSF55: 0 | LSG55: 0 | LSH55: 0 | LSI55: 0 | LSJ55: 0 | LSK55: 0 | LSL55: 0 | LSM55: 0 | LSN55: 0 | LSO55: 0 | LSP55: 0 | LSQ55: 0 | LSR55: 0 | LSS55: 0 | LST55: 0 | LSU55: 0 | LSV55: 0 | LSW55: 0 | LSX55: 0 | LSY55: 0 | LSZ55: 0 | LTA55: 0 | LTB55: 0 | LTC55: 0 | LTD55: 0 | LTE55: 0 | LTF55: 0 | LTG55: 0 | LTH55: 0 | LTI55: 0 | LTJ55: 0 | LTK55: =LTK54-LTK53 -> 0 | LTL55: 0 | LTM55: 0 | LTN55: 0 | LTO55: 0 | LTP55: 0 | LTQ55: 0 | LTR55: 0 | LTS55: 0 | LTT55: 0 | LTU55: 0 | LTV55: 0 | LTW55: 0 | LTX55: 0 | LTY55: 0 | LTZ55: 0 | LUA55: 0 | LUB55: 0 | LUC55: 0 | LUD55: 0 | LUE55: 0 | LUF55: 0 | LUG55: 0 | LUH55: 0 | LUI55: 0 | LUJ55: 0 | LUK55: 0 | LUL55: 0 | LUM55: 0 | LUN55: 0 | LUO55: 0 | LUP55: 0 | LUQ55: 0 | LUR55: 0 | LUS55: 0 | LUT55: 0 | LUU55: 0 | LUV55: 0 | LUW55: 0 | LUX55: 0 | LUY55: 0 | LUZ55: 0 | LVA55: 0 | LVB55: 0 | LVC55: 0 | LVD55: 0 | LVE55: 0 | LVF55: 0 | LVG55: 0 | LVH55: 0 | LVI55: 0 | LVJ55: 0 | LVK55: 0 | LVL55: 0 | LVM55: 0 | LVN55: 0 | LVO55: 0 | LVP55: 0 | LVQ55: 0 | LVR55: 0 | LVS55: 0 | LVT55: 0 | LVU55: 0 | LVV55: 0 | LVW55: =LVW54-LVW53 -> 0 | LVX55: 0 | LVY55: 0 | LVZ55: 0 | LWA55: 0 | LWB55: 0 | LWC55: 0 | LWD55: 0 | LWE55: 0 | LWF55: 0 | LWG55: 0 | LWH55: 0 | LWI55: 0 | LWJ55: 0 | LWK55: 0 | LWL55: 0 | LWM55: 0 | LWN55: 0 | LWO55: 0 | LWP55: 0 | LWQ55: 0 | LWR55: 0 | LWS55: 0 | LWT55: 0 | LWU55: 0 | LWV55: 0 | LWW55: 0 | LWX55: 0 | LWY55: 0 | LWZ55: 0 | LXA55: 0 | LXB55: 0 | LXC55: 0 | LXD55: 0 | LXE55: 0 | LXF55: 0 | LXG55: 0 | LXH55: 0 | LXI55: 0 | LXJ55: 0 | LXK55: 0 | LXL55: 0 | LXM55: 0 | LXN55: 0 | LXO55: 0 | LXP55: 0 | LXQ55: 0 | LXR55: 0 | LXS55: 0 | LXT55: 0 | LXU55: 0 | LXV55: 0 | LXW55: 0 | LXX55: 0 | LXY55: 0 | LXZ55: 0 | LYA55: 0 | LYB55: 0 | LYC55: 0 | LYD55: 0 | LYE55: 0 | LYF55: 0 | LYG55: 0 | LYH55: 0 | LYI55: =LYI54-LYI53 -> 0 | LYJ55: 0 | LYK55: 0 | LYL55: 0 | LYM55: 0 | LYN55: 0 | LYO55: 0 | LYP55: 0 | LYQ55: 0 | LYR55: 0 | LYS55: 0 | LYT55: 0 | LYU55: 0 | LYV55: 0 | LYW55: 0 | LYX55: 0 | LYY55: 0 | LYZ55: 0 | LZA55: 0 | LZB55: 0 | LZC55: 0 | LZD55: 0 | LZE55: 0 | LZF55: 0 | LZG55: 0 | LZH55: 0 | LZI55: 0 | LZJ55: 0 | LZK55: 0 | LZL55: 0 | LZM55: 0 | LZN55: 0 | LZO55: 0 | LZP55: 0 | LZQ55: 0 | LZR55: 0 | LZS55: 0 | LZT55: 0 | LZU55: 0 | LZV55: 0 | LZW55: 0 | LZX55: 0 | LZY55: 0 | LZZ55: 0 | MAA55: 0 | MAB55: 0 | MAC55: 0 | MAD55: 0 | MAE55: 0 | MAF55: 0 | MAG55: 0 | MAH55: 0 | MAI55: 0 | MAJ55: 0 | MAK55: 0 | MAL55: 0 | MAM55: 0 | MAN55: 0 | MAO55: 0 | MAP55: 0 | MAQ55: 0 | MAR55: 0 | MAS55: 0 | MAT55: 0 | MAU55: =MAU54-MAU53 -> 0 | MAV55: 0 | MAW55: 0 | MAX55: 0 | MAY55: 0 | MAZ55: 0 | MBA55: 0 | MBB55: 0 | MBC55: 0 | MBD55: 0 | MBE55: 0 | MBF55: 0 | MBG55: 0 | MBH55: 0 | MBI55: 0 | MBJ55: 0 | MBK55: 0 | MBL55: 0 | MBM55: 0 | MBN55: 0 | MBO55: 0 | MBP55: 0 | MBQ55: 0 | MBR55: 0 | MBS55: 0 | MBT55: 0 | MBU55: 0 | MBV55: 0 | MBW55: 0 | MBX55: 0 | MBY55: 0 | MBZ55: 0 | MCA55: 0 | MCB55: 0 | MCC55: 0 | MCD55: 0 | MCE55: 0 | MCF55: 0 | MCG55: 0 | MCH55: 0 | MCI55: 0 | MCJ55: 0 | MCK55: 0 | MCL55: 0 | MCM55: 0 | MCN55: 0 | MCO55: 0 | MCP55: 0 | MCQ55: 0 | MCR55: 0 | MCS55: 0 | MCT55: 0 | MCU55: 0 | MCV55: 0 | MCW55: 0 | MCX55: 0 | MCY55: 0 | MCZ55: 0 | MDA55: 0 | MDB55: 0 | MDC55: 0 | MDD55: 0 | MDE55: 0 | MDF55: 0 | MDG55: =MDG54-MDG53 -> 0 | MDH55: 0 | MDI55: 0 | MDJ55: 0 | MDK55: 0 | MDL55: 0 | MDM55: 0 | MDN55: 0 | MDO55: 0 | MDP55: 0 | MDQ55: 0 | MDR55: 0 | MDS55: 0 | MDT55: 0 | MDU55: 0 | MDV55: 0 | MDW55: 0 | MDX55: 0 | MDY55: 0 | MDZ55: 0 | MEA55: 0 | MEB55: 0 | MEC55: 0 | MED55: 0 | MEE55: 0 | MEF55: 0 | MEG55: 0 | MEH55: 0 | MEI55: 0 | MEJ55: 0 | MEK55: 0 | MEL55: 0 | MEM55: 0 | MEN55: 0 | MEO55: 0 | MEP55: 0 | MEQ55: 0 | MER55: 0 | MES55: 0 | MET55: 0 | MEU55: 0 | MEV55: 0 | MEW55: 0 | MEX55: 0 | MEY55: 0 | MEZ55: 0 | MFA55: 0 | MFB55: 0 | MFC55: 0 | MFD55: 0 | MFE55: 0 | MFF55: 0 | MFG55: 0 | MFH55: 0 | MFI55: 0 | MFJ55: 0 | MFK55: 0 | MFL55: 0 | MFM55: 0 | MFN55: 0 | MFO55: 0 | MFP55: 0 | MFQ55: 0 | MFR55: 0 | MFS55: =MFS54-MFS53 -> 0 | MFT55: 0 | MFU55: 0 | MFV55: 0 | MFW55: 0 | MFX55: 0 | MFY55: 0 | MFZ55: 0 | MGA55: 0 | MGB55: 0 | MGC55: 0 | MGD55: 0 | MGE55: 0 | MGF55: 0 | MGG55: 0 | MGH55: 0 | MGI55: 0 | MGJ55: 0 | MGK55: 0 | MGL55: 0 | MGM55: 0 | MGN55: 0 | MGO55: 0 | MGP55: 0 | MGQ55: 0 | MGR55: 0 | MGS55: 0 | MGT55: 0 | MGU55: 0 | MGV55: 0 | MGW55: 0 | MGX55: 0 | MGY55: 0 | MGZ55: 0 | MHA55: 0 | MHB55: 0 | MHC55: 0 | MHD55: 0 | MHE55: 0 | MHF55: 0 | MHG55: 0 | MHH55: 0 | MHI55: 0 | MHJ55: 0 | MHK55: 0 | MHL55: 0 | MHM55: 0 | MHN55: 0 | MHO55: 0 | MHP55: 0 | MHQ55: 0 | MHR55: 0 | MHS55: 0 | MHT55: 0 | MHU55: 0 | MHV55: 0 | MHW55: 0 | MHX55: 0 | MHY55: 0 | MHZ55: 0 | MIA55: 0 | MIB55: 0 | MIC55: 0 | MID55: 0 | MIE55: =MIE54-MIE53 -> 0 | MIF55: 0 | MIG55: 0 | MIH55: 0 | MII55: 0 | MIJ55: 0 | MIK55: 0 | MIL55: 0 | MIM55: 0 | MIN55: 0 | MIO55: 0 | MIP55: 0 | MIQ55: 0 | MIR55: 0 | MIS55: 0 | MIT55: 0 | MIU55: 0 | MIV55: 0 | MIW55: 0 | MIX55: 0 | MIY55: 0 | MIZ55: 0 | MJA55: 0 | MJB55: 0 | MJC55: 0 | MJD55: 0 | MJE55: 0 | MJF55: 0 | MJG55: 0 | MJH55: 0 | MJI55: 0 | MJJ55: 0 | MJK55: 0 | MJL55: 0 | MJM55: 0 | MJN55: 0 | MJO55: 0 | MJP55: 0 | MJQ55: 0 | MJR55: 0 | MJS55: 0 | MJT55: 0 | MJU55: 0 | MJV55: 0 | MJW55: 0 | MJX55: 0 | MJY55: 0 | MJZ55: 0 | MKA55: 0 | MKB55: 0 | MKC55: 0 | MKD55: 0 | MKE55: 0 | MKF55: 0 | MKG55: 0 | MKH55: 0 | MKI55: 0 | MKJ55: 0 | MKK55: 0 | MKL55: 0 | MKM55: 0 | MKN55: 0 | MKO55: 0 | MKP55: 0 | MKQ55: =MKQ54-MKQ53 -> 0 | MKR55: 0 | MKS55: 0 | MKT55: 0 | MKU55: 0 | MKV55: 0 | MKW55: 0 | MKX55: 0 | MKY55: 0 | MKZ55: 0 | MLA55: 0 | MLB55: 0 | MLC55: 0 | MLD55: 0 | MLE55: 0 | MLF55: 0 | MLG55: 0 | MLH55: 0 | MLI55: 0 | MLJ55: 0 | MLK55: 0 | MLL55: 0 | MLM55: 0 | MLN55: 0 | MLO55: 0 | MLP55: 0 | MLQ55: 0 | MLR55: 0 | MLS55: 0 | MLT55: 0 | MLU55: 0 | MLV55: 0 | MLW55: 0 | MLX55: 0 | MLY55: 0 | MLZ55: 0 | MMA55: 0 | MMB55: 0 | MMC55: 0 | MMD55: 0 | MME55: 0 | MMF55: 0 | MMG55: 0 | MMH55: 0 | MMI55: 0 | MMJ55: 0 | MMK55: 0 | MML55: 0 | MMM55: 0 | MMN55: 0 | MMO55: 0 | MMP55: 0 | MMQ55: 0 | MMR55: 0 | MMS55: 0 | MMT55: 0 | MMU55: 0 | MMV55: 0 | MMW55: 0 | MMX55: 0 | MMY55: 0 | MMZ55: 0 | MNA55: 0 | MNB55: 0 | MNC55: =MNC54-MNC53 -> 0 | MND55: 0 | MNE55: 0 | MNF55: 0 | MNG55: 0 | MNH55: 0 | MNI55: 0 | MNJ55: 0 | MNK55: 0 | MNL55: 0 | MNM55: 0 | MNN55: 0 | MNO55: 0 | MNP55: 0 | MNQ55: 0 | MNR55: 0 | MNS55: 0 | MNT55: 0 | MNU55: 0 | MNV55: 0 | MNW55: 0 | MNX55: 0 | MNY55: 0 | MNZ55: 0 | MOA55: 0 | MOB55: 0 | MOC55: 0 | MOD55: 0 | MOE55: 0 | MOF55: 0 | MOG55: 0 | MOH55: 0 | MOI55: 0 | MOJ55: 0 | MOK55: 0 | MOL55: 0 | MOM55: 0 | MON55: 0 | MOO55: 0 | MOP55: 0 | MOQ55: 0 | MOR55: 0 | MOS55: 0 | MOT55: 0 | MOU55: 0 | MOV55: 0 | MOW55: 0 | MOX55: 0 | MOY55: 0 | MOZ55: 0 | MPA55: 0 | MPB55: 0 | MPC55: 0 | MPD55: 0 | MPE55: 0 | MPF55: 0 | MPG55: 0 | MPH55: 0 | MPI55: 0 | MPJ55: 0 | MPK55: 0 | MPL55: 0 | MPM55: 0 | MPN55: 0 | MPO55: =MPO54-MPO53 -> 0 | MPP55: 0 | MPQ55: 0 | MPR55: 0 | MPS55: 0 | MPT55: 0 | MPU55: 0 | MPV55: 0 | MPW55: 0 | MPX55: 0 | MPY55: 0 | MPZ55: 0 | MQA55: 0 | MQB55: 0 | MQC55: 0 | MQD55: 0 | MQE55: 0 | MQF55: 0 | MQG55: 0 | MQH55: 0 | MQI55: 0 | MQJ55: 0 | MQK55: 0 | MQL55: 0 | MQM55: 0 | MQN55: 0 | MQO55: 0 | MQP55: 0 | MQQ55: 0 | MQR55: 0 | MQS55: 0 | MQT55: 0 | MQU55: 0 | MQV55: 0 | MQW55: 0 | MQX55: 0 | MQY55: 0 | MQZ55: 0 | MRA55: 0 | MRB55: 0 | MRC55: 0 | MRD55: 0 | MRE55: 0 | MRF55: 0 | MRG55: 0 | MRH55: 0 | MRI55: 0 | MRJ55: 0 | MRK55: 0 | MRL55: 0 | MRM55: 0 | MRN55: 0 | MRO55: 0 | MRP55: 0 | MRQ55: 0 | MRR55: 0 | MRS55: 0 | MRT55: 0 | MRU55: 0 | MRV55: 0 | MRW55: 0 | MRX55: 0 | MRY55: 0 | MRZ55: 0 | MSA55: =MSA54-MSA53 -> 0 | MSB55: 0 | MSC55: 0 | MSD55: 0 | MSE55: 0 | MSF55: 0 | MSG55: 0 | MSH55: 0 | MSI55: 0 | MSJ55: 0 | MSK55: 0 | MSL55: 0 | MSM55: 0 | MSN55: 0 | MSO55: 0 | MSP55: 0 | MSQ55: 0 | MSR55: 0 | MSS55: 0 | MST55: 0 | MSU55: 0 | MSV55: 0 | MSW55: 0 | MSX55: 0 | MSY55: 0 | MSZ55: 0 | MTA55: 0 | MTB55: 0 | MTC55: 0 | MTD55: 0 | MTE55: 0 | MTF55: 0 | MTG55: 0 | MTH55: 0 | MTI55: 0 | MTJ55: 0 | MTK55: 0 | MTL55: 0 | MTM55: 0 | MTN55: 0 | MTO55: 0 | MTP55: 0 | MTQ55: 0 | MTR55: 0 | MTS55: 0 | MTT55: 0 | MTU55: 0 | MTV55: 0 | MTW55: 0 | MTX55: 0 | MTY55: 0 | MTZ55: 0 | MUA55: 0 | MUB55: 0 | MUC55: 0 | MUD55: 0 | MUE55: 0 | MUF55: 0 | MUG55: 0 | MUH55: 0 | MUI55: 0 | MUJ55: 0 | MUK55: 0 | MUL55: 0 | MUM55: =MUM54-MUM53 -> 0 | MUN55: 0 | MUO55: 0 | MUP55: 0 | MUQ55: 0 | MUR55: 0 | MUS55: 0 | MUT55: 0 | MUU55: 0 | MUV55: 0 | MUW55: 0 | MUX55: 0 | MUY55: 0 | MUZ55: 0 | MVA55: 0 | MVB55: 0 | MVC55: 0 | MVD55: 0 | MVE55: 0 | MVF55: 0 | MVG55: 0 | MVH55: 0 | MVI55: 0 | MVJ55: 0 | MVK55: 0 | MVL55: 0 | MVM55: 0 | MVN55: 0 | MVO55: 0 | MVP55: 0 | MVQ55: 0 | MVR55: 0 | MVS55: 0 | MVT55: 0 | MVU55: 0 | MVV55: 0 | MVW55: 0 | MVX55: 0 | MVY55: 0 | MVZ55: 0 | MWA55: 0 | MWB55: 0 | MWC55: 0 | MWD55: 0 | MWE55: 0 | MWF55: 0 | MWG55: 0 | MWH55: 0 | MWI55: 0 | MWJ55: 0 | MWK55: 0 | MWL55: 0 | MWM55: 0 | MWN55: 0 | MWO55: 0 | MWP55: 0 | MWQ55: 0 | MWR55: 0 | MWS55: 0 | MWT55: 0 | MWU55: 0 | MWV55: 0 | MWW55: 0 | MWX55: 0 | MWY55: =MWY54-MWY53 -> 0 | MWZ55: 0 | MXA55: 0 | MXB55: 0 | MXC55: 0 | MXD55: 0 | MXE55: 0 | MXF55: 0 | MXG55: 0 | MXH55: 0 | MXI55: 0 | MXJ55: 0 | MXK55: 0 | MXL55: 0 | MXM55: 0 | MXN55: 0 | MXO55: 0 | MXP55: 0 | MXQ55: 0 | MXR55: 0 | MXS55: 0 | MXT55: 0 | MXU55: 0 | MXV55: 0 | MXW55: 0 | MXX55: 0 | MXY55: 0 | MXZ55: 0 | MYA55: 0 | MYB55: 0 | MYC55: 0 | MYD55: 0 | MYE55: 0 | MYF55: 0 | MYG55: 0 | MYH55: 0 | MYI55: 0 | MYJ55: 0 | MYK55: 0 | MYL55: 0 | MYM55: 0 | MYN55: 0 | MYO55: 0 | MYP55: 0 | MYQ55: 0 | MYR55: 0 | MYS55: 0 | MYT55: 0 | MYU55: 0 | MYV55: 0 | MYW55: 0 | MYX55: 0 | MYY55: 0 | MYZ55: 0 | MZA55: 0 | MZB55: 0 | MZC55: 0 | MZD55: 0 | MZE55: 0 | MZF55: 0 | MZG55: 0 | MZH55: 0 | MZI55: 0 | MZJ55: 0 | MZK55: =MZK54-MZK53 -> 0 | MZL55: 0 | MZM55: 0 | MZN55: 0 | MZO55: 0 | MZP55: 0 | MZQ55: 0 | MZR55: 0 | MZS55: 0 | MZT55: 0 | MZU55: 0 | MZV55: 0 | MZW55: 0 | MZX55: 0 | MZY55: 0 | MZZ55: 0 | NAA55: 0 | NAB55: 0 | NAC55: 0 | NAD55: 0 | NAE55: 0 | NAF55: 0 | NAG55: 0 | NAH55: 0 | NAI55: 0 | NAJ55: 0 | NAK55: 0 | NAL55: 0 | NAM55: 0 | NAN55: 0 | NAO55: 0 | NAP55: 0 | NAQ55: 0 | NAR55: 0 | NAS55: 0 | NAT55: 0 | NAU55: 0 | NAV55: 0 | NAW55: 0 | NAX55: 0 | NAY55: 0 | NAZ55: 0 | NBA55: 0 | NBB55: 0 | NBC55: 0 | NBD55: 0 | NBE55: 0 | NBF55: 0 | NBG55: 0 | NBH55: 0 | NBI55: 0 | NBJ55: 0 | NBK55: 0 | NBL55: 0 | NBM55: 0 | NBN55: 0 | NBO55: 0 | NBP55: 0 | NBQ55: 0 | NBR55: 0 | NBS55: 0 | NBT55: 0 | NBU55: 0 | NBV55: 0 | NBW55: =NBW54-NBW53 -> 0 | NBX55: 0 | NBY55: 0 | NBZ55: 0 | NCA55: 0 | NCB55: 0 | NCC55: 0 | NCD55: 0 | NCE55: 0 | NCF55: 0 | NCG55: 0 | NCH55: 0 | NCI55: 0 | NCJ55: 0 | NCK55: 0 | NCL55: 0 | NCM55: 0 | NCN55: 0 | NCO55: 0 | NCP55: 0 | NCQ55: 0 | NCR55: 0 | NCS55: 0 | NCT55: 0 | NCU55: 0 | NCV55: 0 | NCW55: 0 | NCX55: 0 | NCY55: 0 | NCZ55: 0 | NDA55: 0 | NDB55: 0 | NDC55: 0 | NDD55: 0 | NDE55: 0 | NDF55: 0 | NDG55: 0 | NDH55: 0 | NDI55: 0 | NDJ55: 0 | NDK55: 0 | NDL55: 0 | NDM55: 0 | NDN55: 0 | NDO55: 0 | NDP55: 0 | NDQ55: 0 | NDR55: 0 | NDS55: 0 | NDT55: 0 | NDU55: 0 | NDV55: 0 | NDW55: 0 | NDX55: 0 | NDY55: 0 | NDZ55: 0 | NEA55: 0 | NEB55: 0 | NEC55: 0 | NED55: 0 | NEE55: 0 | NEF55: 0 | NEG55: 0 | NEH55: 0 | NEI55: =NEI54-NEI53 -> 0 | NEJ55: 0 | NEK55: 0 | NEL55: 0 | NEM55: 0 | NEN55: 0 | NEO55: 0 | NEP55: 0 | NEQ55: 0 | NER55: 0 | NES55: 0 | NET55: 0 | NEU55: 0 | NEV55: 0 | NEW55: 0 | NEX55: 0 | NEY55: 0 | NEZ55: 0 | NFA55: 0 | NFB55: 0 | NFC55: 0 | NFD55: 0 | NFE55: 0 | NFF55: 0 | NFG55: 0 | NFH55: 0 | NFI55: 0 | NFJ55: 0 | NFK55: 0 | NFL55: 0 | NFM55: 0 | NFN55: 0 | NFO55: 0 | NFP55: 0 | NFQ55: 0 | NFR55: 0 | NFS55: 0 | NFT55: 0 | NFU55: 0 | NFV55: 0 | NFW55: 0 | NFX55: 0 | NFY55: 0 | NFZ55: 0 | NGA55: 0 | NGB55: 0 | NGC55: 0 | NGD55: 0 | NGE55: 0 | NGF55: 0 | NGG55: 0 | NGH55: 0 | NGI55: 0 | NGJ55: 0 | NGK55: 0 | NGL55: 0 | NGM55: 0 | NGN55: 0 | NGO55: 0 | NGP55: 0 | NGQ55: 0 | NGR55: 0 | NGS55: 0 | NGT55: 0 | NGU55: =NGU54-NGU53 -> 0 | NGV55: 0 | NGW55: 0 | NGX55: 0 | NGY55: 0 | NGZ55: 0 | NHA55: 0 | NHB55: 0 | NHC55: 0 | NHD55: 0 | NHE55: 0 | NHF55: 0 | NHG55: 0 | NHH55: 0 | NHI55: 0 | NHJ55: 0 | NHK55: 0 | NHL55: 0 | NHM55: 0 | NHN55: 0 | NHO55: 0 | NHP55: 0 | NHQ55: 0 | NHR55: 0 | NHS55: 0 | NHT55: 0 | NHU55: 0 | NHV55: 0 | NHW55: 0 | NHX55: 0 | NHY55: 0 | NHZ55: 0 | NIA55: 0 | NIB55: 0 | NIC55: 0 | NID55: 0 | NIE55: 0 | NIF55: 0 | NIG55: 0 | NIH55: 0 | NII55: 0 | NIJ55: 0 | NIK55: 0 | NIL55: 0 | NIM55: 0 | NIN55: 0 | NIO55: 0 | NIP55: 0 | NIQ55: 0 | NIR55: 0 | NIS55: 0 | NIT55: 0 | NIU55: 0 | NIV55: 0 | NIW55: 0 | NIX55: 0 | NIY55: 0 | NIZ55: 0 | NJA55: 0 | NJB55: 0 | NJC55: 0 | NJD55: 0 | NJE55: 0 | NJF55: 0 | NJG55: =NJG54-NJG53 -> 0 | NJH55: 0 | NJI55: 0 | NJJ55: 0 | NJK55: 0 | NJL55: 0 | NJM55: 0 | NJN55: 0 | NJO55: 0 | NJP55: 0 | NJQ55: 0 | NJR55: 0 | NJS55: 0 | NJT55: 0 | NJU55: 0 | NJV55: 0 | NJW55: 0 | NJX55: 0 | NJY55: 0 | NJZ55: 0 | NKA55: 0 | NKB55: 0 | NKC55: 0 | NKD55: 0 | NKE55: 0 | NKF55: 0 | NKG55: 0 | NKH55: 0 | NKI55: 0 | NKJ55: 0 | NKK55: 0 | NKL55: 0 | NKM55: 0 | NKN55: 0 | NKO55: 0 | NKP55: 0 | NKQ55: 0 | NKR55: 0 | NKS55: 0 | NKT55: 0 | NKU55: 0 | NKV55: 0 | NKW55: 0 | NKX55: 0 | NKY55: 0 | NKZ55: 0 | NLA55: 0 | NLB55: 0 | NLC55: 0 | NLD55: 0 | NLE55: 0 | NLF55: 0 | NLG55: 0 | NLH55: 0 | NLI55: 0 | NLJ55: 0 | NLK55: 0 | NLL55: 0 | NLM55: 0 | NLN55: 0 | NLO55: 0 | NLP55: 0 | NLQ55: 0 | NLR55: 0 | NLS55: =NLS54-NLS53 -> 0 | NLT55: 0 | NLU55: 0 | NLV55: 0 | NLW55: 0 | NLX55: 0 | NLY55: 0 | NLZ55: 0 | NMA55: 0 | NMB55: 0 | NMC55: 0 | NMD55: 0 | NME55: 0 | NMF55: 0 | NMG55: 0 | NMH55: 0 | NMI55: 0 | NMJ55: 0 | NMK55: 0 | NML55: 0 | NMM55: 0 | NMN55: 0 | NMO55: 0 | NMP55: 0 | NMQ55: 0 | NMR55: 0 | NMS55: 0 | NMT55: 0 | NMU55: 0 | NMV55: 0 | NMW55: 0 | NMX55: 0 | NMY55: 0 | NMZ55: 0 | NNA55: 0 | NNB55: 0 | NNC55: 0 | NND55: 0 | NNE55: 0 | NNF55: 0 | NNG55: 0 | NNH55: 0 | NNI55: 0 | NNJ55: 0 | NNK55: 0 | NNL55: 0 | NNM55: 0 | NNN55: 0 | NNO55: 0 | NNP55: 0 | NNQ55: 0 | NNR55: 0 | NNS55: 0 | NNT55: 0 | NNU55: 0 | NNV55: 0 | NNW55: 0 | NNX55: 0 | NNY55: 0 | NNZ55: 0 | NOA55: 0 | NOB55: 0 | NOC55: 0 | NOD55: 0 | NOE55: =NOE54-NOE53 -> 0 | NOF55: 0 | NOG55: 0 | NOH55: 0 | NOI55: 0 | NOJ55: 0 | NOK55: 0 | NOL55: 0 | NOM55: 0 | NON55: 0 | NOO55: 0 | NOP55: 0 | NOQ55: 0 | NOR55: 0 | NOS55: 0 | NOT55: 0 | NOU55: 0 | NOV55: 0 | NOW55: 0 | NOX55: 0 | NOY55: 0 | NOZ55: 0 | NPA55: 0 | NPB55: 0 | NPC55: 0 | NPD55: 0 | NPE55: 0 | NPF55: 0 | NPG55: 0 | NPH55: 0 | NPI55: 0 | NPJ55: 0 | NPK55: 0 | NPL55: 0 | NPM55: 0 | NPN55: 0 | NPO55: 0 | NPP55: 0 | NPQ55: 0 | NPR55: 0 | NPS55: 0 | NPT55: 0 | NPU55: 0 | NPV55: 0 | NPW55: 0 | NPX55: 0 | NPY55: 0 | NPZ55: 0 | NQA55: 0 | NQB55: 0 | NQC55: 0 | NQD55: 0 | NQE55: 0 | NQF55: 0 | NQG55: 0 | NQH55: 0 | NQI55: 0 | NQJ55: 0 | NQK55: 0 | NQL55: 0 | NQM55: 0 | NQN55: 0 | NQO55: 0 | NQP55: 0 | NQQ55: =NQQ54-NQQ53 -> 0 | NQR55: 0 | NQS55: 0 | NQT55: 0 | NQU55: 0 | NQV55: 0 | NQW55: 0 | NQX55: 0 | NQY55: 0 | NQZ55: 0 | NRA55: 0 | NRB55: 0 | NRC55: 0 | NRD55: 0 | NRE55: 0 | NRF55: 0 | NRG55: 0 | NRH55: 0 | NRI55: 0 | NRJ55: 0 | NRK55: 0 | NRL55: 0 | NRM55: 0 | NRN55: 0 | NRO55: 0 | NRP55: 0 | NRQ55: 0 | NRR55: 0 | NRS55: 0 | NRT55: 0 | NRU55: 0 | NRV55: 0 | NRW55: 0 | NRX55: 0 | NRY55: 0 | NRZ55: 0 | NSA55: 0 | NSB55: 0 | NSC55: 0 | NSD55: 0 | NSE55: 0 | NSF55: 0 | NSG55: 0 | NSH55: 0 | NSI55: 0 | NSJ55: 0 | NSK55: 0 | NSL55: 0 | NSM55: 0 | NSN55: 0 | NSO55: 0 | NSP55: 0 | NSQ55: 0 | NSR55: 0 | NSS55: 0 | NST55: 0 | NSU55: 0 | NSV55: 0 | NSW55: 0 | NSX55: 0 | NSY55: 0 | NSZ55: 0 | NTA55: 0 | NTB55: 0 | NTC55: =NTC54-NTC53 -> 0 | NTD55: 0 | NTE55: 0 | NTF55: 0 | NTG55: 0 | NTH55: 0 | NTI55: 0 | NTJ55: 0 | NTK55: 0 | NTL55: 0 | NTM55: 0 | NTN55: 0 | NTO55: 0 | NTP55: 0 | NTQ55: 0 | NTR55: 0 | NTS55: 0 | NTT55: 0 | NTU55: 0 | NTV55: 0 | NTW55: 0 | NTX55: 0 | NTY55: 0 | NTZ55: 0 | NUA55: 0 | NUB55: 0 | NUC55: 0 | NUD55: 0 | NUE55: 0 | NUF55: 0 | NUG55: 0 | NUH55: 0 | NUI55: 0 | NUJ55: 0 | NUK55: 0 | NUL55: 0 | NUM55: 0 | NUN55: 0 | NUO55: 0 | NUP55: 0 | NUQ55: 0 | NUR55: 0 | NUS55: 0 | NUT55: 0 | NUU55: 0 | NUV55: 0 | NUW55: 0 | NUX55: 0 | NUY55: 0 | NUZ55: 0 | NVA55: 0 | NVB55: 0 | NVC55: 0 | NVD55: 0 | NVE55: 0 | NVF55: 0 | NVG55: 0 | NVH55: 0 | NVI55: 0 | NVJ55: 0 | NVK55: 0 | NVL55: 0 | NVM55: 0 | NVN55: 0 | NVO55: =NVO54-NVO53 -> 0 | NVP55: 0 | NVQ55: 0 | NVR55: 0 | NVS55: 0 | NVT55: 0 | NVU55: 0 | NVV55: 0 | NVW55: 0 | NVX55: 0 | NVY55: 0 | NVZ55: 0 | NWA55: 0 | NWB55: 0 | NWC55: 0 | NWD55: 0 | NWE55: 0 | NWF55: 0 | NWG55: 0 | NWH55: 0 | NWI55: 0 | NWJ55: 0 | NWK55: 0 | NWL55: 0 | NWM55: 0 | NWN55: 0 | NWO55: 0 | NWP55: 0 | NWQ55: 0 | NWR55: 0 | NWS55: 0 | NWT55: 0 | NWU55: 0 | NWV55: 0 | NWW55: 0 | NWX55: 0 | NWY55: 0 | NWZ55: 0 | NXA55: 0 | NXB55: 0 | NXC55: 0 | NXD55: 0 | NXE55: 0 | NXF55: 0 | NXG55: 0 | NXH55: 0 | NXI55: 0 | NXJ55: 0 | NXK55: 0 | NXL55: 0 | NXM55: 0 | NXN55: 0 | NXO55: 0 | NXP55: 0 | NXQ55: 0 | NXR55: 0 | NXS55: 0 | NXT55: 0 | NXU55: 0 | NXV55: 0 | NXW55: 0 | NXX55: 0 | NXY55: 0 | NXZ55: 0 | NYA55: =NYA54-NYA53 -> 0 | NYB55: 0 | NYC55: 0 | NYD55: 0 | NYE55: 0 | NYF55: 0 | NYG55: 0 | NYH55: 0 | NYI55: 0 | NYJ55: 0 | NYK55: 0 | NYL55: 0 | NYM55: 0 | NYN55: 0 | NYO55: 0 | NYP55: 0 | NYQ55: 0 | NYR55: 0 | NYS55: 0 | NYT55: 0 | NYU55: 0 | NYV55: 0 | NYW55: 0 | NYX55: 0 | NYY55: 0 | NYZ55: 0 | NZA55: 0 | NZB55: 0 | NZC55: 0 | NZD55: 0 | NZE55: 0 | NZF55: 0 | NZG55: 0 | NZH55: 0 | NZI55: 0 | NZJ55: 0 | NZK55: 0 | NZL55: 0 | NZM55: 0 | NZN55: 0 | NZO55: 0 | NZP55: 0 | NZQ55: 0 | NZR55: 0 | NZS55: 0 | NZT55: 0 | NZU55: 0 | NZV55: 0 | NZW55: 0 | NZX55: 0 | NZY55: 0 | NZZ55: 0 | OAA55: 0 | OAB55: 0 | OAC55: 0 | OAD55: 0 | OAE55: 0 | OAF55: 0 | OAG55: 0 | OAH55: 0 | OAI55: 0 | OAJ55: 0 | OAK55: 0 | OAL55: 0 | OAM55: =OAM54-OAM53 -> 0 | OAN55: 0 | OAO55: 0 | OAP55: 0 | OAQ55: 0 | OAR55: 0 | OAS55: 0 | OAT55: 0 | OAU55: 0 | OAV55: 0 | OAW55: 0 | OAX55: 0 | OAY55: 0 | OAZ55: 0 | OBA55: 0 | OBB55: 0 | OBC55: 0 | OBD55: 0 | OBE55: 0 | OBF55: 0 | OBG55: 0 | OBH55: 0 | OBI55: 0 | OBJ55: 0 | OBK55: 0 | OBL55: 0 | OBM55: 0 | OBN55: 0 | OBO55: 0 | OBP55: 0 | OBQ55: 0 | OBR55: 0 | OBS55: 0 | OBT55: 0 | OBU55: 0 | OBV55: 0 | OBW55: 0 | OBX55: 0 | OBY55: 0 | OBZ55: 0 | OCA55: 0 | OCB55: 0 | OCC55: 0 | OCD55: 0 | OCE55: 0 | OCF55: 0 | OCG55: 0 | OCH55: 0 | OCI55: 0 | OCJ55: 0 | OCK55: 0 | OCL55: 0 | OCM55: 0 | OCN55: 0 | OCO55: 0 | OCP55: 0 | OCQ55: 0 | OCR55: 0 | OCS55: 0 | OCT55: 0 | OCU55: 0 | OCV55: 0 | OCW55: 0 | OCX55: 0 | OCY55: =OCY54-OCY53 -> 0 | OCZ55: 0 | ODA55: 0 | ODB55: 0 | ODC55: 0 | ODD55: 0 | ODE55: 0 | ODF55: 0 | ODG55: 0 | ODH55: 0 | ODI55: 0 | ODJ55: 0 | ODK55: 0 | ODL55: 0 | ODM55: 0 | ODN55: 0 | ODO55: 0 | ODP55: 0 | ODQ55: 0 | ODR55: 0 | ODS55: 0 | ODT55: 0 | ODU55: 0 | ODV55: 0 | ODW55: 0 | ODX55: 0 | ODY55: 0 | ODZ55: 0 | OEA55: 0 | OEB55: 0 | OEC55: 0 | OED55: 0 | OEE55: 0 | OEF55: 0 | OEG55: 0 | OEH55: 0 | OEI55: 0 | OEJ55: 0 | OEK55: 0 | OEL55: 0 | OEM55: 0 | OEN55: 0 | OEO55: 0 | OEP55: 0 | OEQ55: 0 | OER55: 0 | OES55: 0 | OET55: 0 | OEU55: 0 | OEV55: 0 | OEW55: 0 | OEX55: 0 | OEY55: 0 | OEZ55: 0 | OFA55: 0 | OFB55: 0 | OFC55: 0 | OFD55: 0 | OFE55: 0 | OFF55: 0 | OFG55: 0 | OFH55: 0 | OFI55: 0 | OFJ55: 0 | OFK55: =OFK54-OFK53 -> 0 | OFL55: 0 | OFM55: 0 | OFN55: 0 | OFO55: 0 | OFP55: 0 | OFQ55: 0 | OFR55: 0 | OFS55: 0 | OFT55: 0 | OFU55: 0 | OFV55: 0 | OFW55: 0 | OFX55: 0 | OFY55: 0 | OFZ55: 0 | OGA55: 0 | OGB55: 0 | OGC55: 0 | OGD55: 0 | OGE55: 0 | OGF55: 0 | OGG55: 0 | OGH55: 0 | OGI55: 0 | OGJ55: 0 | OGK55: 0 | OGL55: 0 | OGM55: 0 | OGN55: 0 | OGO55: 0 | OGP55: 0 | OGQ55: 0 | OGR55: 0 | OGS55: 0 | OGT55: 0 | OGU55: 0 | OGV55: 0 | OGW55: 0 | OGX55: 0 | OGY55: 0 | OGZ55: 0 | OHA55: 0 | OHB55: 0 | OHC55: 0 | OHD55: 0 | OHE55: 0 | OHF55: 0 | OHG55: 0 | OHH55: 0 | OHI55: 0 | OHJ55: 0 | OHK55: 0 | OHL55: 0 | OHM55: 0 | OHN55: 0 | OHO55: 0 | OHP55: 0 | OHQ55: 0 | OHR55: 0 | OHS55: 0 | OHT55: 0 | OHU55: 0 | OHV55: 0 | OHW55: =OHW54-OHW53 -> 0 | OHX55: 0 | OHY55: 0 | OHZ55: 0 | OIA55: 0 | OIB55: 0 | OIC55: 0 | OID55: 0 | OIE55: 0 | OIF55: 0 | OIG55: 0 | OIH55: 0 | OII55: 0 | OIJ55: 0 | OIK55: 0 | OIL55: 0 | OIM55: 0 | OIN55: 0 | OIO55: 0 | OIP55: 0 | OIQ55: 0 | OIR55: 0 | OIS55: 0 | OIT55: 0 | OIU55: 0 | OIV55: 0 | OIW55: 0 | OIX55: 0 | OIY55: 0 | OIZ55: 0 | OJA55: 0 | OJB55: 0 | OJC55: 0 | OJD55: 0 | OJE55: 0 | OJF55: 0 | OJG55: 0 | OJH55: 0 | OJI55: 0 | OJJ55: 0 | OJK55: 0 | OJL55: 0 | OJM55: 0 | OJN55: 0 | OJO55: 0 | OJP55: 0 | OJQ55: 0 | OJR55: 0 | OJS55: 0 | OJT55: 0 | OJU55: 0 | OJV55: 0 | OJW55: 0 | OJX55: 0 | OJY55: 0 | OJZ55: 0 | OKA55: 0 | OKB55: 0 | OKC55: 0 | OKD55: 0 | OKE55: 0 | OKF55: 0 | OKG55: 0 | OKH55: 0 | OKI55: =OKI54-OKI53 -> 0 | OKJ55: 0 | OKK55: 0 | OKL55: 0 | OKM55: 0 | OKN55: 0 | OKO55: 0 | OKP55: 0 | OKQ55: 0 | OKR55: 0 | OKS55: 0 | OKT55: 0 | OKU55: 0 | OKV55: 0 | OKW55: 0 | OKX55: 0 | OKY55: 0 | OKZ55: 0 | OLA55: 0 | OLB55: 0 | OLC55: 0 | OLD55: 0 | OLE55: 0 | OLF55: 0 | OLG55: 0 | OLH55: 0 | OLI55: 0 | OLJ55: 0 | OLK55: 0 | OLL55: 0 | OLM55: 0 | OLN55: 0 | OLO55: 0 | OLP55: 0 | OLQ55: 0 | OLR55: 0 | OLS55: 0 | OLT55: 0 | OLU55: 0 | OLV55: 0 | OLW55: 0 | OLX55: 0 | OLY55: 0 | OLZ55: 0 | OMA55: 0 | OMB55: 0 | OMC55: 0 | OMD55: 0 | OME55: 0 | OMF55: 0 | OMG55: 0 | OMH55: 0 | OMI55: 0 | OMJ55: 0 | OMK55: 0 | OML55: 0 | OMM55: 0 | OMN55: 0 | OMO55: 0 | OMP55: 0 | OMQ55: 0 | OMR55: 0 | OMS55: 0 | OMT55: 0 | OMU55: =OMU54-OMU53 -> 0 | OMV55: 0 | OMW55: 0 | OMX55: 0 | OMY55: 0 | OMZ55: 0 | ONA55: 0 | ONB55: 0 | ONC55: 0 | OND55: 0 | ONE55: 0 | ONF55: 0 | ONG55: 0 | ONH55: 0 | ONI55: 0 | ONJ55: 0 | ONK55: 0 | ONL55: 0 | ONM55: 0 | ONN55: 0 | ONO55: 0 | ONP55: 0 | ONQ55: 0 | ONR55: 0 | ONS55: 0 | ONT55: 0 | ONU55: 0 | ONV55: 0 | ONW55: 0 | ONX55: 0 | ONY55: 0 | ONZ55: 0 | OOA55: 0 | OOB55: 0 | OOC55: 0 | OOD55: 0 | OOE55: 0 | OOF55: 0 | OOG55: 0 | OOH55: 0 | OOI55: 0 | OOJ55: 0 | OOK55: 0 | OOL55: 0 | OOM55: 0 | OON55: 0 | OOO55: 0 | OOP55: 0 | OOQ55: 0 | OOR55: 0 | OOS55: 0 | OOT55: 0 | OOU55: 0 | OOV55: 0 | OOW55: 0 | OOX55: 0 | OOY55: 0 | OOZ55: 0 | OPA55: 0 | OPB55: 0 | OPC55: 0 | OPD55: 0 | OPE55: 0 | OPF55: 0 | OPG55: =OPG54-OPG53 -> 0 | OPH55: 0 | OPI55: 0 | OPJ55: 0 | OPK55: 0 | OPL55: 0 | OPM55: 0 | OPN55: 0 | OPO55: 0 | OPP55: 0 | OPQ55: 0 | OPR55: 0 | OPS55: 0 | OPT55: 0 | OPU55: 0 | OPV55: 0 | OPW55: 0 | OPX55: 0 | OPY55: 0 | OPZ55: 0 | OQA55: 0 | OQB55: 0 | OQC55: 0 | OQD55: 0 | OQE55: 0 | OQF55: 0 | OQG55: 0 | OQH55: 0 | OQI55: 0 | OQJ55: 0 | OQK55: 0 | OQL55: 0 | OQM55: 0 | OQN55: 0 | OQO55: 0 | OQP55: 0 | OQQ55: 0 | OQR55: 0 | OQS55: 0 | OQT55: 0 | OQU55: 0 | OQV55: 0 | OQW55: 0 | OQX55: 0 | OQY55: 0 | OQZ55: 0 | ORA55: 0 | ORB55: 0 | ORC55: 0 | ORD55: 0 | ORE55: 0 | ORF55: 0 | ORG55: 0 | ORH55: 0 | ORI55: 0 | ORJ55: 0 | ORK55: 0 | ORL55: 0 | ORM55: 0 | ORN55: 0 | ORO55: 0 | ORP55: 0 | ORQ55: 0 | ORR55: 0 | ORS55: =ORS54-ORS53 -> 0 | ORT55: 0 | ORU55: 0 | ORV55: 0 | ORW55: 0 | ORX55: 0 | ORY55: 0 | ORZ55: 0 | OSA55: 0 | OSB55: 0 | OSC55: 0 | OSD55: 0 | OSE55: 0 | OSF55: 0 | OSG55: 0 | OSH55: 0 | OSI55: 0 | OSJ55: 0 | OSK55: 0 | OSL55: 0 | OSM55: 0 | OSN55: 0 | OSO55: 0 | OSP55: 0 | OSQ55: 0 | OSR55: 0 | OSS55: 0 | OST55: 0 | OSU55: 0 | OSV55: 0 | OSW55: 0 | OSX55: 0 | OSY55: 0 | OSZ55: 0 | OTA55: 0 | OTB55: 0 | OTC55: 0 | OTD55: 0 | OTE55: 0 | OTF55: 0 | OTG55: 0 | OTH55: 0 | OTI55: 0 | OTJ55: 0 | OTK55: 0 | OTL55: 0 | OTM55: 0 | OTN55: 0 | OTO55: 0 | OTP55: 0 | OTQ55: 0 | OTR55: 0 | OTS55: 0 | OTT55: 0 | OTU55: 0 | OTV55: 0 | OTW55: 0 | OTX55: 0 | OTY55: 0 | OTZ55: 0 | OUA55: 0 | OUB55: 0 | OUC55: 0 | OUD55: 0 | OUE55: =OUE54-OUE53 -> 0 | OUF55: 0 | OUG55: 0 | OUH55: 0 | OUI55: 0 | OUJ55: 0 | OUK55: 0 | OUL55: 0 | OUM55: 0 | OUN55: 0 | OUO55: 0 | OUP55: 0 | OUQ55: 0 | OUR55: 0 | OUS55: 0 | OUT55: 0 | OUU55: 0 | OUV55: 0 | OUW55: 0 | OUX55: 0 | OUY55: 0 | OUZ55: 0 | OVA55: 0 | OVB55: 0 | OVC55: 0 | OVD55: 0 | OVE55: 0 | OVF55: 0 | OVG55: 0 | OVH55: 0 | OVI55: 0 | OVJ55: 0 | OVK55: 0 | OVL55: 0 | OVM55: 0 | OVN55: 0 | OVO55: 0 | OVP55: 0 | OVQ55: 0 | OVR55: 0 | OVS55: 0 | OVT55: 0 | OVU55: 0 | OVV55: 0 | OVW55: 0 | OVX55: 0 | OVY55: 0 | OVZ55: 0 | OWA55: 0 | OWB55: 0 | OWC55: 0 | OWD55: 0 | OWE55: 0 | OWF55: 0 | OWG55: 0 | OWH55: 0 | OWI55: 0 | OWJ55: 0 | OWK55: 0 | OWL55: 0 | OWM55: 0 | OWN55: 0 | OWO55: 0 | OWP55: 0 | OWQ55: =OWQ54-OWQ53 -> 0 | OWR55: 0 | OWS55: 0 | OWT55: 0 | OWU55: 0 | OWV55: 0 | OWW55: 0 | OWX55: 0 | OWY55: 0 | OWZ55: 0 | OXA55: 0 | OXB55: 0 | OXC55: 0 | OXD55: 0 | OXE55: 0 | OXF55: 0 | OXG55: 0 | OXH55: 0 | OXI55: 0 | OXJ55: 0 | OXK55: 0 | OXL55: 0 | OXM55: 0 | OXN55: 0 | OXO55: 0 | OXP55: 0 | OXQ55: 0 | OXR55: 0 | OXS55: 0 | OXT55: 0 | OXU55: 0 | OXV55: 0 | OXW55: 0 | OXX55: 0 | OXY55: 0 | OXZ55: 0 | OYA55: 0 | OYB55: 0 | OYC55: 0 | OYD55: 0 | OYE55: 0 | OYF55: 0 | OYG55: 0 | OYH55: 0 | OYI55: 0 | OYJ55: 0 | OYK55: 0 | OYL55: 0 | OYM55: 0 | OYN55: 0 | OYO55: 0 | OYP55: 0 | OYQ55: 0 | OYR55: 0 | OYS55: 0 | OYT55: 0 | OYU55: 0 | OYV55: 0 | OYW55: 0 | OYX55: 0 | OYY55: 0 | OYZ55: 0 | OZA55: 0 | OZB55: 0 | OZC55: =OZC54-OZC53 -> 0 | OZD55: 0 | OZE55: 0 | OZF55: 0 | OZG55: 0 | OZH55: 0 | OZI55: 0 | OZJ55: 0 | OZK55: 0 | OZL55: 0 | OZM55: 0 | OZN55: 0 | OZO55: 0 | OZP55: 0 | OZQ55: 0 | OZR55: 0 | OZS55: 0 | OZT55: 0 | OZU55: 0 | OZV55: 0 | OZW55: 0 | OZX55: 0 | OZY55: 0 | OZZ55: 0 | PAA55: 0 | PAB55: 0 | PAC55: 0 | PAD55: 0 | PAE55: 0 | PAF55: 0 | PAG55: 0 | PAH55: 0 | PAI55: 0 | PAJ55: 0 | PAK55: 0 | PAL55: 0 | PAM55: 0 | PAN55: 0 | PAO55: 0 | PAP55: 0 | PAQ55: 0 | PAR55: 0 | PAS55: 0 | PAT55: 0 | PAU55: 0 | PAV55: 0 | PAW55: 0 | PAX55: 0 | PAY55: 0 | PAZ55: 0 | PBA55: 0 | PBB55: 0 | PBC55: 0 | PBD55: 0 | PBE55: 0 | PBF55: 0 | PBG55: 0 | PBH55: 0 | PBI55: 0 | PBJ55: 0 | PBK55: 0 | PBL55: 0 | PBM55: 0 | PBN55: 0 | PBO55: =PBO54-PBO53 -> 0 | PBP55: 0 | PBQ55: 0 | PBR55: 0 | PBS55: 0 | PBT55: 0 | PBU55: 0 | PBV55: 0 | PBW55: 0 | PBX55: 0 | PBY55: 0 | PBZ55: 0 | PCA55: 0 | PCB55: 0 | PCC55: 0 | PCD55: 0 | PCE55: 0 | PCF55: 0 | PCG55: 0 | PCH55: 0 | PCI55: 0 | PCJ55: 0 | PCK55: 0 | PCL55: 0 | PCM55: 0 | PCN55: 0 | PCO55: 0 | PCP55: 0 | PCQ55: 0 | PCR55: 0 | PCS55: 0 | PCT55: 0 | PCU55: 0 | PCV55: 0 | PCW55: 0 | PCX55: 0 | PCY55: 0 | PCZ55: 0 | PDA55: 0 | PDB55: 0 | PDC55: 0 | PDD55: 0 | PDE55: 0 | PDF55: 0 | PDG55: 0 | PDH55: 0 | PDI55: 0 | PDJ55: 0 | PDK55: 0 | PDL55: 0 | PDM55: 0 | PDN55: 0 | PDO55: 0 | PDP55: 0 | PDQ55: 0 | PDR55: 0 | PDS55: 0 | PDT55: 0 | PDU55: 0 | PDV55: 0 | PDW55: 0 | PDX55: 0 | PDY55: 0 | PDZ55: 0 | PEA55: =PEA54-PEA53 -> 0 | PEB55: 0 | PEC55: 0 | PED55: 0 | PEE55: 0 | PEF55: 0 | PEG55: 0 | PEH55: 0 | PEI55: 0 | PEJ55: 0 | PEK55: 0 | PEL55: 0 | PEM55: 0 | PEN55: 0 | PEO55: 0 | PEP55: 0 | PEQ55: 0 | PER55: 0 | PES55: 0 | PET55: 0 | PEU55: 0 | PEV55: 0 | PEW55: 0 | PEX55: 0 | PEY55: 0 | PEZ55: 0 | PFA55: 0 | PFB55: 0 | PFC55: 0 | PFD55: 0 | PFE55: 0 | PFF55: 0 | PFG55: 0 | PFH55: 0 | PFI55: 0 | PFJ55: 0 | PFK55: 0 | PFL55: 0 | PFM55: 0 | PFN55: 0 | PFO55: 0 | PFP55: 0 | PFQ55: 0 | PFR55: 0 | PFS55: 0 | PFT55: 0 | PFU55: 0 | PFV55: 0 | PFW55: 0 | PFX55: 0 | PFY55: 0 | PFZ55: 0 | PGA55: 0 | PGB55: 0 | PGC55: 0 | PGD55: 0 | PGE55: 0 | PGF55: 0 | PGG55: 0 | PGH55: 0 | PGI55: 0 | PGJ55: 0 | PGK55: 0 | PGL55: 0 | PGM55: =PGM54-PGM53 -> 0 | PGN55: 0 | PGO55: 0 | PGP55: 0 | PGQ55: 0 | PGR55: 0 | PGS55: 0 | PGT55: 0 | PGU55: 0 | PGV55: 0 | PGW55: 0 | PGX55: 0 | PGY55: 0 | PGZ55: 0 | PHA55: 0 | PHB55: 0 | PHC55: 0 | PHD55: 0 | PHE55: 0 | PHF55: 0 | PHG55: 0 | PHH55: 0 | PHI55: 0 | PHJ55: 0 | PHK55: 0 | PHL55: 0 | PHM55: 0 | PHN55: 0 | PHO55: 0 | PHP55: 0 | PHQ55: 0 | PHR55: 0 | PHS55: 0 | PHT55: 0 | PHU55: 0 | PHV55: 0 | PHW55: 0 | PHX55: 0 | PHY55: 0 | PHZ55: 0 | PIA55: 0 | PIB55: 0 | PIC55: 0 | PID55: 0 | PIE55: 0 | PIF55: 0 | PIG55: 0 | PIH55: 0 | PII55: 0 | PIJ55: 0 | PIK55: 0 | PIL55: 0 | PIM55: 0 | PIN55: 0 | PIO55: 0 | PIP55: 0 | PIQ55: 0 | PIR55: 0 | PIS55: 0 | PIT55: 0 | PIU55: 0 | PIV55: 0 | PIW55: 0 | PIX55: 0 | PIY55: =PIY54-PIY53 -> 0 | PIZ55: 0 | PJA55: 0 | PJB55: 0 | PJC55: 0 | PJD55: 0 | PJE55: 0 | PJF55: 0 | PJG55: 0 | PJH55: 0 | PJI55: 0 | PJJ55: 0 | PJK55: 0 | PJL55: 0 | PJM55: 0 | PJN55: 0 | PJO55: 0 | PJP55: 0 | PJQ55: 0 | PJR55: 0 | PJS55: 0 | PJT55: 0 | PJU55: 0 | PJV55: 0 | PJW55: 0 | PJX55: 0 | PJY55: 0 | PJZ55: 0 | PKA55: 0 | PKB55: 0 | PKC55: 0 | PKD55: 0 | PKE55: 0 | PKF55: 0 | PKG55: 0 | PKH55: 0 | PKI55: 0 | PKJ55: 0 | PKK55: 0 | PKL55: 0 | PKM55: 0 | PKN55: 0 | PKO55: 0 | PKP55: 0 | PKQ55: 0 | PKR55: 0 | PKS55: 0 | PKT55: 0 | PKU55: 0 | PKV55: 0 | PKW55: 0 | PKX55: 0 | PKY55: 0 | PKZ55: 0 | PLA55: 0 | PLB55: 0 | PLC55: 0 | PLD55: 0 | PLE55: 0 | PLF55: 0 | PLG55: 0 | PLH55: 0 | PLI55: 0 | PLJ55: 0 | PLK55: =PLK54-PLK53 -> 0 | PLL55: 0 | PLM55: 0 | PLN55: 0 | PLO55: 0 | PLP55: 0 | PLQ55: 0 | PLR55: 0 | PLS55: 0 | PLT55: 0 | PLU55: 0 | PLV55: 0 | PLW55: 0 | PLX55: 0 | PLY55: 0 | PLZ55: 0 | PMA55: 0 | PMB55: 0 | PMC55: 0 | PMD55: 0 | PME55: 0 | PMF55: 0 | PMG55: 0 | PMH55: 0 | PMI55: 0 | PMJ55: 0 | PMK55: 0 | PML55: 0 | PMM55: 0 | PMN55: 0 | PMO55: 0 | PMP55: 0 | PMQ55: 0 | PMR55: 0 | PMS55: 0 | PMT55: 0 | PMU55: 0 | PMV55: 0 | PMW55: 0 | PMX55: 0 | PMY55: 0 | PMZ55: 0 | PNA55: 0 | PNB55: 0 | PNC55: 0 | PND55: 0 | PNE55: 0 | PNF55: 0 | PNG55: 0 | PNH55: 0 | PNI55: 0 | PNJ55: 0 | PNK55: 0 | PNL55: 0 | PNM55: 0 | PNN55: 0 | PNO55: 0 | PNP55: 0 | PNQ55: 0 | PNR55: 0 | PNS55: 0 | PNT55: 0 | PNU55: 0 | PNV55: 0 | PNW55: =PNW54-PNW53 -> 0 | PNX55: 0 | PNY55: 0 | PNZ55: 0 | POA55: 0 | POB55: 0 | POC55: 0 | POD55: 0 | POE55: 0 | POF55: 0 | POG55: 0 | POH55: 0 | POI55: 0 | POJ55: 0 | POK55: 0 | POL55: 0 | POM55: 0 | PON55: 0 | POO55: 0 | POP55: 0 | POQ55: 0 | POR55: 0 | POS55: 0 | POT55: 0 | POU55: 0 | POV55: 0 | POW55: 0 | POX55: 0 | POY55: 0 | POZ55: 0 | PPA55: 0 | PPB55: 0 | PPC55: 0 | PPD55: 0 | PPE55: 0 | PPF55: 0 | PPG55: 0 | PPH55: 0 | PPI55: 0 | PPJ55: 0 | PPK55: 0 | PPL55: 0 | PPM55: 0 | PPN55: 0 | PPO55: 0 | PPP55: 0 | PPQ55: 0 | PPR55: 0 | PPS55: 0 | PPT55: 0 | PPU55: 0 | PPV55: 0 | PPW55: 0 | PPX55: 0 | PPY55: 0 | PPZ55: 0 | PQA55: 0 | PQB55: 0 | PQC55: 0 | PQD55: 0 | PQE55: 0 | PQF55: 0 | PQG55: 0 | PQH55: 0 | PQI55: =PQI54-PQI53 -> 0 | PQJ55: 0 | PQK55: 0 | PQL55: 0 | PQM55: 0 | PQN55: 0 | PQO55: 0 | PQP55: 0 | PQQ55: 0 | PQR55: 0 | PQS55: 0 | PQT55: 0 | PQU55: 0 | PQV55: 0 | PQW55: 0 | PQX55: 0 | PQY55: 0 | PQZ55: 0 | PRA55: 0 | PRB55: 0 | PRC55: 0 | PRD55: 0 | PRE55: 0 | PRF55: 0 | PRG55: 0 | PRH55: 0 | PRI55: 0 | PRJ55: 0 | PRK55: 0 | PRL55: 0 | PRM55: 0 | PRN55: 0 | PRO55: 0 | PRP55: 0 | PRQ55: 0 | PRR55: 0 | PRS55: 0 | PRT55: 0 | PRU55: 0 | PRV55: 0 | PRW55: 0 | PRX55: 0 | PRY55: 0 | PRZ55: 0 | PSA55: 0 | PSB55: 0 | PSC55: 0 | PSD55: 0 | PSE55: 0 | PSF55: 0 | PSG55: 0 | PSH55: 0 | PSI55: 0 | PSJ55: 0 | PSK55: 0 | PSL55: 0 | PSM55: 0 | PSN55: 0 | PSO55: 0 | PSP55: 0 | PSQ55: 0 | PSR55: 0 | PSS55: 0 | PST55: 0 | PSU55: =PSU54-PSU53 -> 0 | PSV55: 0 | PSW55: 0 | PSX55: 0 | PSY55: 0 | PSZ55: 0 | PTA55: 0 | PTB55: 0 | PTC55: 0 | PTD55: 0 | PTE55: 0 | PTF55: 0 | PTG55: 0 | PTH55: 0 | PTI55: 0 | PTJ55: 0 | PTK55: 0 | PTL55: 0 | PTM55: 0 | PTN55: 0 | PTO55: 0 | PTP55: 0 | PTQ55: 0 | PTR55: 0 | PTS55: 0 | PTT55: 0 | PTU55: 0 | PTV55: 0 | PTW55: 0 | PTX55: 0 | PTY55: 0 | PTZ55: 0 | PUA55: 0 | PUB55: 0 | PUC55: 0 | PUD55: 0 | PUE55: 0 | PUF55: 0 | PUG55: 0 | PUH55: 0 | PUI55: 0 | PUJ55: 0 | PUK55: 0 | PUL55: 0 | PUM55: 0 | PUN55: 0 | PUO55: 0 | PUP55: 0 | PUQ55: 0 | PUR55: 0 | PUS55: 0 | PUT55: 0 | PUU55: 0 | PUV55: 0 | PUW55: 0 | PUX55: 0 | PUY55: 0 | PUZ55: 0 | PVA55: 0 | PVB55: 0 | PVC55: 0 | PVD55: 0 | PVE55: 0 | PVF55: 0 | PVG55: =PVG54-PVG53 -> 0 | PVH55: 0 | PVI55: 0 | PVJ55: 0 | PVK55: 0 | PVL55: 0 | PVM55: 0 | PVN55: 0 | PVO55: 0 | PVP55: 0 | PVQ55: 0 | PVR55: 0 | PVS55: 0 | PVT55: 0 | PVU55: 0 | PVV55: 0 | PVW55: 0 | PVX55: 0 | PVY55: 0 | PVZ55: 0 | PWA55: 0 | PWB55: 0 | PWC55: 0 | PWD55: 0 | PWE55: 0 | PWF55: 0 | PWG55: 0 | PWH55: 0 | PWI55: 0 | PWJ55: 0 | PWK55: 0 | PWL55: 0 | PWM55: 0 | PWN55: 0 | PWO55: 0 | PWP55: 0 | PWQ55: 0 | PWR55: 0 | PWS55: 0 | PWT55: 0 | PWU55: 0 | PWV55: 0 | PWW55: 0 | PWX55: 0 | PWY55: 0 | PWZ55: 0 | PXA55: 0 | PXB55: 0 | PXC55: 0 | PXD55: 0 | PXE55: 0 | PXF55: 0 | PXG55: 0 | PXH55: 0 | PXI55: 0 | PXJ55: 0 | PXK55: 0 | PXL55: 0 | PXM55: 0 | PXN55: 0 | PXO55: 0 | PXP55: 0 | PXQ55: 0 | PXR55: 0 | PXS55: =PXS54-PXS53 -> 0 | PXT55: 0 | PXU55: 0 | PXV55: 0 | PXW55: 0 | PXX55: 0 | PXY55: 0 | PXZ55: 0 | PYA55: 0 | PYB55: 0 | PYC55: 0 | PYD55: 0 | PYE55: 0 | PYF55: 0 | PYG55: 0 | PYH55: 0 | PYI55: 0 | PYJ55: 0 | PYK55: 0 | PYL55: 0 | PYM55: 0 | PYN55: 0 | PYO55: 0 | PYP55: 0 | PYQ55: 0 | PYR55: 0 | PYS55: 0 | PYT55: 0 | PYU55: 0 | PYV55: 0 | PYW55: 0 | PYX55: 0 | PYY55: 0 | PYZ55: 0 | PZA55: 0 | PZB55: 0 | PZC55: 0 | PZD55: 0 | PZE55: 0 | PZF55: 0 | PZG55: 0 | PZH55: 0 | PZI55: 0 | PZJ55: 0 | PZK55: 0 | PZL55: 0 | PZM55: 0 | PZN55: 0 | PZO55: 0 | PZP55: 0 | PZQ55: 0 | PZR55: 0 | PZS55: 0 | PZT55: 0 | PZU55: 0 | PZV55: 0 | PZW55: 0 | PZX55: 0 | PZY55: 0 | PZZ55: 0 | QAA55: 0 | QAB55: 0 | QAC55: 0 | QAD55: 0 | QAE55: =QAE54-QAE53 -> 0 | QAF55: 0 | QAG55: 0 | QAH55: 0 | QAI55: 0 | QAJ55: 0 | QAK55: 0 | QAL55: 0 | QAM55: 0 | QAN55: 0 | QAO55: 0 | QAP55: 0 | QAQ55: 0 | QAR55: 0 | QAS55: 0 | QAT55: 0 | QAU55: 0 | QAV55: 0 | QAW55: 0 | QAX55: 0 | QAY55: 0 | QAZ55: 0 | QBA55: 0 | QBB55: 0 | QBC55: 0 | QBD55: 0 | QBE55: 0 | QBF55: 0 | QBG55: 0 | QBH55: 0 | QBI55: 0 | QBJ55: 0 | QBK55: 0 | QBL55: 0 | QBM55: 0 | QBN55: 0 | QBO55: 0 | QBP55: 0 | QBQ55: 0 | QBR55: 0 | QBS55: 0 | QBT55: 0 | QBU55: 0 | QBV55: 0 | QBW55: 0 | QBX55: 0 | QBY55: 0 | QBZ55: 0 | QCA55: 0 | QCB55: 0 | QCC55: 0 | QCD55: 0 | QCE55: 0 | QCF55: 0 | QCG55: 0 | QCH55: 0 | QCI55: 0 | QCJ55: 0 | QCK55: 0 | QCL55: 0 | QCM55: 0 | QCN55: 0 | QCO55: 0 | QCP55: 0 | QCQ55: =QCQ54-QCQ53 -> 0 | QCR55: 0 | QCS55: 0 | QCT55: 0 | QCU55: 0 | QCV55: 0 | QCW55: 0 | QCX55: 0 | QCY55: 0 | QCZ55: 0 | QDA55: 0 | QDB55: 0 | QDC55: 0 | QDD55: 0 | QDE55: 0 | QDF55: 0 | QDG55: 0 | QDH55: 0 | QDI55: 0 | QDJ55: 0 | QDK55: 0 | QDL55: 0 | QDM55: 0 | QDN55: 0 | QDO55: 0 | QDP55: 0 | QDQ55: 0 | QDR55: 0 | QDS55: 0 | QDT55: 0 | QDU55: 0 | QDV55: 0 | QDW55: 0 | QDX55: 0 | QDY55: 0 | QDZ55: 0 | QEA55: 0 | QEB55: 0 | QEC55: 0 | QED55: 0 | QEE55: 0 | QEF55: 0 | QEG55: 0 | QEH55: 0 | QEI55: 0 | QEJ55: 0 | QEK55: 0 | QEL55: 0 | QEM55: 0 | QEN55: 0 | QEO55: 0 | QEP55: 0 | QEQ55: 0 | QER55: 0 | QES55: 0 | QET55: 0 | QEU55: 0 | QEV55: 0 | QEW55: 0 | QEX55: 0 | QEY55: 0 | QEZ55: 0 | QFA55: 0 | QFB55: 0 | QFC55: =QFC54-QFC53 -> 0 | QFD55: 0 | QFE55: 0 | QFF55: 0 | QFG55: 0 | QFH55: 0 | QFI55: 0 | QFJ55: 0 | QFK55: 0 | QFL55: 0 | QFM55: 0 | QFN55: 0 | QFO55: 0 | QFP55: 0 | QFQ55: 0 | QFR55: 0 | QFS55: 0 | QFT55: 0 | QFU55: 0 | QFV55: 0 | QFW55: 0 | QFX55: 0 | QFY55: 0 | QFZ55: 0 | QGA55: 0 | QGB55: 0 | QGC55: 0 | QGD55: 0 | QGE55: 0 | QGF55: 0 | QGG55: 0 | QGH55: 0 | QGI55: 0 | QGJ55: 0 | QGK55: 0 | QGL55: 0 | QGM55: 0 | QGN55: 0 | QGO55: 0 | QGP55: 0 | QGQ55: 0 | QGR55: 0 | QGS55: 0 | QGT55: 0 | QGU55: 0 | QGV55: 0 | QGW55: 0 | QGX55: 0 | QGY55: 0 | QGZ55: 0 | QHA55: 0 | QHB55: 0 | QHC55: 0 | QHD55: 0 | QHE55: 0 | QHF55: 0 | QHG55: 0 | QHH55: 0 | QHI55: 0 | QHJ55: 0 | QHK55: 0 | QHL55: 0 | QHM55: 0 | QHN55: 0 | QHO55: =QHO54-QHO53 -> 0 | QHP55: 0 | QHQ55: 0 | QHR55: 0 | QHS55: 0 | QHT55: 0 | QHU55: 0 | QHV55: 0 | QHW55: 0 | QHX55: 0 | QHY55: 0 | QHZ55: 0 | QIA55: 0 | QIB55: 0 | QIC55: 0 | QID55: 0 | QIE55: 0 | QIF55: 0 | QIG55: 0 | QIH55: 0 | QII55: 0 | QIJ55: 0 | QIK55: 0 | QIL55: 0 | QIM55: 0 | QIN55: 0 | QIO55: 0 | QIP55: 0 | QIQ55: 0 | QIR55: 0 | QIS55: 0 | QIT55: 0 | QIU55: 0 | QIV55: 0 | QIW55: 0 | QIX55: 0 | QIY55: 0 | QIZ55: 0 | QJA55: 0 | QJB55: 0 | QJC55: 0 | QJD55: 0 | QJE55: 0 | QJF55: 0 | QJG55: 0 | QJH55: 0 | QJI55: 0 | QJJ55: 0 | QJK55: 0 | QJL55: 0 | QJM55: 0 | QJN55: 0 | QJO55: 0 | QJP55: 0 | QJQ55: 0 | QJR55: 0 | QJS55: 0 | QJT55: 0 | QJU55: 0 | QJV55: 0 | QJW55: 0 | QJX55: 0 | QJY55: 0 | QJZ55: 0 | QKA55: =QKA54-QKA53 -> 0 | QKB55: 0 | QKC55: 0 | QKD55: 0 | QKE55: 0 | QKF55: 0 | QKG55: 0 | QKH55: 0 | QKI55: 0 | QKJ55: 0 | QKK55: 0 | QKL55: 0 | QKM55: 0 | QKN55: 0 | QKO55: 0 | QKP55: 0 | QKQ55: 0 | QKR55: 0 | QKS55: 0 | QKT55: 0 | QKU55: 0 | QKV55: 0 | QKW55: 0 | QKX55: 0 | QKY55: 0 | QKZ55: 0 | QLA55: 0 | QLB55: 0 | QLC55: 0 | QLD55: 0 | QLE55: 0 | QLF55: 0 | QLG55: 0 | QLH55: 0 | QLI55: 0 | QLJ55: 0 | QLK55: 0 | QLL55: 0 | QLM55: 0 | QLN55: 0 | QLO55: 0 | QLP55: 0 | QLQ55: 0 | QLR55: 0 | QLS55: 0 | QLT55: 0 | QLU55: 0 | QLV55: 0 | QLW55: 0 | QLX55: 0 | QLY55: 0 | QLZ55: 0 | QMA55: 0 | QMB55: 0 | QMC55: 0 | QMD55: 0 | QME55: 0 | QMF55: 0 | QMG55: 0 | QMH55: 0 | QMI55: 0 | QMJ55: 0 | QMK55: 0 | QML55: 0 | QMM55: =QMM54-QMM53 -> 0 | QMN55: 0 | QMO55: 0 | QMP55: 0 | QMQ55: 0 | QMR55: 0 | QMS55: 0 | QMT55: 0 | QMU55: 0 | QMV55: 0 | QMW55: 0 | QMX55: 0 | QMY55: 0 | QMZ55: 0 | QNA55: 0 | QNB55: 0 | QNC55: 0 | QND55: 0 | QNE55: 0 | QNF55: 0 | QNG55: 0 | QNH55: 0 | QNI55: 0 | QNJ55: 0 | QNK55: 0 | QNL55: 0 | QNM55: 0 | QNN55: 0 | QNO55: 0 | QNP55: 0 | QNQ55: 0 | QNR55: 0 | QNS55: 0 | QNT55: 0 | QNU55: 0 | QNV55: 0 | QNW55: 0 | QNX55: 0 | QNY55: 0 | QNZ55: 0 | QOA55: 0 | QOB55: 0 | QOC55: 0 | QOD55: 0 | QOE55: 0 | QOF55: 0 | QOG55: 0 | QOH55: 0 | QOI55: 0 | QOJ55: 0 | QOK55: 0 | QOL55: 0 | QOM55: 0 | QON55: 0 | QOO55: 0 | QOP55: 0 | QOQ55: 0 | QOR55: 0 | QOS55: 0 | QOT55: 0 | QOU55: 0 | QOV55: 0 | QOW55: 0 | QOX55: 0 | QOY55: =QOY54-QOY53 -> 0 | QOZ55: 0 | QPA55: 0 | QPB55: 0 | QPC55: 0 | QPD55: 0 | QPE55: 0 | QPF55: 0 | QPG55: 0 | QPH55: 0 | QPI55: 0 | QPJ55: 0 | QPK55: 0 | QPL55: 0 | QPM55: 0 | QPN55: 0 | QPO55: 0 | QPP55: 0 | QPQ55: 0 | QPR55: 0 | QPS55: 0 | QPT55: 0 | QPU55: 0 | QPV55: 0 | QPW55: 0 | QPX55: 0 | QPY55: 0 | QPZ55: 0 | QQA55: 0 | QQB55: 0 | QQC55: 0 | QQD55: 0 | QQE55: 0 | QQF55: 0 | QQG55: 0 | QQH55: 0 | QQI55: 0 | QQJ55: 0 | QQK55: 0 | QQL55: 0 | QQM55: 0 | QQN55: 0 | QQO55: 0 | QQP55: 0 | QQQ55: 0 | QQR55: 0 | QQS55: 0 | QQT55: 0 | QQU55: 0 | QQV55: 0 | QQW55: 0 | QQX55: 0 | QQY55: 0 | QQZ55: 0 | QRA55: 0 | QRB55: 0 | QRC55: 0 | QRD55: 0 | QRE55: 0 | QRF55: 0 | QRG55: 0 | QRH55: 0 | QRI55: 0 | QRJ55: 0 | QRK55: =QRK54-QRK53 -> 0 | QRL55: 0 | QRM55: 0 | QRN55: 0 | QRO55: 0 | QRP55: 0 | QRQ55: 0 | QRR55: 0 | QRS55: 0 | QRT55: 0 | QRU55: 0 | QRV55: 0 | QRW55: 0 | QRX55: 0 | QRY55: 0 | QRZ55: 0 | QSA55: 0 | QSB55: 0 | QSC55: 0 | QSD55: 0 | QSE55: 0 | QSF55: 0 | QSG55: 0 | QSH55: 0 | QSI55: 0 | QSJ55: 0 | QSK55: 0 | QSL55: 0 | QSM55: 0 | QSN55: 0 | QSO55: 0 | QSP55: 0 | QSQ55: 0 | QSR55: 0 | QSS55: 0 | QST55: 0 | QSU55: 0 | QSV55: 0 | QSW55: 0 | QSX55: 0 | QSY55: 0 | QSZ55: 0 | QTA55: 0 | QTB55: 0 | QTC55: 0 | QTD55: 0 | QTE55: 0 | QTF55: 0 | QTG55: 0 | QTH55: 0 | QTI55: 0 | QTJ55: 0 | QTK55: 0 | QTL55: 0 | QTM55: 0 | QTN55: 0 | QTO55: 0 | QTP55: 0 | QTQ55: 0 | QTR55: 0 | QTS55: 0 | QTT55: 0 | QTU55: 0 | QTV55: 0 | QTW55: =QTW54-QTW53 -> 0 | QTX55: 0 | QTY55: 0 | QTZ55: 0 | QUA55: 0 | QUB55: 0 | QUC55: 0 | QUD55: 0 | QUE55: 0 | QUF55: 0 | QUG55: 0 | QUH55: 0 | QUI55: 0 | QUJ55: 0 | QUK55: 0 | QUL55: 0 | QUM55: 0 | QUN55: 0 | QUO55: 0 | QUP55: 0 | QUQ55: 0 | QUR55: 0 | QUS55: 0 | QUT55: 0 | QUU55: 0 | QUV55: 0 | QUW55: 0 | QUX55: 0 | QUY55: 0 | QUZ55: 0 | QVA55: 0 | QVB55: 0 | QVC55: 0 | QVD55: 0 | QVE55: 0 | QVF55: 0 | QVG55: 0 | QVH55: 0 | QVI55: 0 | QVJ55: 0 | QVK55: 0 | QVL55: 0 | QVM55: 0 | QVN55: 0 | QVO55: 0 | QVP55: 0 | QVQ55: 0 | QVR55: 0 | QVS55: 0 | QVT55: 0 | QVU55: 0 | QVV55: 0 | QVW55: 0 | QVX55: 0 | QVY55: 0 | QVZ55: 0 | QWA55: 0 | QWB55: 0 | QWC55: 0 | QWD55: 0 | QWE55: 0 | QWF55: 0 | QWG55: 0 | QWH55: 0 | QWI55: =QWI54-QWI53 -> 0 | QWJ55: 0 | QWK55: 0 | QWL55: 0 | QWM55: 0 | QWN55: 0 | QWO55: 0 | QWP55: 0 | QWQ55: 0 | QWR55: 0 | QWS55: 0 | QWT55: 0 | QWU55: 0 | QWV55: 0 | QWW55: 0 | QWX55: 0 | QWY55: 0 | QWZ55: 0 | QXA55: 0 | QXB55: 0 | QXC55: 0 | QXD55: 0 | QXE55: 0 | QXF55: 0 | QXG55: 0 | QXH55: 0 | QXI55: 0 | QXJ55: 0 | QXK55: 0 | QXL55: 0 | QXM55: 0 | QXN55: 0 | QXO55: 0 | QXP55: 0 | QXQ55: 0 | QXR55: 0 | QXS55: 0 | QXT55: 0 | QXU55: 0 | QXV55: 0 | QXW55: 0 | QXX55: 0 | QXY55: 0 | QXZ55: 0 | QYA55: 0 | QYB55: 0 | QYC55: 0 | QYD55: 0 | QYE55: 0 | QYF55: 0 | QYG55: 0 | QYH55: 0 | QYI55: 0 | QYJ55: 0 | QYK55: 0 | QYL55: 0 | QYM55: 0 | QYN55: 0 | QYO55: 0 | QYP55: 0 | QYQ55: 0 | QYR55: 0 | QYS55: 0 | QYT55: 0 | QYU55: =QYU54-QYU53 -> 0 | QYV55: 0 | QYW55: 0 | QYX55: 0 | QYY55: 0 | QYZ55: 0 | QZA55: 0 | QZB55: 0 | QZC55: 0 | QZD55: 0 | QZE55: 0 | QZF55: 0 | QZG55: 0 | QZH55: 0 | QZI55: 0 | QZJ55: 0 | QZK55: 0 | QZL55: 0 | QZM55: 0 | QZN55: 0 | QZO55: 0 | QZP55: 0 | QZQ55: 0 | QZR55: 0 | QZS55: 0 | QZT55: 0 | QZU55: 0 | QZV55: 0 | QZW55: 0 | QZX55: 0 | QZY55: 0 | QZZ55: 0 | RAA55: 0 | RAB55: 0 | RAC55: 0 | RAD55: 0 | RAE55: 0 | RAF55: 0 | RAG55: 0 | RAH55: 0 | RAI55: 0 | RAJ55: 0 | RAK55: 0 | RAL55: 0 | RAM55: 0 | RAN55: 0 | RAO55: 0 | RAP55: 0 | RAQ55: 0 | RAR55: 0 | RAS55: 0 | RAT55: 0 | RAU55: 0 | RAV55: 0 | RAW55: 0 | RAX55: 0 | RAY55: 0 | RAZ55: 0 | RBA55: 0 | RBB55: 0 | RBC55: 0 | RBD55: 0 | RBE55: 0 | RBF55: 0 | RBG55: =RBG54-RBG53 -> 0 | RBH55: 0 | RBI55: 0 | RBJ55: 0 | RBK55: 0 | RBL55: 0 | RBM55: 0 | RBN55: 0 | RBO55: 0 | RBP55: 0 | RBQ55: 0 | RBR55: 0 | RBS55: 0 | RBT55: 0 | RBU55: 0 | RBV55: 0 | RBW55: 0 | RBX55: 0 | RBY55: 0 | RBZ55: 0 | RCA55: 0 | RCB55: 0 | RCC55: 0 | RCD55: 0 | RCE55: 0 | RCF55: 0 | RCG55: 0 | RCH55: 0 | RCI55: 0 | RCJ55: 0 | RCK55: 0 | RCL55: 0 | RCM55: 0 | RCN55: 0 | RCO55: 0 | RCP55: 0 | RCQ55: 0 | RCR55: 0 | RCS55: 0 | RCT55: 0 | RCU55: 0 | RCV55: 0 | RCW55: 0 | RCX55: 0 | RCY55: 0 | RCZ55: 0 | RDA55: 0 | RDB55: 0 | RDC55: 0 | RDD55: 0 | RDE55: 0 | RDF55: 0 | RDG55: 0 | RDH55: 0 | RDI55: 0 | RDJ55: 0 | RDK55: 0 | RDL55: 0 | RDM55: 0 | RDN55: 0 | RDO55: 0 | RDP55: 0 | RDQ55: 0 | RDR55: 0 | RDS55: =RDS54-RDS53 -> 0 | RDT55: 0 | RDU55: 0 | RDV55: 0 | RDW55: 0 | RDX55: 0 | RDY55: 0 | RDZ55: 0 | REA55: 0 | REB55: 0 | REC55: 0 | RED55: 0 | REE55: 0 | REF55: 0 | REG55: 0 | REH55: 0 | REI55: 0 | REJ55: 0 | REK55: 0 | REL55: 0 | REM55: 0 | REN55: 0 | REO55: 0 | REP55: 0 | REQ55: 0 | RER55: 0 | RES55: 0 | RET55: 0 | REU55: 0 | REV55: 0 | REW55: 0 | REX55: 0 | REY55: 0 | REZ55: 0 | RFA55: 0 | RFB55: 0 | RFC55: 0 | RFD55: 0 | RFE55: 0 | RFF55: 0 | RFG55: 0 | RFH55: 0 | RFI55: 0 | RFJ55: 0 | RFK55: 0 | RFL55: 0 | RFM55: 0 | RFN55: 0 | RFO55: 0 | RFP55: 0 | RFQ55: 0 | RFR55: 0 | RFS55: 0 | RFT55: 0 | RFU55: 0 | RFV55: 0 | RFW55: 0 | RFX55: 0 | RFY55: 0 | RFZ55: 0 | RGA55: 0 | RGB55: 0 | RGC55: 0 | RGD55: 0 | RGE55: =RGE54-RGE53 -> 0 | RGF55: 0 | RGG55: 0 | RGH55: 0 | RGI55: 0 | RGJ55: 0 | RGK55: 0 | RGL55: 0 | RGM55: 0 | RGN55: 0 | RGO55: 0 | RGP55: 0 | RGQ55: 0 | RGR55: 0 | RGS55: 0 | RGT55: 0 | RGU55: 0 | RGV55: 0 | RGW55: 0 | RGX55: 0 | RGY55: 0 | RGZ55: 0 | RHA55: 0 | RHB55: 0 | RHC55: 0 | RHD55: 0 | RHE55: 0 | RHF55: 0 | RHG55: 0 | RHH55: 0 | RHI55: 0 | RHJ55: 0 | RHK55: 0 | RHL55: 0 | RHM55: 0 | RHN55: 0 | RHO55: 0 | RHP55: 0 | RHQ55: 0 | RHR55: 0 | RHS55: 0 | RHT55: 0 | RHU55: 0 | RHV55: 0 | RHW55: 0 | RHX55: 0 | RHY55: 0 | RHZ55: 0 | RIA55: 0 | RIB55: 0 | RIC55: 0 | RID55: 0 | RIE55: 0 | RIF55: 0 | RIG55: 0 | RIH55: 0 | RII55: 0 | RIJ55: 0 | RIK55: 0 | RIL55: 0 | RIM55: 0 | RIN55: 0 | RIO55: 0 | RIP55: 0 | RIQ55: =RIQ54-RIQ53 -> 0 | RIR55: 0 | RIS55: 0 | RIT55: 0 | RIU55: 0 | RIV55: 0 | RIW55: 0 | RIX55: 0 | RIY55: 0 | RIZ55: 0 | RJA55: 0 | RJB55: 0 | RJC55: 0 | RJD55: 0 | RJE55: 0 | RJF55: 0 | RJG55: 0 | RJH55: 0 | RJI55: 0 | RJJ55: 0 | RJK55: 0 | RJL55: 0 | RJM55: 0 | RJN55: 0 | RJO55: 0 | RJP55: 0 | RJQ55: 0 | RJR55: 0 | RJS55: 0 | RJT55: 0 | RJU55: 0 | RJV55: 0 | RJW55: 0 | RJX55: 0 | RJY55: 0 | RJZ55: 0 | RKA55: 0 | RKB55: 0 | RKC55: 0 | RKD55: 0 | RKE55: 0 | RKF55: 0 | RKG55: 0 | RKH55: 0 | RKI55: 0 | RKJ55: 0 | RKK55: 0 | RKL55: 0 | RKM55: 0 | RKN55: 0 | RKO55: 0 | RKP55: 0 | RKQ55: 0 | RKR55: 0 | RKS55: 0 | RKT55: 0 | RKU55: 0 | RKV55: 0 | RKW55: 0 | RKX55: 0 | RKY55: 0 | RKZ55: 0 | RLA55: 0 | RLB55: 0 | RLC55: =RLC54-RLC53 -> 0 | RLD55: 0 | RLE55: 0 | RLF55: 0 | RLG55: 0 | RLH55: 0 | RLI55: 0 | RLJ55: 0 | RLK55: 0 | RLL55: 0 | RLM55: 0 | RLN55: 0 | RLO55: 0 | RLP55: 0 | RLQ55: 0 | RLR55: 0 | RLS55: 0 | RLT55: 0 | RLU55: 0 | RLV55: 0 | RLW55: 0 | RLX55: 0 | RLY55: 0 | RLZ55: 0 | RMA55: 0 | RMB55: 0 | RMC55: 0 | RMD55: 0 | RME55: 0 | RMF55: 0 | RMG55: 0 | RMH55: 0 | RMI55: 0 | RMJ55: 0 | RMK55: 0 | RML55: 0 | RMM55: 0 | RMN55: 0 | RMO55: 0 | RMP55: 0 | RMQ55: 0 | RMR55: 0 | RMS55: 0 | RMT55: 0 | RMU55: 0 | RMV55: 0 | RMW55: 0 | RMX55: 0 | RMY55: 0 | RMZ55: 0 | RNA55: 0 | RNB55: 0 | RNC55: 0 | RND55: 0 | RNE55: 0 | RNF55: 0 | RNG55: 0 | RNH55: 0 | RNI55: 0 | RNJ55: 0 | RNK55: 0 | RNL55: 0 | RNM55: 0 | RNN55: 0 | RNO55: =RNO54-RNO53 -> 0 | RNP55: 0 | RNQ55: 0 | RNR55: 0 | RNS55: 0 | RNT55: 0 | RNU55: 0 | RNV55: 0 | RNW55: 0 | RNX55: 0 | RNY55: 0 | RNZ55: 0 | ROA55: 0 | ROB55: 0 | ROC55: 0 | ROD55: 0 | ROE55: 0 | ROF55: 0 | ROG55: 0 | ROH55: 0 | ROI55: 0 | ROJ55: 0 | ROK55: 0 | ROL55: 0 | ROM55: 0 | RON55: 0 | ROO55: 0 | ROP55: 0 | ROQ55: 0 | ROR55: 0 | ROS55: 0 | ROT55: 0 | ROU55: 0 | ROV55: 0 | ROW55: 0 | ROX55: 0 | ROY55: 0 | ROZ55: 0 | RPA55: 0 | RPB55: 0 | RPC55: 0 | RPD55: 0 | RPE55: 0 | RPF55: 0 | RPG55: 0 | RPH55: 0 | RPI55: 0 | RPJ55: 0 | RPK55: 0 | RPL55: 0 | RPM55: 0 | RPN55: 0 | RPO55: 0 | RPP55: 0 | RPQ55: 0 | RPR55: 0 | RPS55: 0 | RPT55: 0 | RPU55: 0 | RPV55: 0 | RPW55: 0 | RPX55: 0 | RPY55: 0 | RPZ55: 0 | RQA55: =RQA54-RQA53 -> 0 | RQB55: 0 | RQC55: 0 | RQD55: 0 | RQE55: 0 | RQF55: 0 | RQG55: 0 | RQH55: 0 | RQI55: 0 | RQJ55: 0 | RQK55: 0 | RQL55: 0 | RQM55: 0 | RQN55: 0 | RQO55: 0 | RQP55: 0 | RQQ55: 0 | RQR55: 0 | RQS55: 0 | RQT55: 0 | RQU55: 0 | RQV55: 0 | RQW55: 0 | RQX55: 0 | RQY55: 0 | RQZ55: 0 | RRA55: 0 | RRB55: 0 | RRC55: 0 | RRD55: 0 | RRE55: 0 | RRF55: 0 | RRG55: 0 | RRH55: 0 | RRI55: 0 | RRJ55: 0 | RRK55: 0 | RRL55: 0 | RRM55: 0 | RRN55: 0 | RRO55: 0 | RRP55: 0 | RRQ55: 0 | RRR55: 0 | RRS55: 0 | RRT55: 0 | RRU55: 0 | RRV55: 0 | RRW55: 0 | RRX55: 0 | RRY55: 0 | RRZ55: 0 | RSA55: 0 | RSB55: 0 | RSC55: 0 | RSD55: 0 | RSE55: 0 | RSF55: 0 | RSG55: 0 | RSH55: 0 | RSI55: 0 | RSJ55: 0 | RSK55: 0 | RSL55: 0 | RSM55: =RSM54-RSM53 -> 0 | RSN55: 0 | RSO55: 0 | RSP55: 0 | RSQ55: 0 | RSR55: 0 | RSS55: 0 | RST55: 0 | RSU55: 0 | RSV55: 0 | RSW55: 0 | RSX55: 0 | RSY55: 0 | RSZ55: 0 | RTA55: 0 | RTB55: 0 | RTC55: 0 | RTD55: 0 | RTE55: 0 | RTF55: 0 | RTG55: 0 | RTH55: 0 | RTI55: 0 | RTJ55: 0 | RTK55: 0 | RTL55: 0 | RTM55: 0 | RTN55: 0 | RTO55: 0 | RTP55: 0 | RTQ55: 0 | RTR55: 0 | RTS55: 0 | RTT55: 0 | RTU55: 0 | RTV55: 0 | RTW55: 0 | RTX55: 0 | RTY55: 0 | RTZ55: 0 | RUA55: 0 | RUB55: 0 | RUC55: 0 | RUD55: 0 | RUE55: 0 | RUF55: 0 | RUG55: 0 | RUH55: 0 | RUI55: 0 | RUJ55: 0 | RUK55: 0 | RUL55: 0 | RUM55: 0 | RUN55: 0 | RUO55: 0 | RUP55: 0 | RUQ55: 0 | RUR55: 0 | RUS55: 0 | RUT55: 0 | RUU55: 0 | RUV55: 0 | RUW55: 0 | RUX55: 0 | RUY55: =RUY54-RUY53 -> 0 | RUZ55: 0 | RVA55: 0 | RVB55: 0 | RVC55: 0 | RVD55: 0 | RVE55: 0 | RVF55: 0 | RVG55: 0 | RVH55: 0 | RVI55: 0 | RVJ55: 0 | RVK55: 0 | RVL55: 0 | RVM55: 0 | RVN55: 0 | RVO55: 0 | RVP55: 0 | RVQ55: 0 | RVR55: 0 | RVS55: 0 | RVT55: 0 | RVU55: 0 | RVV55: 0 | RVW55: 0 | RVX55: 0 | RVY55: 0 | RVZ55: 0 | RWA55: 0 | RWB55: 0 | RWC55: 0 | RWD55: 0 | RWE55: 0 | RWF55: 0 | RWG55: 0 | RWH55: 0 | RWI55: 0 | RWJ55: 0 | RWK55: 0 | RWL55: 0 | RWM55: 0 | RWN55: 0 | RWO55: 0 | RWP55: 0 | RWQ55: 0 | RWR55: 0 | RWS55: 0 | RWT55: 0 | RWU55: 0 | RWV55: 0 | RWW55: 0 | RWX55: 0 | RWY55: 0 | RWZ55: 0 | RXA55: 0 | RXB55: 0 | RXC55: 0 | RXD55: 0 | RXE55: 0 | RXF55: 0 | RXG55: 0 | RXH55: 0 | RXI55: 0 | RXJ55: 0 | RXK55: =RXK54-RXK53 -> 0 | RXL55: 0 | RXM55: 0 | RXN55: 0 | RXO55: 0 | RXP55: 0 | RXQ55: 0 | RXR55: 0 | RXS55: 0 | RXT55: 0 | RXU55: 0 | RXV55: 0 | RXW55: 0 | RXX55: 0 | RXY55: 0 | RXZ55: 0 | RYA55: 0 | RYB55: 0 | RYC55: 0 | RYD55: 0 | RYE55: 0 | RYF55: 0 | RYG55: 0 | RYH55: 0 | RYI55: 0 | RYJ55: 0 | RYK55: 0 | RYL55: 0 | RYM55: 0 | RYN55: 0 | RYO55: 0 | RYP55: 0 | RYQ55: 0 | RYR55: 0 | RYS55: 0 | RYT55: 0 | RYU55: 0 | RYV55: 0 | RYW55: 0 | RYX55: 0 | RYY55: 0 | RYZ55: 0 | RZA55: 0 | RZB55: 0 | RZC55: 0 | RZD55: 0 | RZE55: 0 | RZF55: 0 | RZG55: 0 | RZH55: 0 | RZI55: 0 | RZJ55: 0 | RZK55: 0 | RZL55: 0 | RZM55: 0 | RZN55: 0 | RZO55: 0 | RZP55: 0 | RZQ55: 0 | RZR55: 0 | RZS55: 0 | RZT55: 0 | RZU55: 0 | RZV55: 0 | RZW55: =RZW54-RZW53 -> 0 | RZX55: 0 | RZY55: 0 | RZZ55: 0 | SAA55: 0 | SAB55: 0 | SAC55: 0 | SAD55: 0 | SAE55: 0 | SAF55: 0 | SAG55: 0 | SAH55: 0 | SAI55: 0 | SAJ55: 0 | SAK55: 0 | SAL55: 0 | SAM55: 0 | SAN55: 0 | SAO55: 0 | SAP55: 0 | SAQ55: 0 | SAR55: 0 | SAS55: 0 | SAT55: 0 | SAU55: 0 | SAV55: 0 | SAW55: 0 | SAX55: 0 | SAY55: 0 | SAZ55: 0 | SBA55: 0 | SBB55: 0 | SBC55: 0 | SBD55: 0 | SBE55: 0 | SBF55: 0 | SBG55: 0 | SBH55: 0 | SBI55: 0 | SBJ55: 0 | SBK55: 0 | SBL55: 0 | SBM55: 0 | SBN55: 0 | SBO55: 0 | SBP55: 0 | SBQ55: 0 | SBR55: 0 | SBS55: 0 | SBT55: 0 | SBU55: 0 | SBV55: 0 | SBW55: 0 | SBX55: 0 | SBY55: 0 | SBZ55: 0 | SCA55: 0 | SCB55: 0 | SCC55: 0 | SCD55: 0 | SCE55: 0 | SCF55: 0 | SCG55: 0 | SCH55: 0 | SCI55: =SCI54-SCI53 -> 0 | SCJ55: 0 | SCK55: 0 | SCL55: 0 | SCM55: 0 | SCN55: 0 | SCO55: 0 | SCP55: 0 | SCQ55: 0 | SCR55: 0 | SCS55: 0 | SCT55: 0 | SCU55: 0 | SCV55: 0 | SCW55: 0 | SCX55: 0 | SCY55: 0 | SCZ55: 0 | SDA55: 0 | SDB55: 0 | SDC55: 0 | SDD55: 0 | SDE55: 0 | SDF55: 0 | SDG55: 0 | SDH55: 0 | SDI55: 0 | SDJ55: 0 | SDK55: 0 | SDL55: 0 | SDM55: 0 | SDN55: 0 | SDO55: 0 | SDP55: 0 | SDQ55: 0 | SDR55: 0 | SDS55: 0 | SDT55: 0 | SDU55: 0 | SDV55: 0 | SDW55: 0 | SDX55: 0 | SDY55: 0 | SDZ55: 0 | SEA55: 0 | SEB55: 0 | SEC55: 0 | SED55: 0 | SEE55: 0 | SEF55: 0 | SEG55: 0 | SEH55: 0 | SEI55: 0 | SEJ55: 0 | SEK55: 0 | SEL55: 0 | SEM55: 0 | SEN55: 0 | SEO55: 0 | SEP55: 0 | SEQ55: 0 | SER55: 0 | SES55: 0 | SET55: 0 | SEU55: =SEU54-SEU53 -> 0 | SEV55: 0 | SEW55: 0 | SEX55: 0 | SEY55: 0 | SEZ55: 0 | SFA55: 0 | SFB55: 0 | SFC55: 0 | SFD55: 0 | SFE55: 0 | SFF55: 0 | SFG55: 0 | SFH55: 0 | SFI55: 0 | SFJ55: 0 | SFK55: 0 | SFL55: 0 | SFM55: 0 | SFN55: 0 | SFO55: 0 | SFP55: 0 | SFQ55: 0 | SFR55: 0 | SFS55: 0 | SFT55: 0 | SFU55: 0 | SFV55: 0 | SFW55: 0 | SFX55: 0 | SFY55: 0 | SFZ55: 0 | SGA55: 0 | SGB55: 0 | SGC55: 0 | SGD55: 0 | SGE55: 0 | SGF55: 0 | SGG55: 0 | SGH55: 0 | SGI55: 0 | SGJ55: 0 | SGK55: 0 | SGL55: 0 | SGM55: 0 | SGN55: 0 | SGO55: 0 | SGP55: 0 | SGQ55: 0 | SGR55: 0 | SGS55: 0 | SGT55: 0 | SGU55: 0 | SGV55: 0 | SGW55: 0 | SGX55: 0 | SGY55: 0 | SGZ55: 0 | SHA55: 0 | SHB55: 0 | SHC55: 0 | SHD55: 0 | SHE55: 0 | SHF55: 0 | SHG55: =SHG54-SHG53 -> 0 | SHH55: 0 | SHI55: 0 | SHJ55: 0 | SHK55: 0 | SHL55: 0 | SHM55: 0 | SHN55: 0 | SHO55: 0 | SHP55: 0 | SHQ55: 0 | SHR55: 0 | SHS55: 0 | SHT55: 0 | SHU55: 0 | SHV55: 0 | SHW55: 0 | SHX55: 0 | SHY55: 0 | SHZ55: 0 | SIA55: 0 | SIB55: 0 | SIC55: 0 | SID55: 0 | SIE55: 0 | SIF55: 0 | SIG55: 0 | SIH55: 0 | SII55: 0 | SIJ55: 0 | SIK55: 0 | SIL55: 0 | SIM55: 0 | SIN55: 0 | SIO55: 0 | SIP55: 0 | SIQ55: 0 | SIR55: 0 | SIS55: 0 | SIT55: 0 | SIU55: 0 | SIV55: 0 | SIW55: 0 | SIX55: 0 | SIY55: 0 | SIZ55: 0 | SJA55: 0 | SJB55: 0 | SJC55: 0 | SJD55: 0 | SJE55: 0 | SJF55: 0 | SJG55: 0 | SJH55: 0 | SJI55: 0 | SJJ55: 0 | SJK55: 0 | SJL55: 0 | SJM55: 0 | SJN55: 0 | SJO55: 0 | SJP55: 0 | SJQ55: 0 | SJR55: 0 | SJS55: =SJS54-SJS53 -> 0 | SJT55: 0 | SJU55: 0 | SJV55: 0 | SJW55: 0 | SJX55: 0 | SJY55: 0 | SJZ55: 0 | SKA55: 0 | SKB55: 0 | SKC55: 0 | SKD55: 0 | SKE55: 0 | SKF55: 0 | SKG55: 0 | SKH55: 0 | SKI55: 0 | SKJ55: 0 | SKK55: 0 | SKL55: 0 | SKM55: 0 | SKN55: 0 | SKO55: 0 | SKP55: 0 | SKQ55: 0 | SKR55: 0 | SKS55: 0 | SKT55: 0 | SKU55: 0 | SKV55: 0 | SKW55: 0 | SKX55: 0 | SKY55: 0 | SKZ55: 0 | SLA55: 0 | SLB55: 0 | SLC55: 0 | SLD55: 0 | SLE55: 0 | SLF55: 0 | SLG55: 0 | SLH55: 0 | SLI55: 0 | SLJ55: 0 | SLK55: 0 | SLL55: 0 | SLM55: 0 | SLN55: 0 | SLO55: 0 | SLP55: 0 | SLQ55: 0 | SLR55: 0 | SLS55: 0 | SLT55: 0 | SLU55: 0 | SLV55: 0 | SLW55: 0 | SLX55: 0 | SLY55: 0 | SLZ55: 0 | SMA55: 0 | SMB55: 0 | SMC55: 0 | SMD55: 0 | SME55: =SME54-SME53 -> 0 | SMF55: 0 | SMG55: 0 | SMH55: 0 | SMI55: 0 | SMJ55: 0 | SMK55: 0 | SML55: 0 | SMM55: 0 | SMN55: 0 | SMO55: 0 | SMP55: 0 | SMQ55: 0 | SMR55: 0 | SMS55: 0 | SMT55: 0 | SMU55: 0 | SMV55: 0 | SMW55: 0 | SMX55: 0 | SMY55: 0 | SMZ55: 0 | SNA55: 0 | SNB55: 0 | SNC55: 0 | SND55: 0 | SNE55: 0 | SNF55: 0 | SNG55: 0 | SNH55: 0 | SNI55: 0 | SNJ55: 0 | SNK55: 0 | SNL55: 0 | SNM55: 0 | SNN55: 0 | SNO55: 0 | SNP55: 0 | SNQ55: 0 | SNR55: 0 | SNS55: 0 | SNT55: 0 | SNU55: 0 | SNV55: 0 | SNW55: 0 | SNX55: 0 | SNY55: 0 | SNZ55: 0 | SOA55: 0 | SOB55: 0 | SOC55: 0 | SOD55: 0 | SOE55: 0 | SOF55: 0 | SOG55: 0 | SOH55: 0 | SOI55: 0 | SOJ55: 0 | SOK55: 0 | SOL55: 0 | SOM55: 0 | SON55: 0 | SOO55: 0 | SOP55: 0 | SOQ55: =SOQ54-SOQ53 -> 0 | SOR55: 0 | SOS55: 0 | SOT55: 0 | SOU55: 0 | SOV55: 0 | SOW55: 0 | SOX55: 0 | SOY55: 0 | SOZ55: 0 | SPA55: 0 | SPB55: 0 | SPC55: 0 | SPD55: 0 | SPE55: 0 | SPF55: 0 | SPG55: 0 | SPH55: 0 | SPI55: 0 | SPJ55: 0 | SPK55: 0 | SPL55: 0 | SPM55: 0 | SPN55: 0 | SPO55: 0 | SPP55: 0 | SPQ55: 0 | SPR55: 0 | SPS55: 0 | SPT55: 0 | SPU55: 0 | SPV55: 0 | SPW55: 0 | SPX55: 0 | SPY55: 0 | SPZ55: 0 | SQA55: 0 | SQB55: 0 | SQC55: 0 | SQD55: 0 | SQE55: 0 | SQF55: 0 | SQG55: 0 | SQH55: 0 | SQI55: 0 | SQJ55: 0 | SQK55: 0 | SQL55: 0 | SQM55: 0 | SQN55: 0 | SQO55: 0 | SQP55: 0 | SQQ55: 0 | SQR55: 0 | SQS55: 0 | SQT55: 0 | SQU55: 0 | SQV55: 0 | SQW55: 0 | SQX55: 0 | SQY55: 0 | SQZ55: 0 | SRA55: 0 | SRB55: 0 | SRC55: =SRC54-SRC53 -> 0 | SRD55: 0 | SRE55: 0 | SRF55: 0 | SRG55: 0 | SRH55: 0 | SRI55: 0 | SRJ55: 0 | SRK55: 0 | SRL55: 0 | SRM55: 0 | SRN55: 0 | SRO55: 0 | SRP55: 0 | SRQ55: 0 | SRR55: 0 | SRS55: 0 | SRT55: 0 | SRU55: 0 | SRV55: 0 | SRW55: 0 | SRX55: 0 | SRY55: 0 | SRZ55: 0 | SSA55: 0 | SSB55: 0 | SSC55: 0 | SSD55: 0 | SSE55: 0 | SSF55: 0 | SSG55: 0 | SSH55: 0 | SSI55: 0 | SSJ55: 0 | SSK55: 0 | SSL55: 0 | SSM55: 0 | SSN55: 0 | SSO55: 0 | SSP55: 0 | SSQ55: 0 | SSR55: 0 | SSS55: 0 | SST55: 0 | SSU55: 0 | SSV55: 0 | SSW55: 0 | SSX55: 0 | SSY55: 0 | SSZ55: 0 | STA55: 0 | STB55: 0 | STC55: 0 | STD55: 0 | STE55: 0 | STF55: 0 | STG55: 0 | STH55: 0 | STI55: 0 | STJ55: 0 | STK55: 0 | STL55: 0 | STM55: 0 | STN55: 0 | STO55: =STO54-STO53 -> 0 | STP55: 0 | STQ55: 0 | STR55: 0 | STS55: 0 | STT55: 0 | STU55: 0 | STV55: 0 | STW55: 0 | STX55: 0 | STY55: 0 | STZ55: 0 | SUA55: 0 | SUB55: 0 | SUC55: 0 | SUD55: 0 | SUE55: 0 | SUF55: 0 | SUG55: 0 | SUH55: 0 | SUI55: 0 | SUJ55: 0 | SUK55: 0 | SUL55: 0 | SUM55: 0 | SUN55: 0 | SUO55: 0 | SUP55: 0 | SUQ55: 0 | SUR55: 0 | SUS55: 0 | SUT55: 0 | SUU55: 0 | SUV55: 0 | SUW55: 0 | SUX55: 0 | SUY55: 0 | SUZ55: 0 | SVA55: 0 | SVB55: 0 | SVC55: 0 | SVD55: 0 | SVE55: 0 | SVF55: 0 | SVG55: 0 | SVH55: 0 | SVI55: 0 | SVJ55: 0 | SVK55: 0 | SVL55: 0 | SVM55: 0 | SVN55: 0 | SVO55: 0 | SVP55: 0 | SVQ55: 0 | SVR55: 0 | SVS55: 0 | SVT55: 0 | SVU55: 0 | SVV55: 0 | SVW55: 0 | SVX55: 0 | SVY55: 0 | SVZ55: 0 | SWA55: =SWA54-SWA53 -> 0 | SWB55: 0 | SWC55: 0 | SWD55: 0 | SWE55: 0 | SWF55: 0 | SWG55: 0 | SWH55: 0 | SWI55: 0 | SWJ55: 0 | SWK55: 0 | SWL55: 0 | SWM55: 0 | SWN55: 0 | SWO55: 0 | SWP55: 0 | SWQ55: 0 | SWR55: 0 | SWS55: 0 | SWT55: 0 | SWU55: 0 | SWV55: 0 | SWW55: 0 | SWX55: 0 | SWY55: 0 | SWZ55: 0 | SXA55: 0 | SXB55: 0 | SXC55: 0 | SXD55: 0 | SXE55: 0 | SXF55: 0 | SXG55: 0 | SXH55: 0 | SXI55: 0 | SXJ55: 0 | SXK55: 0 | SXL55: 0 | SXM55: 0 | SXN55: 0 | SXO55: 0 | SXP55: 0 | SXQ55: 0 | SXR55: 0 | SXS55: 0 | SXT55: 0 | SXU55: 0 | SXV55: 0 | SXW55: 0 | SXX55: 0 | SXY55: 0 | SXZ55: 0 | SYA55: 0 | SYB55: 0 | SYC55: 0 | SYD55: 0 | SYE55: 0 | SYF55: 0 | SYG55: 0 | SYH55: 0 | SYI55: 0 | SYJ55: 0 | SYK55: 0 | SYL55: 0 | SYM55: =SYM54-SYM53 -> 0 | SYN55: 0 | SYO55: 0 | SYP55: 0 | SYQ55: 0 | SYR55: 0 | SYS55: 0 | SYT55: 0 | SYU55: 0 | SYV55: 0 | SYW55: 0 | SYX55: 0 | SYY55: 0 | SYZ55: 0 | SZA55: 0 | SZB55: 0 | SZC55: 0 | SZD55: 0 | SZE55: 0 | SZF55: 0 | SZG55: 0 | SZH55: 0 | SZI55: 0 | SZJ55: 0 | SZK55: 0 | SZL55: 0 | SZM55: 0 | SZN55: 0 | SZO55: 0 | SZP55: 0 | SZQ55: 0 | SZR55: 0 | SZS55: 0 | SZT55: 0 | SZU55: 0 | SZV55: 0 | SZW55: 0 | SZX55: 0 | SZY55: 0 | SZZ55: 0 | TAA55: 0 | TAB55: 0 | TAC55: 0 | TAD55: 0 | TAE55: 0 | TAF55: 0 | TAG55: 0 | TAH55: 0 | TAI55: 0 | TAJ55: 0 | TAK55: 0 | TAL55: 0 | TAM55: 0 | TAN55: 0 | TAO55: 0 | TAP55: 0 | TAQ55: 0 | TAR55: 0 | TAS55: 0 | TAT55: 0 | TAU55: 0 | TAV55: 0 | TAW55: 0 | TAX55: 0 | TAY55: =TAY54-TAY53 -> 0 | TAZ55: 0 | TBA55: 0 | TBB55: 0 | TBC55: 0 | TBD55: 0 | TBE55: 0 | TBF55: 0 | TBG55: 0 | TBH55: 0 | TBI55: 0 | TBJ55: 0 | TBK55: 0 | TBL55: 0 | TBM55: 0 | TBN55: 0 | TBO55: 0 | TBP55: 0 | TBQ55: 0 | TBR55: 0 | TBS55: 0 | TBT55: 0 | TBU55: 0 | TBV55: 0 | TBW55: 0 | TBX55: 0 | TBY55: 0 | TBZ55: 0 | TCA55: 0 | TCB55: 0 | TCC55: 0 | TCD55: 0 | TCE55: 0 | TCF55: 0 | TCG55: 0 | TCH55: 0 | TCI55: 0 | TCJ55: 0 | TCK55: 0 | TCL55: 0 | TCM55: 0 | TCN55: 0 | TCO55: 0 | TCP55: 0 | TCQ55: 0 | TCR55: 0 | TCS55: 0 | TCT55: 0 | TCU55: 0 | TCV55: 0 | TCW55: 0 | TCX55: 0 | TCY55: 0 | TCZ55: 0 | TDA55: 0 | TDB55: 0 | TDC55: 0 | TDD55: 0 | TDE55: 0 | TDF55: 0 | TDG55: 0 | TDH55: 0 | TDI55: 0 | TDJ55: 0 | TDK55: =TDK54-TDK53 -> 0 | TDL55: 0 | TDM55: 0 | TDN55: 0 | TDO55: 0 | TDP55: 0 | TDQ55: 0 | TDR55: 0 | TDS55: 0 | TDT55: 0 | TDU55: 0 | TDV55: 0 | TDW55: 0 | TDX55: 0 | TDY55: 0 | TDZ55: 0 | TEA55: 0 | TEB55: 0 | TEC55: 0 | TED55: 0 | TEE55: 0 | TEF55: 0 | TEG55: 0 | TEH55: 0 | TEI55: 0 | TEJ55: 0 | TEK55: 0 | TEL55: 0 | TEM55: 0 | TEN55: 0 | TEO55: 0 | TEP55: 0 | TEQ55: 0 | TER55: 0 | TES55: 0 | TET55: 0 | TEU55: 0 | TEV55: 0 | TEW55: 0 | TEX55: 0 | TEY55: 0 | TEZ55: 0 | TFA55: 0 | TFB55: 0 | TFC55: 0 | TFD55: 0 | TFE55: 0 | TFF55: 0 | TFG55: 0 | TFH55: 0 | TFI55: 0 | TFJ55: 0 | TFK55: 0 | TFL55: 0 | TFM55: 0 | TFN55: 0 | TFO55: 0 | TFP55: 0 | TFQ55: 0 | TFR55: 0 | TFS55: 0 | TFT55: 0 | TFU55: 0 | TFV55: 0 | TFW55: =TFW54-TFW53 -> 0 | TFX55: 0 | TFY55: 0 | TFZ55: 0 | TGA55: 0 | TGB55: 0 | TGC55: 0 | TGD55: 0 | TGE55: 0 | TGF55: 0 | TGG55: 0 | TGH55: 0 | TGI55: 0 | TGJ55: 0 | TGK55: 0 | TGL55: 0 | TGM55: 0 | TGN55: 0 | TGO55: 0 | TGP55: 0 | TGQ55: 0 | TGR55: 0 | TGS55: 0 | TGT55: 0 | TGU55: 0 | TGV55: 0 | TGW55: 0 | TGX55: 0 | TGY55: 0 | TGZ55: 0 | THA55: 0 | THB55: 0 | THC55: 0 | THD55: 0 | THE55: 0 | THF55: 0 | THG55: 0 | THH55: 0 | THI55: 0 | THJ55: 0 | THK55: 0 | THL55: 0 | THM55: 0 | THN55: 0 | THO55: 0 | THP55: 0 | THQ55: 0 | THR55: 0 | THS55: 0 | THT55: 0 | THU55: 0 | THV55: 0 | THW55: 0 | THX55: 0 | THY55: 0 | THZ55: 0 | TIA55: 0 | TIB55: 0 | TIC55: 0 | TID55: 0 | TIE55: 0 | TIF55: 0 | TIG55: 0 | TIH55: 0 | TII55: =TII54-TII53 -> 0 | TIJ55: 0 | TIK55: 0 | TIL55: 0 | TIM55: 0 | TIN55: 0 | TIO55: 0 | TIP55: 0 | TIQ55: 0 | TIR55: 0 | TIS55: 0 | TIT55: 0 | TIU55: 0 | TIV55: 0 | TIW55: 0 | TIX55: 0 | TIY55: 0 | TIZ55: 0 | TJA55: 0 | TJB55: 0 | TJC55: 0 | TJD55: 0 | TJE55: 0 | TJF55: 0 | TJG55: 0 | TJH55: 0 | TJI55: 0 | TJJ55: 0 | TJK55: 0 | TJL55: 0 | TJM55: 0 | TJN55: 0 | TJO55: 0 | TJP55: 0 | TJQ55: 0 | TJR55: 0 | TJS55: 0 | TJT55: 0 | TJU55: 0 | TJV55: 0 | TJW55: 0 | TJX55: 0 | TJY55: 0 | TJZ55: 0 | TKA55: 0 | TKB55: 0 | TKC55: 0 | TKD55: 0 | TKE55: 0 | TKF55: 0 | TKG55: 0 | TKH55: 0 | TKI55: 0 | TKJ55: 0 | TKK55: 0 | TKL55: 0 | TKM55: 0 | TKN55: 0 | TKO55: 0 | TKP55: 0 | TKQ55: 0 | TKR55: 0 | TKS55: 0 | TKT55: 0 | TKU55: =TKU54-TKU53 -> 0 | TKV55: 0 | TKW55: 0 | TKX55: 0 | TKY55: 0 | TKZ55: 0 | TLA55: 0 | TLB55: 0 | TLC55: 0 | TLD55: 0 | TLE55: 0 | TLF55: 0 | TLG55: 0 | TLH55: 0 | TLI55: 0 | TLJ55: 0 | TLK55: 0 | TLL55: 0 | TLM55: 0 | TLN55: 0 | TLO55: 0 | TLP55: 0 | TLQ55: 0 | TLR55: 0 | TLS55: 0 | TLT55: 0 | TLU55: 0 | TLV55: 0 | TLW55: 0 | TLX55: 0 | TLY55: 0 | TLZ55: 0 | TMA55: 0 | TMB55: 0 | TMC55: 0 | TMD55: 0 | TME55: 0 | TMF55: 0 | TMG55: 0 | TMH55: 0 | TMI55: 0 | TMJ55: 0 | TMK55: 0 | TML55: 0 | TMM55: 0 | TMN55: 0 | TMO55: 0 | TMP55: 0 | TMQ55: 0 | TMR55: 0 | TMS55: 0 | TMT55: 0 | TMU55: 0 | TMV55: 0 | TMW55: 0 | TMX55: 0 | TMY55: 0 | TMZ55: 0 | TNA55: 0 | TNB55: 0 | TNC55: 0 | TND55: 0 | TNE55: 0 | TNF55: 0 | TNG55: =TNG54-TNG53 -> 0 | TNH55: 0 | TNI55: 0 | TNJ55: 0 | TNK55: 0 | TNL55: 0 | TNM55: 0 | TNN55: 0 | TNO55: 0 | TNP55: 0 | TNQ55: 0 | TNR55: 0 | TNS55: 0 | TNT55: 0 | TNU55: 0 | TNV55: 0 | TNW55: 0 | TNX55: 0 | TNY55: 0 | TNZ55: 0 | TOA55: 0 | TOB55: 0 | TOC55: 0 | TOD55: 0 | TOE55: 0 | TOF55: 0 | TOG55: 0 | TOH55: 0 | TOI55: 0 | TOJ55: 0 | TOK55: 0 | TOL55: 0 | TOM55: 0 | TON55: 0 | TOO55: 0 | TOP55: 0 | TOQ55: 0 | TOR55: 0 | TOS55: 0 | TOT55: 0 | TOU55: 0 | TOV55: 0 | TOW55: 0 | TOX55: 0 | TOY55: 0 | TOZ55: 0 | TPA55: 0 | TPB55: 0 | TPC55: 0 | TPD55: 0 | TPE55: 0 | TPF55: 0 | TPG55: 0 | TPH55: 0 | TPI55: 0 | TPJ55: 0 | TPK55: 0 | TPL55: 0 | TPM55: 0 | TPN55: 0 | TPO55: 0 | TPP55: 0 | TPQ55: 0 | TPR55: 0 | TPS55: =TPS54-TPS53 -> 0 | TPT55: 0 | TPU55: 0 | TPV55: 0 | TPW55: 0 | TPX55: 0 | TPY55: 0 | TPZ55: 0 | TQA55: 0 | TQB55: 0 | TQC55: 0 | TQD55: 0 | TQE55: 0 | TQF55: 0 | TQG55: 0 | TQH55: 0 | TQI55: 0 | TQJ55: 0 | TQK55: 0 | TQL55: 0 | TQM55: 0 | TQN55: 0 | TQO55: 0 | TQP55: 0 | TQQ55: 0 | TQR55: 0 | TQS55: 0 | TQT55: 0 | TQU55: 0 | TQV55: 0 | TQW55: 0 | TQX55: 0 | TQY55: 0 | TQZ55: 0 | TRA55: 0 | TRB55: 0 | TRC55: 0 | TRD55: 0 | TRE55: 0 | TRF55: 0 | TRG55: 0 | TRH55: 0 | TRI55: 0 | TRJ55: 0 | TRK55: 0 | TRL55: 0 | TRM55: 0 | TRN55: 0 | TRO55: 0 | TRP55: 0 | TRQ55: 0 | TRR55: 0 | TRS55: 0 | TRT55: 0 | TRU55: 0 | TRV55: 0 | TRW55: 0 | TRX55: 0 | TRY55: 0 | TRZ55: 0 | TSA55: 0 | TSB55: 0 | TSC55: 0 | TSD55: 0 | TSE55: =TSE54-TSE53 -> 0 | TSF55: 0 | TSG55: 0 | TSH55: 0 | TSI55: 0 | TSJ55: 0 | TSK55: 0 | TSL55: 0 | TSM55: 0 | TSN55: 0 | TSO55: 0 | TSP55: 0 | TSQ55: 0 | TSR55: 0 | TSS55: 0 | TST55: 0 | TSU55: 0 | TSV55: 0 | TSW55: 0 | TSX55: 0 | TSY55: 0 | TSZ55: 0 | TTA55: 0 | TTB55: 0 | TTC55: 0 | TTD55: 0 | TTE55: 0 | TTF55: 0 | TTG55: 0 | TTH55: 0 | TTI55: 0 | TTJ55: 0 | TTK55: 0 | TTL55: 0 | TTM55: 0 | TTN55: 0 | TTO55: 0 | TTP55: 0 | TTQ55: 0 | TTR55: 0 | TTS55: 0 | TTT55: 0 | TTU55: 0 | TTV55: 0 | TTW55: 0 | TTX55: 0 | TTY55: 0 | TTZ55: 0 | TUA55: 0 | TUB55: 0 | TUC55: 0 | TUD55: 0 | TUE55: 0 | TUF55: 0 | TUG55: 0 | TUH55: 0 | TUI55: 0 | TUJ55: 0 | TUK55: 0 | TUL55: 0 | TUM55: 0 | TUN55: 0 | TUO55: 0 | TUP55: 0 | TUQ55: =TUQ54-TUQ53 -> 0 | TUR55: 0 | TUS55: 0 | TUT55: 0 | TUU55: 0 | TUV55: 0 | TUW55: 0 | TUX55: 0 | TUY55: 0 | TUZ55: 0 | TVA55: 0 | TVB55: 0 | TVC55: 0 | TVD55: 0 | TVE55: 0 | TVF55: 0 | TVG55: 0 | TVH55: 0 | TVI55: 0 | TVJ55: 0 | TVK55: 0 | TVL55: 0 | TVM55: 0 | TVN55: 0 | TVO55: 0 | TVP55: 0 | TVQ55: 0 | TVR55: 0 | TVS55: 0 | TVT55: 0 | TVU55: 0 | TVV55: 0 | TVW55: 0 | TVX55: 0 | TVY55: 0 | TVZ55: 0 | TWA55: 0 | TWB55: 0 | TWC55: 0 | TWD55: 0 | TWE55: 0 | TWF55: 0 | TWG55: 0 | TWH55: 0 | TWI55: 0 | TWJ55: 0 | TWK55: 0 | TWL55: 0 | TWM55: 0 | TWN55: 0 | TWO55: 0 | TWP55: 0 | TWQ55: 0 | TWR55: 0 | TWS55: 0 | TWT55: 0 | TWU55: 0 | TWV55: 0 | TWW55: 0 | TWX55: 0 | TWY55: 0 | TWZ55: 0 | TXA55: 0 | TXB55: 0 | TXC55: =TXC54-TXC53 -> 0 | TXD55: 0 | TXE55: 0 | TXF55: 0 | TXG55: 0 | TXH55: 0 | TXI55: 0 | TXJ55: 0 | TXK55: 0 | TXL55: 0 | TXM55: 0 | TXN55: 0 | TXO55: 0 | TXP55: 0 | TXQ55: 0 | TXR55: 0 | TXS55: 0 | TXT55: 0 | TXU55: 0 | TXV55: 0 | TXW55: 0 | TXX55: 0 | TXY55: 0 | TXZ55: 0 | TYA55: 0 | TYB55: 0 | TYC55: 0 | TYD55: 0 | TYE55: 0 | TYF55: 0 | TYG55: 0 | TYH55: 0 | TYI55: 0 | TYJ55: 0 | TYK55: 0 | TYL55: 0 | TYM55: 0 | TYN55: 0 | TYO55: 0 | TYP55: 0 | TYQ55: 0 | TYR55: 0 | TYS55: 0 | TYT55: 0 | TYU55: 0 | TYV55: 0 | TYW55: 0 | TYX55: 0 | TYY55: 0 | TYZ55: 0 | TZA55: 0 | TZB55: 0 | TZC55: 0 | TZD55: 0 | TZE55: 0 | TZF55: 0 | TZG55: 0 | TZH55: 0 | TZI55: 0 | TZJ55: 0 | TZK55: 0 | TZL55: 0 | TZM55: 0 | TZN55: 0 | TZO55: =TZO54-TZO53 -> 0 | TZP55: 0 | TZQ55: 0 | TZR55: 0 | TZS55: 0 | TZT55: 0 | TZU55: 0 | TZV55: 0 | TZW55: 0 | TZX55: 0 | TZY55: 0 | TZZ55: 0 | UAA55: 0 | UAB55: 0 | UAC55: 0 | UAD55: 0 | UAE55: 0 | UAF55: 0 | UAG55: 0 | UAH55: 0 | UAI55: 0 | UAJ55: 0 | UAK55: 0 | UAL55: 0 | UAM55: 0 | UAN55: 0 | UAO55: 0 | UAP55: 0 | UAQ55: 0 | UAR55: 0 | UAS55: 0 | UAT55: 0 | UAU55: 0 | UAV55: 0 | UAW55: 0 | UAX55: 0 | UAY55: 0 | UAZ55: 0 | UBA55: 0 | UBB55: 0 | UBC55: 0 | UBD55: 0 | UBE55: 0 | UBF55: 0 | UBG55: 0 | UBH55: 0 | UBI55: 0 | UBJ55: 0 | UBK55: 0 | UBL55: 0 | UBM55: 0 | UBN55: 0 | UBO55: 0 | UBP55: 0 | UBQ55: 0 | UBR55: 0 | UBS55: 0 | UBT55: 0 | UBU55: 0 | UBV55: 0 | UBW55: 0 | UBX55: 0 | UBY55: 0 | UBZ55: 0 | UCA55: =UCA54-UCA53 -> 0 | UCB55: 0 | UCC55: 0 | UCD55: 0 | UCE55: 0 | UCF55: 0 | UCG55: 0 | UCH55: 0 | UCI55: 0 | UCJ55: 0 | UCK55: 0 | UCL55: 0 | UCM55: 0 | UCN55: 0 | UCO55: 0 | UCP55: 0 | UCQ55: 0 | UCR55: 0 | UCS55: 0 | UCT55: 0 | UCU55: 0 | UCV55: 0 | UCW55: 0 | UCX55: 0 | UCY55: 0 | UCZ55: 0 | UDA55: 0 | UDB55: 0 | UDC55: 0 | UDD55: 0 | UDE55: 0 | UDF55: 0 | UDG55: 0 | UDH55: 0 | UDI55: 0 | UDJ55: 0 | UDK55: 0 | UDL55: 0 | UDM55: 0 | UDN55: 0 | UDO55: 0 | UDP55: 0 | UDQ55: 0 | UDR55: 0 | UDS55: 0 | UDT55: 0 | UDU55: 0 | UDV55: 0 | UDW55: 0 | UDX55: 0 | UDY55: 0 | UDZ55: 0 | UEA55: 0 | UEB55: 0 | UEC55: 0 | UED55: 0 | UEE55: 0 | UEF55: 0 | UEG55: 0 | UEH55: 0 | UEI55: 0 | UEJ55: 0 | UEK55: 0 | UEL55: 0 | UEM55: =UEM54-UEM53 -> 0 | UEN55: 0 | UEO55: 0 | UEP55: 0 | UEQ55: 0 | UER55: 0 | UES55: 0 | UET55: 0 | UEU55: 0 | UEV55: 0 | UEW55: 0 | UEX55: 0 | UEY55: 0 | UEZ55: 0 | UFA55: 0 | UFB55: 0 | UFC55: 0 | UFD55: 0 | UFE55: 0 | UFF55: 0 | UFG55: 0 | UFH55: 0 | UFI55: 0 | UFJ55: 0 | UFK55: 0 | UFL55: 0 | UFM55: 0 | UFN55: 0 | UFO55: 0 | UFP55: 0 | UFQ55: 0 | UFR55: 0 | UFS55: 0 | UFT55: 0 | UFU55: 0 | UFV55: 0 | UFW55: 0 | UFX55: 0 | UFY55: 0 | UFZ55: 0 | UGA55: 0 | UGB55: 0 | UGC55: 0 | UGD55: 0 | UGE55: 0 | UGF55: 0 | UGG55: 0 | UGH55: 0 | UGI55: 0 | UGJ55: 0 | UGK55: 0 | UGL55: 0 | UGM55: 0 | UGN55: 0 | UGO55: 0 | UGP55: 0 | UGQ55: 0 | UGR55: 0 | UGS55: 0 | UGT55: 0 | UGU55: 0 | UGV55: 0 | UGW55: 0 | UGX55: 0 | UGY55: =UGY54-UGY53 -> 0 | UGZ55: 0 | UHA55: 0 | UHB55: 0 | UHC55: 0 | UHD55: 0 | UHE55: 0 | UHF55: 0 | UHG55: 0 | UHH55: 0 | UHI55: 0 | UHJ55: 0 | UHK55: 0 | UHL55: 0 | UHM55: 0 | UHN55: 0 | UHO55: 0 | UHP55: 0 | UHQ55: 0 | UHR55: 0 | UHS55: 0 | UHT55: 0 | UHU55: 0 | UHV55: 0 | UHW55: 0 | UHX55: 0 | UHY55: 0 | UHZ55: 0 | UIA55: 0 | UIB55: 0 | UIC55: 0 | UID55: 0 | UIE55: 0 | UIF55: 0 | UIG55: 0 | UIH55: 0 | UII55: 0 | UIJ55: 0 | UIK55: 0 | UIL55: 0 | UIM55: 0 | UIN55: 0 | UIO55: 0 | UIP55: 0 | UIQ55: 0 | UIR55: 0 | UIS55: 0 | UIT55: 0 | UIU55: 0 | UIV55: 0 | UIW55: 0 | UIX55: 0 | UIY55: 0 | UIZ55: 0 | UJA55: 0 | UJB55: 0 | UJC55: 0 | UJD55: 0 | UJE55: 0 | UJF55: 0 | UJG55: 0 | UJH55: 0 | UJI55: 0 | UJJ55: 0 | UJK55: =UJK54-UJK53 -> 0 | UJL55: 0 | UJM55: 0 | UJN55: 0 | UJO55: 0 | UJP55: 0 | UJQ55: 0 | UJR55: 0 | UJS55: 0 | UJT55: 0 | UJU55: 0 | UJV55: 0 | UJW55: 0 | UJX55: 0 | UJY55: 0 | UJZ55: 0 | UKA55: 0 | UKB55: 0 | UKC55: 0 | UKD55: 0 | UKE55: 0 | UKF55: 0 | UKG55: 0 | UKH55: 0 | UKI55: 0 | UKJ55: 0 | UKK55: 0 | UKL55: 0 | UKM55: 0 | UKN55: 0 | UKO55: 0 | UKP55: 0 | UKQ55: 0 | UKR55: 0 | UKS55: 0 | UKT55: 0 | UKU55: 0 | UKV55: 0 | UKW55: 0 | UKX55: 0 | UKY55: 0 | UKZ55: 0 | ULA55: 0 | ULB55: 0 | ULC55: 0 | ULD55: 0 | ULE55: 0 | ULF55: 0 | ULG55: 0 | ULH55: 0 | ULI55: 0 | ULJ55: 0 | ULK55: 0 | ULL55: 0 | ULM55: 0 | ULN55: 0 | ULO55: 0 | ULP55: 0 | ULQ55: 0 | ULR55: 0 | ULS55: 0 | ULT55: 0 | ULU55: 0 | ULV55: 0 | ULW55: =ULW54-ULW53 -> 0 | ULX55: 0 | ULY55: 0 | ULZ55: 0 | UMA55: 0 | UMB55: 0 | UMC55: 0 | UMD55: 0 | UME55: 0 | UMF55: 0 | UMG55: 0 | UMH55: 0 | UMI55: 0 | UMJ55: 0 | UMK55: 0 | UML55: 0 | UMM55: 0 | UMN55: 0 | UMO55: 0 | UMP55: 0 | UMQ55: 0 | UMR55: 0 | UMS55: 0 | UMT55: 0 | UMU55: 0 | UMV55: 0 | UMW55: 0 | UMX55: 0 | UMY55: 0 | UMZ55: 0 | UNA55: 0 | UNB55: 0 | UNC55: 0 | UND55: 0 | UNE55: 0 | UNF55: 0 | UNG55: 0 | UNH55: 0 | UNI55: 0 | UNJ55: 0 | UNK55: 0 | UNL55: 0 | UNM55: 0 | UNN55: 0 | UNO55: 0 | UNP55: 0 | UNQ55: 0 | UNR55: 0 | UNS55: 0 | UNT55: 0 | UNU55: 0 | UNV55: 0 | UNW55: 0 | UNX55: 0 | UNY55: 0 | UNZ55: 0 | UOA55: 0 | UOB55: 0 | UOC55: 0 | UOD55: 0 | UOE55: 0 | UOF55: 0 | UOG55: 0 | UOH55: 0 | UOI55: =UOI54-UOI53 -> 0 | UOJ55: 0 | UOK55: 0 | UOL55: 0 | UOM55: 0 | UON55: 0 | UOO55: 0 | UOP55: 0 | UOQ55: 0 | UOR55: 0 | UOS55: 0 | UOT55: 0 | UOU55: 0 | UOV55: 0 | UOW55: 0 | UOX55: 0 | UOY55: 0 | UOZ55: 0 | UPA55: 0 | UPB55: 0 | UPC55: 0 | UPD55: 0 | UPE55: 0 | UPF55: 0 | UPG55: 0 | UPH55: 0 | UPI55: 0 | UPJ55: 0 | UPK55: 0 | UPL55: 0 | UPM55: 0 | UPN55: 0 | UPO55: 0 | UPP55: 0 | UPQ55: 0 | UPR55: 0 | UPS55: 0 | UPT55: 0 | UPU55: 0 | UPV55: 0 | UPW55: 0 | UPX55: 0 | UPY55: 0 | UPZ55: 0 | UQA55: 0 | UQB55: 0 | UQC55: 0 | UQD55: 0 | UQE55: 0 | UQF55: 0 | UQG55: 0 | UQH55: 0 | UQI55: 0 | UQJ55: 0 | UQK55: 0 | UQL55: 0 | UQM55: 0 | UQN55: 0 | UQO55: 0 | UQP55: 0 | UQQ55: 0 | UQR55: 0 | UQS55: 0 | UQT55: 0 | UQU55: =UQU54-UQU53 -> 0 | UQV55: 0 | UQW55: 0 | UQX55: 0 | UQY55: 0 | UQZ55: 0 | URA55: 0 | URB55: 0 | URC55: 0 | URD55: 0 | URE55: 0 | URF55: 0 | URG55: 0 | URH55: 0 | URI55: 0 | URJ55: 0 | URK55: 0 | URL55: 0 | URM55: 0 | URN55: 0 | URO55: 0 | URP55: 0 | URQ55: 0 | URR55: 0 | URS55: 0 | URT55: 0 | URU55: 0 | URV55: 0 | URW55: 0 | URX55: 0 | URY55: 0 | URZ55: 0 | USA55: 0 | USB55: 0 | USC55: 0 | USD55: 0 | USE55: 0 | USF55: 0 | USG55: 0 | USH55: 0 | USI55: 0 | USJ55: 0 | USK55: 0 | USL55: 0 | USM55: 0 | USN55: 0 | USO55: 0 | USP55: 0 | USQ55: 0 | USR55: 0 | USS55: 0 | UST55: 0 | USU55: 0 | USV55: 0 | USW55: 0 | USX55: 0 | USY55: 0 | USZ55: 0 | UTA55: 0 | UTB55: 0 | UTC55: 0 | UTD55: 0 | UTE55: 0 | UTF55: 0 | UTG55: =UTG54-UTG53 -> 0 | UTH55: 0 | UTI55: 0 | UTJ55: 0 | UTK55: 0 | UTL55: 0 | UTM55: 0 | UTN55: 0 | UTO55: 0 | UTP55: 0 | UTQ55: 0 | UTR55: 0 | UTS55: 0 | UTT55: 0 | UTU55: 0 | UTV55: 0 | UTW55: 0 | UTX55: 0 | UTY55: 0 | UTZ55: 0 | UUA55: 0 | UUB55: 0 | UUC55: 0 | UUD55: 0 | UUE55: 0 | UUF55: 0 | UUG55: 0 | UUH55: 0 | UUI55: 0 | UUJ55: 0 | UUK55: 0 | UUL55: 0 | UUM55: 0 | UUN55: 0 | UUO55: 0 | UUP55: 0 | UUQ55: 0 | UUR55: 0 | UUS55: 0 | UUT55: 0 | UUU55: 0 | UUV55: 0 | UUW55: 0 | UUX55: 0 | UUY55: 0 | UUZ55: 0 | UVA55: 0 | UVB55: 0 | UVC55: 0 | UVD55: 0 | UVE55: 0 | UVF55: 0 | UVG55: 0 | UVH55: 0 | UVI55: 0 | UVJ55: 0 | UVK55: 0 | UVL55: 0 | UVM55: 0 | UVN55: 0 | UVO55: 0 | UVP55: 0 | UVQ55: 0 | UVR55: 0 | UVS55: =UVS54-UVS53 -> 0 | UVT55: 0 | UVU55: 0 | UVV55: 0 | UVW55: 0 | UVX55: 0 | UVY55: 0 | UVZ55: 0 | UWA55: 0 | UWB55: 0 | UWC55: 0 | UWD55: 0 | UWE55: 0 | UWF55: 0 | UWG55: 0 | UWH55: 0 | UWI55: 0 | UWJ55: 0 | UWK55: 0 | UWL55: 0 | UWM55: 0 | UWN55: 0 | UWO55: 0 | UWP55: 0 | UWQ55: 0 | UWR55: 0 | UWS55: 0 | UWT55: 0 | UWU55: 0 | UWV55: 0 | UWW55: 0 | UWX55: 0 | UWY55: 0 | UWZ55: 0 | UXA55: 0 | UXB55: 0 | UXC55: 0 | UXD55: 0 | UXE55: 0 | UXF55: 0 | UXG55: 0 | UXH55: 0 | UXI55: 0 | UXJ55: 0 | UXK55: 0 | UXL55: 0 | UXM55: 0 | UXN55: 0 | UXO55: 0 | UXP55: 0 | UXQ55: 0 | UXR55: 0 | UXS55: 0 | UXT55: 0 | UXU55: 0 | UXV55: 0 | UXW55: 0 | UXX55: 0 | UXY55: 0 | UXZ55: 0 | UYA55: 0 | UYB55: 0 | UYC55: 0 | UYD55: 0 | UYE55: =UYE54-UYE53 -> 0 | UYF55: 0 | UYG55: 0 | UYH55: 0 | UYI55: 0 | UYJ55: 0 | UYK55: 0 | UYL55: 0 | UYM55: 0 | UYN55: 0 | UYO55: 0 | UYP55: 0 | UYQ55: 0 | UYR55: 0 | UYS55: 0 | UYT55: 0 | UYU55: 0 | UYV55: 0 | UYW55: 0 | UYX55: 0 | UYY55: 0 | UYZ55: 0 | UZA55: 0 | UZB55: 0 | UZC55: 0 | UZD55: 0 | UZE55: 0 | UZF55: 0 | UZG55: 0 | UZH55: 0 | UZI55: 0 | UZJ55: 0 | UZK55: 0 | UZL55: 0 | UZM55: 0 | UZN55: 0 | UZO55: 0 | UZP55: 0 | UZQ55: 0 | UZR55: 0 | UZS55: 0 | UZT55: 0 | UZU55: 0 | UZV55: 0 | UZW55: 0 | UZX55: 0 | UZY55: 0 | UZZ55: 0 | VAA55: 0 | VAB55: 0 | VAC55: 0 | VAD55: 0 | VAE55: 0 | VAF55: 0 | VAG55: 0 | VAH55: 0 | VAI55: 0 | VAJ55: 0 | VAK55: 0 | VAL55: 0 | VAM55: 0 | VAN55: 0 | VAO55: 0 | VAP55: 0 | VAQ55: =VAQ54-VAQ53 -> 0 | VAR55: 0 | VAS55: 0 | VAT55: 0 | VAU55: 0 | VAV55: 0 | VAW55: 0 | VAX55: 0 | VAY55: 0 | VAZ55: 0 | VBA55: 0 | VBB55: 0 | VBC55: 0 | VBD55: 0 | VBE55: 0 | VBF55: 0 | VBG55: 0 | VBH55: 0 | VBI55: 0 | VBJ55: 0 | VBK55: 0 | VBL55: 0 | VBM55: 0 | VBN55: 0 | VBO55: 0 | VBP55: 0 | VBQ55: 0 | VBR55: 0 | VBS55: 0 | VBT55: 0 | VBU55: 0 | VBV55: 0 | VBW55: 0 | VBX55: 0 | VBY55: 0 | VBZ55: 0 | VCA55: 0 | VCB55: 0 | VCC55: 0 | VCD55: 0 | VCE55: 0 | VCF55: 0 | VCG55: 0 | VCH55: 0 | VCI55: 0 | VCJ55: 0 | VCK55: 0 | VCL55: 0 | VCM55: 0 | VCN55: 0 | VCO55: 0 | VCP55: 0 | VCQ55: 0 | VCR55: 0 | VCS55: 0 | VCT55: 0 | VCU55: 0 | VCV55: 0 | VCW55: 0 | VCX55: 0 | VCY55: 0 | VCZ55: 0 | VDA55: 0 | VDB55: 0 | VDC55: =VDC54-VDC53 -> 0 | VDD55: 0 | VDE55: 0 | VDF55: 0 | VDG55: 0 | VDH55: 0 | VDI55: 0 | VDJ55: 0 | VDK55: 0 | VDL55: 0 | VDM55: 0 | VDN55: 0 | VDO55: 0 | VDP55: 0 | VDQ55: 0 | VDR55: 0 | VDS55: 0 | VDT55: 0 | VDU55: 0 | VDV55: 0 | VDW55: 0 | VDX55: 0 | VDY55: 0 | VDZ55: 0 | VEA55: 0 | VEB55: 0 | VEC55: 0 | VED55: 0 | VEE55: 0 | VEF55: 0 | VEG55: 0 | VEH55: 0 | VEI55: 0 | VEJ55: 0 | VEK55: 0 | VEL55: 0 | VEM55: 0 | VEN55: 0 | VEO55: 0 | VEP55: 0 | VEQ55: 0 | VER55: 0 | VES55: 0 | VET55: 0 | VEU55: 0 | VEV55: 0 | VEW55: 0 | VEX55: 0 | VEY55: 0 | VEZ55: 0 | VFA55: 0 | VFB55: 0 | VFC55: 0 | VFD55: 0 | VFE55: 0 | VFF55: 0 | VFG55: 0 | VFH55: 0 | VFI55: 0 | VFJ55: 0 | VFK55: 0 | VFL55: 0 | VFM55: 0 | VFN55: 0 | VFO55: =VFO54-VFO53 -> 0 | VFP55: 0 | VFQ55: 0 | VFR55: 0 | VFS55: 0 | VFT55: 0 | VFU55: 0 | VFV55: 0 | VFW55: 0 | VFX55: 0 | VFY55: 0 | VFZ55: 0 | VGA55: 0 | VGB55: 0 | VGC55: 0 | VGD55: 0 | VGE55: 0 | VGF55: 0 | VGG55: 0 | VGH55: 0 | VGI55: 0 | VGJ55: 0 | VGK55: 0 | VGL55: 0 | VGM55: 0 | VGN55: 0 | VGO55: 0 | VGP55: 0 | VGQ55: 0 | VGR55: 0 | VGS55: 0 | VGT55: 0 | VGU55: 0 | VGV55: 0 | VGW55: 0 | VGX55: 0 | VGY55: 0 | VGZ55: 0 | VHA55: 0 | VHB55: 0 | VHC55: 0 | VHD55: 0 | VHE55: 0 | VHF55: 0 | VHG55: 0 | VHH55: 0 | VHI55: 0 | VHJ55: 0 | VHK55: 0 | VHL55: 0 | VHM55: 0 | VHN55: 0 | VHO55: 0 | VHP55: 0 | VHQ55: 0 | VHR55: 0 | VHS55: 0 | VHT55: 0 | VHU55: 0 | VHV55: 0 | VHW55: 0 | VHX55: 0 | VHY55: 0 | VHZ55: 0 | VIA55: =VIA54-VIA53 -> 0 | VIB55: 0 | VIC55: 0 | VID55: 0 | VIE55: 0 | VIF55: 0 | VIG55: 0 | VIH55: 0 | VII55: 0 | VIJ55: 0 | VIK55: 0 | VIL55: 0 | VIM55: 0 | VIN55: 0 | VIO55: 0 | VIP55: 0 | VIQ55: 0 | VIR55: 0 | VIS55: 0 | VIT55: 0 | VIU55: 0 | VIV55: 0 | VIW55: 0 | VIX55: 0 | VIY55: 0 | VIZ55: 0 | VJA55: 0 | VJB55: 0 | VJC55: 0 | VJD55: 0 | VJE55: 0 | VJF55: 0 | VJG55: 0 | VJH55: 0 | VJI55: 0 | VJJ55: 0 | VJK55: 0 | VJL55: 0 | VJM55: 0 | VJN55: 0 | VJO55: 0 | VJP55: 0 | VJQ55: 0 | VJR55: 0 | VJS55: 0 | VJT55: 0 | VJU55: 0 | VJV55: 0 | VJW55: 0 | VJX55: 0 | VJY55: 0 | VJZ55: 0 | VKA55: 0 | VKB55: 0 | VKC55: 0 | VKD55: 0 | VKE55: 0 | VKF55: 0 | VKG55: 0 | VKH55: 0 | VKI55: 0 | VKJ55: 0 | VKK55: 0 | VKL55: 0 | VKM55: =VKM54-VKM53 -> 0 | VKN55: 0 | VKO55: 0 | VKP55: 0 | VKQ55: 0 | VKR55: 0 | VKS55: 0 | VKT55: 0 | VKU55: 0 | VKV55: 0 | VKW55: 0 | VKX55: 0 | VKY55: 0 | VKZ55: 0 | VLA55: 0 | VLB55: 0 | VLC55: 0 | VLD55: 0 | VLE55: 0 | VLF55: 0 | VLG55: 0 | VLH55: 0 | VLI55: 0 | VLJ55: 0 | VLK55: 0 | VLL55: 0 | VLM55: 0 | VLN55: 0 | VLO55: 0 | VLP55: 0 | VLQ55: 0 | VLR55: 0 | VLS55: 0 | VLT55: 0 | VLU55: 0 | VLV55: 0 | VLW55: 0 | VLX55: 0 | VLY55: 0 | VLZ55: 0 | VMA55: 0 | VMB55: 0 | VMC55: 0 | VMD55: 0 | VME55: 0 | VMF55: 0 | VMG55: 0 | VMH55: 0 | VMI55: 0 | VMJ55: 0 | VMK55: 0 | VML55: 0 | VMM55: 0 | VMN55: 0 | VMO55: 0 | VMP55: 0 | VMQ55: 0 | VMR55: 0 | VMS55: 0 | VMT55: 0 | VMU55: 0 | VMV55: 0 | VMW55: 0 | VMX55: 0 | VMY55: =VMY54-VMY53 -> 0 | VMZ55: 0 | VNA55: 0 | VNB55: 0 | VNC55: 0 | VND55: 0 | VNE55: 0 | VNF55: 0 | VNG55: 0 | VNH55: 0 | VNI55: 0 | VNJ55: 0 | VNK55: 0 | VNL55: 0 | VNM55: 0 | VNN55: 0 | VNO55: 0 | VNP55: 0 | VNQ55: 0 | VNR55: 0 | VNS55: 0 | VNT55: 0 | VNU55: 0 | VNV55: 0 | VNW55: 0 | VNX55: 0 | VNY55: 0 | VNZ55: 0 | VOA55: 0 | VOB55: 0 | VOC55: 0 | VOD55: 0 | VOE55: 0 | VOF55: 0 | VOG55: 0 | VOH55: 0 | VOI55: 0 | VOJ55: 0 | VOK55: 0 | VOL55: 0 | VOM55: 0 | VON55: 0 | VOO55: 0 | VOP55: 0 | VOQ55: 0 | VOR55: 0 | VOS55: 0 | VOT55: 0 | VOU55: 0 | VOV55: 0 | VOW55: 0 | VOX55: 0 | VOY55: 0 | VOZ55: 0 | VPA55: 0 | VPB55: 0 | VPC55: 0 | VPD55: 0 | VPE55: 0 | VPF55: 0 | VPG55: 0 | VPH55: 0 | VPI55: 0 | VPJ55: 0 | VPK55: =VPK54-VPK53 -> 0 | VPL55: 0 | VPM55: 0 | VPN55: 0 | VPO55: 0 | VPP55: 0 | VPQ55: 0 | VPR55: 0 | VPS55: 0 | VPT55: 0 | VPU55: 0 | VPV55: 0 | VPW55: 0 | VPX55: 0 | VPY55: 0 | VPZ55: 0 | VQA55: 0 | VQB55: 0 | VQC55: 0 | VQD55: 0 | VQE55: 0 | VQF55: 0 | VQG55: 0 | VQH55: 0 | VQI55: 0 | VQJ55: 0 | VQK55: 0 | VQL55: 0 | VQM55: 0 | VQN55: 0 | VQO55: 0 | VQP55: 0 | VQQ55: 0 | VQR55: 0 | VQS55: 0 | VQT55: 0 | VQU55: 0 | VQV55: 0 | VQW55: 0 | VQX55: 0 | VQY55: 0 | VQZ55: 0 | VRA55: 0 | VRB55: 0 | VRC55: 0 | VRD55: 0 | VRE55: 0 | VRF55: 0 | VRG55: 0 | VRH55: 0 | VRI55: 0 | VRJ55: 0 | VRK55: 0 | VRL55: 0 | VRM55: 0 | VRN55: 0 | VRO55: 0 | VRP55: 0 | VRQ55: 0 | VRR55: 0 | VRS55: 0 | VRT55: 0 | VRU55: 0 | VRV55: 0 | VRW55: =VRW54-VRW53 -> 0 | VRX55: 0 | VRY55: 0 | VRZ55: 0 | VSA55: 0 | VSB55: 0 | VSC55: 0 | VSD55: 0 | VSE55: 0 | VSF55: 0 | VSG55: 0 | VSH55: 0 | VSI55: 0 | VSJ55: 0 | VSK55: 0 | VSL55: 0 | VSM55: 0 | VSN55: 0 | VSO55: 0 | VSP55: 0 | VSQ55: 0 | VSR55: 0 | VSS55: 0 | VST55: 0 | VSU55: 0 | VSV55: 0 | VSW55: 0 | VSX55: 0 | VSY55: 0 | VSZ55: 0 | VTA55: 0 | VTB55: 0 | VTC55: 0 | VTD55: 0 | VTE55: 0 | VTF55: 0 | VTG55: 0 | VTH55: 0 | VTI55: 0 | VTJ55: 0 | VTK55: 0 | VTL55: 0 | VTM55: 0 | VTN55: 0 | VTO55: 0 | VTP55: 0 | VTQ55: 0 | VTR55: 0 | VTS55: 0 | VTT55: 0 | VTU55: 0 | VTV55: 0 | VTW55: 0 | VTX55: 0 | VTY55: 0 | VTZ55: 0 | VUA55: 0 | VUB55: 0 | VUC55: 0 | VUD55: 0 | VUE55: 0 | VUF55: 0 | VUG55: 0 | VUH55: 0 | VUI55: =VUI54-VUI53 -> 0 | VUJ55: 0 | VUK55: 0 | VUL55: 0 | VUM55: 0 | VUN55: 0 | VUO55: 0 | VUP55: 0 | VUQ55: 0 | VUR55: 0 | VUS55: 0 | VUT55: 0 | VUU55: 0 | VUV55: 0 | VUW55: 0 | VUX55: 0 | VUY55: 0 | VUZ55: 0 | VVA55: 0 | VVB55: 0 | VVC55: 0 | VVD55: 0 | VVE55: 0 | VVF55: 0 | VVG55: 0 | VVH55: 0 | VVI55: 0 | VVJ55: 0 | VVK55: 0 | VVL55: 0 | VVM55: 0 | VVN55: 0 | VVO55: 0 | VVP55: 0 | VVQ55: 0 | VVR55: 0 | VVS55: 0 | VVT55: 0 | VVU55: 0 | VVV55: 0 | VVW55: 0 | VVX55: 0 | VVY55: 0 | VVZ55: 0 | VWA55: 0 | VWB55: 0 | VWC55: 0 | VWD55: 0 | VWE55: 0 | VWF55: 0 | VWG55: 0 | VWH55: 0 | VWI55: 0 | VWJ55: 0 | VWK55: 0 | VWL55: 0 | VWM55: 0 | VWN55: 0 | VWO55: 0 | VWP55: 0 | VWQ55: 0 | VWR55: 0 | VWS55: 0 | VWT55: 0 | VWU55: =VWU54-VWU53 -> 0 | VWV55: 0 | VWW55: 0 | VWX55: 0 | VWY55: 0 | VWZ55: 0 | VXA55: 0 | VXB55: 0 | VXC55: 0 | VXD55: 0 | VXE55: 0 | VXF55: 0 | VXG55: 0 | VXH55: 0 | VXI55: 0 | VXJ55: 0 | VXK55: 0 | VXL55: 0 | VXM55: 0 | VXN55: 0 | VXO55: 0 | VXP55: 0 | VXQ55: 0 | VXR55: 0 | VXS55: 0 | VXT55: 0 | VXU55: 0 | VXV55: 0 | VXW55: 0 | VXX55: 0 | VXY55: 0 | VXZ55: 0 | VYA55: 0 | VYB55: 0 | VYC55: 0 | VYD55: 0 | VYE55: 0 | VYF55: 0 | VYG55: 0 | VYH55: 0 | VYI55: 0 | VYJ55: 0 | VYK55: 0 | VYL55: 0 | VYM55: 0 | VYN55: 0 | VYO55: 0 | VYP55: 0 | VYQ55: 0 | VYR55: 0 | VYS55: 0 | VYT55: 0 | VYU55: 0 | VYV55: 0 | VYW55: 0 | VYX55: 0 | VYY55: 0 | VYZ55: 0 | VZA55: 0 | VZB55: 0 | VZC55: 0 | VZD55: 0 | VZE55: 0 | VZF55: 0 | VZG55: =VZG54-VZG53 -> 0 | VZH55: 0 | VZI55: 0 | VZJ55: 0 | VZK55: 0 | VZL55: 0 | VZM55: 0 | VZN55: 0 | VZO55: 0 | VZP55: 0 | VZQ55: 0 | VZR55: 0 | VZS55: 0 | VZT55: 0 | VZU55: 0 | VZV55: 0 | VZW55: 0 | VZX55: 0 | VZY55: 0 | VZZ55: 0 | WAA55: 0 | WAB55: 0 | WAC55: 0 | WAD55: 0 | WAE55: 0 | WAF55: 0 | WAG55: 0 | WAH55: 0 | WAI55: 0 | WAJ55: 0 | WAK55: 0 | WAL55: 0 | WAM55: 0 | WAN55: 0 | WAO55: 0 | WAP55: 0 | WAQ55: 0 | WAR55: 0 | WAS55: 0 | WAT55: 0 | WAU55: 0 | WAV55: 0 | WAW55: 0 | WAX55: 0 | WAY55: 0 | WAZ55: 0 | WBA55: 0 | WBB55: 0 | WBC55: 0 | WBD55: 0 | WBE55: 0 | WBF55: 0 | WBG55: 0 | WBH55: 0 | WBI55: 0 | WBJ55: 0 | WBK55: 0 | WBL55: 0 | WBM55: 0 | WBN55: 0 | WBO55: 0 | WBP55: 0 | WBQ55: 0 | WBR55: 0 | WBS55: =WBS54-WBS53 -> 0 | WBT55: 0 | WBU55: 0 | WBV55: 0 | WBW55: 0 | WBX55: 0 | WBY55: 0 | WBZ55: 0 | WCA55: 0 | WCB55: 0 | WCC55: 0 | WCD55: 0 | WCE55: 0 | WCF55: 0 | WCG55: 0 | WCH55: 0 | WCI55: 0 | WCJ55: 0 | WCK55: 0 | WCL55: 0 | WCM55: 0 | WCN55: 0 | WCO55: 0 | WCP55: 0 | WCQ55: 0 | WCR55: 0 | WCS55: 0 | WCT55: 0 | WCU55: 0 | WCV55: 0 | WCW55: 0 | WCX55: 0 | WCY55: 0 | WCZ55: 0 | WDA55: 0 | WDB55: 0 | WDC55: 0 | WDD55: 0 | WDE55: 0 | WDF55: 0 | WDG55: 0 | WDH55: 0 | WDI55: 0 | WDJ55: 0 | WDK55: 0 | WDL55: 0 | WDM55: 0 | WDN55: 0 | WDO55: 0 | WDP55: 0 | WDQ55: 0 | WDR55: 0 | WDS55: 0 | WDT55: 0 | WDU55: 0 | WDV55: 0 | WDW55: 0 | WDX55: 0 | WDY55: 0 | WDZ55: 0 | WEA55: 0 | WEB55: 0 | WEC55: 0 | WED55: 0 | WEE55: =WEE54-WEE53 -> 0 | WEF55: 0 | WEG55: 0 | WEH55: 0 | WEI55: 0 | WEJ55: 0 | WEK55: 0 | WEL55: 0 | WEM55: 0 | WEN55: 0 | WEO55: 0 | WEP55: 0 | WEQ55: 0 | WER55: 0 | WES55: 0 | WET55: 0 | WEU55: 0 | WEV55: 0 | WEW55: 0 | WEX55: 0 | WEY55: 0 | WEZ55: 0 | WFA55: 0 | WFB55: 0 | WFC55: 0 | WFD55: 0 | WFE55: 0 | WFF55: 0 | WFG55: 0 | WFH55: 0 | WFI55: 0 | WFJ55: 0 | WFK55: 0 | WFL55: 0 | WFM55: 0 | WFN55: 0 | WFO55: 0 | WFP55: 0 | WFQ55: 0 | WFR55: 0 | WFS55: 0 | WFT55: 0 | WFU55: 0 | WFV55: 0 | WFW55: 0 | WFX55: 0 | WFY55: 0 | WFZ55: 0 | WGA55: 0 | WGB55: 0 | WGC55: 0 | WGD55: 0 | WGE55: 0 | WGF55: 0 | WGG55: 0 | WGH55: 0 | WGI55: 0 | WGJ55: 0 | WGK55: 0 | WGL55: 0 | WGM55: 0 | WGN55: 0 | WGO55: 0 | WGP55: 0 | WGQ55: =WGQ54-WGQ53 -> 0 | WGR55: 0 | WGS55: 0 | WGT55: 0 | WGU55: 0 | WGV55: 0 | WGW55: 0 | WGX55: 0 | WGY55: 0 | WGZ55: 0 | WHA55: 0 | WHB55: 0 | WHC55: 0 | WHD55: 0 | WHE55: 0 | WHF55: 0 | WHG55: 0 | WHH55: 0 | WHI55: 0 | WHJ55: 0 | WHK55: 0 | WHL55: 0 | WHM55: 0 | WHN55: 0 | WHO55: 0 | WHP55: 0 | WHQ55: 0 | WHR55: 0 | WHS55: 0 | WHT55: 0 | WHU55: 0 | WHV55: 0 | WHW55: 0 | WHX55: 0 | WHY55: 0 | WHZ55: 0 | WIA55: 0 | WIB55: 0 | WIC55: 0 | WID55: 0 | WIE55: 0 | WIF55: 0 | WIG55: 0 | WIH55: 0 | WII55: 0 | WIJ55: 0 | WIK55: 0 | WIL55: 0 | WIM55: 0 | WIN55: 0 | WIO55: 0 | WIP55: 0 | WIQ55: 0 | WIR55: 0 | WIS55: 0 | WIT55: 0 | WIU55: 0 | WIV55: 0 | WIW55: 0 | WIX55: 0 | WIY55: 0 | WIZ55: 0 | WJA55: 0 | WJB55: 0 | WJC55: =WJC54-WJC53 -> 0 | WJD55: 0 | WJE55: 0 | WJF55: 0 | WJG55: 0 | WJH55: 0 | WJI55: 0 | WJJ55: 0 | WJK55: 0 | WJL55: 0 | WJM55: 0 | WJN55: 0 | WJO55: 0 | WJP55: 0 | WJQ55: 0 | WJR55: 0 | WJS55: 0 | WJT55: 0 | WJU55: 0 | WJV55: 0 | WJW55: 0 | WJX55: 0 | WJY55: 0 | WJZ55: 0 | WKA55: 0 | WKB55: 0 | WKC55: 0 | WKD55: 0 | WKE55: 0 | WKF55: 0 | WKG55: 0 | WKH55: 0 | WKI55: 0 | WKJ55: 0 | WKK55: 0 | WKL55: 0 | WKM55: 0 | WKN55: 0 | WKO55: 0 | WKP55: 0 | WKQ55: 0 | WKR55: 0 | WKS55: 0 | WKT55: 0 | WKU55: 0 | WKV55: 0 | WKW55: 0 | WKX55: 0 | WKY55: 0 | WKZ55: 0 | WLA55: 0 | WLB55: 0 | WLC55: 0 | WLD55: 0 | WLE55: 0 | WLF55: 0 | WLG55: 0 | WLH55: 0 | WLI55: 0 | WLJ55: 0 | WLK55: 0 | WLL55: 0 | WLM55: 0 | WLN55: 0 | WLO55: =WLO54-WLO53 -> 0 | WLP55: 0 | WLQ55: 0 | WLR55: 0 | WLS55: 0 | WLT55: 0 | WLU55: 0 | WLV55: 0 | WLW55: 0 | WLX55: 0 | WLY55: 0 | WLZ55: 0 | WMA55: 0 | WMB55: 0 | WMC55: 0 | WMD55: 0 | WME55: 0 | WMF55: 0 | WMG55: 0 | WMH55: 0 | WMI55: 0 | WMJ55: 0 | WMK55: 0 | WML55: 0 | WMM55: 0 | WMN55: 0 | WMO55: 0 | WMP55: 0 | WMQ55: 0 | WMR55: 0 | WMS55: 0 | WMT55: 0 | WMU55: 0 | WMV55: 0 | WMW55: 0 | WMX55: 0 | WMY55: 0 | WMZ55: 0 | WNA55: 0 | WNB55: 0 | WNC55: 0 | WND55: 0 | WNE55: 0 | WNF55: 0 | WNG55: 0 | WNH55: 0 | WNI55: 0 | WNJ55: 0 | WNK55: 0 | WNL55: 0 | WNM55: 0 | WNN55: 0 | WNO55: 0 | WNP55: 0 | WNQ55: 0 | WNR55: 0 | WNS55: 0 | WNT55: 0 | WNU55: 0 | WNV55: 0 | WNW55: 0 | WNX55: 0 | WNY55: 0 | WNZ55: 0 | WOA55: =WOA54-WOA53 -> 0 | WOB55: 0 | WOC55: 0 | WOD55: 0 | WOE55: 0 | WOF55: 0 | WOG55: 0 | WOH55: 0 | WOI55: 0 | WOJ55: 0 | WOK55: 0 | WOL55: 0 | WOM55: 0 | WON55: 0 | WOO55: 0 | WOP55: 0 | WOQ55: 0 | WOR55: 0 | WOS55: 0 | WOT55: 0 | WOU55: 0 | WOV55: 0 | WOW55: 0 | WOX55: 0 | WOY55: 0 | WOZ55: 0 | WPA55: 0 | WPB55: 0 | WPC55: 0 | WPD55: 0 | WPE55: 0 | WPF55: 0 | WPG55: 0 | WPH55: 0 | WPI55: 0 | WPJ55: 0 | WPK55: 0 | WPL55: 0 | WPM55: 0 | WPN55: 0 | WPO55: 0 | WPP55: 0 | WPQ55: 0 | WPR55: 0 | WPS55: 0 | WPT55: 0 | WPU55: 0 | WPV55: 0 | WPW55: 0 | WPX55: 0 | WPY55: 0 | WPZ55: 0 | WQA55: 0 | WQB55: 0 | WQC55: 0 | WQD55: 0 | WQE55: 0 | WQF55: 0 | WQG55: 0 | WQH55: 0 | WQI55: 0 | WQJ55: 0 | WQK55: 0 | WQL55: 0 | WQM55: =WQM54-WQM53 -> 0 | WQN55: 0 | WQO55: 0 | WQP55: 0 | WQQ55: 0 | WQR55: 0 | WQS55: 0 | WQT55: 0 | WQU55: 0 | WQV55: 0 | WQW55: 0 | WQX55: 0 | WQY55: 0 | WQZ55: 0 | WRA55: 0 | WRB55: 0 | WRC55: 0 | WRD55: 0 | WRE55: 0 | WRF55: 0 | WRG55: 0 | WRH55: 0 | WRI55: 0 | WRJ55: 0 | WRK55: 0 | WRL55: 0 | WRM55: 0 | WRN55: 0 | WRO55: 0 | WRP55: 0 | WRQ55: 0 | WRR55: 0 | WRS55: 0 | WRT55: 0 | WRU55: 0 | WRV55: 0 | WRW55: 0 | WRX55: 0 | WRY55: 0 | WRZ55: 0 | WSA55: 0 | WSB55: 0 | WSC55: 0 | WSD55: 0 | WSE55: 0 | WSF55: 0 | WSG55: 0 | WSH55: 0 | WSI55: 0 | WSJ55: 0 | WSK55: 0 | WSL55: 0 | WSM55: 0 | WSN55: 0 | WSO55: 0 | WSP55: 0 | WSQ55: 0 | WSR55: 0 | WSS55: 0 | WST55: 0 | WSU55: 0 | WSV55: 0 | WSW55: 0 | WSX55: 0 | WSY55: =WSY54-WSY53 -> 0 | WSZ55: 0 | WTA55: 0 | WTB55: 0 | WTC55: 0 | WTD55: 0 | WTE55: 0 | WTF55: 0 | WTG55: 0 | WTH55: 0 | WTI55: 0 | WTJ55: 0 | WTK55: 0 | WTL55: 0 | WTM55: 0 | WTN55: 0 | WTO55: 0 | WTP55: 0 | WTQ55: 0 | WTR55: 0 | WTS55: 0 | WTT55: 0 | WTU55: 0 | WTV55: 0 | WTW55: 0 | WTX55: 0 | WTY55: 0 | WTZ55: 0 | WUA55: 0 | WUB55: 0 | WUC55: 0 | WUD55: 0 | WUE55: 0 | WUF55: 0 | WUG55: 0 | WUH55: 0 | WUI55: 0 | WUJ55: 0 | WUK55: 0 | WUL55: 0 | WUM55: 0 | WUN55: 0 | WUO55: 0 | WUP55: 0 | WUQ55: 0 | WUR55: 0 | WUS55: 0 | WUT55: 0 | WUU55: 0 | WUV55: 0 | WUW55: 0 | WUX55: 0 | WUY55: 0 | WUZ55: 0 | WVA55: 0 | WVB55: 0 | WVC55: 0 | WVD55: 0 | WVE55: 0 | WVF55: 0 | WVG55: 0 | WVH55: 0 | WVI55: 0 | WVJ55: 0 | WVK55: =WVK54-WVK53 -> 0 | WVL55: 0 | WVM55: 0 | WVN55: 0 | WVO55: 0 | WVP55: 0 | WVQ55: 0 | WVR55: 0 | WVS55: 0 | WVT55: 0 | WVU55: 0 | WVV55: 0 | WVW55: 0 | WVX55: 0 | WVY55: 0 | WVZ55: 0 | WWA55: 0 | WWB55: 0 | WWC55: 0 | WWD55: 0 | WWE55: 0 | WWF55: 0 | WWG55: 0 | WWH55: 0 | WWI55: 0 | WWJ55: 0 | WWK55: 0 | WWL55: 0 | WWM55: 0 | WWN55: 0 | WWO55: 0 | WWP55: 0 | WWQ55: 0 | WWR55: 0 | WWS55: 0 | WWT55: 0 | WWU55: 0 | WWV55: 0 | WWW55: 0 | WWX55: 0 | WWY55: 0 | WWZ55: 0 | WXA55: 0 | WXB55: 0 | WXC55: 0 | WXD55: 0 | WXE55: 0 | WXF55: 0 | WXG55: 0 | WXH55: 0 | WXI55: 0 | WXJ55: 0 | WXK55: 0 | WXL55: 0 | WXM55: 0 | WXN55: 0 | WXO55: 0 | WXP55: 0 | WXQ55: 0 | WXR55: 0 | WXS55: 0 | WXT55: 0 | WXU55: 0 | WXV55: 0 | WXW55: =WXW54-WXW53 -> 0 | WXX55: 0 | WXY55: 0 | WXZ55: 0 | WYA55: 0 | WYB55: 0 | WYC55: 0 | WYD55: 0 | WYE55: 0 | WYF55: 0 | WYG55: 0 | WYH55: 0 | WYI55: 0 | WYJ55: 0 | WYK55: 0 | WYL55: 0 | WYM55: 0 | WYN55: 0 | WYO55: 0 | WYP55: 0 | WYQ55: 0 | WYR55: 0 | WYS55: 0 | WYT55: 0 | WYU55: 0 | WYV55: 0 | WYW55: 0 | WYX55: 0 | WYY55: 0 | WYZ55: 0 | WZA55: 0 | WZB55: 0 | WZC55: 0 | WZD55: 0 | WZE55: 0 | WZF55: 0 | WZG55: 0 | WZH55: 0 | WZI55: 0 | WZJ55: 0 | WZK55: 0 | WZL55: 0 | WZM55: 0 | WZN55: 0 | WZO55: 0 | WZP55: 0 | WZQ55: 0 | WZR55: 0 | WZS55: 0 | WZT55: 0 | WZU55: 0 | WZV55: 0 | WZW55: 0 | WZX55: 0 | WZY55: 0 | WZZ55: 0 | XAA55: 0 | XAB55: 0 | XAC55: 0 | XAD55: 0 | XAE55: 0 | XAF55: 0 | XAG55: 0 | XAH55: 0 | XAI55: =XAI54-XAI53 -> 0 | XAJ55: 0 | XAK55: 0 | XAL55: 0 | XAM55: 0 | XAN55: 0 | XAO55: 0 | XAP55: 0 | XAQ55: 0 | XAR55: 0 | XAS55: 0 | XAT55: 0 | XAU55: 0 | XAV55: 0 | XAW55: 0 | XAX55: 0 | XAY55: 0 | XAZ55: 0 | XBA55: 0 | XBB55: 0 | XBC55: 0 | XBD55: 0 | XBE55: 0 | XBF55: 0 | XBG55: 0 | XBH55: 0 | XBI55: 0 | XBJ55: 0 | XBK55: 0 | XBL55: 0 | XBM55: 0 | XBN55: 0 | XBO55: 0 | XBP55: 0 | XBQ55: 0 | XBR55: 0 | XBS55: 0 | XBT55: 0 | XBU55: 0 | XBV55: 0 | XBW55: 0 | XBX55: 0 | XBY55: 0 | XBZ55: 0 | XCA55: 0 | XCB55: 0 | XCC55: 0 | XCD55: 0 | XCE55: 0 | XCF55: 0 | XCG55: 0 | XCH55: 0 | XCI55: 0 | XCJ55: 0 | XCK55: 0 | XCL55: 0 | XCM55: 0 | XCN55: 0 | XCO55: 0 | XCP55: 0 | XCQ55: 0 | XCR55: 0 | XCS55: 0 | XCT55: 0 | XCU55: =XCU54-XCU53 -> 0 | XCV55: 0 | XCW55: 0 | XCX55: 0 | XCY55: 0 | XCZ55: 0 | XDA55: 0 | XDB55: 0 | XDC55: 0 | XDD55: 0 | XDE55: 0 | XDF55: 0 | XDG55: 0 | XDH55: 0 | XDI55: 0 | XDJ55: 0 | XDK55: 0 | XDL55: 0 | XDM55: 0 | XDN55: 0 | XDO55: 0 | XDP55: 0 | XDQ55: 0 | XDR55: 0 | XDS55: 0 | XDT55: 0 | XDU55: 0 | XDV55: 0 | XDW55: 0 | XDX55: 0 | XDY55: 0 | XDZ55: 0 | XEA55: 0 | XEB55: 0 | XEC55: 0 | XED55: 0 | XEE55: 0 | XEF55: 0 | XEG55: 0 | XEH55: 0 | XEI55: 0 | XEJ55: 0 | XEK55: 0 | XEL55: 0 | XEM55: 0 | XEN55: 0 | XEO55: 0 | XEP55: 0 | XEQ55: 0 | XER55: 0 | XES55: 0 | XET55: 0 | XEU55: 0 | XEV55: 0 | XEW55: 0 | XEX55: 0 | XEY55: 0 | XEZ55: 0 | XFA55: 0 | XFB55: 0 | XFC55: 0 | XFD55: 0
A56: 2018-07-31 | B56: 4741.403637 | C56: 38808.81715 | D56: 953.685 | E56: 10737.90201 | F56: 14939.02498 | G56: 35819.23291 | H56: 1156.083503 | I56: 54.30970261 | J56: 9098.92592 | K56: 25724.02272 | L56: 48596.67453 | M56: 190630.0821
A57: 2018-08-31 | B57: 4051.26087 | C57: 39215.83981 | D57: 443.685 | E57: 9801.559123 | F57: 14394.20895 | G57: 31645.51524 | H57: 2580.42385 | I57: 54.40469427 | J57: 9186.44454 | K57: 28177.22237 | L57: 48314.20161 | M57: 187864.7661
A58: 2018-09-30 | B58: 3790.368376 | C58: 39276.41292 | D58: 1242.558 | E58: 9688.135046 | F58: 13519.35673 | G58: 31683.1093 | H58: 2641.473253 | I58: 56.90574797 | J58: 9292.84995 | K58: 29126.89701 | L58: 49640.66253 | M58: 189958.7288
A59: 2018-10-31 | B59: 3195.107406 | C59: 38627.48689 | D59: 2538.776 | E59: 9791.366271 | F59: 13796.43163 | G59: 30776.13597 | H59: 2428.232188 | I59: 57.69315528 | J59: 9096.6408 | K59: 28916.05982 | L59: 53042.90145 | M59: 192266.8316
A60: 2018-11-30 | B60: 5706.587927 | C60: 38636.03994 | D60: 3725.584 | E60: 10043.31699 | F60: 13481.05194 | G60: 30995.04674 | H60: 2415.295838 | I60: 58.43917815 | J60: 8587.86625 | K60: 28207.61776 | L60: 50339.45953 | M60: 192196.3061
A61: 2018-12-31 | B61: 3872.842466 | C61: 38195.48299 | D61: 2859.152 | E61: 10951.70673 | F61: 13680.25205 | G61: 32325.25682 | H61: 2440.594164 | I61: 62.18606016 | J61: 8054.5686 | K61: 27547.40733 | L61: 51469.56309 | M61: 191459.0123
A62: 2019-01-31 | B62: 5979.234025 | C62: 28194.16827 | D62: 2181.29 | E62: 9546.342232 | F62: 12926.89643 | G62: 32807.52886 | H62: 2538.368207 | I62: 58.66432061 | J62: 7794.76235 | K62: 25025.10905 | L62: 54498.85871 | M62: 181551.2225
A63: 2019-02-28 | B63: 7314.65935 | C63: 21130.19927 | D63: 1400.19 | E63: 9562.872232 | F63: 12700.97216 | G63: 31124.62447 | H63: 2505.689207 | I63: 58.73402061 | J63: 8097.21135 | K63: 25043.99876 | L63: 53397.79237 | M63: 172336.9432
A64: 2019-03-31 | B64: 10215.25515 | C64: 19940.47488 | D64: 515.49 | E64: 10004.26887 | F64: 12587.85971 | G64: 30841.3308 | H64: 2554.853514 | I64: 62.64085585 | J64: 9695.872895 | K64: 25415.72846 | L64: 53992.94095 | M64: 175826.7161
A65: 2019-04-30 | B65: 6918.482671 | C65: 19826.08895 | D65: 690.69 | E65: 10126.11478 | F65: 12070.02737 | G65: 29950.38796 | H65: 2518.108854 | I65: 63.48585801 | J65: 10469.55022 | K65: 26781.29706 | L65: 54090.08989 | M65: 173504.3236
A66: 2019-05-31 | B66: 7349.45939 | C66: 19716.98949 | D66: 714.6 | E66: 10215.33701 | F66: 12169.763 | G66: 29204.09181 | H66: 2607.565885 | I66: 67.3057209 | J66: 10917.29378 | K66: 27050.66196 | L66: 52845.25415 | M66: 172858.3222
A67: 2019-06-30 | B67: 8706.298222 | C67: 18768.24891 | D67: 293.34 | E67: 10546.19545 | F67: 12211.33653 | G67: 27928.53568 | H67: 2630.955293 | I67: 68.5169569 | J67: 10859.48091 | K67: 28156.90749 | L67: 53567.55472 | M67: 173737.3702
A68: 2019-07-31 | B68: 5961.28263 | C68: 18856.21312 | D68: 276.585 | E68: 10730.34782 | F68: 11794.58361 | G68: 27358.47209 | H68: 2688.713335 | I68: 76.02953591 | J68: 10688.99928 | K68: 24408.44906 | L68: 54894.67978 | M68: 167734.3553
A69: 2019-08-31 | B69: 7930.355537 | C69: 18419.49729 | D69: 285.51 | E69: 10752.91158 | F69: 11709.39514 | G69: 26693.28829 | H69: 2866.378327 | I69: 76.45204238 | J69: 10671.60348 | K69: 22342.99607 | L69: 54237.22896 | M69: 165985.6167
A70: 2019-09-30 | B70: 5792.39247 | C70: 18515.79035 | D70: 302.61 | E70: 10772.52339 | F70: 11765.8965 | G70: 26196.37958 | H70: 2872.210395 | I70: 81.6156391 | J70: 10528.09845 | K70: 22144.14109 | L70: 54229.30223 | M70: 163200.9601
A71: 2019-10-31 | B71: 4244.995538 | C71: 18648.11535 | D71: 294.41 | E71: 9449.699389 | F71: 11796.4245 | G71: 25726.35096 | H71: 2856.733395 | I71: 81.1932391 | J71: 11195.92645 | K71: 21047.42873 | L71: 53835.86923 | M71: 159177.1468
A72: 2019-11-30 | B72: 4796.240276 | C72: 17868.25635 | D72: 513.61 | E72: 9408.095389 | F72: 11413.84399 | G72: 26315.16111 | H72: 2874.512395 | I72: 83.7747391 | J72: 5867.587 | K72: 25299.38734 | L72: 53468.34024 | M72: 157908.8088
A73: 2019-12-31 | B73: 2899.963493 | C73: 17869.27336 | D73: 380.785 | E73: 14498.42834 | F73: 11373.59652 | G73: 26842.14214 | H73: 2851.740065 | I73: 92.01069018 | J73: 811.717 | K73: 25066.17246 | L73: 54634.90585 | M73: 157320.7349
A74: 2020-01-31 | B74: 4894.823893 | C74: 18220.95472 | D74: 353.56 | E74: 13671.834 | F74: 10300.18524 | G74: 26102.13951 | H74: 2793.645423 | I74: 106.625198 | J74: 797.303 | K74: 23216.24853 | L74: 54021.67042 | M74: 154478.9899
A75: 2020-02-29 | B75: 4801.777258 | C75: 18071.24483 | D75: 289.46 | E75: 13657.443 | F75: 10616.2932 | G75: 27212.86328 | H75: 2551.551021 | I75: 107.3706 | J75: 815.303 | K75: 23619.15965 | L75: 56105.3446 | M75: 157847.8104
A76: 2020-03-31 | B76: 4499.543831 | C76: 18406.33548 | D76: 302.985 | E76: 14279.557 | F76: 10714.18579 | G76: 24457.85242 | H76: 2416.285265 | I76: 109.1316 | J76: 789.778 | K76: 22327.60191 | L76: 54118.85627 | M76: 152422.1126
A77: 2020-04-30 | B77: 3469.011886 | C77: 18217.15921 | D77: 261.7 | E77: 13770.522 | F77: 9744.640674 | G77: 22291.76148 | H77: 2328.066758 | I77: 112.9273 | J77: 722.068 | K77: 20621.20591 | L77: 47623.95029 | M77: 139163.0135
A78: 2020-05-31 | B78: 5024.616611 | C78: 20037.35295 | D78: 234.2 | E78: 14053.499 | F78: 9887.4099 | G78: 20915.44605 | H78: 2416.910482 | I78: 112.0638 | J78: 730.628 | K78: 20774.5975 | L78: 47628.50369 | M78: 141815.228
A79: 2020-06-30 | B79: 4419.165878 | C79: 19870.84807 | D79: 331.344 | E79: 14389.705 | F79: 9546.026292 | G79: 19966.48664 | H79: 2336.851207 | I79: 111.7932 | J79: 738.608 | K79: 19823.55909 | L79: 45786.44206 | M79: 137320.8294
A80: 2020-07-31 | B80: 6885.494591 | C80: 18964.614 | D80: 364.7 | E80: 14172.89 | F80: 9814.583 | G80: 18987.45451 | H80: 1959.119 | I80: 125.6261 | J80: 738.808 | K80: 18918.41668 | L80: 46438.13989 | M80: 137369.8458
A81: 2020-08-31 | B81: 5394.998569 | C81: 18529.661 | D81: 350.7 | E81: 14496.331 | F81: 9882.995 | G81: 18036.48561 | H81: 1914.788 | I81: 119.1539 | J81: 731.726 | K81: 19391.11214 | L81: 47470.27428 | M81: 136318.2255
A82: 2020-09-30 | B82: 3364.467421 | C82: 19016.46 | D82: 510.7 | E82: 15025.631 | F82: 10453.084 | G82: 18325.64636 | H82: 1876.094 | I82: 120.3013 | J82: 734.614 | K82: 19250.49578 | L82: 46803.25591 | M82: 135480.7498
A83: 2020-10-31 | B83: 2934.724806 | C83: 18869.722 | D83: 339.1 | E83: 12610.305 | F83: 11406.222 | G83: 17462.15764 | H83: 1747.034 | I83: 119.5939 | J83: 752.946 | K83: 18352.83072 | L83: 46680.24772 | M83: 131274.8838
A84: 2020-11-30 | B84: 2685.672985 | C84: 18940.38 | D84: 411.7 | E84: 13048.02 | F84: 12162.346 | G84: 17316.92498 | H84: 1748.106 | I84: 125.4577 | J84: 769.846 | K84: 18048.69497 | L84: 47071.35068 | M84: 132328.4993
A85: 2020-12-31 | B85: 3979.435704 | C85: 19076.771 | D85: 411.7 | E85: 13046.473 | F85: 13237.43 | G85: 17430.69872 | H85: 1726.574 | I85: 125.8055 | J85: 707.612 | K85: 17429.23339 | L85: 46586.26136 | M85: 133757.9947
A86: 2021-01-31 | B86: 7360.969571 | C86: 19152.661 | D86: 411.7 | E86: 12836.573 | F86: 14026.475 | G86: 17003.27039 | H86: 1729.139 | I86: 130.694 | J86: 703.612 | K86: 17723.77537 | L86: 48206.45373 | M86: 139285.3231
A87: 2021-02-28 | B87: 6972.236877 | C87: 19242.842 | D87: 787.6 | E87: 12722.131 | F87: 14680.615 | G87: 16382.25511 | H87: 1698.576 | I87: 126.7554 | J87: 458.912 | K87: 18242.64341 | L87: 47176.94803 | M87: 138491.5148
A88: 2021-03-31 | B88: 6129.610987 | C88: 16858.755 | D88: 1076.654 | E88: 12471.482 | F88: 15157.357 | G88: 16670.70953 | H88: 1721.846 | I88: 129.8463 | J88: 471.777 | K88: 17706.90249 | L88: 46344.26201 | M88: 134739.2023
A89: 2021-04-30 | B89: 4457.014706 | C89: 15737.269 | D89: 634.2 | E89: 12596.02 | F89: 15630.905 | G89: 16194.60333 | H89: 245.91 | I89: 130.9114 | J89: 458.727 | K89: 17436.40557 | L89: 47761.17158 | M89: 131283.1376
A90: 2021-05-31 | B90: 3213.631106 | C90: 15562.872 | D90: 74.6 | E90: 10044.864 | F90: 13678.491 | G90: 14908.96753 | H90: 194.89 | I90: 135.0638 | J90: 501.927 | K90: 16560.5625 | L90: 45313.99093 | M90: 120189.8599
A91: 2021-06-30 | B91: 5188.350422 | C91: 16036.231 | D91: 46.4 | E91: 12065.329 | F91: 13764.672 | G91: 14070.90948 | H91: 196.11 | I91: 138.3416 | J91: 475.427 | K91: 16698.94193 | L91: 44760.35446 | M91: 123441.0669
A92: 2021-07-31 | B92: 4363.930404 | C92: 16135.324 | D92: 106.603 | E92: 13190.39 | F92: 14701.516 | G92: 15135.04976 | H92: 223.2 | I92: 141.2264 | J92: 489.367 | K92: 17888.61273 | L92: 45926.82843 | M92: 128302.0477
A93: 2021-08-31 | B93: 4800.236237 | C93: 16366.12 | D93: 493.159 | E93: 13830.841 | F93: 14860.005 | G93: 13726.15963 | H93: 1737.476 | I93: 147.9134 | J93: 475.867 | K93: 17710.11411 | L93: 44573.06164 | M93: 128720.953
A94: 2021-09-30 | B94: 4546.082625 | C94: 15735.763 | D94: 569.979 | E94: 14317.861 | F94: 14750.08 | G94: 13457.97755 | H94: 1639.123 | I94: 152.4069 | J94: 460.667 | K94: 17490.61834 | L94: 46171.93142 | M94: 129292.4898
A95: 2021-10-31 | B95: 3400.76942 | C95: 15550.753 | D95: 552.479 | E95: 14031.684 | F95: 13919.177 | G95: 12643.00768 | H95: 1532.865 | I95: 154.829 | J95: 472 | K95: 16828.04597 | L95: 46562.15332 | M95: 125647.7634
A96: 2021-11-30 | B96: 2867.143275 | C96: 15701.35 | D96: 476.179 | E96: 11191.773 | F96: 13783.9 | G96: 13707.12999 | H96: 1483.269 | I96: 158.5083894 | J96: 477.3 | K96: 17047.47461 | L96: 48788.78105 | M96: 125682.8083
A97: 2021-12-31 | B97: 2584.616227 | C97: 17563.242 | D97: 255.934 | E97: 9287.546 | F97: 13596.487 | G97: 14183.18024 | H97: 1450.997 | I97: 170.26111 | J97: 547.3 | K97: 15670.42842 | L97: 49247.70628 | M97: 124557.6983
A98: 2022-01-31 | B98: 2931.435486 | C98: 17544.975 | D98: 140.634 | E98: 9681.968 | F98: 13420.34 | G98: 13852.95993 | H98: 1476.513 | I98: 170.1713622 | J98: 558.5 | K98: 16310.07636 | L98: 51247.25165 | M98: 127334.8248
A99: 2022-02-28 | B99: 3557.835404 | C99: 17685.05 | D99: 150.834 | E99: 9721.062 | F99: 13283.326 | G99: 14147.43589 | H99: 1499.364 | I99: 165.1745599 | J99: 611.5 | K99: 17089.18514 | L99: 49210.49168 | M99: 127121.2587
A100: 2022-03-31 | B100: 6505.590856 | C100: 17699.958 | D100: 462.234 | E100: 6260.322 | F100: 13741.601 | G100: 15753.8135 | H100: 1559.058 | I100: 172.545765 | J100: 613.235 | K100: 19392.88874 | L100: 47969.31922 | M100: 130130.5661
A101: 2022-04-30 | B101: 4410.431297 | C101: 18593.791 | D101: 391.134 | E101: 5622.992 | F101: 14089.532 | G101: 18726.78075 | H101: 1542.481 | I101: 213.4435106 | J101: 573.885 | K101: 17518.84377 | L101: 53117.21666 | M101: 134800.531
A102: 2022-05-31 | B102: 6249.672765 | C102: 19917.271 | D102: 390.234 | E102: 5234.91 | F102: 14121.856 | G102: 19910.62694 | H102: 1603.893 | I102: 222.6081408 | J102: 667.885 | K102: 19478.06931 | L102: 52591.56809 | M102: 140388.5942
A103: 2022-06-30 | B103: 4028.618219 | C103: 20313.33 | D103: 204.968 | E103: 5830.193 | F103: 15456.323 | G103: 21042.24963 | H103: 1658.184 | I103: 240.3130107 | J103: 738.857 | K103: 18833.46934 | L103: 58278.77979 | M103: 146625.285
A104: 2022-07-31 | B104: 3631.541237 | C104: 19700.845 | D104: 218.041 | E104: 4796.153 | F104: 15076.313 | G104: 21044.94002 | H104: 1679.839 | I104: 264.0803328 | J104: 745.657 | K104: 19209.33116 | L104: 56042.29804 | M104: 142409.0388
A105: 2022-08-31 | B105: 2196.046798 | C105: 21019.097 | D105: 164.534 | E105: 3842.587 | F105: 15777.267 | G105: 20907.25374 | H105: 1676.616 | I105: 281.4979889 | J105: 781.657 | K105: 20274.0509 | L105: 57636.66951 | M105: 144557.2769
A106: 2022-09-30 | B106: 3165.618086 | C106: 20796.397 | D106: 850.039 | E106: 3302.313 | F106: 17871.99 | G106: 20845.23932 | H106: 1551.175 | I106: 292.1015783 | J106: 2037.812 | K106: 20300.21215 | L106: 57643.78834 | M106: 148656.6855
A107: 2022-10-31 | B107: 1946.047265 | C107: 20914.651 | D107: 971.105 | E107: 4090.532 | F107: 17764.603 | G107: 20725.95518 | H107: 1503.634 | I107: 308.3841114 | J107: 2012.832 | K107: 21777.96487 | L107: 55893.86078 | M107: 147909.5692
A108: 2022-11-30 | B108: 3377.231933 | C108: 21976.669 | D108: 1059.34 | E108: 5516.879 | F108: 17424.638 | G108: 21192.82993 | H108: 1585.736 | I108: 303.9794797 | J108: 2059.677 | K108: 20141.69056 | L108: 54880.89013 | M108: 149519.561
A109: 2022-12-31 | B109: 2383.972823 | C109: 22215.392 | D109: 1035.001 | E109: 5245.784 | F109: 17784.309 | G109: 19918.67235 | H109: 1764.689 | I109: 308.3221539 | J109: 2113.461 | K109: 20261.35908 | L109: 53143.20858 | M109: 146174.171
A110: 2023-01-31 | B110: 3096.525575 | C110: 21393.621 | D110: 1474.513 | E110: 5087.256 | F110: 17935.763 | G110: 19957.19451 | H110: 1766.056 | I110: 299.417306 | J110: 2095.097 | K110: 19824.55736 | L110: 53338.00038 | M110: 146268.0011
A111: 2023-02-28 | B111: 2144.008991 | C111: 20325.012 | D111: 1317.307 | E111: 5527.389 | F111: 17344.109 | G111: 18230.4686 | H111: 1745.824 | I111: 304.9660744 | J111: 1728.58 | K111: 19831.42577 | L111: 52369.55744 | M111: 140868.6479
A112: 2023-03-31 | B112: 4243.444927 | C112: 19290.674 | D112: 1349.68 | E112: 5974.037 | F112: 17870.838 | G112: 18449.8398 | H112: 1734.206 | I112: 313.4010136 | J112: 1720.986 | K112: 19941.04806 | L112: 51231.39302 | M112: 142119.5478
A113: 2023-04-30 | B113: 3595.935349 | C113: 18987.679 | D113: 1573.951 | E113: 6170.866 | F113: 17512.191 | G113: 18243.97059 | H113: 1736.776 | I113: 307.6005373 | J113: 1685.607 | K113: 19812.14546 | L113: 50204.92074 | M113: 139831.6427
A114: 2023-05-31 | B114: 3977.254597 | C114: 18867.444 | D114: 1462.351 | E114: 6178.36 | F114: 17416.756 | G114: 17662.80777 | H114: 1704.366 | I114: 319.6253766 | J114: 1449.468 | K114: 18382.50913 | L114: 48755.00698 | M114: 136175.9489
A115: 2023-06-30 | B115: 5254.311579 | C115: 20011.069 | D115: 1142.402 | E115: 5202.522 | F115: 16125.843 | G115: 16410.09657 | H115: 1598.578 | I115: 330.3564132 | J115: 1029.741 | K115: 18463.69307 | L115: 49348.75555 | M115: 134917.3682
A116: 2023-07-31 | B116: 4120.134815 | C116: 19550.951 | D116: 1175.284 | E116: 4697.6 | F116: 16250.321 | G116: 16443.14379 | H116: 1636.638 | I116: 338.4992307 | J116: 1094.126 | K116: 19190.60967 | L116: 51485.0804 | M116: 135982.3879
A117: 2023-08-31 | B117: 3949.945 | C117: 19428.93 | D117: 1191.143 | E117: 4637.623 | F117: 16815.424 | G117: 16087.48 | H117: 1523.447 | I117: 325.0925 | J117: 1185.062 | K117: 18704.541 | L117: 50980.007 | M117: 134828.6945
A118: 2023-09-30 | B118: 5024.213 | C118: 18090.237 | D118: 1093.358 | E118: 4321.512 | F118: 16352.652 | G118: 15165.48 | H118: 1402.607 | I118: 362.4686 | J118: 940.875 | K118: 17371.922 | L118: 49552.464 | M118: 129677.7886
A119: 2023-10-31 | B119: 4349.265 | C119: 17892.712 | D119: 1179.908 | E119: 3578.555 | F119: 16645.262 | G119: 15022.31 | H119: 1290.664 | I119: 373.4826 | J119: 916.7 | K119: 19085.676 | L119: 49739.914 | M119: 130074.4486
A120: 2023-11-30 | B120: 5048.614 | C120: 18380.492 | D120: 1155.936 | E120: 2688.448 | F120: 16479.968 | G120: 15350.585 | H120: 1195.274 | I120: 374.7631 | J120: 944.912 | K120: 17313.116 | L120: 50522.582 | M120: 129454.6901
A121: 2023-12-31 | B121: 7921.068 | C121: 18672.163 | D121: 1164.866 | E121: 2786.203 | F121: 16765.52 | G121: 15687.192 | H121: 1256.459 | I121: 383.866 | J121: 947.727 | K121: 16999.318 | L121: 49589.716 | M121: 132174.098
A122: 2024-01-31 | B122: 5176.598 | C122: 18823.943 | D122: 1143.856 | E122: 2119.641 | F122: 16567.86 | G122: 16060.896 | H122: 1200.077 | I122: 383.0682 | J122: 804.461 | K122: 16168.559 | L122: 53713.183 | M122: 132162.1422
A123: 2024-02-29 | B123: 4732.968 | C123: 19620.246 | D123: 1143.508 | E123: 1896.099 | F123: 16638.059 | G123: 15411.793 | H123: 1239.525 | I123: 414.8583 | J123: 770.122 | K123: 16209.954 | L123: 55357.957 | M123: 133435.0893
A124: 2024-03-31 | B124: 4575.333 | C124: 18326.856 | D124: 1213.441 | E124: 2599.339 | F124: 17459.213 | G124: 15942.98 | H124: 1403.997 | I124: 415.23 | J124: 776.102 | K124: 16062.922 | L124: 53392.29 | M124: 132167.703
A125: 2024-04-30 | B125: 4470.47 | C125: 20487.036 | D125: 1202.831 | E125: 1835.47 | F125: 17741.556 | G125: 16808.521 | H125: 1401.31 | I125: 424.1408 | J125: 815.641 | K125: 15838.671 | L125: 50067.352 | M125: 131092.9988
A126: 2024-05-31 | B126: 4833.685 | C126: 20221.745 | D126: 1241.593 | E126: 2005.248 | F126: 17271.985 | G126: 17348.077 | H126: 1403.51 | I126: 429.7768 | J126: 836.192 | K126: 15833.236 | L126: 51086.537 | M126: 132511.5848
A127: 2024-06-30 | B127: 6500.00756 | C127: 21414.413 | D127: 1259.683 | E127: 2043.403 | F127: 17613.246 | G127: 17912.671 | H127: 1451.495 | I127: 448.88 | J127: 886.192 | K127: 16681.625 | L127: 51320.16808 | M127: 137531.7836
A128: 2024-07-31 | B128: 5656.936364 | C128: 21573.572 | D128: 1184.610462 | E128: 2132.261 | F128: 18846.73152 | G128: 19660.24102 | H128: 1366.693 | I128: 442.133719 | J128: 830.9170429 | K128: 16485.17072 | L128: 57619.62951 | M128: 145798.8964
A129: 2024-08-31 | B129: 6046.690499 | C129: 22306.355 | D129: 944.2920809 | E129: 2177.222 | F129: 18112.0732 | G129: 17757.92282 | H129: 1364.571572 | I129: 445.0426349 | J129: 871.3303029 | K129: 16204.83177 | L129: 57573.78678 | M129: 143804.1187
A130: 2024-09-30 | B130: 6276.560074 | C130: 22344.27997 | D130: 1210.443158 | E130: 2327.077 | F130: 18905.08416 | G130: 17720.16677 | H130: 1305.936436 | I130: 482.5643323 | J130: 873.6717581 | K130: 16977.44688 | L130: 61160.5867 | M130: 149583.8172
A131: 2024-10-31 | B131: 6821.092121 | C131: 22426.75499 | D131: 2673.889415 | E131: 2088.148 | F131: 19047.62902 | G131: 18196.0966 | H131: 1156.115741 | I131: 491.1402036 | J131: 868.0147122 | K131: 17172.84563 | L131: 57489.80487 | M131: 148431.5313
A132: 2024-11-30 | B132: 5741.589416 | C132: 22977.83747 | D132: 2989.117889 | E132: 2199.568 | F132: 18865.86331 | G132: 19405.17515 | H132: 1164.464 | I132: 498.2375197 | J132: 850.16 | K132: 18154.23496 | L132: 57512.96047 | M132: 150359.2082
A133: 2024-12-31 | B133: 5147.499836 | C133: 23233.70765 | D133: 2933.642151 | E133: 2425.236832 | F133: 19440.95772 | G133: 19669.75395 | H133: 1271.608423 | I133: 501.0425763 | J133: 1095.141747 | K133: 17129.28709 | L133: 55572.51587 | M133: 148420.3938
A134: 2025-01-31 | B134: 7849.328634 | C134: 21811.0215 | D134: 2124.703096 | E134: 2406.779767 | F134: 19789.27442 | G134: 20108.22927 | H134: 1213.010082 | I134: 513.8928696 | J134: 1097.149326 | K134: 17453.95299 | L134: 60954.66491 | M134: 155322.0069
A135: 2025-02-28 | B135: 10229.65746 | C135: 21555.03802 | D135: 2137.836875 | E135: 2607.292996 | F135: 19648.04009 | G135: 20942.79822 | H135: 1089.942552 | I135: 519.5266892 | J135: 1100.882004 | K135: 17383.09081 | L135: 64767.34556 | M135: 161981.4513
A136: 2025-03-31 | B136: 8528.54232 | C136: 21643.29023 | D136: 2139.503231 | E136: 2617.544677 | F136: 20206.16708 | G136: 21162.20307 | H136: 1172.03083 | I136: 521.6295335 | J136: 1098.221716 | K136: 16545.44673 | L136: 64748.17564 | M136: 160382.7551

Sheet Bony skarbowe_podmiot
A1: Struktura podmiotowa nierezydentów w bonach skarbowych (mln zł)
A3: Data | B3: Banki | C3: Banki centralne | D3: Instytucje publiczne | E3: Zakłady ubezpieczeniowe | F3: Fundusze emerytalne | G3: Fundusze inwestycyjne | H3: Fundusze hedgingowe | I3: Gospodarstwa domowe | J3: Przedsiębiorstwa niefinansowe | K3: Inne podmioty | L3: Rachunki zbiorcze | M3: Razem
A5: ='Obligacje skarbowe_podmiot'!A5 -> 2014-04-30 | B5: 0 | C5: 0 | D5: 0 | E5: 0 | F5: 0 | G5: 0 | H5: 0 | I5: 0 | J5: 0 | K5: 0 | L5: 0 | M5: =SUM(B5:L5) -> 0
A6: ='Obligacje skarbowe_podmiot'!A6 -> 2014-05-31 | B6: 0 | C6: 0 | D6: 0 | E6: 0 | F6: 0 | G6: 0 | H6: 0 | I6: 0 | J6: 0 | K6: 0 | L6: 0 | M6: 0
A7: ='Obligacje skarbowe_podmiot'!A7 -> 2014-06-30 | B7: 0 | C7: 0 | D7: 0 | E7: 0 | F7: 0 | G7: 0 | H7: 0 | I7: 0 | J7: 0 | K7: 0 | L7: 0 | M7: 0
A8: ='Obligacje skarbowe_podmiot'!A8 -> 2014-07-31 | B8: 0 | C8: 0 | D8: 0 | E8: 0 | F8: 0 | G8: 0 | H8: 0 | I8: 0 | J8: 0 | K8: 0 | L8: 0 | M8: 0
A9: ='Obligacje skarbowe_podmiot'!A9 -> 2014-08-31 | B9: 0 | C9: 0 | D9: 0 | E9: 0 | F9: 0 | G9: 0 | H9: 0 | I9: 0 | J9: 0 | K9: 0 | L9: 0 | M9: 0
A10: ='Obligacje skarbowe_podmiot'!A10 -> 2014-09-30 | B10: 0 | C10: 0 | D10: 0 | E10: 0 | F10: 0 | G10: 0 | H10: 0 | I10: 0 | J10: 0 | K10: 0 | L10: 0 | M10: 0
A11: ='Obligacje skarbowe_podmiot'!A11 -> 2014-10-31 | B11: 0 | C11: 0 | D11: 0 | E11: 0 | F11: 0 | G11: 0 | H11: 0 | I11: 0 | J11: 0 | K11: 0 | L11: 0 | M11: =SUM(B11:L11) -> 0
A12: ='Obligacje skarbowe_podmiot'!A12 -> 2014-11-30 | B12: 0 | C12: 0 | D12: 0 | E12: 0 | F12: 0 | G12: 0 | H12: 0 | I12: 0 | J12: 0 | K12: 0 | L12: 0 | M12: =SUM(B12:L12) -> 0
A13: ='Obligacje skarbowe_podmiot'!A13 -> 2014-12-31 | B13: 0 | C13: 0 | D13: 0 | E13: 0 | F13: 0 | G13: 0 | H13: 0 | I13: 0 | J13: 0 | K13: 0 | L13: 0 | M13: 0
A14: ='Obligacje skarbowe_podmiot'!A14 -> 2015-01-31 | B14: 0 | C14: 0 | D14: 0 | E14: 0 | F14: 0 | G14: 0 | H14: 0 | I14: 0 | J14: 0 | K14: 0 | L14: 0 | M14: 0
A15: ='Obligacje skarbowe_podmiot'!A15 -> 2015-02-28 | B15: 0 | C15: 0 | D15: 0 | E15: 0 | F15: 0 | G15: 0 | H15: 0 | I15: 0 | J15: 0 | K15: 0 | L15: 0 | M15: 0
A16: ='Obligacje skarbowe_podmiot'!A16 -> 2015-03-31 | B16: 0 | C16: 0 | D16: 0 | E16: 0 | F16: 0 | G16: 0 | H16: 0 | I16: 0 | J16: 0 | K16: 0 | L16: 0 | M16: 0
A17: ='Obligacje skarbowe_podmiot'!A17 -> 2015-04-30 | B17: 0 | C17: 0 | D17: 0 | E17: 0 | F17: 0 | G17: 0 | H17: 0 | I17: 0 | J17: 0 | K17: 0 | L17: 0 | M17: 0
A18: ='Obligacje skarbowe_podmiot'!A18 -> 2015-05-31 | B18: 0 | C18: 0 | D18: 0 | E18: 0 | F18: 0 | G18: 0 | H18: 0 | I18: 0 | J18: 0 | K18: 0 | L18: 0 | M18: 0
A19: ='Obligacje skarbowe_podmiot'!A19 -> 2015-06-30 | B19: 0 | C19: 0 | D19: 0 | E19: 0 | F19: 0 | G19: 0 | H19: 0 | I19: 0 | J19: 0 | K19: 0 | L19: 0 | M19: 0
A20: ='Obligacje skarbowe_podmiot'!A20 -> 2015-07-31 | B20: 0 | C20: 0 | D20: 0 | E20: 0 | F20: 0 | G20: 0 | H20: 0 | I20: 0 | J20: 0 | K20: 0 | L20: 0 | M20: 0
A21: ='Obligacje skarbowe_podmiot'!A21 -> 2015-08-31 | B21: 0 | C21: 0 | D21: 0 | E21: 0 | F21: 0 | G21: 0 | H21: 0 | I21: 0 | J21: 0 | K21: 0 | L21: 0 | M21: 0
A22: ='Obligacje skarbowe_podmiot'!A22 -> 2015-09-30 | B22: 0 | C22: 0 | D22: 0 | E22: 0 | F22: 0 | G22: 0 | H22: 0 | I22: 0 | J22: 0 | K22: 0 | L22: 0 | M22: 0
A23: ='Obligacje skarbowe_podmiot'!A23 -> 2015-10-31 | B23: 0 | C23: 0 | D23: 0 | E23: 0 | F23: 0 | G23: 0 | H23: 0 | I23: 0 | J23: 0 | K23: 0 | L23: 0 | M23: 0
A24: ='Obligacje skarbowe_podmiot'!A24 -> 2015-11-30 | B24: 0 | C24: 0 | D24: 0 | E24: 0 | F24: 0 | G24: 0 | H24: 0 | I24: 0 | J24: 0 | K24: 0 | L24: 0 | M24: 0
A25: ='Obligacje skarbowe_podmiot'!A25 -> 2015-12-31 | B25: 0 | C25: 0 | D25: 0 | E25: 0 | F25: 0 | G25: 0 | H25: 0 | I25: 0 | J25: 0 | K25: 0 | L25: 0 | M25: 0
A26: ='Obligacje skarbowe_podmiot'!A26 -> 2016-01-31 | B26: 0 | C26: 0 | D26: 0 | E26: 0 | F26: 0 | G26: 0 | H26: 0 | I26: 0 | J26: 0 | K26: 0 | L26: 0 | M26: 0
A27: ='Obligacje skarbowe_podmiot'!A27 -> 2016-02-29 | B27: 50 | C27: 0 | D27: 0 | E27: 0 | F27: 0 | G27: 0 | H27: 0 | I27: 0 | J27: 0 | K27: 0 | L27: 0 | M27: 50
A28: ='Obligacje skarbowe_podmiot'!A28 -> 2016-03-31 | B28: 50.65 | C28: 0 | D28: 0 | E28: 0 | F28: 0 | G28: 0 | H28: 0 | I28: 0 | J28: 0 | K28: 0 | L28: 0 | M28: 50.65
A29: ='Obligacje skarbowe_podmiot'!A29 -> 2016-04-30 | B29: 61.15 | C29: 0 | D29: 0 | E29: 0 | F29: 0 | G29: 0 | H29: 0 | I29: 0 | J29: 0 | K29: 0 | L29: 0 | M29: 61.15
A30: ='Obligacje skarbowe_podmiot'!A30 -> 2016-05-31 | B30: 38.15 | C30: 0 | D30: 0 | E30: 0 | F30: 0 | G30: 0 | H30: 0 | I30: 0 | J30: 0 | K30: 0 | L30: 0 | M30: 38.15
A31: ='Obligacje skarbowe_podmiot'!A31 -> 2016-06-30 | B31: 41.15 | C31: 0 | D31: 0 | E31: 0 | F31: 0 | G31: 0 | H31: 0 | I31: 0 | J31: 0 | K31: 0 | L31: 0 | M31: =SUM(B31:L31) -> 41.15
A32: ='Obligacje skarbowe_podmiot'!A32 -> 2016-07-31 | B32: 16.15 | C32: 0 | D32: 0 | E32: 0 | F32: 0 | G32: 0 | H32: 0 | I32: 0 | J32: 0 | K32: 0 | L32: 0 | M32: 16.15
A33: ='Obligacje skarbowe_podmiot'!A33 -> 2016-08-31 | B33: 0 | C33: 0 | D33: 0 | E33: 0 | F33: 0 | G33: 0 | H33: 0 | I33: 0 | J33: 0 | K33: 0 | L33: 0 | M33: 0
A34: ='Obligacje skarbowe_podmiot'!A34 -> 2016-09-30 | B34: 0 | C34: 0 | D34: 0 | E34: 0 | F34: 0 | G34: 0 | H34: 0 | I34: 0 | J34: 0 | K34: 0 | L34: 0 | M34: =SUM(B34:L34) -> 0
A35: ='Obligacje skarbowe_podmiot'!A35 -> 2016-10-31 | B35: 0 | C35: 0 | D35: 0 | E35: 0 | F35: 0 | G35: 0 | H35: 0 | I35: 0 | J35: 0 | K35: 0 | L35: 0 | M35: =SUM(B35:L35) -> 0
A36: ='Obligacje skarbowe_podmiot'!A36 -> 2016-11-30 | B36: 0 | C36: 0 | D36: 0 | E36: 0 | F36: 0 | G36: 0 | H36: 0 | I36: 0 | J36: 0 | K36: 0 | L36: 0 | M36: =SUM(B36:L36) -> 0
A37: ='Obligacje skarbowe_podmiot'!A37 -> 2016-12-31 | B37: 0 | C37: 0 | D37: 0 | E37: 0 | F37: 0 | G37: 0 | H37: 0 | I37: 0 | J37: 0 | K37: 0 | L37: 0 | M37: =SUM(B37:L37) -> 0
A38: ='Obligacje skarbowe_podmiot'!A38 -> 2017-01-31 | B38: 20 | C38: 0 | D38: 0 | E38: 0 | F38: 0 | G38: 0 | H38: 0 | I38: 0 | J38: 0 | K38: 0 | L38: 0 | M38: 20
A39: ='Obligacje skarbowe_podmiot'!A39 -> 2017-02-28 | B39: 49 | C39: 0 | D39: 0 | E39: 0 | F39: 0 | G39: 0 | H39: 0 | I39: 0 | J39: 0 | K39: 0 | L39: 0 | M39: 49
A40: ='Obligacje skarbowe_podmiot'!A40 -> 2017-03-31 | B40: 69 | C40: 0 | D40: 0 | E40: 0 | F40: 0 | G40: 0 | H40: 0 | I40: 0 | J40: 0 | K40: 0 | L40: 0 | M40: =SUM(B40:L40) -> 69
A41: ='Obligacje skarbowe_podmiot'!A41 -> 2017-04-30 | B41: 69 | C41: 0 | D41: 0 | E41: 0 | F41: 0 | G41: 0 | H41: 0 | I41: 0 | J41: 0 | K41: 0 | L41: 0 | M41: 69
A42: ='Obligacje skarbowe_podmiot'!A42 -> 2017-05-31 | B42: 79 | C42: 0 | D42: 0 | E42: 0 | F42: 0 | G42: 0 | H42: 0 | I42: 0 | J42: 0 | K42: 0 | L42: 0 | M42: =SUM(B42:L42) -> 79
A43: ='Obligacje skarbowe_podmiot'!A43 -> 2017-06-30 | B43: 79 | C43: 0 | D43: 0 | E43: 0 | F43: 0 | G43: 0 | H43: 0 | I43: 0 | J43: 0 | K43: 0 | L43: 0 | M43: =SUM(B43:L43) -> 79
A44: ='Obligacje skarbowe_podmiot'!A44 -> 2017-07-31 | B44: 79 | C44: 0 | D44: 0 | E44: 0 | F44: 0 | G44: 0 | H44: 0 | I44: 0 | J44: 0 | K44: 0 | L44: 0 | M44: 79
A45: ='Obligacje skarbowe_podmiot'!A45 -> 2017-08-31 | B45: 0 | C45: 0 | D45: 0 | E45: 0 | F45: 0 | G45: 0 | H45: 0 | I45: 0 | J45: 0 | K45: 0 | L45: 0 | M45: 0
A46: ='Obligacje skarbowe_podmiot'!A46 -> 2017-09-30 | B46: 0 | C46: 0 | D46: 0 | E46: 0 | F46: 0 | G46: 0 | H46: 0 | I46: 0 | J46: 0 | K46: 0 | L46: 0 | M46: =SUM(B46:L46) -> 0
A47: ='Obligacje skarbowe_podmiot'!A47 -> 2017-10-31 | B47: 0 | C47: 0 | D47: 0 | E47: 0 | F47: 0 | G47: 0 | H47: 0 | I47: 0 | J47: 0 | K47: 0 | L47: 0 | M47: =SUM(B47:L47) -> 0
A48: ='Obligacje skarbowe_podmiot'!A48 -> 2017-11-30 | B48: 0 | C48: 0 | D48: 0 | E48: 0 | F48: 0 | G48: 0 | H48: 0 | I48: 0 | J48: 0 | K48: 0 | L48: 0 | M48: =SUM(B48:L48) -> 0
A49: ='Obligacje skarbowe_podmiot'!A49 -> 2017-12-31 | B49: 0 | C49: 0 | D49: 0 | E49: 0 | F49: 0 | G49: 0 | H49: 0 | I49: 0 | J49: 0 | K49: 0 | L49: 0 | M49: =SUM(B49:L49) -> 0
A50: ='Obligacje skarbowe_podmiot'!A50 -> 2018-01-31 | B50: 0 | C50: 0 | D50: 0 | E50: 0 | F50: 0 | G50: 0 | H50: 0 | I50: 0 | J50: 0 | K50: 0 | L50: 0 | M50: =SUM(B50:L50) -> 0
A51: ='Obligacje skarbowe_podmiot'!A51 -> 2018-02-28 | B51: 0 | C51: 0 | D51: 0 | E51: 0 | F51: 0 | G51: 0 | H51: 0 | I51: 0 | J51: 0 | K51: 0 | L51: 0 | M51: =SUM(B51:L51) -> 0
A52: ='Obligacje skarbowe_podmiot'!A52 -> 2018-03-31 | B52: 0 | C52: 0 | D52: 0 | E52: 0 | F52: 0 | G52: 0 | H52: 0 | I52: 0 | J52: 0 | K52: 0 | L52: 0 | M52: =SUM(B52:L52) -> 0
A53: ='Obligacje skarbowe_podmiot'!A53 -> 2018-04-30 | B53: 0 | C53: 0 | D53: 0 | E53: 0 | F53: 0 | G53: 0 | H53: 0 | I53: 0 | J53: 0 | K53: 0 | L53: 0 | M53: =SUM(B53:L53) -> 0
A54: ='Obligacje skarbowe_podmiot'!A54 -> 2018-05-31 | B54: 0 | C54: 0 | D54: 0 | E54: 0 | F54: 0 | G54: 0 | H54: 0 | I54: 0 | J54: 0 | K54: 0 | L54: 0 | M54: =SUM(B54:L54) -> 0
A55: ='Obligacje skarbowe_podmiot'!A55 -> 2018-06-30 | B55: 0 | C55: 0 | D55: 0 | E55: 0 | F55: 0 | G55: 0 | H55: 0 | I55: 0 | J55: 0 | K55: 0 | L55: 0 | M55: =SUM(B55:L55) -> 0
A56: ='Obligacje skarbowe_podmiot'!A56 -> 2018-07-31 | B56: 0 | C56: 0 | D56: 0 | E56: 0 | F56: 0 | G56: 0 | H56: 0 | I56: 0 | J56: 0 | K56: 0 | L56: 0 | M56: =SUM(B56:L56) -> 0
A57: ='Obligacje skarbowe_podmiot'!A57 -> 2018-08-31 | B57: 0 | C57: 0 | D57: 0 | E57: 0 | F57: 0 | G57: 0 | H57: 0 | I57: 0 | J57: 0 | K57: 0 | L57: 0 | M57: =SUM(B57:L57) -> 0
A58: ='Obligacje skarbowe_podmiot'!A58 -> 2018-09-30 | B58: 0 | C58: 0 | D58: 0 | E58: 0 | F58: 0 | G58: 0 | H58: 0 | I58: 0 | J58: 0 | K58: 0 | L58: 0 | M58: =SUM(B58:L58) -> 0
A59: ='Obligacje skarbowe_podmiot'!A59 -> 2018-10-31 | B59: 0 | C59: 0 | D59: 0 | E59: 0 | F59: 0 | G59: 0 | H59: 0 | I59: 0 | J59: 0 | K59: 0 | L59: 0 | M59: =SUM(B59:L59) -> 0
A60: ='Obligacje skarbowe_podmiot'!A60 -> 2018-11-30 | B60: 0 | C60: 0 | D60: 0 | E60: 0 | F60: 0 | G60: 0 | H60: 0 | I60: 0 | J60: 0 | K60: 0 | L60: 0 | M60: =SUM(B60:L60) -> 0
A61: ='Obligacje skarbowe_podmiot'!A61 -> 2018-12-31 | B61: 0 | C61: 0 | D61: 0 | E61: 0 | F61: 0 | G61: 0 | H61: 0 | I61: 0 | J61: 0 | K61: 0 | L61: 0 | M61: =SUM(B61:L61) -> 0
A62: ='Obligacje skarbowe_podmiot'!A62 -> 2019-01-31 | B62: 0 | C62: 0 | D62: 0 | E62: 0 | F62: 0 | G62: 0 | H62: 0 | I62: 0 | J62: 0 | K62: 0 | L62: 0 | M62: =SUM(B62:L62) -> 0
A63: ='Obligacje skarbowe_podmiot'!A63 -> 2019-02-28 | B63: 0 | C63: 0 | D63: 0 | E63: 0 | F63: 0 | G63: 0 | H63: 0 | I63: 0 | J63: 0 | K63: 0 | L63: 0 | M63: =SUM(B63:L63) -> 0
A64: ='Obligacje skarbowe_podmiot'!A64 -> 2019-03-31 | B64: 0 | C64: 0 | D64: 0 | E64: 0 | F64: 0 | G64: 0 | H64: 0 | I64: 0 | J64: 0 | K64: 0 | L64: 0 | M64: =SUM(B64:L64) -> 0
A65: ='Obligacje skarbowe_podmiot'!A65 -> 2019-04-30 | B65: 0 | C65: 0 | D65: 0 | E65: 0 | F65: 0 | G65: 0 | H65: 0 | I65: 0 | J65: 0 | K65: 0 | L65: 0 | M65: =SUM(B65:L65) -> 0
A66: ='Obligacje skarbowe_podmiot'!A66 -> 2019-05-31 | B66: 0 | C66: 0 | D66: 0 | E66: 0 | F66: 0 | G66: 0 | H66: 0 | I66: 0 | J66: 0 | K66: 0 | L66: 0 | M66: =SUM(B66:L66) -> 0
A67: ='Obligacje skarbowe_podmiot'!A67 -> 2019-06-30 | B67: 0 | C67: 0 | D67: 0 | E67: 0 | F67: 0 | G67: 0 | H67: 0 | I67: 0 | J67: 0 | K67: 0 | L67: 0 | M67: =SUM(B67:L67) -> 0
A68: ='Obligacje skarbowe_podmiot'!A68 -> 2019-07-31 | B68: 0 | C68: 0 | D68: 0 | E68: 0 | F68: 0 | G68: 0 | H68: 0 | I68: 0 | J68: 0 | K68: 0 | L68: 0 | M68: =SUM(B68:L68) -> 0
A69: ='Obligacje skarbowe_podmiot'!A69 -> 2019-08-31 | B69: 0 | C69: 0 | D69: 0 | E69: 0 | F69: 0 | G69: 0 | H69: 0 | I69: 0 | J69: 0 | K69: 0 | L69: 0 | M69: =SUM(B69:L69) -> 0
A70: ='Obligacje skarbowe_podmiot'!A70 -> 2019-09-30 | B70: 0 | C70: 0 | D70: 0 | E70: 0 | F70: 0 | G70: 0 | H70: 0 | I70: 0 | J70: 0 | K70: 0 | L70: 0 | M70: =SUM(B70:L70) -> 0
A71: ='Obligacje skarbowe_podmiot'!A71 -> 2019-10-31 | B71: 0 | C71: 0 | D71: 0 | E71: 0 | F71: 0 | G71: 0 | H71: 0 | I71: 0 | J71: 0 | K71: 0 | L71: 0 | M71: =SUM(B71:L71) -> 0
A72: ='Obligacje skarbowe_podmiot'!A72 -> 2019-11-30 | B72: 0 | C72: 0 | D72: 0 | E72: 0 | F72: 0 | G72: 0 | H72: 0 | I72: 0 | J72: 0 | K72: 0 | L72: 0 | M72: =SUM(B72:L72) -> 0
A73: ='Obligacje skarbowe_podmiot'!A73 -> 2019-12-31 | B73: 0 | C73: 0 | D73: 0 | E73: 0 | F73: 0 | G73: 0 | H73: 0 | I73: 0 | J73: 0 | K73: 0 | L73: 0 | M73: =SUM(B73:L73) -> 0
A74: ='Obligacje skarbowe_podmiot'!A74 -> 2020-01-31 | B74: 0 | C74: 0 | D74: 0 | E74: 0 | F74: 0 | G74: 0 | H74: 0 | I74: 0 | J74: 0 | K74: 0 | L74: 0 | M74: =SUM(B74:L74) -> 0
A75: ='Obligacje skarbowe_podmiot'!A75 -> 2020-02-29 | B75: 0 | C75: 0 | D75: 0 | E75: 0 | F75: 0 | G75: 0 | H75: 0 | I75: 0 | J75: 0 | K75: 0 | L75: 0 | M75: =SUM(B75:L75) -> 0
A76: ='Obligacje skarbowe_podmiot'!A76 -> 2020-03-31 | B76: 0 | C76: 0 | D76: 0 | E76: 0 | F76: 0 | G76: 0 | H76: 0 | I76: 0 | J76: 0 | K76: 0 | L76: 0 | M76: =SUM(B76:L76) -> 0
A77: ='Obligacje skarbowe_podmiot'!A77 -> 2020-04-30 | B77: 400 | C77: 0 | D77: 0 | E77: 0 | F77: 0 | G77: 0 | H77: 0 | I77: 0 | J77: 0 | K77: 0 | L77: 0 | M77: 400
A78: ='Obligacje skarbowe_podmiot'!A78 -> 2020-05-31 | B78: 200 | C78: 0 | D78: 0 | E78: 0 | F78: 0 | G78: 0 | H78: 0 | I78: 0 | J78: 0 | K78: 0 | L78: 0 | M78: 200
A79: ='Obligacje skarbowe_podmiot'!A79 -> 2020-06-30 | B79: 307.8 | C79: 0 | D79: 0 | E79: 0 | F79: 0 | G79: 0 | H79: 0 | I79: 0 | J79: 0 | K79: 0 | L79: 0 | M79: 307.8
A80: ='Obligacje skarbowe_podmiot'!A80 -> 2020-07-31 | B80: 307.8 | C80: 0 | D80: 0 | E80: 0 | F80: 0 | G80: 0 | H80: 0 | I80: 0 | J80: 0 | K80: 0 | L80: 0 | M80: 307.8
A81: ='Obligacje skarbowe_podmiot'!A81 -> 2020-08-31 | B81: 245 | C81: 0 | D81: 0 | E81: 0 | F81: 0 | G81: 0 | H81: 0 | I81: 0 | J81: 0 | K81: 0 | L81: 0 | M81: =SUM(B81:L81) -> 245
A82: ='Obligacje skarbowe_podmiot'!A82 -> 2020-09-30 | B82: 245 | C82: 0 | D82: 0 | E82: 0 | F82: 0 | G82: 0 | H82: 0 | I82: 0 | J82: 0 | K82: 0 | L82: 0 | M82: =SUM(B82:L82) -> 245
A83: ='Obligacje skarbowe_podmiot'!A83 -> 2020-10-31 | B83: 0 | C83: 0 | D83: 0 | E83: 0 | F83: 0 | G83: 0 | H83: 0 | I83: 0 | J83: 0 | K83: 0 | L83: 0 | M83: 0
A84: ='Obligacje skarbowe_podmiot'!A84 -> 2020-11-30 | B84: 0 | C84: 0 | D84: 0 | E84: 0 | F84: 0 | G84: 0 | H84: 0 | I84: 0 | J84: 0 | K84: 0 | L84: 0 | M84: 0
A85: ='Obligacje skarbowe_podmiot'!A85 -> 2020-12-31 | B85: 0 | C85: 0 | D85: 0 | E85: 0 | F85: 0 | G85: 0 | H85: 0 | I85: 0 | J85: 0 | K85: 0 | L85: 0 | M85: 0
A86: ='Obligacje skarbowe_podmiot'!A86 -> 2021-01-31 | B86: 0 | C86: 0 | D86: 0 | E86: 0 | F86: 0 | G86: 0 | H86: 0 | I86: 0 | J86: 0 | K86: 0 | L86: 0 | M86: 0
A87: ='Obligacje skarbowe_podmiot'!A87 -> 2021-02-28 | B87: 200 | C87: 0 | D87: 0 | E87: 0 | F87: 0 | G87: 0 | H87: 0 | I87: 0 | J87: 0 | K87: 750 | L87: 0 | M87: 950
A88: ='Obligacje skarbowe_podmiot'!A88 -> 2021-03-31 | B88: 0 | C88: 0 | D88: 0 | E88: 0 | F88: 0 | G88: 0 | H88: 0 | I88: 0 | J88: 0 | K88: 0 | L88: 0 | M88: 0
A89: ='Obligacje skarbowe_podmiot'!A89 -> 2021-04-30 | B89: 0 | C89: 0 | D89: 0 | E89: 0 | F89: 0 | G89: 0 | H89: 0 | I89: 0 | J89: 0 | K89: 0 | L89: 0 | M89: 0
A90: ='Obligacje skarbowe_podmiot'!A90 -> 2021-05-31 | B90: 0 | C90: 0 | D90: 0 | E90: 0 | F90: 0 | G90: 0 | H90: 0 | I90: 0 | J90: 0 | K90: 0 | L90: 0 | M90: 0
A91: ='Obligacje skarbowe_podmiot'!A91 -> 2021-06-30 | B91: 0 | C91: 0 | D91: 0 | E91: 0 | F91: 0 | G91: 0 | H91: 0 | I91: 0 | J91: 0 | K91: 0 | L91: 0 | M91: 0
A92: ='Obligacje skarbowe_podmiot'!A92 -> 2021-07-31 | B92: 0 | C92: 0 | D92: 0 | E92: 0 | F92: 0 | G92: 0 | H92: 0 | I92: 0 | J92: 0 | K92: 0 | L92: 0 | M92: 0
A93: ='Obligacje skarbowe_podmiot'!A93 -> 2021-08-31 | B93: 0 | C93: 0 | D93: 0 | E93: 0 | F93: 0 | G93: 0 | H93: 0 | I93: 0 | J93: 0 | K93: 0 | L93: 0 | M93: 0
A94: ='Obligacje skarbowe_podmiot'!A94 -> 2021-09-30 | B94: 0 | C94: 0 | D94: 0 | E94: 0 | F94: 0 | G94: 0 | H94: 0 | I94: 0 | J94: 0 | K94: 0 | L94: 0 | M94: 0
A95: ='Obligacje skarbowe_podmiot'!A95 -> 2021-10-31 | B95: 0 | C95: 0 | D95: 0 | E95: 0 | F95: 0 | G95: 0 | H95: 0 | I95: 0 | J95: 0 | K95: 0 | L95: 0 | M95: 0
A96: ='Obligacje skarbowe_podmiot'!A96 -> 2021-11-30 | B96: 0 | C96: 0 | D96: 0 | E96: 0 | F96: 0 | G96: 0 | H96: 0 | I96: 0 | J96: 0 | K96: 0 | L96: 0 | M96: 0
A97: ='Obligacje skarbowe_podmiot'!A97 -> 2021-12-31 | B97: 0 | C97: 0 | D97: 0 | E97: 0 | F97: 0 | G97: 0 | H97: 0 | I97: 0 | J97: 0 | K97: 0 | L97: 0 | M97: 0
A98: ='Obligacje skarbowe_podmiot'!A98 -> 2022-01-31 | B98: 0 | C98: 0 | D98: 0 | E98: 0 | F98: 0 | G98: 0 | H98: 0 | I98: 0 | J98: 0 | K98: 0 | L98: 0 | M98: 0
A99: ='Obligacje skarbowe_podmiot'!A99 -> 2022-02-28 | B99: 0 | C99: 0 | D99: 0 | E99: 0 | F99: 0 | G99: 0 | H99: 0 | I99: 0 | J99: 0 | K99: 0 | L99: 0 | M99: 0
A100: ='Obligacje skarbowe_podmiot'!A100 -> 2022-03-31 | B100: 0 | C100: 0 | D100: 0 | E100: 0 | F100: 0 | G100: 0 | H100: 0 | I100: 0 | J100: 0 | K100: 0 | L100: 0 | M100: 0
A101: ='Obligacje skarbowe_podmiot'!A101 -> 2022-04-30 | B101: 0 | C101: 0 | D101: 0 | E101: 0 | F101: 0 | G101: 0 | H101: 0 | I101: 0 | J101: 0 | K101: 0 | L101: 0 | M101: 0
A102: ='Obligacje skarbowe_podmiot'!A102 -> 2022-05-31 | B102: 0 | C102: 0 | D102: 0 | E102: 0 | F102: 0 | G102: 0 | H102: 0 | I102: 0 | J102: 0 | K102: 0 | L102: 0 | M102: 0
A103: ='Obligacje skarbowe_podmiot'!A103 -> 2022-06-30 | B103: 0 | C103: 0 | D103: 0 | E103: 0 | F103: 0 | G103: 0 | H103: 0 | I103: 0 | J103: 0 | K103: 0 | L103: 0 | M103: 0
A104: ='Obligacje skarbowe_podmiot'!A104 -> 2022-07-31 | B104: 0 | C104: 0 | D104: 0 | E104: 0 | F104: 0 | G104: 0 | H104: 0 | I104: 0 | J104: 0 | K104: 0 | L104: 0 | M104: 0
A105: ='Obligacje skarbowe_podmiot'!A105 -> 2022-08-31 | B105: 0 | C105: 0 | D105: 0 | E105: 0 | F105: 0 | G105: 0 | H105: 0 | I105: 0 | J105: 0 | K105: 0 | L105: 0 | M105: 0
A106: ='Obligacje skarbowe_podmiot'!A106 -> 2022-09-30 | B106: 0 | C106: 0 | D106: 0 | E106: 0 | F106: 0 | G106: 0 | H106: 0 | I106: 0 | J106: 0 | K106: 0 | L106: 0 | M106: 0
A107: ='Obligacje skarbowe_podmiot'!A107 -> 2022-10-31 | B107: 0 | C107: 0 | D107: 0 | E107: 0 | F107: 0 | G107: 0 | H107: 0 | I107: 0 | J107: 0 | K107: 0 | L107: 0 | M107: 0
A108: ='Obligacje skarbowe_podmiot'!A108 -> 2022-11-30 | B108: 0 | C108: 0 | D108: 0 | E108: 0 | F108: 0 | G108: 0 | H108: 0 | I108: 0 | J108: 0 | K108: 0 | L108: 0 | M108: 0
A109: ='Obligacje skarbowe_podmiot'!A109 -> 2022-12-31 | B109: 0 | C109: 0 | D109: 0 | E109: 0 | F109: 0 | G109: 0 | H109: 0 | I109: 0 | J109: 0 | K109: 0 | L109: 0 | M109: 0
A110: ='Obligacje skarbowe_podmiot'!A110 -> 2023-01-31 | B110: 0 | C110: 0 | D110: 0 | E110: 0 | F110: 0 | G110: 0 | H110: 0 | I110: 0 | J110: 0 | K110: 0 | L110: 0 | M110: 0
A111: ='Obligacje skarbowe_podmiot'!A111 -> 2023-02-28 | B111: 0 | C111: 0 | D111: 0 | E111: 0 | F111: 0 | G111: 0 | H111: 0 | I111: 0 | J111: 0 | K111: 0 | L111: 0 | M111: 0
A112: ='Obligacje skarbowe_podmiot'!A112 -> 2023-03-31 | B112: 0 | C112: 0 | D112: 0 | E112: 0 | F112: 0 | G112: 0 | H112: 0 | I112: 0 | J112: 0 | K112: 0 | L112: 0 | M112: 0
A113: ='Obligacje skarbowe_podmiot'!A113 -> 2023-04-30 | B113: 0 | C113: 0 | D113: 0 | E113: 0 | F113: 0 | G113: 0 | H113: 0 | I113: 0 | J113: 0 | K113: 0 | L113: 0 | M113: 0
A114: ='Obligacje skarbowe_podmiot'!A114 -> 2023-05-31 | B114: 0 | C114: 0 | D114: 0 | E114: 0 | F114: 0 | G114: 0 | H114: 0 | I114: 0 | J114: 0 | K114: 0 | L114: 0 | M114: 0
A115: ='Obligacje skarbowe_podmiot'!A115 -> 2023-06-30 | B115: 0 | C115: 0 | D115: 0 | E115: 0 | F115: 0 | G115: 0 | H115: 0 | I115: 0 | J115: 0 | K115: 0 | L115: 0 | M115: 0
A116: ='Obligacje skarbowe_podmiot'!A116 -> 2023-07-31 | B116: 0 | C116: 0 | D116: 0 | E116: 0 | F116: 0 | G116: 0 | H116: 0 | I116: 0 | J116: 0 | K116: 0 | L116: 0 | M116: 0
A117: ='Obligacje skarbowe_podmiot'!A117 -> 2023-08-31 | B117: 0 | C117: 0 | D117: 0 | E117: 0 | F117: 0 | G117: 0 | H117: 0 | I117: 0 | J117: 0 | K117: 0 | L117: 0 | M117: 0
A118: ='Obligacje skarbowe_podmiot'!A118 -> 2023-09-30 | B118: 0 | C118: 0 | D118: 0 | E118: 0 | F118: 0 | G118: 0 | H118: 0 | I118: 0 | J118: 0 | K118: 0 | L118: 0 | M118: 0
A119: ='Obligacje skarbowe_podmiot'!A119 -> 2023-10-31 | B119: 0 | C119: 0 | D119: 0 | E119: 0 | F119: 0 | G119: 0 | H119: 0 | I119: 0 | J119: 0 | K119: 0 | L119: 0 | M119: 0
A120: ='Obligacje skarbowe_podmiot'!A120 -> 2023-11-30 | B120: 0 | C120: 0 | D120: 0 | E120: 0 | F120: 0 | G120: 0 | H120: 0 | I120: 0 | J120: 0 | K120: 0 | L120: 0 | M120: 0
A121: ='Obligacje skarbowe_podmiot'!A121 -> 2023-12-31 | B121: 0 | C121: 0 | D121: 0 | E121: 0 | F121: 0 | G121: 0 | H121: 0 | I121: 0 | J121: 0 | K121: 0 | L121: 0 | M121: 0
A122: ='Obligacje skarbowe_podmiot'!A122 -> 2024-01-31 | B122: 0 | C122: 0 | D122: 0 | E122: 0 | F122: 0 | G122: 0 | H122: 0 | I122: 0 | J122: 0 | K122: 0 | L122: 0 | M122: 0
A123: ='Obligacje skarbowe_podmiot'!A123 -> 2024-02-29 | B123: 0 | C123: 0 | D123: 0 | E123: 0 | F123: 0 | G123: 0 | H123: 0 | I123: 0 | J123: 0 | K123: 0 | L123: 0 | M123: 0
A124: ='Obligacje skarbowe_podmiot'!A124 -> 2024-03-31 | B124: 0 | C124: 0 | D124: 0 | E124: 0 | F124: 0 | G124: 0 | H124: 0 | I124: 0 | J124: 0 | K124: 0 | L124: 0 | M124: 0
A125: ='Obligacje skarbowe_podmiot'!A125 -> 2024-04-30 | B125: 0 | C125: 0 | D125: 0 | E125: 0 | F125: 0 | G125: 0 | H125: 0 | I125: 0 | J125: 0 | K125: 0 | L125: 0 | M125: 0
A126: ='Obligacje skarbowe_podmiot'!A126 -> 2024-05-31 | B126: 0 | C126: 0 | D126: 0 | E126: 0 | F126: 0 | G126: 0 | H126: 0 | I126: 0 | J126: 0 | K126: 0 | L126: 0 | M126: 0
A127: ='Obligacje skarbowe_podmiot'!A127 -> 2024-06-30 | B127: 0 | C127: 0 | D127: 0 | E127: 0 | F127: 0 | G127: 0 | H127: 0 | I127: 0 | J127: 0 | K127: 0 | L127: 0 | M127: 0
A128: ='Obligacje skarbowe_podmiot'!A128 -> 2024-07-31 | B128: 0 | C128: 0 | D128: 0 | E128: 0 | F128: 0 | G128: 0 | H128: 0 | I128: 0 | J128: 0 | K128: 0 | L128: 0 | M128: 0
A129: 2024-08-31 | B129: 0 | C129: 0 | D129: 0 | E129: 0 | F129: 0 | G129: 0 | H129: 0 | I129: 0 | J129: 0 | K129: 0 | L129: 0 | M129: 0
A130: 2024-09-30 | B130: 0 | C130: 0 | D130: 0 | E130: 0 | F130: 0 | G130: 0 | H130: 0 | I130: 0 | J130: 0 | K130: 0 | L130: 0 | M130: 0
A131: 2024-10-31 | B131: 0 | C131: 0 | D131: 0 | E131: 0 | F131: 0 | G131: 0 | H131: 0 | I131: 0 | J131: 0 | K131: 0 | L131: 0 | M131: 0
A132: 2024-11-30 | B132: 0 | C132: 0 | D132: 0 | E132: 0 | F132: 0 | G132: 0 | H132: 0 | I132: 0 | J132: 0 | K132: 0 | L132: 0 | M132: 0
A133: 2024-12-31 | B133: 0 | C133: 0 | D133: 0 | E133: 0 | F133: 0 | G133: 0 | H133: 0 | I133: 0 | J133: 0 | K133: 0 | L133: 0 | M133: 0
A134: 2025-01-31 | B134: 82.9 | C134: 0 | D134: 0 | E134: 0 | F134: 0 | G134: 15 | H134: 0 | I134: 0 | J134: 0 | K134: 50 | L134: 0 | M134: 147.9
A135: 2025-02-28 | B135: 75.05 | C135: 0 | D135: 0 | E135: 0 | F135: 0 | G135: 20 | H135: 0 | I135: 0 | J135: 0 | K135: 0 | L135: 0 | M135: 95.05
A136: 2025-03-31 | B136: 137.05 | C136: 0 | D136: 0 | E136: 0 | F136: 0 | G136: 35 | H136: 0 | I136: 0 | J136: 0 | K136: 0 | L136: 0 | M136: 172.05

Sheet Razem_podmiot
A1: Struktura podmiotowa nierezydentów w krajowych SPW (mln zł)
A3: Data | B3: Banki | C3: Banki centralne | D3: Instytucje publiczne | E3: Zakłady ubezpieczeniowe | F3: Fundusze emerytalne | G3: Fundusze inwestycyjne | H3: Fundusze hedgingowe | I3: Gospodarstwa domowe | J3: Przedsiębiorstwa niefinansowe | K3: Inne podmioty | L3: Rachunki zbiorcze | M3: Razem
A5: ='Obligacje skarbowe_podmiot'!A5 -> 2014-04-30 | B5: ='Obligacje skarbowe_podmiot'!B5+'Bony skarbowe_podmiot'!B5 -> 11859.35796 | C5: ='Obligacje skarbowe_podmiot'!C5+'Bony skarbowe_podmiot'!C5 -> 14430.96378 | D5: ='Obligacje skarbowe_podmiot'!D5+'Bony skarbowe_podmiot'!D5 -> 680.11 | E5: ='Obligacje skarbowe_podmiot'!E5+'Bony skarbowe_podmiot'!E5 -> 9105.370225 | F5: ='Obligacje skarbowe_podmiot'!F5+'Bony skarbowe_podmiot'!F5 -> 11936.78663 | G5: ='Obligacje skarbowe_podmiot'!G5+'Bony skarbowe_podmiot'!G5 -> 79070.62796 | H5: ='Obligacje skarbowe_podmiot'!H5+'Bony skarbowe_podmiot'!H5 -> 93.29 | I5: ='Obligacje skarbowe_podmiot'!I5+'Bony skarbowe_podmiot'!I5 -> 22.2905 | J5: ='Obligacje skarbowe_podmiot'!J5+'Bony skarbowe_podmiot'!J5 -> 12072.48324 | K5: ='Obligacje skarbowe_podmiot'!K5+'Bony skarbowe_podmiot'!K5 -> 17970.75585 | L5: ='Obligacje skarbowe_podmiot'!L5+'Bony skarbowe_podmiot'!L5 -> 30397.89447 | M5: ='Obligacje skarbowe_podmiot'!M5+'Bony skarbowe_podmiot'!M5 -> 187639.9306
A6: ='Obligacje skarbowe_podmiot'!A6 -> 2014-05-31 | B6: ='Obligacje skarbowe_podmiot'!B6+'Bony skarbowe_podmiot'!B6 -> 10461.62202 | C6: ='Obligacje skarbowe_podmiot'!C6+'Bony skarbowe_podmiot'!C6 -> 17316.5464 | D6: ='Obligacje skarbowe_podmiot'!D6+'Bony skarbowe_podmiot'!D6 -> 693.11 | E6: ='Obligacje skarbowe_podmiot'!E6+'Bony skarbowe_podmiot'!E6 -> 9369.4 | F6: ='Obligacje skarbowe_podmiot'!F6+'Bony skarbowe_podmiot'!F6 -> 12164.93213 | G6: ='Obligacje skarbowe_podmiot'!G6+'Bony skarbowe_podmiot'!G6 -> 80214.31208 | H6: ='Obligacje skarbowe_podmiot'!H6+'Bony skarbowe_podmiot'!H6 -> 91.19 | I6: ='Obligacje skarbowe_podmiot'!I6+'Bony skarbowe_podmiot'!I6 -> 20.4282 | J6: ='Obligacje skarbowe_podmiot'!J6+'Bony skarbowe_podmiot'!J6 -> 12552.15395 | K6: ='Obligacje skarbowe_podmiot'!K6+'Bony skarbowe_podmiot'!K6 -> 15910.56379 | L6: ='Obligacje skarbowe_podmiot'!L6+'Bony skarbowe_podmiot'!L6 -> 30859.05303 | M6: ='Obligacje skarbowe_podmiot'!M6+'Bony skarbowe_podmiot'!M6 -> 189653.3116
A7: ='Obligacje skarbowe_podmiot'!A7 -> 2014-06-30 | B7: ='Obligacje skarbowe_podmiot'!B7+'Bony skarbowe_podmiot'!B7 -> 12619.88656 | C7: ='Obligacje skarbowe_podmiot'!C7+'Bony skarbowe_podmiot'!C7 -> 18045.01976 | D7: ='Obligacje skarbowe_podmiot'!D7+'Bony skarbowe_podmiot'!D7 -> 719.535 | E7: ='Obligacje skarbowe_podmiot'!E7+'Bony skarbowe_podmiot'!E7 -> 9529.916 | F7: ='Obligacje skarbowe_podmiot'!F7+'Bony skarbowe_podmiot'!F7 -> 12296.85144 | G7: ='Obligacje skarbowe_podmiot'!G7+'Bony skarbowe_podmiot'!G7 -> 83402.57666 | H7: ='Obligacje skarbowe_podmiot'!H7+'Bony skarbowe_podmiot'!H7 -> 91.63 | I7: ='Obligacje skarbowe_podmiot'!I7+'Bony skarbowe_podmiot'!I7 -> 20.4083 | J7: ='Obligacje skarbowe_podmiot'!J7+'Bony skarbowe_podmiot'!J7 -> 14200.30862 | K7: ='Obligacje skarbowe_podmiot'!K7+'Bony skarbowe_podmiot'!K7 -> 16528.53361 | L7: ='Obligacje skarbowe_podmiot'!L7+'Bony skarbowe_podmiot'!L7 -> 32366.67246 | M7: ='Obligacje skarbowe_podmiot'!M7+'Bony skarbowe_podmiot'!M7 -> 199821.3384
A8: ='Obligacje skarbowe_podmiot'!A8 -> 2014-07-31 | B8: ='Obligacje skarbowe_podmiot'!B8+'Bony skarbowe_podmiot'!B8 -> 10840.59403 | C8: ='Obligacje skarbowe_podmiot'!C8+'Bony skarbowe_podmiot'!C8 -> 18136.76359 | D8: ='Obligacje skarbowe_podmiot'!D8+'Bony skarbowe_podmiot'!D8 -> 719.535 | E8: ='Obligacje skarbowe_podmiot'!E8+'Bony skarbowe_podmiot'!E8 -> 9809.037 | F8: ='Obligacje skarbowe_podmiot'!F8+'Bony skarbowe_podmiot'!F8 -> 12339.1654 | G8: ='Obligacje skarbowe_podmiot'!G8+'Bony skarbowe_podmiot'!G8 -> 79595.78066 | H8: ='Obligacje skarbowe_podmiot'!H8+'Bony skarbowe_podmiot'!H8 -> 92.88 | I8: ='Obligacje skarbowe_podmiot'!I8+'Bony skarbowe_podmiot'!I8 -> 20.8915 | J8: ='Obligacje skarbowe_podmiot'!J8+'Bony skarbowe_podmiot'!J8 -> 11903.4876 | K8: ='Obligacje skarbowe_podmiot'!K8+'Bony skarbowe_podmiot'!K8 -> 19605.84464 | L8: ='Obligacje skarbowe_podmiot'!L8+'Bony skarbowe_podmiot'!L8 -> 33037.72537 | M8: ='Obligacje skarbowe_podmiot'!M8+'Bony skarbowe_podmiot'!M8 -> 196101.7048
A9: ='Obligacje skarbowe_podmiot'!A9 -> 2014-08-31 | B9: ='Obligacje skarbowe_podmiot'!B9+'Bony skarbowe_podmiot'!B9 -> 9968.795871 | C9: ='Obligacje skarbowe_podmiot'!C9+'Bony skarbowe_podmiot'!C9 -> 18398.84005 | D9: ='Obligacje skarbowe_podmiot'!D9+'Bony skarbowe_podmiot'!D9 -> 717.105 | E9: ='Obligacje skarbowe_podmiot'!E9+'Bony skarbowe_podmiot'!E9 -> 10684.524 | F9: ='Obligacje skarbowe_podmiot'!F9+'Bony skarbowe_podmiot'!F9 -> 12226.45534 | G9: ='Obligacje skarbowe_podmiot'!G9+'Bony skarbowe_podmiot'!G9 -> 79988.7352 | H9: ='Obligacje skarbowe_podmiot'!H9+'Bony skarbowe_podmiot'!H9 -> 84.67 | I9: ='Obligacje skarbowe_podmiot'!I9+'Bony skarbowe_podmiot'!I9 -> 20.8184 | J9: ='Obligacje skarbowe_podmiot'!J9+'Bony skarbowe_podmiot'!J9 -> 12300.27247 | K9: ='Obligacje skarbowe_podmiot'!K9+'Bony skarbowe_podmiot'!K9 -> 18630.29527 | L9: ='Obligacje skarbowe_podmiot'!L9+'Bony skarbowe_podmiot'!L9 -> 30106.78708 | M9: ='Obligacje skarbowe_podmiot'!M9+'Bony skarbowe_podmiot'!M9 -> 193127.2987
A10: ='Obligacje skarbowe_podmiot'!A10 -> 2014-09-30 | B10: ='Obligacje skarbowe_podmiot'!B10+'Bony skarbowe_podmiot'!B10 -> 12063.88964 | C10: ='Obligacje skarbowe_podmiot'!C10+'Bony skarbowe_podmiot'!C10 -> 19312.38063 | D10: ='Obligacje skarbowe_podmiot'!D10+'Bony skarbowe_podmiot'!D10 -> 549.025 | E10: ='Obligacje skarbowe_podmiot'!E10+'Bony skarbowe_podmiot'!E10 -> 10939.149 | F10: ='Obligacje skarbowe_podmiot'!F10+'Bony skarbowe_podmiot'!F10 -> 12719.46201 | G10: ='Obligacje skarbowe_podmiot'!G10+'Bony skarbowe_podmiot'!G10 -> 80785.26475 | H10: ='Obligacje skarbowe_podmiot'!H10+'Bony skarbowe_podmiot'!H10 -> 83.225 | I10: ='Obligacje skarbowe_podmiot'!I10+'Bony skarbowe_podmiot'!I10 -> 20.8044 | J10: ='Obligacje skarbowe_podmiot'!J10+'Bony skarbowe_podmiot'!J10 -> 12221.72122 | K10: ='Obligacje skarbowe_podmiot'!K10+'Bony skarbowe_podmiot'!K10 -> 17675.76042 | L10: ='Obligacje skarbowe_podmiot'!L10+'Bony skarbowe_podmiot'!L10 -> 31143.43757 | M10: ='Obligacje skarbowe_podmiot'!M10+'Bony skarbowe_podmiot'!M10 -> 197514.1196
A11: ='Obligacje skarbowe_podmiot'!A11 -> 2014-10-31 | B11: ='Obligacje skarbowe_podmiot'!B11+'Bony skarbowe_podmiot'!B11 -> 14319.63883 | C11: ='Obligacje skarbowe_podmiot'!C11+'Bony skarbowe_podmiot'!C11 -> 21142.34473 | D11: ='Obligacje skarbowe_podmiot'!D11+'Bony skarbowe_podmiot'!D11 -> 501.575 | E11: ='Obligacje skarbowe_podmiot'!E11+'Bony skarbowe_podmiot'!E11 -> 10399.404 | F11: ='Obligacje skarbowe_podmiot'!F11+'Bony skarbowe_podmiot'!F11 -> 12391.01591 | G11: ='Obligacje skarbowe_podmiot'!G11+'Bony skarbowe_podmiot'!G11 -> 77491.8969 | H11: ='Obligacje skarbowe_podmiot'!H11+'Bony skarbowe_podmiot'!H11 -> 389.425 | I11: ='Obligacje skarbowe_podmiot'!I11+'Bony skarbowe_podmiot'!I11 -> 20.8032 | J11: ='Obligacje skarbowe_podmiot'!J11+'Bony skarbowe_podmiot'!J11 -> 11436.92628 | K11: ='Obligacje skarbowe_podmiot'!K11+'Bony skarbowe_podmiot'!K11 -> 14802.47197 | L11: ='Obligacje skarbowe_podmiot'!L11+'Bony skarbowe_podmiot'!L11 -> 32157.97772 | M11: ='Obligacje skarbowe_podmiot'!M11+'Bony skarbowe_podmiot'!M11 -> 195053.4795
A12: ='Obligacje skarbowe_podmiot'!A12 -> 2014-11-30 | B12: ='Obligacje skarbowe_podmiot'!B12+'Bony skarbowe_podmiot'!B12 -> 9895.550139 | C12: ='Obligacje skarbowe_podmiot'!C12+'Bony skarbowe_podmiot'!C12 -> 15576.90442 | D12: ='Obligacje skarbowe_podmiot'!D12+'Bony skarbowe_podmiot'!D12 -> 8794.055 | E12: ='Obligacje skarbowe_podmiot'!E12+'Bony skarbowe_podmiot'!E12 -> 10524.984 | F12: ='Obligacje skarbowe_podmiot'!F12+'Bony skarbowe_podmiot'!F12 -> 12754.52598 | G12: ='Obligacje skarbowe_podmiot'!G12+'Bony skarbowe_podmiot'!G12 -> 78754.87706 | H12: ='Obligacje skarbowe_podmiot'!H12+'Bony skarbowe_podmiot'!H12 -> 600.985 | I12: ='Obligacje skarbowe_podmiot'!I12+'Bony skarbowe_podmiot'!I12 -> 19.3701 | J12: ='Obligacje skarbowe_podmiot'!J12+'Bony skarbowe_podmiot'!J12 -> 12083.89807 | K12: ='Obligacje skarbowe_podmiot'!K12+'Bony skarbowe_podmiot'!K12 -> 14820.44709 | L12: ='Obligacje skarbowe_podmiot'!L12+'Bony skarbowe_podmiot'!L12 -> 32783.31825 | M12: ='Obligacje skarbowe_podmiot'!M12+'Bony skarbowe_podmiot'!M12 -> 196608.9151
A13: ='Obligacje skarbowe_podmiot'!A13 -> 2014-12-31 | B13: ='Obligacje skarbowe_podmiot'!B13+'Bony skarbowe_podmiot'!B13 -> 9936.517463 | C13: ='Obligacje skarbowe_podmiot'!C13+'Bony skarbowe_podmiot'!C13 -> 16412.56812 | D13: ='Obligacje skarbowe_podmiot'!D13+'Bony skarbowe_podmiot'!D13 -> 8067.325 | E13: ='Obligacje skarbowe_podmiot'!E13+'Bony skarbowe_podmiot'!E13 -> 10721.279 | F13: ='Obligacje skarbowe_podmiot'!F13+'Bony skarbowe_podmiot'!F13 -> 12995.52537 | G13: ='Obligacje skarbowe_podmiot'!G13+'Bony skarbowe_podmiot'!G13 -> 78128.5551 | H13: ='Obligacje skarbowe_podmiot'!H13+'Bony skarbowe_podmiot'!H13 -> 755.705 | I13: ='Obligacje skarbowe_podmiot'!I13+'Bony skarbowe_podmiot'!I13 -> 19.1003 | J13: ='Obligacje skarbowe_podmiot'!J13+'Bony skarbowe_podmiot'!J13 -> 11641.07235 | K13: ='Obligacje skarbowe_podmiot'!K13+'Bony skarbowe_podmiot'!K13 -> 14290.08442 | L13: ='Obligacje skarbowe_podmiot'!L13+'Bony skarbowe_podmiot'!L13 -> 33018.2307 | M13: ='Obligacje skarbowe_podmiot'!M13+'Bony skarbowe_podmiot'!M13 -> 195985.9628
A14: ='Obligacje skarbowe_podmiot'!A14 -> 2015-01-31 | B14: ='Obligacje skarbowe_podmiot'!B14+'Bony skarbowe_podmiot'!B14 -> 13290.68867 | C14: ='Obligacje skarbowe_podmiot'!C14+'Bony skarbowe_podmiot'!C14 -> 17401.36058 | D14: ='Obligacje skarbowe_podmiot'!D14+'Bony skarbowe_podmiot'!D14 -> 8129.83 | E14: ='Obligacje skarbowe_podmiot'!E14+'Bony skarbowe_podmiot'!E14 -> 10580.214 | F14: ='Obligacje skarbowe_podmiot'!F14+'Bony skarbowe_podmiot'!F14 -> 12692.84726 | G14: ='Obligacje skarbowe_podmiot'!G14+'Bony skarbowe_podmiot'!G14 -> 81094.79998 | H14: ='Obligacje skarbowe_podmiot'!H14+'Bony skarbowe_podmiot'!H14 -> 743.635 | I14: ='Obligacje skarbowe_podmiot'!I14+'Bony skarbowe_podmiot'!I14 -> 16.5062 | J14: ='Obligacje skarbowe_podmiot'!J14+'Bony skarbowe_podmiot'!J14 -> 11633.00714 | K14: ='Obligacje skarbowe_podmiot'!K14+'Bony skarbowe_podmiot'!K14 -> 15761.43891 | L14: ='Obligacje skarbowe_podmiot'!L14+'Bony skarbowe_podmiot'!L14 -> 31179.27554 | M14: ='Obligacje skarbowe_podmiot'!M14+'Bony skarbowe_podmiot'!M14 -> 202523.6033
A15: ='Obligacje skarbowe_podmiot'!A15 -> 2015-02-28 | B15: ='Obligacje skarbowe_podmiot'!B15+'Bony skarbowe_podmiot'!B15 -> 11135.92305 | C15: ='Obligacje skarbowe_podmiot'!C15+'Bony skarbowe_podmiot'!C15 -> 18525.07819 | D15: ='Obligacje skarbowe_podmiot'!D15+'Bony skarbowe_podmiot'!D15 -> 8523.843 | E15: ='Obligacje skarbowe_podmiot'!E15+'Bony skarbowe_podmiot'!E15 -> 10167.744 | F15: ='Obligacje skarbowe_podmiot'!F15+'Bony skarbowe_podmiot'!F15 -> 13310.73362 | G15: ='Obligacje skarbowe_podmiot'!G15+'Bony skarbowe_podmiot'!G15 -> 81582.28631 | H15: ='Obligacje skarbowe_podmiot'!H15+'Bony skarbowe_podmiot'!H15 -> 1131.585 | I15: ='Obligacje skarbowe_podmiot'!I15+'Bony skarbowe_podmiot'!I15 -> 16.5649 | J15: ='Obligacje skarbowe_podmiot'!J15+'Bony skarbowe_podmiot'!J15 -> 8087.201819 | K15: ='Obligacje skarbowe_podmiot'!K15+'Bony skarbowe_podmiot'!K15 -> 17344.13004 | L15: ='Obligacje skarbowe_podmiot'!L15+'Bony skarbowe_podmiot'!L15 -> 32314.10981 | M15: ='Obligacje skarbowe_podmiot'!M15+'Bony skarbowe_podmiot'!M15 -> 202139.1998
A16: ='Obligacje skarbowe_podmiot'!A16 -> 2015-03-31 | B16: ='Obligacje skarbowe_podmiot'!B16+'Bony skarbowe_podmiot'!B16 -> 9898.138771 | C16: ='Obligacje skarbowe_podmiot'!C16+'Bony skarbowe_podmiot'!C16 -> 20336.78486 | D16: ='Obligacje skarbowe_podmiot'!D16+'Bony skarbowe_podmiot'!D16 -> 8815.753 | E16: ='Obligacje skarbowe_podmiot'!E16+'Bony skarbowe_podmiot'!E16 -> 11019.791 | F16: ='Obligacje skarbowe_podmiot'!F16+'Bony skarbowe_podmiot'!F16 -> 13175.78636 | G16: ='Obligacje skarbowe_podmiot'!G16+'Bony skarbowe_podmiot'!G16 -> 80150.4558 | H16: ='Obligacje skarbowe_podmiot'!H16+'Bony skarbowe_podmiot'!H16 -> 1088.485 | I16: ='Obligacje skarbowe_podmiot'!I16+'Bony skarbowe_podmiot'!I16 -> 15.9474 | J16: ='Obligacje skarbowe_podmiot'!J16+'Bony skarbowe_podmiot'!J16 -> 8218.006426 | K16: ='Obligacje skarbowe_podmiot'!K16+'Bony skarbowe_podmiot'!K16 -> 17008.59994 | L16: ='Obligacje skarbowe_podmiot'!L16+'Bony skarbowe_podmiot'!L16 -> 34064.24987 | M16: ='Obligacje skarbowe_podmiot'!M16+'Bony skarbowe_podmiot'!M16 -> 203791.9984
A17: ='Obligacje skarbowe_podmiot'!A17 -> 2015-04-30 | B17: ='Obligacje skarbowe_podmiot'!B17+'Bony skarbowe_podmiot'!B17 -> 12363.51148 | C17: ='Obligacje skarbowe_podmiot'!C17+'Bony skarbowe_podmiot'!C17 -> 22212.04012 | D17: ='Obligacje skarbowe_podmiot'!D17+'Bony skarbowe_podmiot'!D17 -> 8966.683 | E17: ='Obligacje skarbowe_podmiot'!E17+'Bony skarbowe_podmiot'!E17 -> 9848.522 | F17: ='Obligacje skarbowe_podmiot'!F17+'Bony skarbowe_podmiot'!F17 -> 13063.47009 | G17: ='Obligacje skarbowe_podmiot'!G17+'Bony skarbowe_podmiot'!G17 -> 72320.88447 | H17: ='Obligacje skarbowe_podmiot'!H17+'Bony skarbowe_podmiot'!H17 -> 1086.77 | I17: ='Obligacje skarbowe_podmiot'!I17+'Bony skarbowe_podmiot'!I17 -> 16.0554 | J17: ='Obligacje skarbowe_podmiot'!J17+'Bony skarbowe_podmiot'!J17 -> 7804.521668 | K17: ='Obligacje skarbowe_podmiot'!K17+'Bony skarbowe_podmiot'!K17 -> 16880.63303 | L17: ='Obligacje skarbowe_podmiot'!L17+'Bony skarbowe_podmiot'!L17 -> 34027.01677 | M17: ='Obligacje skarbowe_podmiot'!M17+'Bony skarbowe_podmiot'!M17 -> 198590.108
A18: ='Obligacje skarbowe_podmiot'!A18 -> 2015-05-31 | B18: ='Obligacje skarbowe_podmiot'!B18+'Bony skarbowe_podmiot'!B18 -> 12680.48087 | C18: ='Obligacje skarbowe_podmiot'!C18+'Bony skarbowe_podmiot'!C18 -> 23071.43834 | D18: ='Obligacje skarbowe_podmiot'!D18+'Bony skarbowe_podmiot'!D18 -> 9347.223 | E18: ='Obligacje skarbowe_podmiot'!E18+'Bony skarbowe_podmiot'!E18 -> 10605.7807 | F18: ='Obligacje skarbowe_podmiot'!F18+'Bony skarbowe_podmiot'!F18 -> 12244.67326 | G18: ='Obligacje skarbowe_podmiot'!G18+'Bony skarbowe_podmiot'!G18 -> 70752.79127 | H18: ='Obligacje skarbowe_podmiot'!H18+'Bony skarbowe_podmiot'!H18 -> 592.47 | I18: ='Obligacje skarbowe_podmiot'!I18+'Bony skarbowe_podmiot'!I18 -> 16.2989 | J18: ='Obligacje skarbowe_podmiot'!J18+'Bony skarbowe_podmiot'!J18 -> 8528.572331 | K18: ='Obligacje skarbowe_podmiot'!K18+'Bony skarbowe_podmiot'!K18 -> 16484.74965 | L18: ='Obligacje skarbowe_podmiot'!L18+'Bony skarbowe_podmiot'!L18 -> 35570.30658 | M18: ='Obligacje skarbowe_podmiot'!M18+'Bony skarbowe_podmiot'!M18 -> 199894.7849
A19: ='Obligacje skarbowe_podmiot'!A19 -> 2015-06-30 | B19: ='Obligacje skarbowe_podmiot'!B19+'Bony skarbowe_podmiot'!B19 -> 13960.73446 | C19: ='Obligacje skarbowe_podmiot'!C19+'Bony skarbowe_podmiot'!C19 -> 22621.1891 | D19: ='Obligacje skarbowe_podmiot'!D19+'Bony skarbowe_podmiot'!D19 -> 9429.623 | E19: ='Obligacje skarbowe_podmiot'!E19+'Bony skarbowe_podmiot'!E19 -> 11005.33845 | F19: ='Obligacje skarbowe_podmiot'!F19+'Bony skarbowe_podmiot'!F19 -> 12380.16287 | G19: ='Obligacje skarbowe_podmiot'!G19+'Bony skarbowe_podmiot'!G19 -> 71538.94191 | H19: ='Obligacje skarbowe_podmiot'!H19+'Bony skarbowe_podmiot'!H19 -> 40.52 | I19: ='Obligacje skarbowe_podmiot'!I19+'Bony skarbowe_podmiot'!I19 -> 15.9941 | J19: ='Obligacje skarbowe_podmiot'!J19+'Bony skarbowe_podmiot'!J19 -> 8409.58152 | K19: ='Obligacje skarbowe_podmiot'!K19+'Bony skarbowe_podmiot'!K19 -> 18588.3729 | L19: ='Obligacje skarbowe_podmiot'!L19+'Bony skarbowe_podmiot'!L19 -> 35717.27093 | M19: ='Obligacje skarbowe_podmiot'!M19+'Bony skarbowe_podmiot'!M19 -> 203707.7293
A20: ='Obligacje skarbowe_podmiot'!A20 -> 2015-07-31 | B20: ='Obligacje skarbowe_podmiot'!B20+'Bony skarbowe_podmiot'!B20 -> 13318.34003 | C20: ='Obligacje skarbowe_podmiot'!C20+'Bony skarbowe_podmiot'!C20 -> 22874.1179 | D20: ='Obligacje skarbowe_podmiot'!D20+'Bony skarbowe_podmiot'!D20 -> 9530.618 | E20: ='Obligacje skarbowe_podmiot'!E20+'Bony skarbowe_podmiot'!E20 -> 11724.10406 | F20: ='Obligacje skarbowe_podmiot'!F20+'Bony skarbowe_podmiot'!F20 -> 12889.61275 | G20: ='Obligacje skarbowe_podmiot'!G20+'Bony skarbowe_podmiot'!G20 -> 70916.36171 | H20: ='Obligacje skarbowe_podmiot'!H20+'Bony skarbowe_podmiot'!H20 -> 40.52 | I20: ='Obligacje skarbowe_podmiot'!I20+'Bony skarbowe_podmiot'!I20 -> 16.0033 | J20: ='Obligacje skarbowe_podmiot'!J20+'Bony skarbowe_podmiot'!J20 -> 8103.27313 | K20: ='Obligacje skarbowe_podmiot'!K20+'Bony skarbowe_podmiot'!K20 -> 18733.42552 | L20: ='Obligacje skarbowe_podmiot'!L20+'Bony skarbowe_podmiot'!L20 -> 36806.47983 | M20: ='Obligacje skarbowe_podmiot'!M20+'Bony skarbowe_podmiot'!M20 -> 204952.8562
A21: ='Obligacje skarbowe_podmiot'!A21 -> 2015-08-31 | B21: ='Obligacje skarbowe_podmiot'!B21+'Bony skarbowe_podmiot'!B21 -> 16045.90586 | C21: ='Obligacje skarbowe_podmiot'!C21+'Bony skarbowe_podmiot'!C21 -> 21081.7959 | D21: ='Obligacje skarbowe_podmiot'!D21+'Bony skarbowe_podmiot'!D21 -> 9520.509 | E21: ='Obligacje skarbowe_podmiot'!E21+'Bony skarbowe_podmiot'!E21 -> 11564.05811 | F21: ='Obligacje skarbowe_podmiot'!F21+'Bony skarbowe_podmiot'!F21 -> 13085.22122 | G21: ='Obligacje skarbowe_podmiot'!G21+'Bony skarbowe_podmiot'!G21 -> 69281.89727 | H21: ='Obligacje skarbowe_podmiot'!H21+'Bony skarbowe_podmiot'!H21 -> 40.68 | I21: ='Obligacje skarbowe_podmiot'!I21+'Bony skarbowe_podmiot'!I21 -> 15.7598 | J21: ='Obligacje skarbowe_podmiot'!J21+'Bony skarbowe_podmiot'!J21 -> 7965.30313 | K21: ='Obligacje skarbowe_podmiot'!K21+'Bony skarbowe_podmiot'!K21 -> 18736.07283 | L21: ='Obligacje skarbowe_podmiot'!L21+'Bony skarbowe_podmiot'!L21 -> 38268.30118 | M21: ='Obligacje skarbowe_podmiot'!M21+'Bony skarbowe_podmiot'!M21 -> 205605.5043
A22: ='Obligacje skarbowe_podmiot'!A22 -> 2015-09-30 | B22: ='Obligacje skarbowe_podmiot'!B22+'Bony skarbowe_podmiot'!B22 -> 13500.42538 | C22: ='Obligacje skarbowe_podmiot'!C22+'Bony skarbowe_podmiot'!C22 -> 28318.2552 | D22: ='Obligacje skarbowe_podmiot'!D22+'Bony skarbowe_podmiot'!D22 -> 9742.501 | E22: ='Obligacje skarbowe_podmiot'!E22+'Bony skarbowe_podmiot'!E22 -> 11597.36163 | F22: ='Obligacje skarbowe_podmiot'!F22+'Bony skarbowe_podmiot'!F22 -> 13017.93243 | G22: ='Obligacje skarbowe_podmiot'!G22+'Bony skarbowe_podmiot'!G22 -> 64687.12064 | H22: ='Obligacje skarbowe_podmiot'!H22+'Bony skarbowe_podmiot'!H22 -> 40.18 | I22: ='Obligacje skarbowe_podmiot'!I22+'Bony skarbowe_podmiot'!I22 -> 15.9093 | J22: ='Obligacje skarbowe_podmiot'!J22+'Bony skarbowe_podmiot'!J22 -> 8729.956208 | K22: ='Obligacje skarbowe_podmiot'!K22+'Bony skarbowe_podmiot'!K22 -> 19492.82659 | L22: ='Obligacje skarbowe_podmiot'!L22+'Bony skarbowe_podmiot'!L22 -> 39020.10177 | M22: ='Obligacje skarbowe_podmiot'!M22+'Bony skarbowe_podmiot'!M22 -> 208162.5701
A23: ='Obligacje skarbowe_podmiot'!A23 -> 2015-10-31 | B23: ='Obligacje skarbowe_podmiot'!B23+'Bony skarbowe_podmiot'!B23 -> 15550.16477 | C23: ='Obligacje skarbowe_podmiot'!C23+'Bony skarbowe_podmiot'!C23 -> 28597.65717 | D23: ='Obligacje skarbowe_podmiot'!D23+'Bony skarbowe_podmiot'!D23 -> 9657.862 | E23: ='Obligacje skarbowe_podmiot'!E23+'Bony skarbowe_podmiot'!E23 -> 10929.60944 | F23: ='Obligacje skarbowe_podmiot'!F23+'Bony skarbowe_podmiot'!F23 -> 12990.62238 | G23: ='Obligacje skarbowe_podmiot'!G23+'Bony skarbowe_podmiot'!G23 -> 58571.90962 | H23: ='Obligacje skarbowe_podmiot'!H23+'Bony skarbowe_podmiot'!H23 -> 40.18 | I23: ='Obligacje skarbowe_podmiot'!I23+'Bony skarbowe_podmiot'!I23 -> 15.5653 | J23: ='Obligacje skarbowe_podmiot'!J23+'Bony skarbowe_podmiot'!J23 -> 9283.032508 | K23: ='Obligacje skarbowe_podmiot'!K23+'Bony skarbowe_podmiot'!K23 -> 17983.39911 | L23: ='Obligacje skarbowe_podmiot'!L23+'Bony skarbowe_podmiot'!L23 -> 42331.307 | M23: ='Obligacje skarbowe_podmiot'!M23+'Bony skarbowe_podmiot'!M23 -> 205951.3093
A24: ='Obligacje skarbowe_podmiot'!A24 -> 2015-11-30 | B24: ='Obligacje skarbowe_podmiot'!B24+'Bony skarbowe_podmiot'!B24 -> 11544.15277 | C24: ='Obligacje skarbowe_podmiot'!C24+'Bony skarbowe_podmiot'!C24 -> 29122.1237 | D24: ='Obligacje skarbowe_podmiot'!D24+'Bony skarbowe_podmiot'!D24 -> 10001.871 | E24: ='Obligacje skarbowe_podmiot'!E24+'Bony skarbowe_podmiot'!E24 -> 11643.35548 | F24: ='Obligacje skarbowe_podmiot'!F24+'Bony skarbowe_podmiot'!F24 -> 13609.39436 | G24: ='Obligacje skarbowe_podmiot'!G24+'Bony skarbowe_podmiot'!G24 -> 59072.63391 | H24: ='Obligacje skarbowe_podmiot'!H24+'Bony skarbowe_podmiot'!H24 -> 38.52 | I24: ='Obligacje skarbowe_podmiot'!I24+'Bony skarbowe_podmiot'!I24 -> 15.8246 | J24: ='Obligacje skarbowe_podmiot'!J24+'Bony skarbowe_podmiot'!J24 -> 9275.409189 | K24: ='Obligacje skarbowe_podmiot'!K24+'Bony skarbowe_podmiot'!K24 -> 19059.96408 | L24: ='Obligacje skarbowe_podmiot'!L24+'Bony skarbowe_podmiot'!L24 -> 43182.24527 | M24: ='Obligacje skarbowe_podmiot'!M24+'Bony skarbowe_podmiot'!M24 -> 206565.4944
A25: ='Obligacje skarbowe_podmiot'!A25 -> 2015-12-31 | B25: ='Obligacje skarbowe_podmiot'!B25+'Bony skarbowe_podmiot'!B25 -> 12704.1778 | C25: ='Obligacje skarbowe_podmiot'!C25+'Bony skarbowe_podmiot'!C25 -> 30122.74306 | D25: ='Obligacje skarbowe_podmiot'!D25+'Bony skarbowe_podmiot'!D25 -> 9378.478 | E25: ='Obligacje skarbowe_podmiot'!E25+'Bony skarbowe_podmiot'!E25 -> 12441.59686 | F25: ='Obligacje skarbowe_podmiot'!F25+'Bony skarbowe_podmiot'!F25 -> 14059.54756 | G25: ='Obligacje skarbowe_podmiot'!G25+'Bony skarbowe_podmiot'!G25 -> 54947.63454 | H25: ='Obligacje skarbowe_podmiot'!H25+'Bony skarbowe_podmiot'!H25 -> 40.84 | I25: ='Obligacje skarbowe_podmiot'!I25+'Bony skarbowe_podmiot'!I25 -> 16.9978 | J25: ='Obligacje skarbowe_podmiot'!J25+'Bony skarbowe_podmiot'!J25 -> 9095.883839 | K25: ='Obligacje skarbowe_podmiot'!K25+'Bony skarbowe_podmiot'!K25 -> 19013.5924 | L25: ='Obligacje skarbowe_podmiot'!L25+'Bony skarbowe_podmiot'!L25 -> 44938.05586 | M25: ='Obligacje skarbowe_podmiot'!M25+'Bony skarbowe_podmiot'!M25 -> 206759.5477
A26: ='Obligacje skarbowe_podmiot'!A26 -> 2016-01-31 | B26: ='Obligacje skarbowe_podmiot'!B26+'Bony skarbowe_podmiot'!B26 -> 16684.28576 | C26: ='Obligacje skarbowe_podmiot'!C26+'Bony skarbowe_podmiot'!C26 -> 29314.37249 | D26: ='Obligacje skarbowe_podmiot'!D26+'Bony skarbowe_podmiot'!D26 -> 9442.234 | E26: ='Obligacje skarbowe_podmiot'!E26+'Bony skarbowe_podmiot'!E26 -> 12249.12278 | F26: ='Obligacje skarbowe_podmiot'!F26+'Bony skarbowe_podmiot'!F26 -> 13390.55899 | G26: ='Obligacje skarbowe_podmiot'!G26+'Bony skarbowe_podmiot'!G26 -> 47737.17086 | H26: ='Obligacje skarbowe_podmiot'!H26+'Bony skarbowe_podmiot'!H26 -> 40.84 | I26: ='Obligacje skarbowe_podmiot'!I26+'Bony skarbowe_podmiot'!I26 -> 17.2064 | J26: ='Obligacje skarbowe_podmiot'!J26+'Bony skarbowe_podmiot'!J26 -> 6434.915766 | K26: ='Obligacje skarbowe_podmiot'!K26+'Bony skarbowe_podmiot'!K26 -> 17816.05271 | L26: ='Obligacje skarbowe_podmiot'!L26+'Bony skarbowe_podmiot'!L26 -> 40571.80338 | M26: ='Obligacje skarbowe_podmiot'!M26+'Bony skarbowe_podmiot'!M26 -> 193698.5631
A27: ='Obligacje skarbowe_podmiot'!A27 -> 2016-02-29 | B27: ='Obligacje skarbowe_podmiot'!B27+'Bony skarbowe_podmiot'!B27 -> 14825.67549 | C27: ='Obligacje skarbowe_podmiot'!C27+'Bony skarbowe_podmiot'!C27 -> 29182.49181 | D27: ='Obligacje skarbowe_podmiot'!D27+'Bony skarbowe_podmiot'!D27 -> 9440.085 | E27: ='Obligacje skarbowe_podmiot'!E27+'Bony skarbowe_podmiot'!E27 -> 11408.5979 | F27: ='Obligacje skarbowe_podmiot'!F27+'Bony skarbowe_podmiot'!F27 -> 13386.82124 | G27: ='Obligacje skarbowe_podmiot'!G27+'Bony skarbowe_podmiot'!G27 -> 41096.20699 | H27: ='Obligacje skarbowe_podmiot'!H27+'Bony skarbowe_podmiot'!H27 -> 40.84 | I27: ='Obligacje skarbowe_podmiot'!I27+'Bony skarbowe_podmiot'!I27 -> 17.2367 | J27: ='Obligacje skarbowe_podmiot'!J27+'Bony skarbowe_podmiot'!J27 -> 6580.956356 | K27: ='Obligacje skarbowe_podmiot'!K27+'Bony skarbowe_podmiot'!K27 -> 17734.48624 | L27: ='Obligacje skarbowe_podmiot'!L27+'Bony skarbowe_podmiot'!L27 -> 42884.72362 | M27: ='Obligacje skarbowe_podmiot'!M27+'Bony skarbowe_podmiot'!M27 -> 186598.1214
A28: ='Obligacje skarbowe_podmiot'!A28 -> 2016-03-31 | B28: ='Obligacje skarbowe_podmiot'!B28+'Bony skarbowe_podmiot'!B28 -> 19346.27988 | C28: ='Obligacje skarbowe_podmiot'!C28+'Bony skarbowe_podmiot'!C28 -> 27744.17252 | D28: ='Obligacje skarbowe_podmiot'!D28+'Bony skarbowe_podmiot'!D28 -> 9479.658 | E28: ='Obligacje skarbowe_podmiot'!E28+'Bony skarbowe_podmiot'!E28 -> 11871.08736 | F28: ='Obligacje skarbowe_podmiot'!F28+'Bony skarbowe_podmiot'!F28 -> 13768.42779 | G28: ='Obligacje skarbowe_podmiot'!G28+'Bony skarbowe_podmiot'!G28 -> 41749.74361 | H28: ='Obligacje skarbowe_podmiot'!H28+'Bony skarbowe_podmiot'!H28 -> 43.49 | I28: ='Obligacje skarbowe_podmiot'!I28+'Bony skarbowe_podmiot'!I28 -> 18.101 | J28: ='Obligacje skarbowe_podmiot'!J28+'Bony skarbowe_podmiot'!J28 -> 6711.138203 | K28: ='Obligacje skarbowe_podmiot'!K28+'Bony skarbowe_podmiot'!K28 -> 17238.99774 | L28: ='Obligacje skarbowe_podmiot'!L28+'Bony skarbowe_podmiot'!L28 -> 42243.49417 | M28: ='Obligacje skarbowe_podmiot'!M28+'Bony skarbowe_podmiot'!M28 -> 190214.5903
A29: ='Obligacje skarbowe_podmiot'!A29 -> 2016-04-30 | B29: ='Obligacje skarbowe_podmiot'!B29+'Bony skarbowe_podmiot'!B29 -> 12422.69733 | C29: ='Obligacje skarbowe_podmiot'!C29+'Bony skarbowe_podmiot'!C29 -> 28245.14567 | D29: ='Obligacje skarbowe_podmiot'!D29+'Bony skarbowe_podmiot'!D29 -> 8863.014 | E29: ='Obligacje skarbowe_podmiot'!E29+'Bony skarbowe_podmiot'!E29 -> 10808.81295 | F29: ='Obligacje skarbowe_podmiot'!F29+'Bony skarbowe_podmiot'!F29 -> 13733.18565 | G29: ='Obligacje skarbowe_podmiot'!G29+'Bony skarbowe_podmiot'!G29 -> 40687.98413 | H29: ='Obligacje skarbowe_podmiot'!H29+'Bony skarbowe_podmiot'!H29 -> 64.44 | I29: ='Obligacje skarbowe_podmiot'!I29+'Bony skarbowe_podmiot'!I29 -> 18.1561 | J29: ='Obligacje skarbowe_podmiot'!J29+'Bony skarbowe_podmiot'!J29 -> 6227.112452 | K29: ='Obligacje skarbowe_podmiot'!K29+'Bony skarbowe_podmiot'!K29 -> 16924.28758 | L29: ='Obligacje skarbowe_podmiot'!L29+'Bony skarbowe_podmiot'!L29 -> 50326.73009 | M29: ='Obligacje skarbowe_podmiot'!M29+'Bony skarbowe_podmiot'!M29 -> 188321.566
A30: ='Obligacje skarbowe_podmiot'!A30 -> 2016-05-31 | B30: ='Obligacje skarbowe_podmiot'!B30+'Bony skarbowe_podmiot'!B30 -> 11594.71882 | C30: ='Obligacje skarbowe_podmiot'!C30+'Bony skarbowe_podmiot'!C30 -> 29479.63403 | D30: ='Obligacje skarbowe_podmiot'!D30+'Bony skarbowe_podmiot'!D30 -> 8903.968 | E30: ='Obligacje skarbowe_podmiot'!E30+'Bony skarbowe_podmiot'!E30 -> 11300.79919 | F30: ='Obligacje skarbowe_podmiot'!F30+'Bony skarbowe_podmiot'!F30 -> 14441.44349 | G30: ='Obligacje skarbowe_podmiot'!G30+'Bony skarbowe_podmiot'!G30 -> 42327.14058 | H30: ='Obligacje skarbowe_podmiot'!H30+'Bony skarbowe_podmiot'!H30 -> 77.97 | I30: ='Obligacje skarbowe_podmiot'!I30+'Bony skarbowe_podmiot'!I30 -> 18.6364 | J30: ='Obligacje skarbowe_podmiot'!J30+'Bony skarbowe_podmiot'!J30 -> 6508.7663 | K30: ='Obligacje skarbowe_podmiot'!K30+'Bony skarbowe_podmiot'!K30 -> 18083.97991 | L30: ='Obligacje skarbowe_podmiot'!L30+'Bony skarbowe_podmiot'!L30 -> 49838.61645 | M30: ='Obligacje skarbowe_podmiot'!M30+'Bony skarbowe_podmiot'!M30 -> 192575.6732
A31: ='Obligacje skarbowe_podmiot'!A31 -> 2016-06-30 | B31: ='Obligacje skarbowe_podmiot'!B31+'Bony skarbowe_podmiot'!B31 -> 12592.5608 | C31: ='Obligacje skarbowe_podmiot'!C31+'Bony skarbowe_podmiot'!C31 -> 29494.4126 | D31: ='Obligacje skarbowe_podmiot'!D31+'Bony skarbowe_podmiot'!D31 -> 8852.30779 | E31: ='Obligacje skarbowe_podmiot'!E31+'Bony skarbowe_podmiot'!E31 -> 11755.16963 | F31: ='Obligacje skarbowe_podmiot'!F31+'Bony skarbowe_podmiot'!F31 -> 14483.56389 | G31: ='Obligacje skarbowe_podmiot'!G31+'Bony skarbowe_podmiot'!G31 -> 42990.72416 | H31: ='Obligacje skarbowe_podmiot'!H31+'Bony skarbowe_podmiot'!H31 -> 79.97 | I31: ='Obligacje skarbowe_podmiot'!I31+'Bony skarbowe_podmiot'!I31 -> 19.3507 | J31: ='Obligacje skarbowe_podmiot'!J31+'Bony skarbowe_podmiot'!J31 -> 7053.333975 | K31: ='Obligacje skarbowe_podmiot'!K31+'Bony skarbowe_podmiot'!K31 -> 17260.97088 | L31: ='Obligacje skarbowe_podmiot'!L31+'Bony skarbowe_podmiot'!L31 -> 51952.49795 | M31: ='Obligacje skarbowe_podmiot'!M31+'Bony skarbowe_podmiot'!M31 -> 196534.8624
A32: ='Obligacje skarbowe_podmiot'!A32 -> 2016-07-31 | B32: ='Obligacje skarbowe_podmiot'!B32+'Bony skarbowe_podmiot'!B32 -> 11364.21745 | C32: ='Obligacje skarbowe_podmiot'!C32+'Bony skarbowe_podmiot'!C32 -> 28589.63373 | D32: ='Obligacje skarbowe_podmiot'!D32+'Bony skarbowe_podmiot'!D32 -> 9032.107705 | E32: ='Obligacje skarbowe_podmiot'!E32+'Bony skarbowe_podmiot'!E32 -> 9769.567612 | F32: ='Obligacje skarbowe_podmiot'!F32+'Bony skarbowe_podmiot'!F32 -> 14574.5897 | G32: ='Obligacje skarbowe_podmiot'!G32+'Bony skarbowe_podmiot'!G32 -> 41718.75538 | H32: ='Obligacje skarbowe_podmiot'!H32+'Bony skarbowe_podmiot'!H32 -> 79.67 | I32: ='Obligacje skarbowe_podmiot'!I32+'Bony skarbowe_podmiot'!I32 -> 20.97 | J32: ='Obligacje skarbowe_podmiot'!J32+'Bony skarbowe_podmiot'!J32 -> 6818.104193 | K32: ='Obligacje skarbowe_podmiot'!K32+'Bony skarbowe_podmiot'!K32 -> 17374.87893 | L32: ='Obligacje skarbowe_podmiot'!L32+'Bony skarbowe_podmiot'!L32 -> 53495.17116 | M32: ='Obligacje skarbowe_podmiot'!M32+'Bony skarbowe_podmiot'!M32 -> 192837.6659
A33: ='Obligacje skarbowe_podmiot'!A33 -> 2016-08-31 | B33: ='Obligacje skarbowe_podmiot'!B33+'Bony skarbowe_podmiot'!B33 -> 10941.55218 | C33: ='Obligacje skarbowe_podmiot'!C33+'Bony skarbowe_podmiot'!C33 -> 28460.88083 | D33: ='Obligacje skarbowe_podmiot'!D33+'Bony skarbowe_podmiot'!D33 -> 9391.695 | E33: ='Obligacje skarbowe_podmiot'!E33+'Bony skarbowe_podmiot'!E33 -> 9650.301871 | F33: ='Obligacje skarbowe_podmiot'!F33+'Bony skarbowe_podmiot'!F33 -> 14518.89182 | G33: ='Obligacje skarbowe_podmiot'!G33+'Bony skarbowe_podmiot'!G33 -> 43300.60649 | H33: ='Obligacje skarbowe_podmiot'!H33+'Bony skarbowe_podmiot'!H33 -> 77.33 | I33: ='Obligacje skarbowe_podmiot'!I33+'Bony skarbowe_podmiot'!I33 -> 21.9686 | J33: ='Obligacje skarbowe_podmiot'!J33+'Bony skarbowe_podmiot'!J33 -> 7054.430868 | K33: ='Obligacje skarbowe_podmiot'!K33+'Bony skarbowe_podmiot'!K33 -> 18132.20604 | L33: ='Obligacje skarbowe_podmiot'!L33+'Bony skarbowe_podmiot'!L33 -> 54894.44776 | M33: ='Obligacje skarbowe_podmiot'!M33+'Bony skarbowe_podmiot'!M33 -> 196444.3114
A34: ='Obligacje skarbowe_podmiot'!A34 -> 2016-09-30 | B34: ='Obligacje skarbowe_podmiot'!B34+'Bony skarbowe_podmiot'!B34 -> 11856.32019 | C34: ='Obligacje skarbowe_podmiot'!C34+'Bony skarbowe_podmiot'!C34 -> 28373.56929 | D34: ='Obligacje skarbowe_podmiot'!D34+'Bony skarbowe_podmiot'!D34 -> 9298.202215 | E34: ='Obligacje skarbowe_podmiot'!E34+'Bony skarbowe_podmiot'!E34 -> 10120.85198 | F34: ='Obligacje skarbowe_podmiot'!F34+'Bony skarbowe_podmiot'!F34 -> 14551.28341 | G34: ='Obligacje skarbowe_podmiot'!G34+'Bony skarbowe_podmiot'!G34 -> 44482.57973 | H34: ='Obligacje skarbowe_podmiot'!H34+'Bony skarbowe_podmiot'!H34 -> 77.17 | I34: ='Obligacje skarbowe_podmiot'!I34+'Bony skarbowe_podmiot'!I34 -> 22.4602 | J34: ='Obligacje skarbowe_podmiot'!J34+'Bony skarbowe_podmiot'!J34 -> 7473.674421 | K34: ='Obligacje skarbowe_podmiot'!K34+'Bony skarbowe_podmiot'!K34 -> 19669.37345 | L34: ='Obligacje skarbowe_podmiot'!L34+'Bony skarbowe_podmiot'!L34 -> 54640.91553 | M34: ='Obligacje skarbowe_podmiot'!M34+'Bony skarbowe_podmiot'!M34 -> 200566.4004
A35: ='Obligacje skarbowe_podmiot'!A35 -> 2016-10-31 | B35: ='Obligacje skarbowe_podmiot'!B35+'Bony skarbowe_podmiot'!B35 -> 10082.34325 | C35: ='Obligacje skarbowe_podmiot'!C35+'Bony skarbowe_podmiot'!C35 -> 28483.23536 | D35: ='Obligacje skarbowe_podmiot'!D35+'Bony skarbowe_podmiot'!D35 -> 9355.492 | E35: ='Obligacje skarbowe_podmiot'!E35+'Bony skarbowe_podmiot'!E35 -> 9396.111783 | F35: ='Obligacje skarbowe_podmiot'!F35+'Bony skarbowe_podmiot'!F35 -> 14390.29402 | G35: ='Obligacje skarbowe_podmiot'!G35+'Bony skarbowe_podmiot'!G35 -> 36781.93734 | H35: ='Obligacje skarbowe_podmiot'!H35+'Bony skarbowe_podmiot'!H35 -> 76.7 | I35: ='Obligacje skarbowe_podmiot'!I35+'Bony skarbowe_podmiot'!I35 -> 21.7032 | J35: ='Obligacje skarbowe_podmiot'!J35+'Bony skarbowe_podmiot'!J35 -> 7808.291565 | K35: ='Obligacje skarbowe_podmiot'!K35+'Bony skarbowe_podmiot'!K35 -> 22420.66148 | L35: ='Obligacje skarbowe_podmiot'!L35+'Bony skarbowe_podmiot'!L35 -> 59302.61942 | M35: ='Obligacje skarbowe_podmiot'!M35+'Bony skarbowe_podmiot'!M35 -> 198119.3894
A36: ='Obligacje skarbowe_podmiot'!A36 -> 2016-11-30 | B36: ='Obligacje skarbowe_podmiot'!B36+'Bony skarbowe_podmiot'!B36 -> 9330.651718 | C36: ='Obligacje skarbowe_podmiot'!C36+'Bony skarbowe_podmiot'!C36 -> 29125.45101 | D36: ='Obligacje skarbowe_podmiot'!D36+'Bony skarbowe_podmiot'!D36 -> 9494.856 | E36: ='Obligacje skarbowe_podmiot'!E36+'Bony skarbowe_podmiot'!E36 -> 9340.410899 | F36: ='Obligacje skarbowe_podmiot'!F36+'Bony skarbowe_podmiot'!F36 -> 14298.35901 | G36: ='Obligacje skarbowe_podmiot'!G36+'Bony skarbowe_podmiot'!G36 -> 32374.25692 | H36: ='Obligacje skarbowe_podmiot'!H36+'Bony skarbowe_podmiot'!H36 -> 318.357 | I36: ='Obligacje skarbowe_podmiot'!I36+'Bony skarbowe_podmiot'!I36 -> 20.4703 | J36: ='Obligacje skarbowe_podmiot'!J36+'Bony skarbowe_podmiot'!J36 -> 7831.131596 | K36: ='Obligacje skarbowe_podmiot'!K36+'Bony skarbowe_podmiot'!K36 -> 21350.31224 | L36: ='Obligacje skarbowe_podmiot'!L36+'Bony skarbowe_podmiot'!L36 -> 54654.09912 | M36: ='Obligacje skarbowe_podmiot'!M36+'Bony skarbowe_podmiot'!M36 -> 188138.3558
A37: ='Obligacje skarbowe_podmiot'!A37 -> 2016-12-31 | B37: ='Obligacje skarbowe_podmiot'!B37+'Bony skarbowe_podmiot'!B37 -> 9965.788905 | C37: ='Obligacje skarbowe_podmiot'!C37+'Bony skarbowe_podmiot'!C37 -> 28697.22446 | D37: ='Obligacje skarbowe_podmiot'!D37+'Bony skarbowe_podmiot'!D37 -> 9887.604105 | E37: ='Obligacje skarbowe_podmiot'!E37+'Bony skarbowe_podmiot'!E37 -> 9447.067428 | F37: ='Obligacje skarbowe_podmiot'!F37+'Bony skarbowe_podmiot'!F37 -> 14173.44764 | G37: ='Obligacje skarbowe_podmiot'!G37+'Bony skarbowe_podmiot'!G37 -> 31932.18622 | H37: ='Obligacje skarbowe_podmiot'!H37+'Bony skarbowe_podmiot'!H37 -> 296.117 | I37: ='Obligacje skarbowe_podmiot'!I37+'Bony skarbowe_podmiot'!I37 -> 21.3855 | J37: ='Obligacje skarbowe_podmiot'!J37+'Bony skarbowe_podmiot'!J37 -> 8642.506138 | K37: ='Obligacje skarbowe_podmiot'!K37+'Bony skarbowe_podmiot'!K37 -> 21251.71576 | L37: ='Obligacje skarbowe_podmiot'!L37+'Bony skarbowe_podmiot'!L37 -> 58240.70938 | M37: ='Obligacje skarbowe_podmiot'!M37+'Bony skarbowe_podmiot'!M37 -> 192555.7525
A38: ='Obligacje skarbowe_podmiot'!A38 -> 2017-01-31 | B38: ='Obligacje skarbowe_podmiot'!B38+'Bony skarbowe_podmiot'!B38 -> 8801.149353 | C38: ='Obligacje skarbowe_podmiot'!C38+'Bony skarbowe_podmiot'!C38 -> 28212.53652 | D38: ='Obligacje skarbowe_podmiot'!D38+'Bony skarbowe_podmiot'!D38 -> 10119.26114 | E38: ='Obligacje skarbowe_podmiot'!E38+'Bony skarbowe_podmiot'!E38 -> 9684.962234 | F38: ='Obligacje skarbowe_podmiot'!F38+'Bony skarbowe_podmiot'!F38 -> 14786.471 | G38: ='Obligacje skarbowe_podmiot'!G38+'Bony skarbowe_podmiot'!G38 -> 34384.22646 | H38: ='Obligacje skarbowe_podmiot'!H38+'Bony skarbowe_podmiot'!H38 -> 305.272 | I38: ='Obligacje skarbowe_podmiot'!I38+'Bony skarbowe_podmiot'!I38 -> 21.708 | J38: ='Obligacje skarbowe_podmiot'!J38+'Bony skarbowe_podmiot'!J38 -> 8788.437281 | K38: ='Obligacje skarbowe_podmiot'!K38+'Bony skarbowe_podmiot'!K38 -> 22245.9069 | L38: ='Obligacje skarbowe_podmiot'!L38+'Bony skarbowe_podmiot'!L38 -> 56453.55925 | M38: ='Obligacje skarbowe_podmiot'!M38+'Bony skarbowe_podmiot'!M38 -> 193803.4901
A39: ='Obligacje skarbowe_podmiot'!A39 -> 2017-02-28 | B39: ='Obligacje skarbowe_podmiot'!B39+'Bony skarbowe_podmiot'!B39 -> 9475.441588 | C39: ='Obligacje skarbowe_podmiot'!C39+'Bony skarbowe_podmiot'!C39 -> 27315.13892 | D39: ='Obligacje skarbowe_podmiot'!D39+'Bony skarbowe_podmiot'!D39 -> 10559.2831 | E39: ='Obligacje skarbowe_podmiot'!E39+'Bony skarbowe_podmiot'!E39 -> 9854.642315 | F39: ='Obligacje skarbowe_podmiot'!F39+'Bony skarbowe_podmiot'!F39 -> 15232.90203 | G39: ='Obligacje skarbowe_podmiot'!G39+'Bony skarbowe_podmiot'!G39 -> 36617.56937 | H39: ='Obligacje skarbowe_podmiot'!H39+'Bony skarbowe_podmiot'!H39 -> 327.054 | I39: ='Obligacje skarbowe_podmiot'!I39+'Bony skarbowe_podmiot'!I39 -> 22.6454 | J39: ='Obligacje skarbowe_podmiot'!J39+'Bony skarbowe_podmiot'!J39 -> 8779.055891 | K39: ='Obligacje skarbowe_podmiot'!K39+'Bony skarbowe_podmiot'!K39 -> 22555.63862 | L39: ='Obligacje skarbowe_podmiot'!L39+'Bony skarbowe_podmiot'!L39 -> 54379.24263 | M39: ='Obligacje skarbowe_podmiot'!M39+'Bony skarbowe_podmiot'!M39 -> 195118.6139
A40: ='Obligacje skarbowe_podmiot'!A40 -> 2017-03-31 | B40: ='Obligacje skarbowe_podmiot'!B40+'Bony skarbowe_podmiot'!B40 -> 8482.184512 | C40: ='Obligacje skarbowe_podmiot'!C40+'Bony skarbowe_podmiot'!C40 -> 31761.05127 | D40: ='Obligacje skarbowe_podmiot'!D40+'Bony skarbowe_podmiot'!D40 -> 10649.0515 | E40: ='Obligacje skarbowe_podmiot'!E40+'Bony skarbowe_podmiot'!E40 -> 10038.84522 | F40: ='Obligacje skarbowe_podmiot'!F40+'Bony skarbowe_podmiot'!F40 -> 15600.44747 | G40: ='Obligacje skarbowe_podmiot'!G40+'Bony skarbowe_podmiot'!G40 -> 38546.55502 | H40: ='Obligacje skarbowe_podmiot'!H40+'Bony skarbowe_podmiot'!H40 -> 490.199 | I40: ='Obligacje skarbowe_podmiot'!I40+'Bony skarbowe_podmiot'!I40 -> 23.6628 | J40: ='Obligacje skarbowe_podmiot'!J40+'Bony skarbowe_podmiot'!J40 -> 8821.942298 | K40: ='Obligacje skarbowe_podmiot'!K40+'Bony skarbowe_podmiot'!K40 -> 23926.1754 | L40: ='Obligacje skarbowe_podmiot'!L40+'Bony skarbowe_podmiot'!L40 -> 56689.00554 | M40: ='Obligacje skarbowe_podmiot'!M40+'Bony skarbowe_podmiot'!M40 -> 205029.12
A41: ='Obligacje skarbowe_podmiot'!A41 -> 2017-04-30 | B41: ='Obligacje skarbowe_podmiot'!B41+'Bony skarbowe_podmiot'!B41 -> 7414.64696 | C41: ='Obligacje skarbowe_podmiot'!C41+'Bony skarbowe_podmiot'!C41 -> 31153.74554 | D41: ='Obligacje skarbowe_podmiot'!D41+'Bony skarbowe_podmiot'!D41 -> 10911.052 | E41: ='Obligacje skarbowe_podmiot'!E41+'Bony skarbowe_podmiot'!E41 -> 9971.236278 | F41: ='Obligacje skarbowe_podmiot'!F41+'Bony skarbowe_podmiot'!F41 -> 16124.91226 | G41: ='Obligacje skarbowe_podmiot'!G41+'Bony skarbowe_podmiot'!G41 -> 39950.87738 | H41: ='Obligacje skarbowe_podmiot'!H41+'Bony skarbowe_podmiot'!H41 -> 532.286 | I41: ='Obligacje skarbowe_podmiot'!I41+'Bony skarbowe_podmiot'!I41 -> 39.9335 | J41: ='Obligacje skarbowe_podmiot'!J41+'Bony skarbowe_podmiot'!J41 -> 8696.416023 | K41: ='Obligacje skarbowe_podmiot'!K41+'Bony skarbowe_podmiot'!K41 -> 26709.31289 | L41: ='Obligacje skarbowe_podmiot'!L41+'Bony skarbowe_podmiot'!L41 -> 58716.32577 | M41: ='Obligacje skarbowe_podmiot'!M41+'Bony skarbowe_podmiot'!M41 -> 210220.7446
A42: ='Obligacje skarbowe_podmiot'!A42 -> 2017-05-31 | B42: ='Obligacje skarbowe_podmiot'!B42+'Bony skarbowe_podmiot'!B42 -> 6166.387102 | C42: ='Obligacje skarbowe_podmiot'!C42+'Bony skarbowe_podmiot'!C42 -> 30434.98982 | D42: ='Obligacje skarbowe_podmiot'!D42+'Bony skarbowe_podmiot'!D42 -> 12267.411 | E42: ='Obligacje skarbowe_podmiot'!E42+'Bony skarbowe_podmiot'!E42 -> 10075.26865 | F42: ='Obligacje skarbowe_podmiot'!F42+'Bony skarbowe_podmiot'!F42 -> 16054.33639 | G42: ='Obligacje skarbowe_podmiot'!G42+'Bony skarbowe_podmiot'!G42 -> 39485.72236 | H42: ='Obligacje skarbowe_podmiot'!H42+'Bony skarbowe_podmiot'!H42 -> 541.612 | I42: ='Obligacje skarbowe_podmiot'!I42+'Bony skarbowe_podmiot'!I42 -> 47.3331 | J42: ='Obligacje skarbowe_podmiot'!J42+'Bony skarbowe_podmiot'!J42 -> 8561.641218 | K42: ='Obligacje skarbowe_podmiot'!K42+'Bony skarbowe_podmiot'!K42 -> 26017.95847 | L42: ='Obligacje skarbowe_podmiot'!L42+'Bony skarbowe_podmiot'!L42 -> 59948.23916 | M42: ='Obligacje skarbowe_podmiot'!M42+'Bony skarbowe_podmiot'!M42 -> 209600.8993
A43: ='Obligacje skarbowe_podmiot'!A43 -> 2017-06-30 | B43: ='Obligacje skarbowe_podmiot'!B43+'Bony skarbowe_podmiot'!B43 -> 8677.047633 | C43: ='Obligacje skarbowe_podmiot'!C43+'Bony skarbowe_podmiot'!C43 -> 27986.98384 | D43: ='Obligacje skarbowe_podmiot'!D43+'Bony skarbowe_podmiot'!D43 -> 11869.043 | E43: ='Obligacje skarbowe_podmiot'!E43+'Bony skarbowe_podmiot'!E43 -> 10094.05787 | F43: ='Obligacje skarbowe_podmiot'!F43+'Bony skarbowe_podmiot'!F43 -> 17241.35066 | G43: ='Obligacje skarbowe_podmiot'!G43+'Bony skarbowe_podmiot'!G43 -> 40076.82272 | H43: ='Obligacje skarbowe_podmiot'!H43+'Bony skarbowe_podmiot'!H43 -> 1273.252 | I43: ='Obligacje skarbowe_podmiot'!I43+'Bony skarbowe_podmiot'!I43 -> 48.4495 | J43: ='Obligacje skarbowe_podmiot'!J43+'Bony skarbowe_podmiot'!J43 -> 8648.049475 | K43: ='Obligacje skarbowe_podmiot'!K43+'Bony skarbowe_podmiot'!K43 -> 25991.20072 | L43: ='Obligacje skarbowe_podmiot'!L43+'Bony skarbowe_podmiot'!L43 -> 59910.90786 | M43: ='Obligacje skarbowe_podmiot'!M43+'Bony skarbowe_podmiot'!M43 -> 211817.1653
A44: ='Obligacje skarbowe_podmiot'!A44 -> 2017-07-31 | B44: ='Obligacje skarbowe_podmiot'!B44+'Bony skarbowe_podmiot'!B44 -> 8151.272764 | C44: ='Obligacje skarbowe_podmiot'!C44+'Bony skarbowe_podmiot'!C44 -> 27806.75464 | D44: ='Obligacje skarbowe_podmiot'!D44+'Bony skarbowe_podmiot'!D44 -> 11878.253 | E44: ='Obligacje skarbowe_podmiot'!E44+'Bony skarbowe_podmiot'!E44 -> 9878.687276 | F44: ='Obligacje skarbowe_podmiot'!F44+'Bony skarbowe_podmiot'!F44 -> 16580.8454 | G44: ='Obligacje skarbowe_podmiot'!G44+'Bony skarbowe_podmiot'!G44 -> 40290.74515 | H44: ='Obligacje skarbowe_podmiot'!H44+'Bony skarbowe_podmiot'!H44 -> 1224.238 | I44: ='Obligacje skarbowe_podmiot'!I44+'Bony skarbowe_podmiot'!I44 -> 50.1906 | J44: ='Obligacje skarbowe_podmiot'!J44+'Bony skarbowe_podmiot'!J44 -> 8015.064784 | K44: ='Obligacje skarbowe_podmiot'!K44+'Bony skarbowe_podmiot'!K44 -> 26734.5796 | L44: ='Obligacje skarbowe_podmiot'!L44+'Bony skarbowe_podmiot'!L44 -> 58595.35142 | M44: ='Obligacje skarbowe_podmiot'!M44+'Bony skarbowe_podmiot'!M44 -> 209205.9826
A45: ='Obligacje skarbowe_podmiot'!A45 -> 2017-08-31 | B45: ='Obligacje skarbowe_podmiot'!B45+'Bony skarbowe_podmiot'!B45 -> 10583.50892 | C45: ='Obligacje skarbowe_podmiot'!C45+'Bony skarbowe_podmiot'!C45 -> 27630.56569 | D45: ='Obligacje skarbowe_podmiot'!D45+'Bony skarbowe_podmiot'!D45 -> 11733.972 | E45: ='Obligacje skarbowe_podmiot'!E45+'Bony skarbowe_podmiot'!E45 -> 9634.054659 | F45: ='Obligacje skarbowe_podmiot'!F45+'Bony skarbowe_podmiot'!F45 -> 17248.10098 | G45: ='Obligacje skarbowe_podmiot'!G45+'Bony skarbowe_podmiot'!G45 -> 39694.21969 | H45: ='Obligacje skarbowe_podmiot'!H45+'Bony skarbowe_podmiot'!H45 -> 1247.418 | I45: ='Obligacje skarbowe_podmiot'!I45+'Bony skarbowe_podmiot'!I45 -> 50.3346 | J45: ='Obligacje skarbowe_podmiot'!J45+'Bony skarbowe_podmiot'!J45 -> 7652.832643 | K45: ='Obligacje skarbowe_podmiot'!K45+'Bony skarbowe_podmiot'!K45 -> 26197.97457 | L45: ='Obligacje skarbowe_podmiot'!L45+'Bony skarbowe_podmiot'!L45 -> 56879.35311 | M45: ='Obligacje skarbowe_podmiot'!M45+'Bony skarbowe_podmiot'!M45 -> 208552.3349
A46: ='Obligacje skarbowe_podmiot'!A46 -> 2017-09-30 | B46: ='Obligacje skarbowe_podmiot'!B46+'Bony skarbowe_podmiot'!B46 -> 12832.62991 | C46: ='Obligacje skarbowe_podmiot'!C46+'Bony skarbowe_podmiot'!C46 -> 26841.31205 | D46: ='Obligacje skarbowe_podmiot'!D46+'Bony skarbowe_podmiot'!D46 -> 11012.031 | E46: ='Obligacje skarbowe_podmiot'!E46+'Bony skarbowe_podmiot'!E46 -> 9901.629111 | F46: ='Obligacje skarbowe_podmiot'!F46+'Bony skarbowe_podmiot'!F46 -> 16402.82235 | G46: ='Obligacje skarbowe_podmiot'!G46+'Bony skarbowe_podmiot'!G46 -> 39970.82393 | H46: ='Obligacje skarbowe_podmiot'!H46+'Bony skarbowe_podmiot'!H46 -> 1255.913 | I46: ='Obligacje skarbowe_podmiot'!I46+'Bony skarbowe_podmiot'!I46 -> 50.7025 | J46: ='Obligacje skarbowe_podmiot'!J46+'Bony skarbowe_podmiot'!J46 -> 7344.37132 | K46: ='Obligacje skarbowe_podmiot'!K46+'Bony skarbowe_podmiot'!K46 -> 25945.91002 | L46: ='Obligacje skarbowe_podmiot'!L46+'Bony skarbowe_podmiot'!L46 -> 53543.80433 | M46: ='Obligacje skarbowe_podmiot'!M46+'Bony skarbowe_podmiot'!M46 -> 205101.9495
A47: ='Obligacje skarbowe_podmiot'!A47 -> 2017-10-31 | B47: ='Obligacje skarbowe_podmiot'!B47+'Bony skarbowe_podmiot'!B47 -> 6008.341632 | C47: ='Obligacje skarbowe_podmiot'!C47+'Bony skarbowe_podmiot'!C47 -> 34347.61882 | D47: ='Obligacje skarbowe_podmiot'!D47+'Bony skarbowe_podmiot'!D47 -> 10303.211 | E47: ='Obligacje skarbowe_podmiot'!E47+'Bony skarbowe_podmiot'!E47 -> 8510.295797 | F47: ='Obligacje skarbowe_podmiot'!F47+'Bony skarbowe_podmiot'!F47 -> 16252.9187 | G47: ='Obligacje skarbowe_podmiot'!G47+'Bony skarbowe_podmiot'!G47 -> 39473.6529 | H47: ='Obligacje skarbowe_podmiot'!H47+'Bony skarbowe_podmiot'!H47 -> 1198.024 | I47: ='Obligacje skarbowe_podmiot'!I47+'Bony skarbowe_podmiot'!I47 -> 54.06035 | J47: ='Obligacje skarbowe_podmiot'!J47+'Bony skarbowe_podmiot'!J47 -> 6908.493764 | K47: ='Obligacje skarbowe_podmiot'!K47+'Bony skarbowe_podmiot'!K47 -> 26370.67525 | L47: ='Obligacje skarbowe_podmiot'!L47+'Bony skarbowe_podmiot'!L47 -> 52484.06359 | M47: ='Obligacje skarbowe_podmiot'!M47+'Bony skarbowe_podmiot'!M47 -> 201911.3558
A48: ='Obligacje skarbowe_podmiot'!A48 -> 2017-11-30 | B48: ='Obligacje skarbowe_podmiot'!B48+'Bony skarbowe_podmiot'!B48 -> 5861.925045 | C48: ='Obligacje skarbowe_podmiot'!C48+'Bony skarbowe_podmiot'!C48 -> 34910.61579 | D48: ='Obligacje skarbowe_podmiot'!D48+'Bony skarbowe_podmiot'!D48 -> 6741.766 | E48: ='Obligacje skarbowe_podmiot'!E48+'Bony skarbowe_podmiot'!E48 -> 9295.530794 | F48: ='Obligacje skarbowe_podmiot'!F48+'Bony skarbowe_podmiot'!F48 -> 15810.37097 | G48: ='Obligacje skarbowe_podmiot'!G48+'Bony skarbowe_podmiot'!G48 -> 38432.2826 | H48: ='Obligacje skarbowe_podmiot'!H48+'Bony skarbowe_podmiot'!H48 -> 1090.357 | I48: ='Obligacje skarbowe_podmiot'!I48+'Bony skarbowe_podmiot'!I48 -> 54.041525 | J48: ='Obligacje skarbowe_podmiot'!J48+'Bony skarbowe_podmiot'!J48 -> 7032.407425 | K48: ='Obligacje skarbowe_podmiot'!K48+'Bony skarbowe_podmiot'!K48 -> 27212.48996 | L48: ='Obligacje skarbowe_podmiot'!L48+'Bony skarbowe_podmiot'!L48 -> 53582.29039 | M48: ='Obligacje skarbowe_podmiot'!M48+'Bony skarbowe_podmiot'!M48 -> 200024.0775
A49: ='Obligacje skarbowe_podmiot'!A49 -> 2017-12-31 | B49: ='Obligacje skarbowe_podmiot'!B49+'Bony skarbowe_podmiot'!B49 -> 5556.975892 | C49: ='Obligacje skarbowe_podmiot'!C49+'Bony skarbowe_podmiot'!C49 -> 35660.4126 | D49: ='Obligacje skarbowe_podmiot'!D49+'Bony skarbowe_podmiot'!D49 -> 5947.596 | E49: ='Obligacje skarbowe_podmiot'!E49+'Bony skarbowe_podmiot'!E49 -> 9890.338992 | F49: ='Obligacje skarbowe_podmiot'!F49+'Bony skarbowe_podmiot'!F49 -> 15641.73651 | G49: ='Obligacje skarbowe_podmiot'!G49+'Bony skarbowe_podmiot'!G49 -> 39897.3367 | H49: ='Obligacje skarbowe_podmiot'!H49+'Bony skarbowe_podmiot'!H49 -> 1241.565 | I49: ='Obligacje skarbowe_podmiot'!I49+'Bony skarbowe_podmiot'!I49 -> 52.537425 | J49: ='Obligacje skarbowe_podmiot'!J49+'Bony skarbowe_podmiot'!J49 -> 7056.798241 | K49: ='Obligacje skarbowe_podmiot'!K49+'Bony skarbowe_podmiot'!K49 -> 27197.28714 | L49: ='Obligacje skarbowe_podmiot'!L49+'Bony skarbowe_podmiot'!L49 -> 54571.88824 | M49: ='Obligacje skarbowe_podmiot'!M49+'Bony skarbowe_podmiot'!M49 -> 202714.4727
A50: ='Obligacje skarbowe_podmiot'!A50 -> 2018-01-31 | B50: ='Obligacje skarbowe_podmiot'!B50+'Bony skarbowe_podmiot'!B50 -> 6448.701326 | C50: ='Obligacje skarbowe_podmiot'!C50+'Bony skarbowe_podmiot'!C50 -> 34001.42202 | D50: ='Obligacje skarbowe_podmiot'!D50+'Bony skarbowe_podmiot'!D50 -> 4949.62 | E50: ='Obligacje skarbowe_podmiot'!E50+'Bony skarbowe_podmiot'!E50 -> 9732.659953 | F50: ='Obligacje skarbowe_podmiot'!F50+'Bony skarbowe_podmiot'!F50 -> 15372.44238 | G50: ='Obligacje skarbowe_podmiot'!G50+'Bony skarbowe_podmiot'!G50 -> 40543.30632 | H50: ='Obligacje skarbowe_podmiot'!H50+'Bony skarbowe_podmiot'!H50 -> 1169.731464 | I50: ='Obligacje skarbowe_podmiot'!I50+'Bony skarbowe_podmiot'!I50 -> 50.352155 | J50: ='Obligacje skarbowe_podmiot'!J50+'Bony skarbowe_podmiot'!J50 -> 6719.442316 | K50: ='Obligacje skarbowe_podmiot'!K50+'Bony skarbowe_podmiot'!K50 -> 27217.03243 | L50: ='Obligacje skarbowe_podmiot'!L50+'Bony skarbowe_podmiot'!L50 -> 53367.09983 | M50: ='Obligacje skarbowe_podmiot'!M50+'Bony skarbowe_podmiot'!M50 -> 199571.8102
A51: ='Obligacje skarbowe_podmiot'!A51 -> 2018-02-28 | B51: ='Obligacje skarbowe_podmiot'!B51+'Bony skarbowe_podmiot'!B51 -> 8217.889099 | C51: ='Obligacje skarbowe_podmiot'!C51+'Bony skarbowe_podmiot'!C51 -> 33270.72367 | D51: ='Obligacje skarbowe_podmiot'!D51+'Bony skarbowe_podmiot'!D51 -> 3025.674 | E51: ='Obligacje skarbowe_podmiot'!E51+'Bony skarbowe_podmiot'!E51 -> 9826.940209 | F51: ='Obligacje skarbowe_podmiot'!F51+'Bony skarbowe_podmiot'!F51 -> 15311.81931 | G51: ='Obligacje skarbowe_podmiot'!G51+'Bony skarbowe_podmiot'!G51 -> 41336.12893 | H51: ='Obligacje skarbowe_podmiot'!H51+'Bony skarbowe_podmiot'!H51 -> 1235.50716 | I51: ='Obligacje skarbowe_podmiot'!I51+'Bony skarbowe_podmiot'!I51 -> 50.34083 | J51: ='Obligacje skarbowe_podmiot'!J51+'Bony skarbowe_podmiot'!J51 -> 6363.319098 | K51: ='Obligacje skarbowe_podmiot'!K51+'Bony skarbowe_podmiot'!K51 -> 28508.1872 | L51: ='Obligacje skarbowe_podmiot'!L51+'Bony skarbowe_podmiot'!L51 -> 53318.94376 | M51: ='Obligacje skarbowe_podmiot'!M51+'Bony skarbowe_podmiot'!M51 -> 200465.4733
A52: ='Obligacje skarbowe_podmiot'!A52 -> 2018-03-31 | B52: ='Obligacje skarbowe_podmiot'!B52+'Bony skarbowe_podmiot'!B52 -> 7109.520436 | C52: ='Obligacje skarbowe_podmiot'!C52+'Bony skarbowe_podmiot'!C52 -> 35872.82121 | D52: ='Obligacje skarbowe_podmiot'!D52+'Bony skarbowe_podmiot'!D52 -> 1557.278 | E52: ='Obligacje skarbowe_podmiot'!E52+'Bony skarbowe_podmiot'!E52 -> 10843.57363 | F52: ='Obligacje skarbowe_podmiot'!F52+'Bony skarbowe_podmiot'!F52 -> 15311.13141 | G52: ='Obligacje skarbowe_podmiot'!G52+'Bony skarbowe_podmiot'!G52 -> 40503.26305 | H52: ='Obligacje skarbowe_podmiot'!H52+'Bony skarbowe_podmiot'!H52 -> 1086.611123 | I52: ='Obligacje skarbowe_podmiot'!I52+'Bony skarbowe_podmiot'!I52 -> 55.12605903 | J52: ='Obligacje skarbowe_podmiot'!J52+'Bony skarbowe_podmiot'!J52 -> 5936.22116 | K52: ='Obligacje skarbowe_podmiot'!K52+'Bony skarbowe_podmiot'!K52 -> 29671.38754 | L52: ='Obligacje skarbowe_podmiot'!L52+'Bony skarbowe_podmiot'!L52 -> 54869.48635 | M52: ='Obligacje skarbowe_podmiot'!M52+'Bony skarbowe_podmiot'!M52 -> 202816.42
A53: ='Obligacje skarbowe_podmiot'!A53 -> 2018-04-30 | B53: ='Obligacje skarbowe_podmiot'!B53+'Bony skarbowe_podmiot'!B53 -> 5568.257656 | C53: ='Obligacje skarbowe_podmiot'!C53+'Bony skarbowe_podmiot'!C53 -> 35570.50099 | D53: ='Obligacje skarbowe_podmiot'!D53+'Bony skarbowe_podmiot'!D53 -> 399.685 | E53: ='Obligacje skarbowe_podmiot'!E53+'Bony skarbowe_podmiot'!E53 -> 10428.82869 | F53: ='Obligacje skarbowe_podmiot'!F53+'Bony skarbowe_podmiot'!F53 -> 15017.89998 | G53: ='Obligacje skarbowe_podmiot'!G53+'Bony skarbowe_podmiot'!G53 -> 38996.74769 | H53: ='Obligacje skarbowe_podmiot'!H53+'Bony skarbowe_podmiot'!H53 -> 1203.394538 | I53: ='Obligacje skarbowe_podmiot'!I53+'Bony skarbowe_podmiot'!I53 -> 54.86733885 | J53: ='Obligacje skarbowe_podmiot'!J53+'Bony skarbowe_podmiot'!J53 -> 7140.4932 | K53: ='Obligacje skarbowe_podmiot'!K53+'Bony skarbowe_podmiot'!K53 -> 29044.22703 | L53: ='Obligacje skarbowe_podmiot'!L53+'Bony skarbowe_podmiot'!L53 -> 54261.77032 | M53: ='Obligacje skarbowe_podmiot'!M53+'Bony skarbowe_podmiot'!M53 -> 197686.6724
A54: ='Obligacje skarbowe_podmiot'!A54 -> 2018-05-31 | B54: ='Obligacje skarbowe_podmiot'!B54+'Bony skarbowe_podmiot'!B54 -> 6944.983703 | C54: ='Obligacje skarbowe_podmiot'!C54+'Bony skarbowe_podmiot'!C54 -> 35355.0674 | D54: ='Obligacje skarbowe_podmiot'!D54+'Bony skarbowe_podmiot'!D54 -> 445.865 | E54: ='Obligacje skarbowe_podmiot'!E54+'Bony skarbowe_podmiot'!E54 -> 10160.73858 | F54: ='Obligacje skarbowe_podmiot'!F54+'Bony skarbowe_podmiot'!F54 -> 14751.08738 | G54: ='Obligacje skarbowe_podmiot'!G54+'Bony skarbowe_podmiot'!G54 -> 37967.3167 | H54: ='Obligacje skarbowe_podmiot'!H54+'Bony skarbowe_podmiot'!H54 -> 1242.374191 | I54: ='Obligacje skarbowe_podmiot'!I54+'Bony skarbowe_podmiot'!I54 -> 56.70091719 | J54: ='Obligacje skarbowe_podmiot'!J54+'Bony skarbowe_podmiot'!J54 -> 7335.44168 | K54: ='Obligacje skarbowe_podmiot'!K54+'Bony skarbowe_podmiot'!K54 -> 28486.6441 | L54: ='Obligacje skarbowe_podmiot'!L54+'Bony skarbowe_podmiot'!L54 -> 53951.10988 | M54: ='Obligacje skarbowe_podmiot'!M54+'Bony skarbowe_podmiot'!M54 -> 196697.3295
A55: ='Obligacje skarbowe_podmiot'!A55 -> 2018-06-30 | B55: ='Obligacje skarbowe_podmiot'!B55+'Bony skarbowe_podmiot'!B55 -> 3900.991907 | C55: ='Obligacje skarbowe_podmiot'!C55+'Bony skarbowe_podmiot'!C55 -> 35402.18086 | D55: ='Obligacje skarbowe_podmiot'!D55+'Bony skarbowe_podmiot'!D55 -> 387.685 | E55: ='Obligacje skarbowe_podmiot'!E55+'Bony skarbowe_podmiot'!E55 -> 11104.99798 | F55: ='Obligacje skarbowe_podmiot'!F55+'Bony skarbowe_podmiot'!F55 -> 15017.75083 | G55: ='Obligacje skarbowe_podmiot'!G55+'Bony skarbowe_podmiot'!G55 -> 36923.2261 | H55: ='Obligacje skarbowe_podmiot'!H55+'Bony skarbowe_podmiot'!H55 -> 1238.142742 | I55: ='Obligacje skarbowe_podmiot'!I55+'Bony skarbowe_podmiot'!I55 -> 56.890585 | J55: ='Obligacje skarbowe_podmiot'!J55+'Bony skarbowe_podmiot'!J55 -> 7986.882748 | K55: ='Obligacje skarbowe_podmiot'!K55+'Bony skarbowe_podmiot'!K55 -> 26887.61507 | L55: ='Obligacje skarbowe_podmiot'!L55+'Bony skarbowe_podmiot'!L55 -> 53233.77688 | M55: ='Obligacje skarbowe_podmiot'!M55+'Bony skarbowe_podmiot'!M55 -> 192140.1407
A56: ='Obligacje skarbowe_podmiot'!A56 -> 2018-07-31 | B56: ='Obligacje skarbowe_podmiot'!B56+'Bony skarbowe_podmiot'!B56 -> 4741.403637 | C56: ='Obligacje skarbowe_podmiot'!C56+'Bony skarbowe_podmiot'!C56 -> 38808.81715 | D56: ='Obligacje skarbowe_podmiot'!D56+'Bony skarbowe_podmiot'!D56 -> 953.685 | E56: ='Obligacje skarbowe_podmiot'!E56+'Bony skarbowe_podmiot'!E56 -> 10737.90201 | F56: ='Obligacje skarbowe_podmiot'!F56+'Bony skarbowe_podmiot'!F56 -> 14939.02498 | G56: ='Obligacje skarbowe_podmiot'!G56+'Bony skarbowe_podmiot'!G56 -> 35819.23291 | H56: ='Obligacje skarbowe_podmiot'!H56+'Bony skarbowe_podmiot'!H56 -> 1156.083503 | I56: ='Obligacje skarbowe_podmiot'!I56+'Bony skarbowe_podmiot'!I56 -> 54.30970261 | J56: ='Obligacje skarbowe_podmiot'!J56+'Bony skarbowe_podmiot'!J56 -> 9098.92592 | K56: ='Obligacje skarbowe_podmiot'!K56+'Bony skarbowe_podmiot'!K56 -> 25724.02272 | L56: ='Obligacje skarbowe_podmiot'!L56+'Bony skarbowe_podmiot'!L56 -> 48596.67453 | M56: ='Obligacje skarbowe_podmiot'!M56+'Bony skarbowe_podmiot'!M56 -> 190630.0821
A57: ='Obligacje skarbowe_podmiot'!A57 -> 2018-08-31 | B57: ='Obligacje skarbowe_podmiot'!B57+'Bony skarbowe_podmiot'!B57 -> 4051.26087 | C57: ='Obligacje skarbowe_podmiot'!C57+'Bony skarbowe_podmiot'!C57 -> 39215.83981 | D57: ='Obligacje skarbowe_podmiot'!D57+'Bony skarbowe_podmiot'!D57 -> 443.685 | E57: ='Obligacje skarbowe_podmiot'!E57+'Bony skarbowe_podmiot'!E57 -> 9801.559123 | F57: ='Obligacje skarbowe_podmiot'!F57+'Bony skarbowe_podmiot'!F57 -> 14394.20895 | G57: ='Obligacje skarbowe_podmiot'!G57+'Bony skarbowe_podmiot'!G57 -> 31645.51524 | H57: ='Obligacje skarbowe_podmiot'!H57+'Bony skarbowe_podmiot'!H57 -> 2580.42385 | I57: ='Obligacje skarbowe_podmiot'!I57+'Bony skarbowe_podmiot'!I57 -> 54.40469427 | J57: ='Obligacje skarbowe_podmiot'!J57+'Bony skarbowe_podmiot'!J57 -> 9186.44454 | K57: ='Obligacje skarbowe_podmiot'!K57+'Bony skarbowe_podmiot'!K57 -> 28177.22237 | L57: ='Obligacje skarbowe_podmiot'!L57+'Bony skarbowe_podmiot'!L57 -> 48314.20161 | M57: ='Obligacje skarbowe_podmiot'!M57+'Bony skarbowe_podmiot'!M57 -> 187864.7661
A58: ='Obligacje skarbowe_podmiot'!A58 -> 2018-09-30 | B58: ='Obligacje skarbowe_podmiot'!B58+'Bony skarbowe_podmiot'!B58 -> 3790.368376 | C58: ='Obligacje skarbowe_podmiot'!C58+'Bony skarbowe_podmiot'!C58 -> 39276.41292 | D58: ='Obligacje skarbowe_podmiot'!D58+'Bony skarbowe_podmiot'!D58 -> 1242.558 | E58: ='Obligacje skarbowe_podmiot'!E58+'Bony skarbowe_podmiot'!E58 -> 9688.135046 | F58: ='Obligacje skarbowe_podmiot'!F58+'Bony skarbowe_podmiot'!F58 -> 13519.35673 | G58: ='Obligacje skarbowe_podmiot'!G58+'Bony skarbowe_podmiot'!G58 -> 31683.1093 | H58: ='Obligacje skarbowe_podmiot'!H58+'Bony skarbowe_podmiot'!H58 -> 2641.473253 | I58: ='Obligacje skarbowe_podmiot'!I58+'Bony skarbowe_podmiot'!I58 -> 56.90574797 | J58: ='Obligacje skarbowe_podmiot'!J58+'Bony skarbowe_podmiot'!J58 -> 9292.84995 | K58: ='Obligacje skarbowe_podmiot'!K58+'Bony skarbowe_podmiot'!K58 -> 29126.89701 | L58: ='Obligacje skarbowe_podmiot'!L58+'Bony skarbowe_podmiot'!L58 -> 49640.66253 | M58: ='Obligacje skarbowe_podmiot'!M58+'Bony skarbowe_podmiot'!M58 -> 189958.7288
A59: ='Obligacje skarbowe_podmiot'!A59 -> 2018-10-31 | B59: ='Obligacje skarbowe_podmiot'!B59+'Bony skarbowe_podmiot'!B59 -> 3195.107406 | C59: ='Obligacje skarbowe_podmiot'!C59+'Bony skarbowe_podmiot'!C59 -> 38627.48689 | D59: ='Obligacje skarbowe_podmiot'!D59+'Bony skarbowe_podmiot'!D59 -> 2538.776 | E59: ='Obligacje skarbowe_podmiot'!E59+'Bony skarbowe_podmiot'!E59 -> 9791.366271 | F59: ='Obligacje skarbowe_podmiot'!F59+'Bony skarbowe_podmiot'!F59 -> 13796.43163 | G59: ='Obligacje skarbowe_podmiot'!G59+'Bony skarbowe_podmiot'!G59 -> 30776.13597 | H59: ='Obligacje skarbowe_podmiot'!H59+'Bony skarbowe_podmiot'!H59 -> 2428.232188 | I59: ='Obligacje skarbowe_podmiot'!I59+'Bony skarbowe_podmiot'!I59 -> 57.69315528 | J59: ='Obligacje skarbowe_podmiot'!J59+'Bony skarbowe_podmiot'!J59 -> 9096.6408 | K59: ='Obligacje skarbowe_podmiot'!K59+'Bony skarbowe_podmiot'!K59 -> 28916.05982 | L59: ='Obligacje skarbowe_podmiot'!L59+'Bony skarbowe_podmiot'!L59 -> 53042.90145 | M59: ='Obligacje skarbowe_podmiot'!M59+'Bony skarbowe_podmiot'!M59 -> 192266.8316
A60: ='Obligacje skarbowe_podmiot'!A60 -> 2018-11-30 | B60: ='Obligacje skarbowe_podmiot'!B60+'Bony skarbowe_podmiot'!B60 -> 5706.587927 | C60: ='Obligacje skarbowe_podmiot'!C60+'Bony skarbowe_podmiot'!C60 -> 38636.03994 | D60: ='Obligacje skarbowe_podmiot'!D60+'Bony skarbowe_podmiot'!D60 -> 3725.584 | E60: ='Obligacje skarbowe_podmiot'!E60+'Bony skarbowe_podmiot'!E60 -> 10043.31699 | F60: ='Obligacje skarbowe_podmiot'!F60+'Bony skarbowe_podmiot'!F60 -> 13481.05194 | G60: ='Obligacje skarbowe_podmiot'!G60+'Bony skarbowe_podmiot'!G60 -> 30995.04674 | H60: ='Obligacje skarbowe_podmiot'!H60+'Bony skarbowe_podmiot'!H60 -> 2415.295838 | I60: ='Obligacje skarbowe_podmiot'!I60+'Bony skarbowe_podmiot'!I60 -> 58.43917815 | J60: ='Obligacje skarbowe_podmiot'!J60+'Bony skarbowe_podmiot'!J60 -> 8587.86625 | K60: ='Obligacje skarbowe_podmiot'!K60+'Bony skarbowe_podmiot'!K60 -> 28207.61776 | L60: ='Obligacje skarbowe_podmiot'!L60+'Bony skarbowe_podmiot'!L60 -> 50339.45953 | M60: ='Obligacje skarbowe_podmiot'!M60+'Bony skarbowe_podmiot'!M60 -> 192196.3061
A61: ='Obligacje skarbowe_podmiot'!A61 -> 2018-12-31 | B61: ='Obligacje skarbowe_podmiot'!B61+'Bony skarbowe_podmiot'!B61 -> 3872.842466 | C61: ='Obligacje skarbowe_podmiot'!C61+'Bony skarbowe_podmiot'!C61 -> 38195.48299 | D61: ='Obligacje skarbowe_podmiot'!D61+'Bony skarbowe_podmiot'!D61 -> 2859.152 | E61: ='Obligacje skarbowe_podmiot'!E61+'Bony skarbowe_podmiot'!E61 -> 10951.70673 | F61: ='Obligacje skarbowe_podmiot'!F61+'Bony skarbowe_podmiot'!F61 -> 13680.25205 | G61: ='Obligacje skarbowe_podmiot'!G61+'Bony skarbowe_podmiot'!G61 -> 32325.25682 | H61: ='Obligacje skarbowe_podmiot'!H61+'Bony skarbowe_podmiot'!H61 -> 2440.594164 | I61: ='Obligacje skarbowe_podmiot'!I61+'Bony skarbowe_podmiot'!I61 -> 62.18606016 | J61: ='Obligacje skarbowe_podmiot'!J61+'Bony skarbowe_podmiot'!J61 -> 8054.5686 | K61: ='Obligacje skarbowe_podmiot'!K61+'Bony skarbowe_podmiot'!K61 -> 27547.40733 | L61: ='Obligacje skarbowe_podmiot'!L61+'Bony skarbowe_podmiot'!L61 -> 51469.56309 | M61: ='Obligacje skarbowe_podmiot'!M61+'Bony skarbowe_podmiot'!M61 -> 191459.0123
A62: ='Obligacje skarbowe_podmiot'!A62 -> 2019-01-31 | B62: ='Obligacje skarbowe_podmiot'!B62+'Bony skarbowe_podmiot'!B62 -> 5979.234025 | C62: ='Obligacje skarbowe_podmiot'!C62+'Bony skarbowe_podmiot'!C62 -> 28194.16827 | D62: ='Obligacje skarbowe_podmiot'!D62+'Bony skarbowe_podmiot'!D62 -> 2181.29 | E62: ='Obligacje skarbowe_podmiot'!E62+'Bony skarbowe_podmiot'!E62 -> 9546.342232 | F62: ='Obligacje skarbowe_podmiot'!F62+'Bony skarbowe_podmiot'!F62 -> 12926.89643 | G62: ='Obligacje skarbowe_podmiot'!G62+'Bony skarbowe_podmiot'!G62 -> 32807.52886 | H62: ='Obligacje skarbowe_podmiot'!H62+'Bony skarbowe_podmiot'!H62 -> 2538.368207 | I62: ='Obligacje skarbowe_podmiot'!I62+'Bony skarbowe_podmiot'!I62 -> 58.66432061 | J62: ='Obligacje skarbowe_podmiot'!J62+'Bony skarbowe_podmiot'!J62 -> 7794.76235 | K62: ='Obligacje skarbowe_podmiot'!K62+'Bony skarbowe_podmiot'!K62 -> 25025.10905 | L62: ='Obligacje skarbowe_podmiot'!L62+'Bony skarbowe_podmiot'!L62 -> 54498.85871 | M62: ='Obligacje skarbowe_podmiot'!M62+'Bony skarbowe_podmiot'!M62 -> 181551.2225
A63: ='Obligacje skarbowe_podmiot'!A63 -> 2019-02-28 | B63: ='Obligacje skarbowe_podmiot'!B63+'Bony skarbowe_podmiot'!B63 -> 7314.65935 | C63: ='Obligacje skarbowe_podmiot'!C63+'Bony skarbowe_podmiot'!C63 -> 21130.19927 | D63: ='Obligacje skarbowe_podmiot'!D63+'Bony skarbowe_podmiot'!D63 -> 1400.19 | E63: ='Obligacje skarbowe_podmiot'!E63+'Bony skarbowe_podmiot'!E63 -> 9562.872232 | F63: ='Obligacje skarbowe_podmiot'!F63+'Bony skarbowe_podmiot'!F63 -> 12700.97216 | G63: ='Obligacje skarbowe_podmiot'!G63+'Bony skarbowe_podmiot'!G63 -> 31124.62447 | H63: ='Obligacje skarbowe_podmiot'!H63+'Bony skarbowe_podmiot'!H63 -> 2505.689207 | I63: ='Obligacje skarbowe_podmiot'!I63+'Bony skarbowe_podmiot'!I63 -> 58.73402061 | J63: ='Obligacje skarbowe_podmiot'!J63+'Bony skarbowe_podmiot'!J63 -> 8097.21135 | K63: ='Obligacje skarbowe_podmiot'!K63+'Bony skarbowe_podmiot'!K63 -> 25043.99876 | L63: ='Obligacje skarbowe_podmiot'!L63+'Bony skarbowe_podmiot'!L63 -> 53397.79237 | M63: ='Obligacje skarbowe_podmiot'!M63+'Bony skarbowe_podmiot'!M63 -> 172336.9432
